Workbook

Sheet Data sources
A1: Full data needed for numerical simulation
B3: Type | C3: Chemical | D3: Waut source | E3: Source2 | F3: Source3 | G3: $Bidapt source | H3: Kg Qapt source
A4: On hand | B4: Emission | C4: Carbon (not CO2) | D4: Hector | G4: Sheet Bids | H4: Sheet Bids
A5: On hand | B5: Emission | C5: CH4 | D5: Hector | G5: mmc1.xlsx | H5: mmc1.xlsx
A6: On hand | B6: Emission | C6: NO2 | D6: Hector | G6: mmc1.xlsx | H6: mmc1.xlsx
A7: On hand | B7: Emission | C7: HFC-23 | D7: Hector | G7: mmc2.xlsx | H7: mmc2.xlsx
A8: On hand | B8: Emission | C8: HFC-32 | D8: Hector | G8: mmc2.xlsx | H8: mmc2.xlsx
A9: On hand | B9: Emission | C9: HFC-43_10 | D9: Hector | G9: mmc2.xlsx | H9: mmc2.xlsx
A10: On hand | B10: Emission | C10: HFC-125 | D10: Hector | G10: mmc2.xlsx | H10: mmc2.xlsx
A11: On hand | B11: Emission | C11: HFC-134a | D11: Hector | G11: mmc2.xlsx | H11: mmc2.xlsx
A12: On hand | B12: Emission | C12: HFC-143a | D12: Hector | G12: mmc2.xlsx | H12: mmc2.xlsx
A13: On hand | B13: Emission | C13: HFC-152a | D13: Hector | G13: mmc2.xlsx | H13: mmc2.xlsx
A14: On hand | B14: Emission | C14: HFC-227ea | D14: Hector | G14: mmc2.xlsx | H14: mmc2.xlsx
A15: On hand | B15: Emission | C15: HFC-236fa | D15: Hector | G15: mmc2.xlsx | H15: mmc2.xlsx
A16: On hand | B16: Emission | C16: HFC245ca | D16: Hector | G16: mmc2.xlsx | H16: mmc2.xlsx
A17: On hand | B17: Emission | C17: CF4 | D17: Hector | G17: mmc2.xlsx | H17: mmc2.xlsx
A18: On hand | B18: Emission | C18: C2F6 | D18: Hector | G18: mmc2.xlsx | H18: mmc2.xlsx
A19: On hand | B19: Emission | C19: SF6 | D19: Hector | G19: mmc2.xlsx | H19: mmc2.xlsx
A20: On hand | B20: Emission | C20: C6F14 | D20: Hector | G20: mmc2.xlsx | H20: mmc2.xlsx
A21: On hand | B21: Abatement | C21: US forestry | D21: Stavins & Richards | G21: Sheet Forestry | H21: Sheet Forestry
A22: On hand | B22: Abatement | C22: Forest2 | D22: Smith, P. et al. (2014), “Agriculture, Forestry and Other Land Use (AFOLU)”, in Edenhofer, O., et al. (eds.), Climate Change 2014: Mitigation of Climate Change. Contribution of Working Group III to the Fifth Assessment Report of the Intergovernmental Panel on Climate Change, Cambridge University Press, Cambridge, United Kingdom and New York, NY, USA. | G22: Sheet Forestry | H22: Sheet Forestry
A23: On hand | B23: Abatement | C23: Agriculture | D23: Smith, P. et al. (2014), “Agriculture, Forestry and Other Land Use (AFOLU)”, in Edenhofer, O., et al. (eds.), Climate Change 2014: Mitigation of Climate Change. Contribution of Working Group III to the Fifth Assessment Report of the Intergovernmental Panel on Climate Change, Cambridge University Press, Cambridge, United Kingdom and New York, NY, USA. | G23: Sheet Forestry | H23: Sheet Forestry
A25: To do list, must be brought into Python.
A26: Done | B26: Agriculture | C26: bids
A27: Done | B27: Agriculture | C27: warming | F27: Bold are on the IPCC list of GHG
A28: Done | B28: C2F6 | C28: bids | F28: In Pulse | G28: In Bids
A29: Done | B29: C2F6 | C29: warming | F29: C2F6 | G29: C2F6
A30: Done | B30: CF4 | C30: bids | F30: CF4 | G30: CF4
A31: Done | B31: CF4 | C31: warming | F31: ffi | G31: Carbon
A32: Done | B32: CH4 | C32: bids | E32: Banned in US | F32: HFC-125 | G32: HFC-125
A33: Done | B33: CH4 | C33: warming | F33: HFC-134a | G33: HFC-134a
A34: Done | B34: Carbon | C34: bids | F34: HFC-143a | G34: HFC-143a
A35: Done | B35: Carbon | C35: warming | F35: SF6 | G35: SF6
A36: Done | B36: Forestry | C36: bids | F36: CH4 | G36: CH4
A37: Done | B37: Forestry | C37: warming | F37: SO2 | G37: To do
A38: Done | B38: HFC-125 | C38: bids | F38: N2O | G38: N2O
A39: Done | B39: HFC-125 | C39: warming | F39: BC
A40: Done | B40: HFC-134a | C40: bids | F40: CFC11 | H40: Controlled
A41: Done | B41: HFC-134a | C41: warming | F41: CFC12 | H41: Controlled
A42: Done | B42: HFC-143a | C42: bids | F42: CO
A43: Done | B43: HFC-143a | C43: warming | F43: HCF22
A44: Done | B44: N2O | C44: bids | F44: NMVOC
A45: Done | B45: N2O | C45: warming | F45: OC
A46: Done | B46: SF6 | C46: bids | G46: C6F14
A47: Done | B47: SF6 | C47: warming | G47: HFC-152a
A48: No bids, climate cooler, | B48: SO2 | C48: bids | G48: HFC-227ea | H48: Controlled
A49: Done | B49: SO2 | C49: warming | G49: HFC-23 | H49: Controlled
A50: No warming | B50: C6F14 | C50: bids | G50: HFC-236fa
A51: No warming | B51: HFC-152a | C51: bids | G51: HFC245ca
A52: No warming | B52: HFC-152a | C52: warming | G52: HFC-32
A53: No warming | B53: HFC-227ea | C53: bids | G53: HFC-43_10
A54: No warming | B54: HFC-227ea | C54: warming
A55: No warming | B55: HFC-23 | C55: bids
A56: No warming | B56: HFC-23 | C56: warming
A57: No warming | B57: HFC-236fa | C57: bids
A58: No warming | B58: HFC-236fa | C58: warming
A59: No warming | B59: HFC245ca | C59: bids
A60: No warming | B60: HFC245ca | C60: warming
A61: No warming | B61: HFC-32 | C61: bids
A62: No warming | B62: HFC-32 | C62: warming
A63: No warming | B63: HFC-43_10 | C63: bids
A64: No warming | B64: HFC-43_10 | C64: warming
A65: No warming data | B65: C6F14 | C65: warming

Sheet Initial burdens
B1: Initial quantities in the atmosphere
A2: Molecules in the atmosphere | C2: =1.04*10^44 -> 1.04e+44
A3: Avogadro's number | C3: 6.0221409e+23
A4: Moles in atmosphere | C4: =C2/C3 -> 1.72696059e+20
D5: https://www.esrl.noaa.gov/gmd/aggi/aggi.html
A6: Pollutant | B6: Units | C6: Emissions in 2020 | D6: ppm in 2020 | E6: ppm in 1920 | F6: Molecular weight g/mol | G6: Quantity in atmosphere
A7: Carbon (ffi) | B7: GtC/yr | D7: 420 | E7: 303.3 | G7: =(D7-E7)*2.13 -> 248.571 | H7: gTons C. According to https://cdiac.ess-dive.lbl.gov/pns/convert.html, 1 ppm by volume of atmosphere CO2 = 2.13 Gt C
A8: CH4 | B8: MtCH4/yr | C8: 256.7679 | D8: 1.86 | F8: 16.043 | G8: =$C$2/$C$3*D8*F8/10^18 -> 5153.246946 | H8: mtons, guesstimated from Hector.
A9: N2O | B9: MtN2O-N/yr | C9: 7.3634 | D9: =335/1000 -> 0.335 | F9: 44.01 | G9: 2546.118441 | H9: mtons, https://www.ipcc.ch/site/assets/uploads/2018/03/TAR-04.pdf, and Ravishankara, A. R.; Daniel, J. S.; Portmann, R. W. (2009). "Nitrous Oxide (N2O): The Dominant Ozone-Depleting Substance Emitted in the 21st Century". Science. 326 (5949): 123–5.
A10: CF4 | B10: kt/yr | C10: 12.2168 | D10: =74/10^6 -> 7.4e-05 | F10: 88.043 | G10: =$C$2/$C$3*D10*F10/10^15 -> 1125.146255 | H10: ktons, https://www.ocwd.com/media/7878/appendix-a-air-quality-and-ghg-impact-analysis.pdf
A11: C2F6 | B11: kt/yr | C11: 5.3983 | D11: =2.6/10^6 -> 2.6e-06 | F11: 138.01 | G11: =$C$2/$C$3*D11*F11/10^15 -> 61.96783606 | H11: ktons, https://www.ocwd.com/media/7878/appendix-a-air-quality-and-ghg-impact-analysis.pdf
A12: HFC125 | B12: kt/yr | C12: 89.349 | D12: =28.035/10^6 -> 2.8035e-05 | F12: 120.02 | G12: 581.0809123 | H12: ktons, extrapolated from https://cdiac.ess-dive.lbl.gov/ftp/ale_gage_Agage/AGAGE/gc-ms-medusa/monthly/CGO-medusa.mon
A13: HFC134a | B13: kt/yr | C13: 173.879 | D13: =105/10^6 -> 0.000105 | F13: 102.03 | G13: 1850.118784 | H13: ktons, extrapolated from https://cdiac.ess-dive.lbl.gov/ftp/ale_gage_Agage/AGAGE/gc-ms-medusa/monthly/CGO-medusa.mon
A14: HFC143a | B14: kt/yr | C14: 64.3741 | D14: =24.26/10^6 -> 2.426e-05 | F14: 84.04 | G14: 352.0945211 | H14: ktons, extrapolated from https://cdiac.ess-dive.lbl.gov/ftp/ale_gage_Agage/AGAGE/gc-ms-medusa/monthly/CGO-medusa.mon
A15: SF6 | B15: kt/yr | C15: 2.2441 | D15: =10.1/10^9 -> 1.01e-08 | F15: 146.06 | G15: 0.2547622624 | H15: ktons, extrapolated from https://cdiac.ess-dive.lbl.gov/ftp/ale_gage_Agage/AGAGE/gc-ms-medusa/monthly/CGO-medusa.mon

Sheet Atm concs
A1: From https://cdiac.ess-dive.lbl.gov/ftp/ale_gage_Agage/AGAGE/gc-ms-medusa/monthly/
A2: monthly mean of baseline data | B2: created: | C2: 15-Aug-2017
A3: GC-MS Medusa | B3: Cape Grim | C3: Tasmania | D3: Lat.: | E3: -40.68 | F3: 40.68S | G3: Lon.: | H3: 144.69 | I3: 144.69E | J3: Alt: | K3: 94 | L3: m above sea level
A5: CREDIT FOR USE: This is a formal notification for data users.
A6: For scientific purposes access to these data is unlimited and
A7: provided without charge. By their use you accept that an offer
A8: of co-authorship will be made through personal contact with the
A9: data providers or owners whenever substantial use is made of
A10: their data. In all cases an acknowledgement must be made to the
A11: data providers or owners and the data centre when these data are
A12: used within a publication.
A13: CONTACT POINT: paul.krummel@csiro.au; paul.fraser@csiro.au; raywang@eas.gatech.edu
A15: scale: | B15: --- | C15: --- | D15: --- | E15: SIO-05 | F15: --- | G15: --- | H15: SIO-05 | I15: --- | J15: --- | K15: SIO-05 | L15: --- | M15: --- | N15: SIO-05 | O15: --- | P15: --- | Q15: SIO-05 | R15: --- | S15: --- | T15: SIO-05 | U15: --- | V15: --- | W15: SIO-05 | X15: --- | Y15: --- | Z15: SIO-05 | AA15: --- | AB15: --- | AC15: SIO-05 | AD15: --- | AE15: --- | AF15: SIO-14 | AG15: --- | AH15: --- | AI15: UB-98 | AJ15: --- | AK15: --- | AL15: NOAA2003B | AM15: --- | AN15: --- | AO15: SIO-05 | AP15: --- | AQ15: --- | AR15: SIO-05 | AS15: --- | AT15: --- | AU15: SIO-98 | AV15: --- | AW15: --- | AX15: SIO-05 | AY15: --- | AZ15: --- | BA15: SIO-14 | BB15: --- | BC15: --- | BD15: SIO-07 | BE15: --- | BF15: --- | BG15: SIO-14 | BH15: --- | BI15: --- | BJ15: SIO-07 | BK15: --- | BL15: --- | BM15: SIO-07 | BN15: --- | BO15: --- | BP15: SIO-07 | BQ15: --- | BR15: --- | BS15: SIO-05 | BT15: --- | BU15: --- | BV15: SIO-14 | BW15: --- | BX15: --- | BY15: SIO-14 | BZ15: --- | CA15: --- | CB15: SIO-14 | CC15: --- | CD15: --- | CE15: SIO-05 | CF15: --- | CG15: --- | CH15: SIO-05 | CI15: --- | CJ15: --- | CK15: SIO-14 | CL15: --- | CM15: --- | CN15: SIO-12 | CO15: --- | CP15: --- | CQ15: SIO-05 | CR15: --- | CS15: --- | CT15: SIO-05 | CU15: --- | CV15: --- | CW15: SIO-05 | CX15: --- | CY15: --- | CZ15: SIO-07 | DA15: --- | DB15: --- | DC15: SIO-07 | DD15: --- | DE15: --- | DF15: SIO-14 | DG15: ---
A16: unit: | B16: --- | C16: --- | D16: --- | E16: SIO-05 | F16: --- | G16: --- | H16: ppt | I16: --- | J16: --- | K16: ppt | L16: --- | M16: --- | N16: ppt | O16: --- | P16: --- | Q16: ppt | R16: --- | S16: --- | T16: ppt | U16: --- | V16: --- | W16: ppt | X16: --- | Y16: --- | Z16: ppt | AA16: --- | AB16: --- | AC16: ppt | AD16: --- | AE16: --- | AF16: ppt | AG16: --- | AH16: --- | AI16: ppt | AJ16: --- | AK16: --- | AL16: ppt | AM16: --- | AN16: --- | AO16: ppt | AP16: --- | AQ16: --- | AR16: ppt | AS16: --- | AT16: --- | AU16: ppt | AV16: --- | AW16: --- | AX16: ppt | AY16: --- | AZ16: --- | BA16: ppt | BB16: --- | BC16: --- | BD16: ppt | BE16: --- | BF16: --- | BG16: ppt | BH16: --- | BI16: --- | BJ16: ppt | BK16: --- | BL16: --- | BM16: ppt | BN16: --- | BO16: --- | BP16: ppt | BQ16: --- | BR16: --- | BS16: ppt | BT16: --- | BU16: --- | BV16: ppt | BW16: --- | BX16: --- | BY16: ppt | BZ16: --- | CA16: --- | CB16: ppt | CC16: --- | CD16: --- | CE16: ppt | CF16: --- | CG16: --- | CH16: ppt | CI16: --- | CJ16: --- | CK16: ppt | CL16: --- | CM16: --- | CN16: ppt | CO16: --- | CP16: --- | CQ16: ppt | CR16: --- | CS16: --- | CT16: ppt | CU16: --- | CV16: --- | CW16: ppt | CX16: --- | CY16: --- | CZ16: ppt | DA16: --- | DB16: --- | DC16: ppt | DD16: --- | DE16: --- | DF16: ppt | DG16: ---
A17: time | B17: MM | C17: YYYY | D17: num | E17: HFC-134a | F17: std. | G17: num | H17: HCFC-22 | I17: std. | J17: num | K17: HCFC-141b | L17: std. | M17: num | N17: HCFC-142b | O17: std. | P17: num | Q17: CH3Cl | R17: std. | S17: num | T17: CH3Br | U17: std. | V17: num | W17: H-1211 | X17: std. | Y17: num | Z17: H-1301 | AA17: std. | AB17: num | AC17: HFC-152a | AD17: std. | AE17: num | AF17: CH2Cl2 | AG17: std. | AH17: num | AI17: TCE | AJ17: std. | AK17: num | AL17: PCE | AM17: std. | AN17: num | AO17: CFC-113 | AP17: std. | AQ17: num | AR17: CH3CCl3 | AS17: std. | AT17: num | AU17: CHCl3 | AV17: std. | AW17: num | AX17: SF6 | AY17: std. | AZ17: num | BA17: HFC-365mfc | BB17: std. | BC17: num | BD17: SO2F2 | BE17: std. | BF17: num | BG17: HFC-125 | BH17: std. | BI17: num | BJ17: HFC-23 | BK17: std. | BL17: num | BM17: PFC-116 | BN17: std. | BO17: num | BP17: PFC-218 | BQ17: std. | BR17: num | BS17: PFC-14 | BT17: std. | BU17: num | BV17: HFC-227ea | BW17: std. | BX17: num | BY17: HFC-245fa | BZ17: std. | CA17: num | CB17: HFC-236fa | CC17: std. | CD17: num | CE17: CFC-115 | CF17: std. | CG17: num | CH17: CFC-114 | CI17: std. | CJ17: num | CK17: HFC4310mee | CL17: std. | CM17: num | CN17: NF3 | CO17: std. | CP17: num | CQ17: CFC-11 | CR17: std. | CS17: num | CT17: CFC-12 | CU17: std. | CV17: num | CW17: CCl4 | CX17: std. | CY17: num | CZ17: HFC-32 | DA17: std. | DB17: num | DC17: HFC-143a | DD17: std. | DE17: num | DF17: H-2402 | DG17: std.
A18: 2004.042 | B18: 1 | C18: 2004 | D18: 80 | E18: 24.449 | F18: 0.175 | G18: 82 | H18: 152.117 | I18: 0.6 | J18: 88 | K18: 15.702 | L18: 0.086 | M18: 88 | N18: 14.048 | O18: 0.057 | P18: 24 | Q18: 501.083 | R18: 2.201 | S18: 40 | T18: 6.95 | U18: 0.123 | V18: 86 | W18: 4.183 | X18: 0.045 | Y18: 91 | Z18: 2.98 | AA18: 0.048 | AB18: 85 | AC18: 1.653 | AD18: 0.046 | AE18: 75 | AF18: 7.173 | AG18: 0.111 | AH18: 0 | AI18: 0 | AJ18: 0 | AK18: 60 | AL18: 0.373 | AM18: 0.015 | AN18: 88 | AO18: 79.547 | AP18: 0.154 | AQ18: 90 | AR18: 23.627 | AS18: 0.299 | AT18: 23 | AU18: 4.602 | AV18: 0.144 | AW18: 0 | AX18: 0 | AY18: 0 | AZ18: 0 | BA18: 0 | BB18: 0 | BC18: 0 | BD18: 0 | BE18: 0 | BF18: 0 | BG18: 0 | BH18: 0 | BI18: 0 | BJ18: 0 | BK18: 0 | BL18: 0 | BM18: 0 | BN18: 0 | BO18: 92 | BP18: 0.37 | BQ18: 0.012 | BR18: 0 | BS18: 0 | BT18: 0 | BU18: 0 | BV18: 0 | BW18: 0 | BX18: 0 | BY18: 0 | BZ18: 0 | CA18: 0 | CB18: 0 | CC18: 0 | CD18: 88 | CE18: 8.315 | CF18: 0.053 | CG18: 88 | CH18: 16.572 | CI18: 0.045 | CJ18: 0 | CK18: 0 | CL18: 0 | CM18: 0 | CN18: 0 | CO18: 0 | CP18: 0 | CQ18: 0 | CR18: 0 | CS18: 0 | CT18: 0 | CU18: 0 | CV18: 0 | CW18: 0 | CX18: 0 | CY18: 0 | CZ18: 0 | DA18: 0 | DB18: 86 | DC18: 4.072 | DD18: 0.083 | DE18: 82 | DF18: 0.475 | DG18: 0.007
A19: 2004.125 | B19: 2 | C19: 2004 | D19: 197 | E19: 24.515 | F19: 0.182 | G19: 207 | H19: 152.065 | I19: 0.576 | J19: 219 | K19: 15.719 | L19: 0.086 | M19: 220 | N19: 14.041 | O19: 0.049 | P19: 109 | Q19: 495.006 | R19: 4.471 | S19: 161 | T19: 6.919 | U19: 0.172 | V19: 221 | W19: 4.184 | X19: 0.045 | Y19: 218 | Z19: 2.985 | AA19: 0.049 | AB19: 216 | AC19: 1.635 | AD19: 0.041 | AE19: 199 | AF19: 6.996 | AG19: 0.118 | AH19: 0 | AI19: 0 | AJ19: 0 | AK19: 169 | AL19: 0.345 | AM19: 0.015 | AN19: 220 | AO19: 79.454 | AP19: 0.156 | AQ19: 221 | AR19: 23.403 | AS19: 0.304 | AT19: 94 | AU19: 4.504 | AV19: 0.131 | AW19: 0 | AX19: 0 | AY19: 0 | AZ19: 0 | BA19: 0 | BB19: 0 | BC19: 0 | BD19: 0 | BE19: 0 | BF19: 188 | BG19: 2.753 | BH19: 0.032 | BI19: 0 | BJ19: 0 | BK19: 0 | BL19: 0 | BM19: 0 | BN19: 0 | BO19: 219 | BP19: 0.372 | BQ19: 0.012 | BR19: 0 | BS19: 0 | BT19: 0 | BU19: 0 | BV19: 0 | BW19: 0 | BX19: 0 | BY19: 0 | BZ19: 0 | CA19: 0 | CB19: 0 | CC19: 0 | CD19: 222 | CE19: 8.314 | CF19: 0.053 | CG19: 223 | CH19: 16.56 | CI19: 0.038 | CJ19: 0 | CK19: 0 | CL19: 0 | CM19: 0 | CN19: 0 | CO19: 0 | CP19: 0 | CQ19: 0 | CR19: 0 | CS19: 0 | CT19: 0 | CU19: 0 | CV19: 0 | CW19: 0 | CX19: 0 | CY19: 161 | CZ19: 0.479 | DA19: 0.035 | DB19: 205 | DC19: 4.088 | DD19: 0.075 | DE19: 221 | DF19: 0.473 | DG19: 0.007
A20: 2004.208 | B20: 3 | C20: 2004 | D20: 254 | E20: 24.888 | F20: 0.244 | G20: 295 | H20: 152.54 | I20: 0.674 | J20: 293 | K20: 15.829 | L20: 0.112 | M20: 294 | N20: 14.106 | O20: 0.069 | P20: 147 | Q20: 497.056 | R20: 5.791 | S20: 228 | T20: 6.944 | U20: 0.166 | V20: 305 | W20: 4.193 | X20: 0.044 | Y20: 302 | Z20: 2.969 | AA20: 0.048 | AB20: 302 | AC20: 1.674 | AD20: 0.045 | AE20: 280 | AF20: 7.25 | AG20: 0.226 | AH20: 0 | AI20: 0 | AJ20: 0 | AK20: 181 | AL20: 0.38 | AM20: 0.039 | AN20: 306 | AO20: 79.374 | AP20: 0.18 | AQ20: 316 | AR20: 22.885 | AS20: 0.346 | AT20: 143 | AU20: 4.505 | AV20: 0.186 | AW20: 0 | AX20: 0 | AY20: 0 | AZ20: 0 | BA20: 0 | BB20: 0 | BC20: 0 | BD20: 0 | BE20: 0 | BF20: 278 | BG20: 2.762 | BH20: 0.035 | BI20: 0 | BJ20: 0 | BK20: 0 | BL20: 0 | BM20: 0 | BN20: 0 | BO20: 306 | BP20: 0.374 | BQ20: 0.011 | BR20: 0 | BS20: 0 | BT20: 0 | BU20: 0 | BV20: 0 | BW20: 0 | BX20: 0 | BY20: 0 | BZ20: 0 | CA20: 0 | CB20: 0 | CC20: 0 | CD20: 313 | CE20: 8.329 | CF20: 0.058 | CG20: 304 | CH20: 16.558 | CI20: 0.044 | CJ20: 0 | CK20: 0 | CL20: 0 | CM20: 0 | CN20: 0 | CO20: 0 | CP20: 0 | CQ20: 0 | CR20: 0 | CS20: 0 | CT20: 0 | CU20: 0 | CV20: 0 | CW20: 0 | CX20: 0 | CY20: 284 | CZ20: 0.5 | DA20: 0.038 | DB20: 284 | DC20: 4.165 | DD20: 0.078 | DE20: 307 | DF20: 0.473 | DG20: 0.007
A21: 2004.292 | B21: 4 | C21: 2004 | D21: 230 | E21: 25.344 | F21: 0.271 | G21: 253 | H21: 153.052 | I21: 0.672 | J21: 257 | K21: 15.939 | L21: 0.104 | M21: 247 | N21: 14.134 | O21: 0.062 | P21: 83 | Q21: 509.51 | R21: 7.654 | S21: 164 | T21: 7.029 | U21: 0.162 | V21: 267 | W21: 4.206 | X21: 0.044 | Y21: 260 | Z21: 2.976 | AA21: 0.047 | AB21: 253 | AC21: 1.743 | AD21: 0.063 | AE21: 200 | AF21: 7.879 | AG21: 0.27 | AH21: 0 | AI21: 0 | AJ21: 0 | AK21: 176 | AL21: 0.493 | AM21: 0.045 | AN21: 268 | AO21: 79.352 | AP21: 0.2 | AQ21: 271 | AR21: 22.54 | AS21: 0.308 | AT21: 73 | AU21: 4.882 | AV21: 0.168 | AW21: 0 | AX21: 0 | AY21: 0 | AZ21: 0 | BA21: 0 | BB21: 0 | BC21: 0 | BD21: 0 | BE21: 0 | BF21: 229 | BG21: 2.795 | BH21: 0.034 | BI21: 0 | BJ21: 0 | BK21: 0 | BL21: 76 | BM21: 3.462 | BN21: 0.03 | BO21: 254 | BP21: 0.371 | BQ21: 0.012 | BR21: 0 | BS21: 0 | BT21: 0 | BU21: 0 | BV21: 0 | BW21: 0 | BX21: 0 | BY21: 0 | BZ21: 0 | CA21: 0 | CB21: 0 | CC21: 0 | CD21: 274 | CE21: 8.333 | CF21: 0.053 | CG21: 270 | CH21: 16.575 | CI21: 0.04 | CJ21: 0 | CK21: 0 | CL21: 0 | CM21: 0 | CN21: 0 | CO21: 0 | CP21: 0 | CQ21: 0 | CR21: 0 | CS21: 0 | CT21: 0 | CU21: 0 | CV21: 0 | CW21: 0 | CX21: 0 | CY21: 188 | CZ21: 0.521 | DA21: 0.041 | DB21: 240 | DC21: 4.216 | DD21: 0.071 | DE21: 270 | DF21: 0.471 | DG21: 0.007
A22: 2004.375 | B22: 5 | C22: 2004 | D22: 265 | E22: 25.865 | F22: 0.255 | G22: 292 | H22: 153.979 | I22: 0.738 | J22: 296 | K22: 16.086 | L22: 0.11 | M22: 316 | N22: 14.193 | O22: 0.065 | P22: 146 | Q22: 517.667 | R22: 7.907 | S22: 201 | T22: 6.87 | U22: 0.167 | V22: 319 | W22: 4.203 | X22: 0.046 | Y22: 308 | Z22: 2.989 | AA22: 0.046 | AB22: 303 | AC22: 1.862 | AD22: 0.059 | AE22: 239 | AF22: 8.614 | AG22: 0.351 | AH22: 0 | AI22: 0 | AJ22: 0 | AK22: 211 | AL22: 0.624 | AM22: 0.057 | AN22: 325 | AO22: 79.299 | AP22: 0.196 | AQ22: 324 | AR22: 22.272 | AS22: 0.313 | AT22: 159 | AU22: 5.306 | AV22: 0.187 | AW22: 0 | AX22: 0 | AY22: 0 | AZ22: 0 | BA22: 0 | BB22: 0 | BC22: 0 | BD22: 0 | BE22: 0 | BF22: 272 | BG22: 2.841 | BH22: 0.04 | BI22: 0 | BJ22: 0 | BK22: 0 | BL22: 319 | BM22: 3.465 | BN22: 0.03 | BO22: 311 | BP22: 0.368 | BQ22: 0.011 | BR22: 0 | BS22: 0 | BT22: 0 | BU22: 0 | BV22: 0 | BW22: 0 | BX22: 0 | BY22: 0 | BZ22: 0 | CA22: 0 | CB22: 0 | CC22: 0 | CD22: 325 | CE22: 8.318 | CF22: 0.052 | CG22: 321 | CH22: 16.565 | CI22: 0.045 | CJ22: 0 | CK22: 0 | CL22: 0 | CM22: 0 | CN22: 0 | CO22: 0 | CP22: 0 | CQ22: 0 | CR22: 0 | CS22: 0 | CT22: 0 | CU22: 0 | CV22: 0 | CW22: 0 | CX22: 0 | CY22: 303 | CZ22: 0.562 | DA22: 0.041 | DB22: 278 | DC22: 4.269 | DD22: 0.078 | DE22: 321 | DF22: 0.467 | DG22: 0.007
A23: 2004.458 | B23: 6 | C23: 2004 | D23: 182 | E23: 26.261 | F23: 0.214 | G23: 206 | H23: 154.923 | I23: 0.728 | J23: 212 | K23: 16.212 | L23: 0.116 | M23: 216 | N23: 14.253 | O23: 0.06 | P23: 127 | Q23: 527.94 | R23: 6.121 | S23: 172 | T23: 6.795 | U23: 0.134 | V23: 219 | W23: 4.218 | X23: 0.046 | Y23: 208 | Z23: 2.989 | AA23: 0.048 | AB23: 212 | AC23: 1.95 | AD23: 0.052 | AE23: 139 | AF23: 9.302 | AG23: 0.303 | AH23: 0 | AI23: 0 | AJ23: 0 | AK23: 131 | AL23: 0.759 | AM23: 0.049 | AN23: 219 | AO23: 79.209 | AP23: 0.192 | AQ23: 216 | AR23: 22.071 | AS23: 0.25 | AT23: 117 | AU23: 5.811 | AV23: 0.174 | AW23: 0 | AX23: 0 | AY23: 0 | AZ23: 0 | BA23: 0 | BB23: 0 | BC23: 0 | BD23: 0 | BE23: 0 | BF23: 186 | BG23: 2.889 | BH23: 0.036 | BI23: 0 | BJ23: 0 | BK23: 0 | BL23: 219 | BM23: 3.473 | BN23: 0.032 | BO23: 208 | BP23: 0.371 | BQ23: 0.01 | BR23: 0 | BS23: 0 | BT23: 0 | BU23: 0 | BV23: 0 | BW23: 0 | BX23: 0 | BY23: 0 | BZ23: 0 | CA23: 0 | CB23: 0 | CC23: 0 | CD23: 219 | CE23: 8.332 | CF23: 0.052 | CG23: 220 | CH23: 16.566 | CI23: 0.042 | CJ23: 0 | CK23: 0 | CL23: 0 | CM23: 0 | CN23: 0 | CO23: 0 | CP23: 0 | CQ23: 0 | CR23: 0 | CS23: 0 | CT23: 0 | CU23: 0 | CV23: 0 | CW23: 0 | CX23: 0 | CY23: 214 | CZ23: 0.578 | DA23: 0.044 | DB23: 199 | DC23: 4.368 | DD23: 0.076 | DE23: 220 | DF23: 0.469 | DG23: 0.007
A24: 2004.542 | B24: 7 | C24: 2004 | D24: 137 | E24: 26.632 | F24: 0.274 | G24: 149 | H24: 155.595 | I24: 0.813 | J24: 167 | K24: 16.34 | L24: 0.117 | M24: 173 | N24: 14.318 | O24: 0.071 | P24: 89 | Q24: 532.919 | R24: 5.033 | S24: 121 | T24: 6.702 | U24: 0.117 | V24: 176 | W24: 4.23 | X24: 0.043 | Y24: 172 | Z24: 2.997 | AA24: 0.046 | AB24: 167 | AC24: 2.013 | AD24: 0.068 | AE24: 121 | AF24: 9.904 | AG24: 0.336 | AH24: 0 | AI24: 0 | AJ24: 0 | AK24: 127 | AL24: 0.864 | AM24: 0.037 | AN24: 174 | AO24: 79.196 | AP24: 0.171 | AQ24: 177 | AR24: 21.826 | AS24: 0.265 | AT24: 82 | AU24: 6.104 | AV24: 0.135 | AW24: 0 | AX24: 0 | AY24: 0 | AZ24: 0 | BA24: 0 | BB24: 0 | BC24: 0 | BD24: 0 | BE24: 0 | BF24: 140 | BG24: 2.926 | BH24: 0.04 | BI24: 0 | BJ24: 0 | BK24: 0 | BL24: 176 | BM24: 3.493 | BN24: 0.028 | BO24: 173 | BP24: 0.375 | BQ24: 0.01 | BR24: 0 | BS24: 0 | BT24: 0 | BU24: 0 | BV24: 0 | BW24: 0 | BX24: 0 | BY24: 0 | BZ24: 0 | CA24: 0 | CB24: 0 | CC24: 0 | CD24: 173 | CE24: 8.338 | CF24: 0.056 | CG24: 174 | CH24: 16.572 | CI24: 0.04 | CJ24: 0 | CK24: 0 | CL24: 0 | CM24: 0 | CN24: 0 | CO24: 0 | CP24: 0 | CQ24: 0 | CR24: 0 | CS24: 0 | CT24: 0 | CU24: 0 | CV24: 0 | CW24: 0 | CX24: 0 | CY24: 172 | CZ24: 0.6 | DA24: 0.048 | DB24: 153 | DC24: 4.426 | DD24: 0.091 | DE24: 175 | DF24: 0.47 | DG24: 0.007
A25: 2004.625 | B25: 8 | C25: 2004 | D25: 233 | E25: 27.115 | F25: 0.229 | G25: 271 | H25: 156.549 | I25: 0.705 | J25: 283 | K25: 16.485 | L25: 0.109 | M25: 294 | N25: 14.413 | O25: 0.067 | P25: 87 | Q25: 536.077 | R25: 3.945 | S25: 156 | T25: 6.786 | U25: 0.147 | V25: 293 | W25: 4.247 | X25: 0.047 | Y25: 299 | Z25: 2.994 | AA25: 0.05 | AB25: 295 | AC25: 2.077 | AD25: 0.055 | AE25: 164 | AF25: 10.367 | AG25: 0.165 | AH25: 0 | AI25: 0 | AJ25: 0 | AK25: 194 | AL25: 0.945 | AM25: 0.026 | AN25: 296 | AO25: 78.978 | AP25: 0.228 | AQ25: 304 | AR25: 21.636 | AS25: 0.275 | AT25: 108 | AU25: 6.307 | AV25: 0.133 | AW25: 0 | AX25: 0 | AY25: 0 | AZ25: 0 | BA25: 0 | BB25: 0 | BC25: 0 | BD25: 0 | BE25: 0 | BF25: 245 | BG25: 2.977 | BH25: 0.038 | BI25: 0 | BJ25: 0 | BK25: 0 | BL25: 304 | BM25: 3.513 | BN25: 0.035 | BO25: 298 | BP25: 0.379 | BQ25: 0.013 | BR25: 0 | BS25: 0 | BT25: 0 | BU25: 0 | BV25: 0 | BW25: 0 | BX25: 0 | BY25: 0 | BZ25: 0 | CA25: 0 | CB25: 0 | CC25: 0 | CD25: 305 | CE25: 8.353 | CF25: 0.054 | CG25: 307 | CH25: 16.578 | CI25: 0.042 | CJ25: 0 | CK25: 0 | CL25: 0 | CM25: 0 | CN25: 0 | CO25: 0 | CP25: 0 | CQ25: 0 | CR25: 0 | CS25: 0 | CT25: 0 | CU25: 0 | CV25: 0 | CW25: 0 | CX25: 0 | CY25: 298 | CZ25: 0.631 | DA25: 0.047 | DB25: 268 | DC25: 4.513 | DD25: 0.08 | DE25: 307 | DF25: 0.473 | DG25: 0.008
A26: 2004.708 | B26: 9 | C26: 2004 | D26: 234 | E26: 27.555 | F26: 0.186 | G26: 291 | H26: 157.081 | I26: 0.641 | J26: 293 | K26: 16.566 | L26: 0.097 | M26: 311 | N26: 14.507 | O26: 0.055 | P26: 167 | Q26: 535.324 | R26: 3.241 | S26: 207 | T26: 6.885 | U26: 0.111 | V26: 329 | W26: 4.256 | X26: 0.046 | Y26: 322 | Z26: 2.996 | AA26: 0.046 | AB26: 321 | AC26: 2.101 | AD26: 0.054 | AE26: 242 | AF26: 10.385 | AG26: 0.126 | AH26: 0 | AI26: 0 | AJ26: 0 | AK26: 265 | AL26: 0.9 | AM26: 0.041 | AN26: 330 | AO26: 78.753 | AP26: 0.14 | AQ26: 333 | AR26: 21.32 | AS26: 0.295 | AT26: 197 | AU26: 6.33 | AV26: 0.177 | AW26: 0 | AX26: 0 | AY26: 0 | AZ26: 0 | BA26: 0 | BB26: 0 | BC26: 0 | BD26: 0 | BE26: 0 | BF26: 262 | BG26: 3.034 | BH26: 0.036 | BI26: 0 | BJ26: 0 | BK26: 0 | BL26: 330 | BM26: 3.538 | BN26: 0.031 | BO26: 317 | BP26: 0.386 | BQ26: 0.012 | BR26: 0 | BS26: 0 | BT26: 0 | BU26: 0 | BV26: 0 | BW26: 0 | BX26: 0 | BY26: 0 | BZ26: 0 | CA26: 0 | CB26: 0 | CC26: 0 | CD26: 333 | CE26: 8.356 | CF26: 0.057 | CG26: 331 | CH26: 16.572 | CI26: 0.041 | CJ26: 0 | CK26: 0 | CL26: 0 | CM26: 0 | CN26: 0 | CO26: 0 | CP26: 0 | CQ26: 0 | CR26: 0 | CS26: 0 | CT26: 0 | CU26: 0 | CV26: 0 | CW26: 0 | CX26: 0 | CY26: 309 | CZ26: 0.657 | DA26: 0.046 | DB26: 281 | DC26: 4.569 | DD26: 0.075 | DE26: 332 | DF26: 0.476 | DG26: 0.007
A27: 2004.792 | B27: 10 | C27: 2004 | D27: 188 | E27: 27.928 | F27: 0.19 | G27: 214 | H27: 157.339 | I27: 0.648 | J27: 215 | K27: 16.577 | L27: 0.088 | M27: 214 | N27: 14.559 | O27: 0.055 | P27: 94 | Q27: 535.024 | R27: 3.475 | S27: 107 | T27: 6.924 | U27: 0.086 | V27: 231 | W27: 4.259 | X27: 0.046 | Y27: 226 | Z27: 2.998 | AA27: 0.049 | AB27: 230 | AC27: 2.119 | AD27: 0.05 | AE27: 208 | AF27: 10.067 | AG27: 0.206 | AH27: 0 | AI27: 0 | AJ27: 0 | AK27: 188 | AL27: 0.799 | AM27: 0.043 | AN27: 224 | AO27: 78.725 | AP27: 0.167 | AQ27: 234 | AR27: 21.18 | AS27: 0.295 | AT27: 92 | AU27: 6.147 | AV27: 0.219 | AW27: 0 | AX27: 0 | AY27: 0 | AZ27: 0 | BA27: 0 | BB27: 0 | BC27: 0 | BD27: 0 | BE27: 0 | BF27: 208 | BG27: 3.094 | BH27: 0.034 | BI27: 0 | BJ27: 0 | BK27: 0 | BL27: 235 | BM27: 3.544 | BN27: 0.032 | BO27: 234 | BP27: 0.389 | BQ27: 0.012 | BR27: 0 | BS27: 0 | BT27: 0 | BU27: 0 | BV27: 0 | BW27: 0 | BX27: 0 | BY27: 0 | BZ27: 0 | CA27: 0 | CB27: 0 | CC27: 0 | CD27: 235 | CE27: 8.336 | CF27: 0.06 | CG27: 232 | CH27: 16.561 | CI27: 0.048 | CJ27: 0 | CK27: 0 | CL27: 0 | CM27: 0 | CN27: 0 | CO27: 0 | CP27: 0 | CQ27: 0 | CR27: 0 | CS27: 0 | CT27: 0 | CU27: 0 | CV27: 0 | CW27: 0 | CX27: 0 | CY27: 226 | CZ27: 0.656 | DA27: 0.045 | DB27: 221 | DC27: 4.599 | DD27: 0.074 | DE27: 237 | DF27: 0.473 | DG27: 0.007
A28: 2004.875 | B28: 11 | C28: 2004 | D28: 215 | E28: 28.162 | F28: 0.191 | G28: 237 | H28: 157.401 | I28: 0.573 | J28: 243 | K28: 16.548 | L28: 0.074 | M28: 248 | N28: 14.557 | O28: 0.046 | P28: 121 | Q28: 526.408 | R28: 4.564 | S28: 138 | T28: 6.889 | U28: 0.123 | V28: 251 | W28: 4.255 | X28: 0.045 | Y28: 257 | Z28: 3.01 | AA28: 0.046 | AB28: 246 | AC28: 2.075 | AD28: 0.044 | AE28: 225 | AF28: 9.333 | AG28: 0.299 | AH28: 0 | AI28: 0 | AJ28: 0 | AK28: 211 | AL28: 0.654 | AM28: 0.054 | AN28: 254 | AO28: 78.625 | AP28: 0.126 | AQ28: 253 | AR28: 20.762 | AS28: 0.323 | AT28: 123 | AU28: 5.792 | AV28: 0.185 | AW28: 0 | AX28: 0 | AY28: 0 | AZ28: 0 | BA28: 0 | BB28: 0 | BC28: 255 | BD28: 1.231 | BE28: 0.017 | BF28: 229 | BG28: 3.117 | BH28: 0.034 | BI28: 0 | BJ28: 0 | BK28: 0 | BL28: 257 | BM28: 3.547 | BN28: 0.027 | BO28: 259 | BP28: 0.389 | BQ28: 0.011 | BR28: 0 | BS28: 0 | BT28: 0 | BU28: 0 | BV28: 0 | BW28: 0 | BX28: 0 | BY28: 0 | BZ28: 0 | CA28: 0 | CB28: 0 | CC28: 0 | CD28: 259 | CE28: 8.336 | CF28: 0.057 | CG28: 250 | CH28: 16.549 | CI28: 0.04 | CJ28: 0 | CK28: 0 | CL28: 0 | CM28: 0 | CN28: 0 | CO28: 0 | CP28: 0 | CQ28: 0 | CR28: 0 | CS28: 0 | CT28: 0 | CU28: 0 | CV28: 0 | CW28: 0 | CX28: 0 | CY28: 243 | CZ28: 0.662 | DA28: 0.039 | DB28: 230 | DC28: 4.64 | DD28: 0.064 | DE28: 257 | DF28: 0.471 | DG28: 0.006
A29: 2004.958 | B29: 12 | C29: 2004 | D29: 277 | E29: 28.454 | F29: 0.157 | G29: 298 | H29: 157.218 | I29: 0.565 | J29: 274 | K29: 16.511 | L29: 0.072 | M29: 302 | N29: 14.559 | O29: 0.044 | P29: 131 | Q29: 513.703 | R29: 4.945 | S29: 158 | T29: 6.959 | U29: 0.13 | V29: 304 | W29: 4.245 | X29: 0.044 | Y29: 310 | Z29: 3.035 | AA29: 0.041 | AB29: 306 | AC29: 2.003 | AD29: 0.05 | AE29: 277 | AF29: 8.343 | AG29: 0.313 | AH29: 0 | AI29: 0 | AJ29: 0 | AK29: 249 | AL29: 0.484 | AM29: 0.049 | AN29: 294 | AO29: 78.58 | AP29: 0.124 | AQ29: 310 | AR29: 20.233 | AS29: 0.286 | AT29: 114 | AU29: 5.237 | AV29: 0.166 | AW29: 0 | AX29: 0 | AY29: 0 | AZ29: 0 | BA29: 0 | BB29: 0 | BC29: 305 | BD29: 1.233 | BE29: 0.018 | BF29: 287 | BG29: 3.147 | BH29: 0.032 | BI29: 0 | BJ29: 0 | BK29: 0 | BL29: 307 | BM29: 3.552 | BN29: 0.028 | BO29: 305 | BP29: 0.389 | BQ29: 0.012 | BR29: 0 | BS29: 0 | BT29: 0 | BU29: 0 | BV29: 0 | BW29: 0 | BX29: 0 | BY29: 0 | BZ29: 0 | CA29: 0 | CB29: 0 | CC29: 0 | CD29: 305 | CE29: 8.363 | CF29: 0.055 | CG29: 302 | CH29: 16.542 | CI29: 0.04 | CJ29: 0 | CK29: 0 | CL29: 0 | CM29: 0 | CN29: 0 | CO29: 0 | CP29: 0 | CQ29: 0 | CR29: 0 | CS29: 0 | CT29: 0 | CU29: 0 | CV29: 0 | CW29: 0 | CX29: 0 | CY29: 302 | CZ29: 0.676 | DA29: 0.041 | DB29: 290 | DC29: 4.695 | DD29: 0.067 | DE29: 305 | DF29: 0.471 | DG29: 0.007
A30: 2005.042 | B30: 1 | C30: 2005 | D30: 253 | E30: 28.552 | F30: 0.166 | G30: 291 | H30: 157.118 | I30: 0.583 | J30: 303 | K30: 16.471 | L30: 0.077 | M30: 300 | N30: 14.556 | O30: 0.047 | P30: 135 | Q30: 503.148 | R30: 3.672 | S30: 174 | T30: 6.999 | U30: 0.136 | V30: 316 | W30: 4.241 | X30: 0.046 | Y30: 321 | Z30: 3.02 | AA30: 0.043 | AB30: 316 | AC30: 1.93 | AD30: 0.044 | AE30: 281 | AF30: 7.593 | AG30: 0.262 | AH30: 0 | AI30: 0 | AJ30: 0 | AK30: 240 | AL30: 0.383 | AM30: 0.03 | AN30: 306 | AO30: 78.477 | AP30: 0.13 | AQ30: 319 | AR30: 19.729 | AS30: 0.348 | AT30: 118 | AU30: 4.727 | AV30: 0.246 | AW30: 0 | AX30: 0 | AY30: 0 | AZ30: 0 | BA30: 0 | BB30: 0 | BC30: 320 | BD30: 1.236 | BE30: 0.019 | BF30: 271 | BG30: 3.172 | BH30: 0.036 | BI30: 0 | BJ30: 0 | BK30: 0 | BL30: 314 | BM30: 3.563 | BN30: 0.03 | BO30: 322 | BP30: 0.39 | BQ30: 0.011 | BR30: 0 | BS30: 0 | BT30: 0 | BU30: 0 | BV30: 0 | BW30: 0 | BX30: 0 | BY30: 0 | BZ30: 0 | CA30: 0 | CB30: 0 | CC30: 0 | CD30: 318 | CE30: 8.354 | CF30: 0.057 | CG30: 318 | CH30: 16.535 | CI30: 0.043 | CJ30: 0 | CK30: 0 | CL30: 0 | CM30: 0 | CN30: 0 | CO30: 0 | CP30: 0 | CQ30: 0 | CR30: 0 | CS30: 0 | CT30: 0 | CU30: 0 | CV30: 0 | CW30: 0 | CX30: 0 | CY30: 302 | CZ30: 0.683 | DA30: 0.045 | DB30: 285 | DC30: 4.745 | DD30: 0.073 | DE30: 319 | DF30: 0.469 | DG30: 0.006
A31: 2005.125 | B31: 2 | C31: 2005 | D31: 237 | E31: 28.739 | F31: 0.194 | G31: 269 | H31: 157.049 | I31: 0.604 | J31: 267 | K31: 16.46 | L31: 0.075 | M31: 267 | N31: 14.564 | O31: 0.049 | P31: 117 | Q31: 496.412 | R31: 3.929 | S31: 182 | T31: 7.007 | U31: 0.145 | V31: 272 | W31: 4.242 | X31: 0.048 | Y31: 267 | Z31: 3.017 | AA31: 0.042 | AB31: 273 | AC31: 1.907 | AD31: 0.041 | AE31: 247 | AF31: 7.289 | AG31: 0.177 | AH31: 0 | AI31: 0 | AJ31: 0 | AK31: 190 | AL31: 0.334 | AM31: 0.019 | AN31: 275 | AO31: 78.327 | AP31: 0.132 | AQ31: 277 | AR31: 19.367 | AS31: 0.291 | AT31: 126 | AU31: 4.472 | AV31: 0.145 | AW31: 0 | AX31: 0 | AY31: 0 | AZ31: 0 | BA31: 0 | BB31: 0 | BC31: 276 | BD31: 1.24 | BE31: 0.019 | BF31: 249 | BG31: 3.207 | BH31: 0.038 | BI31: 0 | BJ31: 0 | BK31: 0 | BL31: 279 | BM31: 3.571 | BN31: 0.028 | BO31: 276 | BP31: 0.39 | BQ31: 0.011 | BR31: 0 | BS31: 0 | BT31: 0 | BU31: 0 | BV31: 0 | BW31: 0 | BX31: 0 | BY31: 0 | BZ31: 0 | CA31: 0 | CB31: 0 | CC31: 0 | CD31: 276 | CE31: 8.353 | CF31: 0.056 | CG31: 276 | CH31: 16.52 | CI31: 0.041 | CJ31: 0 | CK31: 0 | CL31: 0 | CM31: 0 | CN31: 0 | CO31: 0 | CP31: 0 | CQ31: 0 | CR31: 0 | CS31: 0 | CT31: 0 | CU31: 0 | CV31: 0 | CW31: 0 | CX31: 0 | CY31: 270 | CZ31: 0.689 | DA31: 0.045 | DB31: 260 | DC31: 4.809 | DD31: 0.07 | DE31: 273 | DF31: 0.468 | DG31: 0.006
A32: 2005.208 | B32: 3 | C32: 2005 | D32: 252 | E32: 29.254 | F32: 0.242 | G32: 289 | H32: 157.547 | I32: 0.65 | J32: 292 | K32: 16.492 | L32: 0.079 | M32: 284 | N32: 14.631 | O32: 0.057 | P32: 110 | Q32: 499.74 | R32: 6.113 | S32: 190 | T32: 7.018 | U32: 0.15 | V32: 302 | W32: 4.257 | X32: 0.05 | Y32: 302 | Z32: 3.023 | AA32: 0.042 | AB32: 293 | AC32: 1.968 | AD32: 0.044 | AE32: 278 | AF32: 7.484 | AG32: 0.22 | AH32: 0 | AI32: 0 | AJ32: 0 | AK32: 208 | AL32: 0.392 | AM32: 0.04 | AN32: 299 | AO32: 78.209 | AP32: 0.132 | AQ32: 304 | AR32: 18.917 | AS32: 0.26 | AT32: 85 | AU32: 4.471 | AV32: 0.175 | AW32: 0 | AX32: 0 | AY32: 0 | AZ32: 0 | BA32: 0 | BB32: 0 | BC32: 302 | BD32: 1.246 | BE32: 0.016 | BF32: 270 | BG32: 3.28 | BH32: 0.043 | BI32: 0 | BJ32: 0 | BK32: 0 | BL32: 301 | BM32: 3.577 | BN32: 0.03 | BO32: 303 | BP32: 0.399 | BQ32: 0.011 | BR32: 0 | BS32: 0 | BT32: 0 | BU32: 0 | BV32: 0 | BW32: 0 | BX32: 0 | BY32: 0 | BZ32: 0 | CA32: 0 | CB32: 0 | CC32: 0 | CD32: 304 | CE32: 8.357 | CF32: 0.061 | CG32: 300 | CH32: 16.527 | CI32: 0.04 | CJ32: 0 | CK32: 0 | CL32: 0 | CM32: 0 | CN32: 0 | CO32: 0 | CP32: 0 | CQ32: 0 | CR32: 0 | CS32: 0 | CT32: 0 | CU32: 0 | CV32: 0 | CW32: 0 | CX32: 0 | CY32: 301 | CZ32: 0.737 | DA32: 0.054 | DB32: 275 | DC32: 4.854 | DD32: 0.073 | DE32: 301 | DF32: 0.466 | DG32: 0.006
A33: 2005.292 | B33: 4 | C33: 2005 | D33: 184 | E33: 29.774 | F33: 0.219 | G33: 178 | H33: 158.269 | I33: 0.693 | J33: 210 | K33: 16.593 | L33: 0.088 | M33: 221 | N33: 14.694 | O33: 0.056 | P33: 99 | Q33: 511.723 | R33: 5.617 | S33: 129 | T33: 6.993 | U33: 0.122 | V33: 236 | W33: 4.262 | X33: 0.047 | Y33: 245 | Z33: 3.013 | AA33: 0.04 | AB33: 223 | AC33: 2.054 | AD33: 0.058 | AE33: 174 | AF33: 8.071 | AG33: 0.276 | AH33: 0 | AI33: 0 | AJ33: 0 | AK33: 125 | AL33: 0.488 | AM33: 0.034 | AN33: 245 | AO33: 78.123 | AP33: 0.125 | AQ33: 230 | AR33: 18.583 | AS33: 0.222 | AT33: 98 | AU33: 4.926 | AV33: 0.122 | AW33: 135 | AX33: 5.427 | AY33: 0.046 | AZ33: 0 | BA33: 0 | BB33: 0 | BC33: 245 | BD33: 1.251 | BE33: 0.02 | BF33: 185 | BG33: 3.345 | BH33: 0.042 | BI33: 0 | BJ33: 0 | BK33: 0 | BL33: 242 | BM33: 3.585 | BN33: 0.03 | BO33: 245 | BP33: 0.406 | BQ33: 0.011 | BR33: 0 | BS33: 0 | BT33: 0 | BU33: 0 | BV33: 0 | BW33: 0 | BX33: 0 | BY33: 0 | BZ33: 0 | CA33: 0 | CB33: 0 | CC33: 0 | CD33: 251 | CE33: 8.355 | CF33: 0.056 | CG33: 247 | CH33: 16.514 | CI33: 0.043 | CJ33: 0 | CK33: 0 | CL33: 0 | CM33: 0 | CN33: 0 | CO33: 0 | CP33: 0 | CQ33: 0 | CR33: 0 | CS33: 0 | CT33: 0 | CU33: 0 | CV33: 0 | CW33: 0 | CX33: 0 | CY33: 233 | CZ33: 0.784 | DA33: 0.051 | DB33: 194 | DC33: 4.934 | DD33: 0.083 | DE33: 249 | DF33: 0.466 | DG33: 0.007
A34: 2005.375 | B34: 5 | C34: 2005 | D34: 205 | E34: 30.164 | F34: 0.216 | G34: 10 | H34: 159.472 | I34: 0.702 | J34: 267 | K34: 16.686 | L34: 0.088 | M34: 291 | N34: 14.763 | O34: 0.059 | P34: 157 | Q34: 520.298 | R34: 8.045 | S34: 185 | T34: 6.969 | U34: 0.15 | V34: 296 | W34: 4.247 | X34: 0.048 | Y34: 298 | Z34: 3.05 | AA34: 0.047 | AB34: 277 | AC34: 2.125 | AD34: 0.053 | AE34: 176 | AF34: 8.695 | AG34: 0.374 | AH34: 0 | AI34: 0 | AJ34: 0 | AK34: 164 | AL34: 0.598 | AM34: 0.047 | AN34: 301 | AO34: 78.318 | AP34: 0.203 | AQ34: 308 | AR34: 18.449 | AS34: 0.223 | AT34: 172 | AU34: 5.249 | AV34: 0.243 | AW34: 300 | AX34: 5.445 | AY34: 0.048 | AZ34: 200 | BA34: 0.13 | BB34: 0.017 | BC34: 299 | BD34: 1.26 | BE34: 0.019 | BF34: 228 | BG34: 3.409 | BH34: 0.046 | BI34: 0 | BJ34: 0 | BK34: 0 | BL34: 293 | BM34: 3.589 | BN34: 0.029 | BO34: 306 | BP34: 0.403 | BQ34: 0.011 | BR34: 0 | BS34: 0 | BT34: 0 | BU34: 0 | BV34: 0 | BW34: 0 | BX34: 0 | BY34: 0 | BZ34: 0 | CA34: 0 | CB34: 0 | CC34: 0 | CD34: 301 | CE34: 8.343 | CF34: 0.059 | CG34: 302 | CH34: 16.514 | CI34: 0.044 | CJ34: 0 | CK34: 0 | CL34: 0 | CM34: 0 | CN34: 0 | CO34: 0 | CP34: 0 | CQ34: 0 | CR34: 0 | CS34: 0 | CT34: 0 | CU34: 0 | CV34: 0 | CW34: 0 | CX34: 0 | CY34: 270 | CZ34: 0.826 | DA34: 0.057 | DB34: 243 | DC34: 5.015 | DD34: 0.083 | DE34: 293 | DF34: 0.468 | DG34: 0.006
A35: 2005.458 | B35: 6 | C35: 2005 | D35: 199 | E35: 30.697 | F35: 0.247 | G35: 233 | H35: 160.217 | I35: 0.732 | J35: 261 | K35: 16.772 | L35: 0.091 | M35: 268 | N35: 14.819 | O35: 0.065 | P35: 67 | Q35: 536.118 | R35: 9.623 | S35: 169 | T35: 7.087 | U35: 0.137 | V35: 298 | W35: 4.263 | X35: 0.052 | Y35: 297 | Z35: 3.072 | AA35: 0.047 | AB35: 277 | AC35: 2.211 | AD35: 0.055 | AE35: 0 | AF35: 0 | AG35: 0 | AH35: 0 | AI35: 0 | AJ35: 0 | AK35: 97 | AL35: 0.718 | AM35: 0.053 | AN35: 293 | AO35: 78.413 | AP35: 0.13 | AQ35: 296 | AR35: 18.286 | AS35: 0.204 | AT35: 43 | AU35: 5.674 | AV35: 0.234 | AW35: 285 | AX35: 5.473 | AY35: 0.045 | AZ35: 288 | BA35: 0.137 | BB35: 0.018 | BC35: 300 | BD35: 1.261 | BE35: 0.02 | BF35: 210 | BG35: 3.492 | BH35: 0.043 | BI35: 0 | BJ35: 0 | BK35: 0 | BL35: 290 | BM35: 3.591 | BN35: 0.03 | BO35: 286 | BP35: 0.407 | BQ35: 0.012 | BR35: 0 | BS35: 0 | BT35: 0 | BU35: 0 | BV35: 0 | BW35: 0 | BX35: 0 | BY35: 0 | BZ35: 0 | CA35: 0 | CB35: 0 | CC35: 0 | CD35: 297 | CE35: 8.346 | CF35: 0.057 | CG35: 301 | CH35: 16.515 | CI35: 0.044 | CJ35: 0 | CK35: 0 | CL35: 0 | CM35: 0 | CN35: 0 | CO35: 0 | CP35: 0 | CQ35: 0 | CR35: 0 | CS35: 0 | CT35: 0 | CU35: 0 | CV35: 0 | CW35: 0 | CX35: 0 | CY35: 263 | CZ35: 0.867 | DA35: 0.055 | DB35: 226 | DC35: 5.107 | DD35: 0.081 | DE35: 302 | DF35: 0.47 | DG35: 0.006
A36: 2005.542 | B36: 7 | C36: 2005 | D36: 179 | E36: 30.935 | F36: 0.218 | G36: 209 | H36: 160.621 | I36: 0.681 | J36: 130 | K36: 16.778 | L36: 0.099 | M36: 234 | N36: 14.87 | O36: 0.064 | P36: 110 | Q36: 542.41 | R36: 7.221 | S36: 163 | T36: 6.927 | U36: 0.167 | V36: 240 | W36: 4.267 | X36: 0.047 | Y36: 235 | Z36: 3.074 | AA36: 0.047 | AB36: 239 | AC36: 2.274 | AD36: 0.061 | AE36: 0 | AF36: 0 | AG36: 0 | AH36: 0 | AI36: 0 | AJ36: 0 | AK36: 130 | AL36: 0.813 | AM36: 0.037 | AN36: 225 | AO36: 78.351 | AP36: 0.142 | AQ36: 240 | AR36: 18.133 | AS36: 0.21 | AT36: 89 | AU36: 6.09 | AV36: 0.212 | AW36: 239 | AX36: 5.487 | AY36: 0.049 | AZ36: 233 | BA36: 0.144 | BB36: 0.018 | BC36: 238 | BD36: 1.265 | BE36: 0.022 | BF36: 194 | BG36: 3.529 | BH36: 0.045 | BI36: 0 | BJ36: 0 | BK36: 0 | BL36: 237 | BM36: 3.59 | BN36: 0.034 | BO36: 240 | BP36: 0.41 | BQ36: 0.012 | BR36: 0 | BS36: 0 | BT36: 0 | BU36: 0 | BV36: 0 | BW36: 0 | BX36: 0 | BY36: 0 | BZ36: 0 | CA36: 0 | CB36: 0 | CC36: 0 | CD36: 234 | CE36: 8.325 | CF36: 0.066 | CG36: 237 | CH36: 16.498 | CI36: 0.05 | CJ36: 0 | CK36: 0 | CL36: 0 | CM36: 0 | CN36: 0 | CO36: 0 | CP36: 0 | CQ36: 0 | CR36: 0 | CS36: 0 | CT36: 0 | CU36: 0 | CV36: 0 | CW36: 0 | CX36: 0 | CY36: 220 | CZ36: 0.885 | DA36: 0.059 | DB36: 199 | DC36: 5.15 | DD36: 0.084 | DE36: 236 | DF36: 0.47 | DG36: 0.007
A37: 2005.625 | B37: 8 | C37: 2005 | D37: 170 | E37: 31.3 | F37: 0.221 | G37: 211 | H37: 161.277 | I37: 0.641 | J37: 210 | K37: 16.876 | L37: 0.104 | M37: 237 | N37: 14.945 | O37: 0.061 | P37: 142 | Q37: 539.889 | R37: 4.228 | S37: 184 | T37: 6.867 | U37: 0.152 | V37: 251 | W37: 4.279 | X37: 0.054 | Y37: 244 | Z37: 3.078 | AA37: 0.043 | AB37: 240 | AC37: 2.352 | AD37: 0.064 | AE37: 0 | AF37: 0 | AG37: 0 | AH37: 0 | AI37: 0 | AJ37: 0 | AK37: 182 | AL37: 0.877 | AM37: 0.027 | AN37: 244 | AO37: 78.327 | AP37: 0.128 | AQ37: 259 | AR37: 18.016 | AS37: 0.213 | AT37: 145 | AU37: 6.27 | AV37: 0.151 | AW37: 248 | AX37: 5.505 | AY37: 0.042 | AZ37: 254 | BA37: 0.151 | BB37: 0.017 | BC37: 250 | BD37: 1.274 | BE37: 0.021 | BF37: 202 | BG37: 3.578 | BH37: 0.038 | BI37: 0 | BJ37: 0 | BK37: 0 | BL37: 245 | BM37: 3.604 | BN37: 0.029 | BO37: 257 | BP37: 0.414 | BQ37: 0.011 | BR37: 0 | BS37: 0 | BT37: 0 | BU37: 0 | BV37: 0 | BW37: 0 | BX37: 0 | BY37: 0 | BZ37: 0 | CA37: 0 | CB37: 0 | CC37: 0 | CD37: 255 | CE37: 8.334 | CF37: 0.055 | CG37: 253 | CH37: 16.505 | CI37: 0.043 | CJ37: 0 | CK37: 0 | CL37: 0 | CM37: 0 | CN37: 0 | CO37: 0 | CP37: 0 | CQ37: 0 | CR37: 0 | CS37: 0 | CT37: 0 | CU37: 0 | CV37: 0 | CW37: 0 | CX37: 0 | CY37: 235 | CZ37: 0.92 | DA37: 0.059 | DB37: 218 | DC37: 5.21 | DD37: 0.072 | DE37: 253 | DF37: 0.471 | DG37: 0.006
A38: 2005.708 | B38: 9 | C38: 2005 | D38: 228 | E38: 31.68 | F38: 0.199 | G38: 241 | H38: 161.787 | I38: 0.638 | J38: 264 | K38: 16.955 | L38: 0.088 | M38: 297 | N38: 14.994 | O38: 0.058 | P38: 73 | Q38: 539.399 | R38: 5.013 | S38: 152 | T38: 7.035 | U38: 0.117 | V38: 254 | W38: 4.296 | X38: 0.047 | Y38: 267 | Z38: 3.084 | AA38: 0.039 | AB38: 293 | AC38: 2.423 | AD38: 0.066 | AE38: 96 | AF38: 10.575 | AG38: 0.128 | AH38: 0 | AI38: 0 | AJ38: 0 | AK38: 190 | AL38: 0.851 | AM38: 0.029 | AN38: 294 | AO38: 78.375 | AP38: 0.131 | AQ38: 303 | AR38: 17.838 | AS38: 0.217 | AT38: 102 | AU38: 6.319 | AV38: 0.152 | AW38: 299 | AX38: 5.524 | AY38: 0.033 | AZ38: 150 | BA38: 0.154 | BB38: 0.018 | BC38: 315 | BD38: 1.275 | BE38: 0.018 | BF38: 111 | BG38: 3.608 | BH38: 0.033 | BI38: 0 | BJ38: 0 | BK38: 0 | BL38: 299 | BM38: 3.606 | BN38: 0.029 | BO38: 310 | BP38: 0.42 | BQ38: 0.011 | BR38: 0 | BS38: 0 | BT38: 0 | BU38: 0 | BV38: 0 | BW38: 0 | BX38: 0 | BY38: 0 | BZ38: 0 | CA38: 0 | CB38: 0 | CC38: 0 | CD38: 293 | CE38: 8.328 | CF38: 0.062 | CG38: 304 | CH38: 16.518 | CI38: 0.049 | CJ38: 0 | CK38: 0 | CL38: 0 | CM38: 0 | CN38: 0 | CO38: 0 | CP38: 0 | CQ38: 0 | CR38: 0 | CS38: 0 | CT38: 0 | CU38: 0 | CV38: 0 | CW38: 0 | CX38: 0 | CY38: 281 | CZ38: 0.922 | DA38: 0.065 | DB38: 251 | DC38: 5.274 | DD38: 0.083 | DE38: 303 | DF38: 0.472 | DG38: 0.006
A39: 2005.792 | B39: 10 | C39: 2005 | D39: 230 | E39: 32.06 | F39: 0.216 | G39: 271 | H39: 162.231 | I39: 0.687 | J39: 291 | K39: 16.963 | L39: 0.082 | M39: 303 | N39: 15.057 | O39: 0.057 | P39: 137 | Q39: 535.946 | R39: 4.198 | S39: 164 | T39: 7.157 | U39: 0.208 | V39: 317 | W39: 4.3 | X39: 0.046 | Y39: 317 | Z39: 3.088 | AA39: 0.039 | AB39: 311 | AC39: 2.448 | AD39: 0.056 | AE39: 224 | AF39: 10.291 | AG39: 0.162 | AH39: 0 | AI39: 0 | AJ39: 0 | AK39: 197 | AL39: 0.762 | AM39: 0.034 | AN39: 308 | AO39: 78.287 | AP39: 0.113 | AQ39: 323 | AR39: 17.512 | AS39: 0.251 | AT39: 139 | AU39: 6.18 | AV39: 0.186 | AW39: 314 | AX39: 5.545 | AY39: 0.029 | AZ39: 260 | BA39: 0.158 | BB39: 0.025 | BC39: 310 | BD39: 1.284 | BE39: 0.018 | BF39: 252 | BG39: 3.679 | BH39: 0.04 | BI39: 0 | BJ39: 0 | BK39: 0 | BL39: 314 | BM39: 3.61 | BN39: 0.029 | BO39: 316 | BP39: 0.422 | BQ39: 0.013 | BR39: 0 | BS39: 0 | BT39: 0 | BU39: 0 | BV39: 0 | BW39: 0 | BX39: 0 | BY39: 0 | BZ39: 0 | CA39: 0 | CB39: 0 | CC39: 0 | CD39: 320 | CE39: 8.327 | CF39: 0.066 | CG39: 321 | CH39: 16.504 | CI39: 0.043 | CJ39: 0 | CK39: 0 | CL39: 0 | CM39: 0 | CN39: 0 | CO39: 0 | CP39: 0 | CQ39: 0 | CR39: 0 | CS39: 0 | CT39: 0 | CU39: 0 | CV39: 0 | CW39: 0 | CX39: 0 | CY39: 302 | CZ39: 0.959 | DA39: 0.062 | DB39: 268 | DC39: 5.344 | DD39: 0.079 | DE39: 314 | DF39: 0.472 | DG39: 0.005
A40: 2005.875 | B40: 11 | C40: 2005 | D40: 171 | E40: 32.351 | F40: 0.166 | G40: 197 | H40: 162.453 | I40: 0.648 | J40: 206 | K40: 16.959 | L40: 0.07 | M40: 149 | N40: 15.107 | O40: 0.052 | P40: 106 | Q40: 532.632 | R40: 5.931 | S40: 100 | T40: 7.444 | U40: 0.154 | V40: 229 | W40: 4.289 | X40: 0.047 | Y40: 225 | Z40: 3.098 | AA40: 0.037 | AB40: 221 | AC40: 2.448 | AD40: 0.045 | AE40: 184 | AF40: 9.717 | AG40: 0.228 | AH40: 0 | AI40: 0 | AJ40: 0 | AK40: 162 | AL40: 0.605 | AM40: 0.035 | AN40: 228 | AO40: 78.324 | AP40: 0.108 | AQ40: 234 | AR40: 17.186 | AS40: 0.213 | AT40: 111 | AU40: 5.665 | AV40: 0.236 | AW40: 221 | AX40: 5.557 | AY40: 0.026 | AZ40: 212 | BA40: 0.182 | BB40: 0.021 | BC40: 212 | BD40: 1.291 | BE40: 0.016 | BF40: 191 | BG40: 3.783 | BH40: 0.04 | BI40: 0 | BJ40: 0 | BK40: 0 | BL40: 222 | BM40: 3.633 | BN40: 0.024 | BO40: 224 | BP40: 0.42 | BQ40: 0.011 | BR40: 0 | BS40: 0 | BT40: 0 | BU40: 0 | BV40: 0 | BW40: 0 | BX40: 0 | BY40: 0 | BZ40: 0 | CA40: 0 | CB40: 0 | CC40: 0 | CD40: 227 | CE40: 8.381 | CF40: 0.067 | CG40: 230 | CH40: 16.508 | CI40: 0.037 | CJ40: 0 | CK40: 0 | CL40: 0 | CM40: 0 | CN40: 0 | CO40: 0 | CP40: 0 | CQ40: 0 | CR40: 0 | CS40: 0 | CT40: 0 | CU40: 0 | CV40: 0 | CW40: 0 | CX40: 0 | CY40: 221 | CZ40: 1.001 | DA40: 0.042 | DB40: 192 | DC40: 5.438 | DD40: 0.079 | DE40: 230 | DF40: 0.471 | DG40: 0.006
A41: 2005.958 | B41: 12 | C41: 2005 | D41: 246 | E41: 32.56 | F41: 0.161 | G41: 287 | H41: 162.11 | I41: 0.576 | J41: 293 | K41: 16.843 | L41: 0.076 | M41: 297 | N41: 15.106 | O41: 0.046 | P41: 175 | Q41: 516.549 | R41: 6.28 | S41: 210 | T41: 7.502 | U41: 0.184 | V41: 305 | W41: 4.249 | X41: 0.045 | Y41: 296 | Z41: 3.09 | AA41: 0.039 | AB41: 294 | AC41: 2.366 | AD41: 0.053 | AE41: 288 | AF41: 8.563 | AG41: 0.352 | AH41: 0 | AI41: 0 | AJ41: 0 | AK41: 265 | AL41: 0.452 | AM41: 0.036 | AN41: 305 | AO41: 78.136 | AP41: 0.132 | AQ41: 310 | AR41: 16.77 | AS41: 0.253 | AT41: 183 | AU41: 5.185 | AV41: 0.222 | AW41: 293 | AX41: 5.576 | AY41: 0.026 | AZ41: 285 | BA41: 0.176 | BB41: 0.02 | BC41: 305 | BD41: 1.296 | BE41: 0.017 | BF41: 279 | BG41: 3.779 | BH41: 0.036 | BI41: 0 | BJ41: 0 | BK41: 0 | BL41: 305 | BM41: 3.631 | BN41: 0.027 | BO41: 299 | BP41: 0.417 | BQ41: 0.015 | BR41: 0 | BS41: 0 | BT41: 0 | BU41: 0 | BV41: 0 | BW41: 0 | BX41: 0 | BY41: 0 | BZ41: 0 | CA41: 0 | CB41: 0 | CC41: 0 | CD41: 300 | CE41: 8.354 | CF41: 0.064 | CG41: 305 | CH41: 16.485 | CI41: 0.04 | CJ41: 0 | CK41: 0 | CL41: 0 | CM41: 0 | CN41: 0 | CO41: 0 | CP41: 0 | CQ41: 0 | CR41: 0 | CS41: 0 | CT41: 0 | CU41: 0 | CV41: 0 | CW41: 0 | CX41: 0 | CY41: 301 | CZ41: 0.993 | DA41: 0.052 | DB41: 278 | DC41: 5.475 | DD41: 0.058 | DE41: 306 | DF41: 0.47 | DG41: 0.006
A42: 2006.042 | B42: 1 | C42: 2006 | D42: 152 | E42: 32.708 | F42: 0.163 | G42: 175 | H42: 161.78 | I42: 0.48 | J42: 182 | K42: 16.759 | L42: 0.057 | M42: 185 | N42: 15.123 | O42: 0.05 | P42: 60 | Q42: 501.033 | R42: 3.649 | S42: 83 | T42: 7.148 | U42: 0.115 | V42: 204 | W42: 4.236 | X42: 0.041 | Y42: 202 | Z42: 3.085 | AA42: 0.035 | AB42: 196 | AC42: 2.3 | AD42: 0.04 | AE42: 168 | AF42: 7.744 | AG42: 0.237 | AH42: 0 | AI42: 0 | AJ42: 0 | AK42: 147 | AL42: 0.349 | AM42: 0.028 | AN42: 203 | AO42: 77.99 | AP42: 0.11 | AQ42: 209 | AR42: 16.392 | AS42: 0.274 | AT42: 70 | AU42: 4.703 | AV42: 0.156 | AW42: 204 | AX42: 5.592 | AY42: 0.026 | AZ42: 198 | BA42: 0.178 | BB42: 0.018 | BC42: 205 | BD42: 1.298 | BE42: 0.015 | BF42: 156 | BG42: 3.792 | BH42: 0.035 | BI42: 0 | BJ42: 0 | BK42: 0 | BL42: 198 | BM42: 3.63 | BN42: 0.028 | BO42: 206 | BP42: 0.42 | BQ42: 0.013 | BR42: 0 | BS42: 0 | BT42: 0 | BU42: 0 | BV42: 0 | BW42: 0 | BX42: 0 | BY42: 0 | BZ42: 0 | CA42: 0 | CB42: 0 | CC42: 0 | CD42: 202 | CE42: 8.342 | CF42: 0.051 | CG42: 206 | CH42: 16.474 | CI42: 0.035 | CJ42: 0 | CK42: 0 | CL42: 0 | CM42: 0 | CN42: 0 | CO42: 0 | CP42: 0 | CQ42: 0 | CR42: 0 | CS42: 0 | CT42: 0 | CU42: 0 | CV42: 0 | CW42: 0 | CX42: 0 | CY42: 187 | CZ42: 0.988 | DA42: 0.048 | DB42: 158 | DC42: 5.499 | DD42: 0.058 | DE42: 207 | DF42: 0.469 | DG42: 0.005
A43: 2006.125 | B43: 2 | C43: 2006 | D43: 215 | E43: 32.953 | F43: 0.199 | G43: 272 | H43: 162.208 | I43: 0.789 | J43: 274 | K43: 16.744 | L43: 0.06 | M43: 285 | N43: 15.166 | O43: 0.059 | P43: 154 | Q43: 495.221 | R43: 3.342 | S43: 195 | T43: 7.053 | U43: 0.175 | V43: 296 | W43: 4.231 | X43: 0.039 | Y43: 297 | Z43: 3.094 | AA43: 0.031 | AB43: 280 | AC43: 2.284 | AD43: 0.037 | AE43: 257 | AF43: 7.43 | AG43: 0.096 | AH43: 0 | AI43: 0 | AJ43: 0 | AK43: 183 | AL43: 0.308 | AM43: 0.019 | AN43: 265 | AO43: 77.927 | AP43: 0.112 | AQ43: 300 | AR43: 16.1 | AS43: 0.243 | AT43: 186 | AU43: 4.389 | AV43: 0.156 | AW43: 285 | AX43: 5.615 | AY43: 0.032 | AZ43: 285 | BA43: 0.186 | BB43: 0.016 | BC43: 274 | BD43: 1.306 | BE43: 0.017 | BF43: 223 | BG43: 3.842 | BH43: 0.052 | BI43: 0 | BJ43: 0 | BK43: 0 | BL43: 290 | BM43: 3.638 | BN43: 0.024 | BO43: 292 | BP43: 0.425 | BQ43: 0.016 | BR43: 0 | BS43: 0 | BT43: 0 | BU43: 0 | BV43: 0 | BW43: 0 | BX43: 0 | BY43: 0 | BZ43: 0 | CA43: 0 | CB43: 0 | CC43: 0 | CD43: 295 | CE43: 8.343 | CF43: 0.044 | CG43: 283 | CH43: 16.487 | CI43: 0.044 | CJ43: 0 | CK43: 0 | CL43: 0 | CM43: 0 | CN43: 0 | CO43: 0 | CP43: 0 | CQ43: 0 | CR43: 0 | CS43: 0 | CT43: 0 | CU43: 0 | CV43: 0 | CW43: 0 | CX43: 0 | CY43: 282 | CZ43: 1.019 | DA43: 0.04 | DB43: 262 | DC43: 5.586 | DD43: 0.068 | DE43: 298 | DF43: 0.468 | DG43: 0.005
A44: 2006.208 | B44: 3 | C44: 2006 | D44: 191 | E44: 33.373 | F44: 0.215 | G44: 219 | H44: 163.013 | I44: 0.516 | J44: 218 | K44: 16.784 | L44: 0.056 | M44: 232 | N44: 15.216 | O44: 0.045 | P44: 56 | Q44: 496.095 | R44: 3.005 | S44: 83 | T44: 7.198 | U44: 0.141 | V44: 239 | W44: 4.248 | X44: 0.042 | Y44: 237 | Z44: 3.093 | AA44: 0.034 | AB44: 230 | AC44: 2.335 | AD44: 0.041 | AE44: 177 | AF44: 7.665 | AG44: 0.189 | AH44: 0 | AI44: 0 | AJ44: 0 | AK44: 115 | AL44: 0.361 | AM44: 0.033 | AN44: 241 | AO44: 77.839 | AP44: 0.106 | AQ44: 241 | AR44: 15.853 | AS44: 0.191 | AT44: 78 | AU44: 4.411 | AV44: 0.17 | AW44: 235 | AX44: 5.648 | AY44: 0.021 | AZ44: 234 | BA44: 0.201 | BB44: 0.013 | BC44: 223 | BD44: 1.322 | BE44: 0.013 | BF44: 196 | BG44: 3.934 | BH44: 0.039 | BI44: 0 | BJ44: 0 | BK44: 0 | BL44: 242 | BM44: 3.646 | BN44: 0.022 | BO44: 236 | BP44: 0.431 | BQ44: 0.012 | BR44: 0 | BS44: 0 | BT44: 0 | BU44: 0 | BV44: 0 | BW44: 0 | BX44: 0 | BY44: 0 | BZ44: 0 | CA44: 0 | CB44: 0 | CC44: 0 | CD44: 233 | CE44: 8.338 | CF44: 0.041 | CG44: 241 | CH44: 16.497 | CI44: 0.038 | CJ44: 0 | CK44: 0 | CL44: 0 | CM44: 0 | CN44: 0 | CO44: 0 | CP44: 0 | CQ44: 0 | CR44: 0 | CS44: 0 | CT44: 0 | CU44: 0 | CV44: 0 | CW44: 0 | CX44: 0 | CY44: 231 | CZ44: 1.045 | DA44: 0.034 | DB44: 202 | DC44: 5.688 | DD44: 0.058 | DE44: 239 | DF44: 0.466 | DG44: 0.005
A45: 2006.292 | B45: 4 | C45: 2006 | D45: 209 | E45: 33.799 | F45: 0.257 | G45: 224 | H45: 163.691 | I45: 0.633 | J45: 226 | K45: 16.846 | L45: 0.08 | M45: 238 | N45: 15.299 | O45: 0.06 | P45: 106 | Q45: 499.484 | R45: 5.098 | S45: 140 | T45: 7.162 | U45: 0.16 | V45: 238 | W45: 4.246 | X45: 0.046 | Y45: 244 | Z45: 3.09 | AA45: 0.036 | AB45: 235 | AC45: 2.436 | AD45: 0.06 | AE45: 197 | AF45: 8.171 | AG45: 0.284 | AH45: 0 | AI45: 0 | AJ45: 0 | AK45: 167 | AL45: 0.451 | AM45: 0.046 | AN45: 241 | AO45: 77.766 | AP45: 0.11 | AQ45: 245 | AR45: 15.619 | AS45: 0.202 | AT45: 117 | AU45: 4.664 | AV45: 0.129 | AW45: 241 | AX45: 5.677 | AY45: 0.027 | AZ45: 241 | BA45: 0.212 | BB45: 0.015 | BC45: 228 | BD45: 1.327 | BE45: 0.015 | BF45: 213 | BG45: 3.99 | BH45: 0.042 | BI45: 0 | BJ45: 0 | BK45: 0 | BL45: 244 | BM45: 3.659 | BN45: 0.022 | BO45: 243 | BP45: 0.436 | BQ45: 0.013 | BR45: 0 | BS45: 0 | BT45: 0 | BU45: 0 | BV45: 0 | BW45: 0 | BX45: 0 | BY45: 0 | BZ45: 0 | CA45: 0 | CB45: 0 | CC45: 0 | CD45: 192 | CE45: 8.345 | CF45: 0.045 | CG45: 244 | CH45: 16.497 | CI45: 0.035 | CJ45: 0 | CK45: 0 | CL45: 0 | CM45: 0 | CN45: 0 | CO45: 0 | CP45: 0 | CQ45: 0 | CR45: 0 | CS45: 0 | CT45: 0 | CU45: 0 | CV45: 0 | CW45: 0 | CX45: 0 | CY45: 239 | CZ45: 1.088 | DA45: 0.038 | DB45: 224 | DC45: 5.771 | DD45: 0.067 | DE45: 244 | DF45: 0.466 | DG45: 0.005
A46: 2006.375 | B46: 5 | C46: 2006 | D46: 242 | E46: 34.315 | F46: 0.271 | G46: 256 | H46: 164.69 | I46: 0.684 | J46: 261 | K46: 16.946 | L46: 0.069 | M46: 273 | N46: 15.394 | O46: 0.059 | P46: 123 | Q46: 508.819 | R46: 9.265 | S46: 213 | T46: 7.071 | U46: 0.223 | V46: 281 | W46: 4.252 | X46: 0.042 | Y46: 271 | Z46: 3.087 | AA46: 0.036 | AB46: 267 | AC46: 2.542 | AD46: 0.066 | AE46: 238 | AF46: 8.838 | AG46: 0.323 | AH46: 0 | AI46: 0 | AJ46: 0 | AK46: 192 | AL46: 0.573 | AM46: 0.05 | AN46: 278 | AO46: 77.71 | AP46: 0.118 | AQ46: 284 | AR46: 15.405 | AS46: 0.189 | AT46: 122 | AU46: 4.999 | AV46: 0.118 | AW46: 278 | AX46: 5.708 | AY46: 0.028 | AZ46: 282 | BA46: 0.223 | BB46: 0.017 | BC46: 266 | BD46: 1.327 | BE46: 0.018 | BF46: 247 | BG46: 4.067 | BH46: 0.047 | BI46: 0 | BJ46: 0 | BK46: 0 | BL46: 279 | BM46: 3.67 | BN46: 0.027 | BO46: 272 | BP46: 0.439 | BQ46: 0.013 | BR46: 263 | BS46: 75.103 | BT46: 0.065 | BU46: 0 | BV46: 0 | BW46: 0 | BX46: 0 | BY46: 0 | BZ46: 0 | CA46: 0 | CB46: 0 | CC46: 0 | CD46: 264 | CE46: 8.341 | CF46: 0.061 | CG46: 281 | CH46: 16.498 | CI46: 0.044 | CJ46: 0 | CK46: 0 | CL46: 0 | CM46: 0 | CN46: 0 | CO46: 0 | CP46: 0 | CQ46: 0 | CR46: 0 | CS46: 0 | CT46: 0 | CU46: 0 | CV46: 0 | CW46: 0 | CX46: 0 | CY46: 274 | CZ46: 1.13 | DA46: 0.043 | DB46: 247 | DC46: 5.879 | DD46: 0.075 | DE46: 278 | DF46: 0.466 | DG46: 0.006
A47: 2006.458 | B47: 6 | C47: 2006 | D47: 185 | E47: 34.688 | F47: 0.23 | G47: 215 | H47: 165.441 | I47: 0.685 | J47: 227 | K47: 17.014 | L47: 0.085 | M47: 231 | N47: 15.471 | O47: 0.055 | P47: 95 | Q47: 523.771 | R47: 9.427 | S47: 136 | T47: 6.95 | U47: 0.14 | V47: 228 | W47: 4.259 | X47: 0.046 | Y47: 231 | Z47: 3.091 | AA47: 0.039 | AB47: 222 | AC47: 2.632 | AD47: 0.066 | AE47: 170 | AF47: 9.445 | AG47: 0.343 | AH47: 0 | AI47: 0 | AJ47: 0 | AK47: 128 | AL47: 0.698 | AM47: 0.042 | AN47: 221 | AO47: 77.69 | AP47: 0.147 | AQ47: 232 | AR47: 15.233 | AS47: 0.176 | AT47: 56 | AU47: 5.387 | AV47: 0.147 | AW47: 230 | AX47: 5.732 | AY47: 0.029 | AZ47: 224 | BA47: 0.231 | BB47: 0.018 | BC47: 236 | BD47: 1.332 | BE47: 0.018 | BF47: 184 | BG47: 4.128 | BH47: 0.043 | BI47: 0 | BJ47: 0 | BK47: 0 | BL47: 230 | BM47: 3.675 | BN47: 0.029 | BO47: 234 | BP47: 0.441 | BQ47: 0.013 | BR47: 172 | BS47: 75.129 | BT47: 0.064 | BU47: 85 | BV47: 0.32 | BW47: 0.008 | BX47: 88 | BY47: 0.433 | BZ47: 0.023 | CA47: 0 | CB47: 0 | CC47: 0 | CD47: 227 | CE47: 8.341 | CF47: 0.079 | CG47: 226 | CH47: 16.49 | CI47: 0.053 | CJ47: 0 | CK47: 0 | CL47: 0 | CM47: 0 | CN47: 0 | CO47: 0 | CP47: 0 | CQ47: 0 | CR47: 0 | CS47: 0 | CT47: 0 | CU47: 0 | CV47: 0 | CW47: 0 | CX47: 0 | CY47: 223 | CZ47: 1.159 | DA47: 0.047 | DB47: 190 | DC47: 5.948 | DD47: 0.072 | DE47: 233 | DF47: 0.467 | DG47: 0.006
A48: 2006.542 | B48: 7 | C48: 2006 | D48: 219 | E48: 35.079 | F48: 0.237 | G48: 259 | H48: 166.197 | I48: 0.693 | J48: 276 | K48: 17.12 | L48: 0.093 | M48: 272 | N48: 15.563 | O48: 0.074 | P48: 86 | Q48: 525.192 | R48: 7.938 | S48: 185 | T48: 6.898 | U48: 0.145 | V48: 305 | W48: 4.258 | X48: 0.051 | Y48: 303 | Z48: 3.11 | AA48: 0.043 | AB48: 267 | AC48: 2.746 | AD48: 0.07 | AE48: 187 | AF48: 10.077 | AG48: 0.319 | AH48: 0 | AI48: 0 | AJ48: 0 | AK48: 158 | AL48: 0.787 | AM48: 0.035 | AN48: 296 | AO48: 77.653 | AP48: 0.157 | AQ48: 315 | AR48: 15.145 | AS48: 0.178 | AT48: 94 | AU48: 5.51 | AV48: 0.205 | AW48: 304 | AX48: 5.741 | AY48: 0.029 | AZ48: 306 | BA48: 0.239 | BB48: 0.021 | BC48: 302 | BD48: 1.334 | BE48: 0.019 | BF48: 235 | BG48: 4.203 | BH48: 0.046 | BI48: 0 | BJ48: 0 | BK48: 0 | BL48: 307 | BM48: 3.688 | BN48: 0.031 | BO48: 306 | BP48: 0.444 | BQ48: 0.014 | BR48: 286 | BS48: 75.233 | BT48: 0.077 | BU48: 273 | BV48: 0.323 | BW48: 0.008 | BX48: 308 | BY48: 0.414 | BZ48: 0.028 | CA48: 0 | CB48: 0 | CC48: 0 | CD48: 308 | CE48: 8.337 | CF48: 0.076 | CG48: 309 | CH48: 16.506 | CI48: 0.054 | CJ48: 0 | CK48: 0 | CL48: 0 | CM48: 0 | CN48: 0 | CO48: 0 | CP48: 0 | CQ48: 0 | CR48: 0 | CS48: 0 | CT48: 0 | CU48: 0 | CV48: 0 | CW48: 0 | CX48: 0 | CY48: 294 | CZ48: 1.19 | DA48: 0.048 | DB48: 258 | DC48: 6.029 | DD48: 0.075 | DE48: 313 | DF48: 0.464 | DG48: 0.007
A49: 2006.625 | B49: 8 | C49: 2006 | D49: 186 | E49: 35.414 | F49: 0.219 | G49: 220 | H49: 166.929 | I49: 0.682 | J49: 240 | K49: 17.192 | L49: 0.094 | M49: 232 | N49: 15.657 | O49: 0.077 | P49: 118 | Q49: 525.477 | R49: 4.1 | S49: 170 | T49: 6.885 | U49: 0.12 | V49: 275 | W49: 4.267 | X49: 0.049 | Y49: 268 | Z49: 3.112 | AA49: 0.046 | AB49: 230 | AC49: 2.834 | AD49: 0.063 | AE49: 191 | AF49: 10.502 | AG49: 0.235 | AH49: 0 | AI49: 0 | AJ49: 0 | AK49: 155 | AL49: 0.83 | AM49: 0.021 | AN49: 272 | AO49: 77.601 | AP49: 0.145 | AQ49: 282 | AR49: 15.019 | AS49: 0.196 | AT49: 132 | AU49: 5.736 | AV49: 0.133 | AW49: 260 | AX49: 5.758 | AY49: 0.032 | AZ49: 268 | BA49: 0.243 | BB49: 0.024 | BC49: 276 | BD49: 1.342 | BE49: 0.019 | BF49: 203 | BG49: 4.269 | BH49: 0.046 | BI49: 0 | BJ49: 0 | BK49: 0 | BL49: 273 | BM49: 3.707 | BN49: 0.031 | BO49: 276 | BP49: 0.446 | BQ49: 0.015 | BR49: 251 | BS49: 75.301 | BT49: 0.072 | BU49: 234 | BV49: 0.331 | BW49: 0.008 | BX49: 276 | BY49: 0.43 | BZ49: 0.03 | CA49: 0 | CB49: 0 | CC49: 0 | CD49: 273 | CE49: 8.346 | CF49: 0.07 | CG49: 266 | CH49: 16.504 | CI49: 0.053 | CJ49: 0 | CK49: 0 | CL49: 0 | CM49: 0 | CN49: 0 | CO49: 0 | CP49: 0 | CQ49: 0 | CR49: 0 | CS49: 0 | CT49: 0 | CU49: 0 | CV49: 0 | CW49: 0 | CX49: 0 | CY49: 256 | CZ49: 1.226 | DA49: 0.048 | DB49: 224 | DC49: 6.094 | DD49: 0.074 | DE49: 278 | DF49: 0.463 | DG49: 0.007
A50: 2006.708 | B50: 9 | C50: 2006 | D50: 167 | E50: 35.905 | F50: 0.189 | G50: 211 | H50: 168.091 | I50: 0.694 | J50: 202 | K50: 17.279 | L50: 0.088 | M50: 221 | N50: 15.797 | O50: 0.08 | P50: 144 | Q50: 527.892 | R50: 5.483 | S50: 184 | T50: 6.595 | U50: 0.185 | V50: 226 | W50: 4.278 | X50: 0.052 | Y50: 228 | Z50: 3.117 | AA50: 0.051 | AB50: 213 | AC50: 2.945 | AD50: 0.06 | AE50: 162 | AF50: 10.853 | AG50: 0.232 | AH50: 0 | AI50: 0 | AJ50: 0 | AK50: 175 | AL50: 0.808 | AM50: 0.026 | AN50: 234 | AO50: 77.533 | AP50: 0.128 | AQ50: 236 | AR50: 14.929 | AS50: 0.192 | AT50: 137 | AU50: 6.112 | AV50: 0.171 | AW50: 230 | AX50: 5.782 | AY50: 0.029 | AZ50: 216 | BA50: 0.251 | BB50: 0.025 | BC50: 224 | BD50: 1.351 | BE50: 0.019 | BF50: 200 | BG50: 4.337 | BH50: 0.035 | BI50: 0 | BJ50: 0 | BK50: 0 | BL50: 231 | BM50: 3.719 | BN50: 0.032 | BO50: 233 | BP50: 0.45 | BQ50: 0.014 | BR50: 218 | BS50: 75.388 | BT50: 0.068 | BU50: 227 | BV50: 0.336 | BW50: 0.008 | BX50: 231 | BY50: 0.469 | BZ50: 0.033 | CA50: 179 | CB50: 0.058 | CC50: 0.007 | CD50: 228 | CE50: 8.379 | CF50: 0.08 | CG50: 227 | CH50: 16.472 | CI50: 0.059 | CJ50: 0 | CK50: 0 | CL50: 0 | CM50: 0 | CN50: 0 | CO50: 0 | CP50: 0 | CQ50: 0 | CR50: 0 | CS50: 0 | CT50: 0 | CU50: 0 | CV50: 0 | CW50: 0 | CX50: 0 | CY50: 218 | CZ50: 1.272 | DA50: 0.057 | DB50: 204 | DC50: 6.183 | DD50: 0.071 | DE50: 231 | DF50: 0.467 | DG50: 0.007
A51: 2006.792 | B51: 10 | C51: 2006 | D51: 212 | E51: 36.27 | F51: 0.161 | G51: 234 | H51: 168.556 | I51: 0.66 | J51: 221 | K51: 17.317 | L51: 0.083 | M51: 258 | N51: 15.875 | O51: 0.058 | P51: 147 | Q51: 526.246 | R51: 3.66 | S51: 178 | T51: 6.563 | U51: 0.116 | V51: 260 | W51: 4.268 | X51: 0.054 | Y51: 258 | Z51: 3.118 | AA51: 0.053 | AB51: 248 | AC51: 2.967 | AD51: 0.053 | AE51: 217 | AF51: 10.652 | AG51: 0.207 | AH51: 0 | AI51: 0 | AJ51: 0 | AK51: 221 | AL51: 0.702 | AM51: 0.037 | AN51: 262 | AO51: 77.462 | AP51: 0.141 | AQ51: 267 | AR51: 14.719 | AS51: 0.181 | AT51: 155 | AU51: 6.023 | AV51: 0.174 | AW51: 256 | AX51: 5.797 | AY51: 0.031 | AZ51: 249 | BA51: 0.262 | BB51: 0.025 | BC51: 259 | BD51: 1.357 | BE51: 0.021 | BF51: 225 | BG51: 4.396 | BH51: 0.039 | BI51: 0 | BJ51: 0 | BK51: 0 | BL51: 263 | BM51: 3.73 | BN51: 0.032 | BO51: 268 | BP51: 0.452 | BQ51: 0.015 | BR51: 245 | BS51: 75.414 | BT51: 0.084 | BU51: 260 | BV51: 0.341 | BW51: 0.007 | BX51: 266 | BY51: 0.487 | BZ51: 0.028 | CA51: 235 | CB51: 0.059 | CC51: 0.007 | CD51: 260 | CE51: 8.382 | CF51: 0.085 | CG51: 261 | CH51: 16.46 | CI51: 0.058 | CJ51: 0 | CK51: 0 | CL51: 0 | CM51: 0 | CN51: 0 | CO51: 0 | CP51: 0 | CQ51: 0 | CR51: 0 | CS51: 0 | CT51: 0 | CU51: 0 | CV51: 0 | CW51: 0 | CX51: 0 | CY51: 249 | CZ51: 1.297 | DA51: 0.063 | DB51: 231 | DC51: 6.256 | DD51: 0.086 | DE51: 263 | DF51: 0.467 | DG51: 0.007
A52: 2006.875 | B52: 11 | C52: 2006 | D52: 158 | E52: 36.626 | F52: 0.17 | G52: 183 | H52: 169.27 | I52: 0.735 | J52: 192 | K52: 17.311 | L52: 0.066 | M52: 187 | N52: 15.959 | O52: 0.06 | P52: 101 | Q52: 519.071 | R52: 4.943 | S52: 111 | T52: 6.649 | U52: 0.185 | V52: 201 | W52: 4.264 | X52: 0.045 | Y52: 204 | Z52: 3.101 | AA52: 0.046 | AB52: 205 | AC52: 2.949 | AD52: 0.045 | AE52: 185 | AF52: 9.94 | AG52: 0.202 | AH52: 0 | AI52: 0 | AJ52: 0 | AK52: 173 | AL52: 0.549 | AM52: 0.047 | AN52: 194 | AO52: 77.495 | AP52: 0.13 | AQ52: 205 | AR52: 14.257 | AS52: 0.248 | AT52: 105 | AU52: 5.615 | AV52: 0.302 | AW52: 194 | AX52: 5.807 | AY52: 0.024 | AZ52: 203 | BA52: 0.262 | BB52: 0.02 | BC52: 202 | BD52: 1.354 | BE52: 0.018 | BF52: 177 | BG52: 4.457 | BH52: 0.038 | BI52: 0 | BJ52: 0 | BK52: 0 | BL52: 204 | BM52: 3.717 | BN52: 0.027 | BO52: 202 | BP52: 0.451 | BQ52: 0.014 | BR52: 193 | BS52: 75.523 | BT52: 0.087 | BU52: 195 | BV52: 0.348 | BW52: 0.007 | BX52: 196 | BY52: 0.502 | BZ52: 0.025 | CA52: 193 | CB52: 0.056 | CC52: 0.007 | CD52: 204 | CE52: 8.358 | CF52: 0.073 | CG52: 190 | CH52: 16.474 | CI52: 0.054 | CJ52: 0 | CK52: 0 | CL52: 0 | CM52: 0 | CN52: 0 | CO52: 0 | CP52: 0 | CQ52: 0 | CR52: 0 | CS52: 0 | CT52: 0 | CU52: 0 | CV52: 0 | CW52: 0 | CX52: 0 | CY52: 201 | CZ52: 1.369 | DA52: 0.064 | DB52: 186 | DC52: 6.319 | DD52: 0.067 | DE52: 202 | DF52: 0.466 | DG52: 0.006
A53: 2006.958 | B53: 12 | C53: 2006 | D53: 302 | E53: 36.788 | F53: 0.149 | G53: 314 | H53: 169.345 | I53: 0.507 | J53: 316 | K53: 17.223 | L53: 0.068 | M53: 320 | N53: 15.993 | O53: 0.05 | P53: 176 | Q53: 509.825 | R53: 5.908 | S53: 234 | T53: 6.772 | U53: 0.142 | V53: 326 | W53: 4.257 | X53: 0.051 | Y53: 331 | Z53: 3.095 | AA53: 0.04 | AB53: 323 | AC53: 2.902 | AD53: 0.058 | AE53: 305 | AF53: 9.201 | AG53: 0.33 | AH53: 0 | AI53: 0 | AJ53: 0 | AK53: 269 | AL53: 0.432 | AM53: 0.036 | AN53: 327 | AO53: 77.506 | AP53: 0.11 | AQ53: 329 | AR53: 13.977 | AS53: 0.186 | AT53: 183 | AU53: 5.201 | AV53: 0.265 | AW53: 326 | AX53: 5.81 | AY53: 0.025 | AZ53: 329 | BA53: 0.263 | BB53: 0.02 | BC53: 326 | BD53: 1.348 | BE53: 0.017 | BF53: 309 | BG53: 4.485 | BH53: 0.037 | BI53: 0 | BJ53: 0 | BK53: 0 | BL53: 328 | BM53: 3.718 | BN53: 0.024 | BO53: 330 | BP53: 0.455 | BQ53: 0.014 | BR53: 316 | BS53: 75.586 | BT53: 0.068 | BU53: 307 | BV53: 0.35 | BW53: 0.005 | BX53: 332 | BY53: 0.51 | BZ53: 0.026 | CA53: 322 | CB53: 0.057 | CC53: 0.006 | CD53: 324 | CE53: 8.334 | CF53: 0.067 | CG53: 307 | CH53: 16.491 | CI53: 0.046 | CJ53: 0 | CK53: 0 | CL53: 0 | CM53: 0 | CN53: 0 | CO53: 0 | CP53: 0 | CQ53: 0 | CR53: 0 | CS53: 0 | CT53: 0 | CU53: 0 | CV53: 0 | CW53: 0 | CX53: 0 | CY53: 317 | CZ53: 1.41 | DA53: 0.047 | DB53: 309 | DC53: 6.328 | DD53: 0.071 | DE53: 330 | DF53: 0.465 | DG53: 0.005
A54: 2007.042 | B54: 1 | C54: 2007 | D54: 221 | E54: 36.949 | F54: 0.16 | G54: 239 | H54: 169.392 | I54: 0.553 | J54: 239 | K54: 17.195 | L54: 0.074 | M54: 256 | N54: 16.056 | O54: 0.059 | P54: 129 | Q54: 504.987 | R54: 7.487 | S54: 154 | T54: 6.885 | U54: 0.154 | V54: 272 | W54: 4.255 | X54: 0.05 | Y54: 267 | Z54: 3.094 | AA54: 0.044 | AB54: 277 | AC54: 2.811 | AD54: 0.054 | AE54: 242 | AF54: 8.342 | AG54: 0.212 | AH54: 0 | AI54: 0 | AJ54: 0 | AK54: 211 | AL54: 0.341 | AM54: 0.028 | AN54: 260 | AO54: 77.38 | AP54: 0.127 | AQ54: 276 | AR54: 13.558 | AS54: 0.204 | AT54: 131 | AU54: 4.657 | AV54: 0.217 | AW54: 247 | AX54: 5.827 | AY54: 0.025 | AZ54: 271 | BA54: 0.27 | BB54: 0.02 | BC54: 267 | BD54: 1.362 | BE54: 0.019 | BF54: 226 | BG54: 4.534 | BH54: 0.037 | BI54: 0 | BJ54: 0 | BK54: 0 | BL54: 269 | BM54: 3.729 | BN54: 0.03 | BO54: 255 | BP54: 0.454 | BQ54: 0.016 | BR54: 263 | BS54: 75.596 | BT54: 0.076 | BU54: 260 | BV54: 0.356 | BW54: 0.006 | BX54: 273 | BY54: 0.526 | BZ54: 0.027 | CA54: 257 | CB54: 0.057 | CC54: 0.006 | CD54: 273 | CE54: 8.327 | CF54: 0.064 | CG54: 261 | CH54: 16.491 | CI54: 0.043 | CJ54: 0 | CK54: 0 | CL54: 0 | CM54: 0 | CN54: 0 | CO54: 0 | CP54: 0 | CQ54: 0 | CR54: 0 | CS54: 0 | CT54: 0 | CU54: 0 | CV54: 0 | CW54: 0 | CX54: 0 | CY54: 260 | CZ54: 1.425 | DA54: 0.055 | DB54: 242 | DC54: 6.428 | DD54: 0.08 | DE54: 270 | DF54: 0.464 | DG54: 0.006
A55: 2007.125 | B55: 2 | C55: 2007 | D55: 145 | E55: 37.121 | F55: 0.222 | G55: 154 | H55: 169.509 | I55: 0.71 | J55: 163 | K55: 17.218 | L55: 0.087 | M55: 155 | N55: 16.099 | O55: 0.071 | P55: 35 | Q55: 511.415 | R55: 10.074 | S55: 81 | T55: 7.066 | U55: 0.171 | V55: 180 | W55: 4.238 | X55: 0.053 | Y55: 178 | Z55: 3.094 | AA55: 0.048 | AB55: 159 | AC55: 2.775 | AD55: 0.071 | AE55: 157 | AF55: 8.089 | AG55: 0.181 | AH55: 0 | AI55: 0 | AJ55: 0 | AK55: 108 | AL55: 0.312 | AM55: 0.018 | AN55: 180 | AO55: 77.262 | AP55: 0.139 | AQ55: 181 | AR55: 13.262 | AS55: 0.225 | AT55: 28 | AU55: 5.206 | AV55: 0.601 | AW55: 171 | AX55: 5.843 | AY55: 0.029 | AZ55: 173 | BA55: 0.277 | BB55: 0.024 | BC55: 175 | BD55: 1.372 | BE55: 0.021 | BF55: 159 | BG55: 4.596 | BH55: 0.048 | BI55: 0 | BJ55: 0 | BK55: 0 | BL55: 178 | BM55: 3.743 | BN55: 0.032 | BO55: 178 | BP55: 0.452 | BQ55: 0.016 | BR55: 171 | BS55: 75.61 | BT55: 0.085 | BU55: 178 | BV55: 0.36 | BW55: 0.008 | BX55: 173 | BY55: 0.538 | BZ55: 0.031 | CA55: 164 | CB55: 0.058 | CC55: 0.006 | CD55: 178 | CE55: 8.312 | CF55: 0.08 | CG55: 175 | CH55: 16.485 | CI55: 0.049 | CJ55: 0 | CK55: 0 | CL55: 0 | CM55: 0 | CN55: 0 | CO55: 0 | CP55: 0 | CQ55: 0 | CR55: 0 | CS55: 0 | CT55: 0 | CU55: 0 | CV55: 0 | CW55: 0 | CX55: 0 | CY55: 159 | CZ55: 1.445 | DA55: 0.065 | DB55: 167 | DC55: 6.518 | DD55: 0.087 | DE55: 179 | DF55: 0.465 | DG55: 0.006
A56: 2007.208 | B56: 3 | C56: 2007 | D56: 265 | E56: 37.62 | F56: 0.199 | G56: 295 | H56: 170.156 | I56: 0.66 | J56: 295 | K56: 17.312 | L56: 0.089 | M56: 311 | N56: 16.193 | O56: 0.075 | P56: 152 | Q56: 506.441 | R56: 8.422 | S56: 187 | T56: 6.955 | U56: 0.115 | V56: 334 | W56: 4.229 | X56: 0.062 | Y56: 326 | Z56: 3.096 | AA56: 0.047 | AB56: 315 | AC56: 2.855 | AD56: 0.073 | AE56: 239 | AF56: 8.414 | AG56: 0.209 | AH56: 0 | AI56: 0 | AJ56: 0 | AK56: 168 | AL56: 0.347 | AM56: 0.026 | AN56: 340 | AO56: 77.23 | AP56: 0.146 | AQ56: 340 | AR56: 13.115 | AS56: 0.19 | AT56: 0 | AU56: 0 | AV56: 0 | AW56: 318 | AX56: 5.867 | AY56: 0.032 | AZ56: 323 | BA56: 0.287 | BB56: 0.026 | BC56: 337 | BD56: 1.38 | BE56: 0.022 | BF56: 284 | BG56: 4.682 | BH56: 0.046 | BI56: 0 | BJ56: 0 | BK56: 0 | BL56: 334 | BM56: 3.761 | BN56: 0.034 | BO56: 340 | BP56: 0.46 | BQ56: 0.016 | BR56: 320 | BS56: 75.785 | BT56: 0.084 | BU56: 324 | BV56: 0.368 | BW56: 0.008 | BX56: 317 | BY56: 0.555 | BZ56: 0.031 | CA56: 314 | CB56: 0.059 | CC56: 0.007 | CD56: 333 | CE56: 8.338 | CF56: 0.074 | CG56: 327 | CH56: 16.462 | CI56: 0.055 | CJ56: 0 | CK56: 0 | CL56: 0 | CM56: 0 | CN56: 0 | CO56: 0 | CP56: 0 | CQ56: 0 | CR56: 0 | CS56: 0 | CT56: 0 | CU56: 0 | CV56: 0 | CW56: 0 | CX56: 0 | CY56: 306 | CZ56: 1.484 | DA56: 0.064 | DB56: 306 | DC56: 6.595 | DD56: 0.081 | DE56: 334 | DF56: 0.463 | DG56: 0.006
A57: 2007.292 | B57: 4 | C57: 2007 | D57: 76 | E57: 38.324 | F57: 0.187 | G57: 130 | H57: 171.687 | I57: 0.647 | J57: 132 | K57: 17.491 | L57: 0.081 | M57: 138 | N57: 16.379 | O57: 0.069 | P57: 12 | Q57: 516.891 | R57: 4.323 | S57: 20 | T57: 7.133 | U57: 0.08 | V57: 142 | W57: 4.237 | X57: 0.044 | Y57: 139 | Z57: 3.099 | AA57: 0.041 | AB57: 137 | AC57: 3.053 | AD57: 0.066 | AE57: 0 | AF57: 0 | AG57: 0 | AH57: 0 | AI57: 0 | AJ57: 0 | AK57: 15 | AL57: 0.466 | AM57: 0.034 | AN57: 123 | AO57: 77.066 | AP57: 0.132 | AQ57: 142 | AR57: 12.813 | AS57: 0.152 | AT57: 0 | AU57: 0 | AV57: 0 | AW57: 142 | AX57: 5.907 | AY57: 0.027 | AZ57: 139 | BA57: 0.307 | BB57: 0.021 | BC57: 140 | BD57: 1.39 | BE57: 0.021 | BF57: 105 | BG57: 4.83 | BH57: 0.042 | BI57: 0 | BJ57: 0 | BK57: 0 | BL57: 138 | BM57: 3.781 | BN57: 0.025 | BO57: 141 | BP57: 0.463 | BQ57: 0.013 | BR57: 124 | BS57: 75.893 | BT57: 0.08 | BU57: 129 | BV57: 0.381 | BW57: 0.007 | BX57: 137 | BY57: 0.581 | BZ57: 0.024 | CA57: 137 | CB57: 0.058 | CC57: 0.006 | CD57: 141 | CE57: 8.327 | CF57: 0.059 | CG57: 140 | CH57: 16.44 | CI57: 0.045 | CJ57: 0 | CK57: 0 | CL57: 0 | CM57: 0 | CN57: 0 | CO57: 0 | CP57: 0 | CQ57: 0 | CR57: 0 | CS57: 0 | CT57: 0 | CU57: 0 | CV57: 0 | CW57: 0 | CX57: 0 | CY57: 140 | CZ57: 1.574 | DA57: 0.051 | DB57: 112 | DC57: 6.757 | DD57: 0.08 | DE57: 136 | DF57: 0.462 | DG57: 0.005
A58: 2007.375 | B58: 5 | C58: 2007 | D58: 133 | E58: 38.511 | F58: 0.241 | G58: 200 | H58: 172.112 | I58: 0.751 | J58: 198 | K58: 17.54 | L58: 0.098 | M58: 230 | N58: 16.451 | O58: 0.079 | P58: 0 | Q58: 0 | R58: 0 | S58: 114 | T58: 6.978 | U58: 0.106 | V58: 262 | W58: 4.25 | X58: 0.047 | Y58: 264 | Z58: 3.102 | AA58: 0.042 | AB58: 241 | AC58: 3.134 | AD58: 0.078 | AE58: 0 | AF58: 0 | AG58: 0 | AH58: 0 | AI58: 0 | AJ58: 0 | AK58: 96 | AL58: 0.529 | AM58: 0.03 | AN58: 245 | AO58: 77.018 | AP58: 0.118 | AQ58: 269 | AR58: 12.78 | AS58: 0.159 | AT58: 0 | AU58: 0 | AV58: 0 | AW58: 251 | AX58: 5.935 | AY58: 0.032 | AZ58: 250 | BA58: 0.316 | BB58: 0.021 | BC58: 264 | BD58: 1.396 | BE58: 0.018 | BF58: 182 | BG58: 4.855 | BH58: 0.066 | BI58: 0 | BJ58: 0 | BK58: 0 | BL58: 258 | BM58: 3.797 | BN58: 0.028 | BO58: 246 | BP58: 0.467 | BQ58: 0.015 | BR58: 82 | BS58: 75.91 | BT58: 0.072 | BU58: 257 | BV58: 0.388 | BW58: 0.008 | BX58: 246 | BY58: 0.596 | BZ58: 0.027 | CA58: 255 | CB58: 0.059 | CC58: 0.006 | CD58: 264 | CE58: 8.324 | CF58: 0.059 | CG58: 260 | CH58: 16.468 | CI58: 0.046 | CJ58: 0 | CK58: 0 | CL58: 0 | CM58: 0 | CN58: 0 | CO58: 0 | CP58: 0 | CQ58: 0 | CR58: 0 | CS58: 0 | CT58: 0 | CU58: 0 | CV58: 0 | CW58: 0 | CX58: 0 | CY58: 207 | CZ58: 1.617 | DA58: 0.058 | DB58: 188 | DC58: 6.781 | DD58: 0.084 | DE58: 257 | DF58: 0.461 | DG58: 0.005
A59: 2007.458 | B59: 6 | C59: 2007 | D59: 166 | E59: 39.1 | F59: 0.186 | G59: 212 | H59: 172.842 | I59: 0.662 | J59: 221 | K59: 17.628 | L59: 0.086 | M59: 240 | N59: 16.557 | O59: 0.068 | P59: 0 | Q59: 0 | R59: 0 | S59: 139 | T59: 6.892 | U59: 0.118 | V59: 235 | W59: 4.242 | X59: 0.049 | Y59: 237 | Z59: 3.103 | AA59: 0.04 | AB59: 233 | AC59: 3.244 | AD59: 0.067 | AE59: 0 | AF59: 0 | AG59: 0 | AH59: 0 | AI59: 0 | AJ59: 0 | AK59: 123 | AL59: 0.653 | AM59: 0.028 | AN59: 237 | AO59: 76.916 | AP59: 0.099 | AQ59: 244 | AR59: 12.693 | AS59: 0.143 | AT59: 0 | AU59: 0 | AV59: 0 | AW59: 239 | AX59: 5.952 | AY59: 0.028 | AZ59: 235 | BA59: 0.327 | BB59: 0.021 | BC59: 0 | BD59: 0 | BE59: 0 | BF59: 215 | BG59: 4.951 | BH59: 0.067 | BI59: 0 | BJ59: 0 | BK59: 0 | BL59: 232 | BM59: 3.806 | BN59: 0.026 | BO59: 240 | BP59: 0.471 | BQ59: 0.013 | BR59: 0 | BS59: 0 | BT59: 0 | BU59: 229 | BV59: 0.396 | BW59: 0.007 | BX59: 225 | BY59: 0.615 | BZ59: 0.027 | CA59: 236 | CB59: 0.061 | CC59: 0.005 | CD59: 241 | CE59: 8.31 | CF59: 0.053 | CG59: 243 | CH59: 16.456 | CI59: 0.041 | CJ59: 0 | CK59: 0 | CL59: 0 | CM59: 0 | CN59: 0 | CO59: 0 | CP59: 0 | CQ59: 0 | CR59: 0 | CS59: 0 | CT59: 0 | CU59: 0 | CV59: 0 | CW59: 0 | CX59: 0 | CY59: 225 | CZ59: 1.674 | DA59: 0.05 | DB59: 201 | DC59: 6.876 | DD59: 0.076 | DE59: 234 | DF59: 0.46 | DG59: 0.005
A60: 2007.542 | B60: 7 | C60: 2007 | D60: 203 | E60: 39.42 | F60: 0.2 | G60: 232 | H60: 173.369 | I60: 0.613 | J60: 257 | K60: 17.68 | L60: 0.09 | M60: 274 | N60: 16.621 | O60: 0.061 | P60: 0 | Q60: 0 | R60: 0 | S60: 197 | T60: 6.899 | U60: 0.111 | V60: 279 | W60: 4.24 | X60: 0.046 | Y60: 283 | Z60: 3.121 | AA60: 0.04 | AB60: 260 | AC60: 3.328 | AD60: 0.068 | AE60: 0 | AF60: 0 | AG60: 0 | AH60: 0 | AI60: 0 | AJ60: 0 | AK60: 139 | AL60: 0.743 | AM60: 0.022 | AN60: 272 | AO60: 76.893 | AP60: 0.11 | AQ60: 283 | AR60: 12.543 | AS60: 0.165 | AT60: 0 | AU60: 0 | AV60: 0 | AW60: 276 | AX60: 5.976 | AY60: 0.029 | AZ60: 277 | BA60: 0.333 | BB60: 0.018 | BC60: 0 | BD60: 0 | BE60: 0 | BF60: 165 | BG60: 4.987 | BH60: 0.058 | BI60: 0 | BJ60: 0 | BK60: 0 | BL60: 189 | BM60: 3.798 | BN60: 0.027 | BO60: 284 | BP60: 0.47 | BQ60: 0.013 | BR60: 0 | BS60: 0 | BT60: 0 | BU60: 184 | BV60: 0.393 | BW60: 0.007 | BX60: 276 | BY60: 0.639 | BZ60: 0.03 | CA60: 180 | CB60: 0.061 | CC60: 0.005 | CD60: 284 | CE60: 8.318 | CF60: 0.057 | CG60: 277 | CH60: 16.461 | CI60: 0.038 | CJ60: 0 | CK60: 0 | CL60: 0 | CM60: 0 | CN60: 0 | CO60: 0 | CP60: 0 | CQ60: 0 | CR60: 0 | CS60: 0 | CT60: 0 | CU60: 0 | CV60: 0 | CW60: 0 | CX60: 0 | CY60: 257 | CZ60: 1.701 | DA60: 0.049 | DB60: 237 | DC60: 6.927 | DD60: 0.073 | DE60: 285 | DF60: 0.46 | DG60: 0.005
A61: 2007.625 | B61: 8 | C61: 2007 | D61: 145 | E61: 39.83 | F61: 0.236 | G61: 162 | H61: 174.136 | I61: 0.723 | J61: 174 | K61: 17.771 | L61: 0.082 | M61: 162 | N61: 16.695 | O61: 0.085 | P61: 0 | Q61: 0 | R61: 0 | S61: 143 | T61: 6.888 | U61: 0.104 | V61: 196 | W61: 4.245 | X61: 0.044 | Y61: 202 | Z61: 3.137 | AA61: 0.038 | AB61: 169 | AC61: 3.434 | AD61: 0.073 | AE61: 0 | AF61: 0 | AG61: 0 | AH61: 0 | AI61: 0 | AJ61: 0 | AK61: 136 | AL61: 0.803 | AM61: 0.016 | AN61: 196 | AO61: 76.926 | AP61: 0.117 | AQ61: 200 | AR61: 12.331 | AS61: 0.152 | AT61: 0 | AU61: 0 | AV61: 0 | AW61: 194 | AX61: 6.007 | AY61: 0.029 | AZ61: 196 | BA61: 0.336 | BB61: 0.018 | BC61: 0 | BD61: 0 | BE61: 0 | BF61: 0 | BG61: 0 | BH61: 0 | BI61: 0 | BJ61: 0 | BK61: 0 | BL61: 0 | BM61: 0 | BN61: 0 | BO61: 200 | BP61: 0.469 | BQ61: 0.014 | BR61: 0 | BS61: 0 | BT61: 0 | BU61: 0 | BV61: 0 | BW61: 0 | BX61: 196 | BY61: 0.666 | BZ61: 0.027 | CA61: 0 | CB61: 0 | CC61: 0 | CD61: 199 | CE61: 8.352 | CF61: 0.051 | CG61: 200 | CH61: 16.467 | CI61: 0.042 | CJ61: 0 | CK61: 0 | CL61: 0 | CM61: 0 | CN61: 0 | CO61: 0 | CP61: 0 | CQ61: 0 | CR61: 0 | CS61: 0 | CT61: 0 | CU61: 0 | CV61: 0 | CW61: 0 | CX61: 0 | CY61: 179 | CZ61: 1.724 | DA61: 0.053 | DB61: 180 | DC61: 6.973 | DD61: 0.075 | DE61: 203 | DF61: 0.461 | DG61: 0.005
A62: 2007.708 | B62: 9 | C62: 2007 | D62: 225 | E62: 40.366 | F62: 0.223 | G62: 262 | H62: 175.106 | I62: 0.717 | J62: 270 | K62: 17.848 | L62: 0.085 | M62: 292 | N62: 16.835 | O62: 0.076 | P62: 0 | Q62: 0 | R62: 0 | S62: 159 | T62: 6.83 | U62: 0.109 | V62: 290 | W62: 4.237 | X62: 0.048 | Y62: 301 | Z62: 3.143 | AA62: 0.046 | AB62: 272 | AC62: 3.523 | AD62: 0.063 | AE62: 0 | AF62: 0 | AG62: 0 | AH62: 0 | AI62: 0 | AJ62: 0 | AK62: 177 | AL62: 0.793 | AM62: 0.026 | AN62: 304 | AO62: 76.893 | AP62: 0.111 | AQ62: 301 | AR62: 12.232 | AS62: 0.166 | AT62: 0 | AU62: 0 | AV62: 0 | AW62: 302 | AX62: 6.031 | AY62: 0.03 | AZ62: 294 | BA62: 0.346 | BB62: 0.021 | BC62: 0 | BD62: 0 | BE62: 0 | BF62: 0 | BG62: 0 | BH62: 0 | BI62: 0 | BJ62: 0 | BK62: 0 | BL62: 0 | BM62: 0 | BN62: 0 | BO62: 298 | BP62: 0.471 | BQ62: 0.015 | BR62: 0 | BS62: 0 | BT62: 0 | BU62: 0 | BV62: 0 | BW62: 0 | BX62: 300 | BY62: 0.693 | BZ62: 0.033 | CA62: 0 | CB62: 0 | CC62: 0 | CD62: 301 | CE62: 8.344 | CF62: 0.057 | CG62: 300 | CH62: 16.471 | CI62: 0.046 | CJ62: 0 | CK62: 0 | CL62: 0 | CM62: 0 | CN62: 0 | CO62: 0 | CP62: 0 | CQ62: 0 | CR62: 0 | CS62: 0 | CT62: 0 | CU62: 0 | CV62: 0 | CW62: 0 | CX62: 0 | CY62: 272 | CZ62: 1.78 | DA62: 0.052 | DB62: 263 | DC62: 7.084 | DD62: 0.078 | DE62: 299 | DF62: 0.46 | DG62: 0.006
A63: 2007.792 | B63: 10 | C63: 2007 | D63: 186 | E63: 40.679 | F63: 0.23 | G63: 201 | H63: 175.464 | I63: 0.784 | J63: 199 | K63: 17.852 | L63: 0.095 | M63: 202 | N63: 16.917 | O63: 0.079 | P63: 0 | Q63: 0 | R63: 0 | S63: 176 | T63: 6.753 | U63: 0.144 | V63: 205 | W63: 4.217 | X63: 0.057 | Y63: 200 | Z63: 3.155 | AA63: 0.057 | AB63: 196 | AC63: 3.518 | AD63: 0.078 | AE63: 0 | AF63: 0 | AG63: 0 | AH63: 0 | AI63: 0 | AJ63: 0 | AK63: 186 | AL63: 0.721 | AM63: 0.036 | AN63: 208 | AO63: 76.854 | AP63: 0.174 | AQ63: 204 | AR63: 12.12 | AS63: 0.16 | AT63: 0 | AU63: 0 | AV63: 0 | AW63: 196 | AX63: 6.046 | AY63: 0.032 | AZ63: 184 | BA63: 0.342 | BB63: 0.027 | BC63: 0 | BD63: 0 | BE63: 0 | BF63: 0 | BG63: 0 | BH63: 0 | BI63: 0 | BJ63: 0 | BK63: 0 | BL63: 0 | BM63: 0 | BN63: 0 | BO63: 204 | BP63: 0.47 | BQ63: 0.017 | BR63: 0 | BS63: 0 | BT63: 0 | BU63: 0 | BV63: 0 | BW63: 0 | BX63: 193 | BY63: 0.713 | BZ63: 0.036 | CA63: 0 | CB63: 0 | CC63: 0 | CD63: 183 | CE63: 8.348 | CF63: 0.089 | CG63: 184 | CH63: 16.495 | CI63: 0.057 | CJ63: 0 | CK63: 0 | CL63: 0 | CM63: 0 | CN63: 0 | CO63: 0 | CP63: 0 | CQ63: 0 | CR63: 0 | CS63: 0 | CT63: 0 | CU63: 0 | CV63: 0 | CW63: 0 | CX63: 0 | CY63: 177 | CZ63: 1.787 | DA63: 0.074 | DB63: 189 | DC63: 7.145 | DD63: 0.092 | DE63: 201 | DF63: 0.462 | DG63: 0.008
A64: 2007.875 | B64: 11 | C64: 2007 | D64: 176 | E64: 41.162 | F64: 0.163 | G64: 185 | H64: 176.535 | I64: 0.54 | J64: 185 | K64: 17.983 | L64: 0.062 | M64: 187 | N64: 17.03 | O64: 0.055 | P64: 81 | Q64: 527.079 | R64: 5.554 | S64: 103 | T64: 7.005 | U64: 0.13 | V64: 203 | W64: 4.248 | X64: 0.05 | Y64: 205 | Z64: 3.15 | AA64: 0.044 | AB64: 204 | AC64: 3.489 | AD64: 0.05 | AE64: 179 | AF64: 10.43 | AG64: 0.176 | AH64: 0 | AI64: 0 | AJ64: 0 | AK64: 133 | AL64: 0.579 | AM64: 0.024 | AN64: 203 | AO64: 76.787 | AP64: 0.106 | AQ64: 205 | AR64: 11.822 | AS64: 0.161 | AT64: 0 | AU64: 0 | AV64: 0 | AW64: 202 | AX64: 6.077 | AY64: 0.026 | AZ64: 203 | BA64: 0.342 | BB64: 0.019 | BC64: 205 | BD64: 1.416 | BE64: 0.018 | BF64: 186 | BG64: 5.293 | BH64: 0.054 | BI64: 205 | BJ64: 20.709 | BK64: 0.114 | BL64: 200 | BM64: 3.819 | BN64: 0.026 | BO64: 205 | BP64: 0.475 | BQ64: 0.011 | BR64: 187 | BS64: 76.279 | BT64: 0.069 | BU64: 182 | BV64: 0.417 | BW64: 0.007 | BX64: 199 | BY64: 0.728 | BZ64: 0.028 | CA64: 200 | CB64: 0.058 | CC64: 0.006 | CD64: 204 | CE64: 8.354 | CF64: 0.068 | CG64: 203 | CH64: 16.479 | CI64: 0.044 | CJ64: 0 | CK64: 0 | CL64: 0 | CM64: 0 | CN64: 0 | CO64: 0 | CP64: 0 | CQ64: 0 | CR64: 0 | CS64: 0 | CT64: 0 | CU64: 0 | CV64: 0 | CW64: 0 | CX64: 0 | CY64: 194 | CZ64: 1.794 | DA64: 0.051 | DB64: 191 | DC64: 7.25 | DD64: 0.08 | DE64: 206 | DF64: 0.461 | DG64: 0.005
A65: 2007.958 | B65: 12 | C65: 2007 | D65: 278 | E65: 41.238 | F65: 0.185 | G65: 304 | H65: 176.412 | I65: 0.627 | J65: 316 | K65: 17.958 | L65: 0.079 | M65: 304 | N65: 17.046 | O65: 0.063 | P65: 147 | Q65: 516.734 | R65: 6.578 | S65: 221 | T65: 6.894 | U65: 0.153 | V65: 317 | W65: 4.238 | X65: 0.045 | Y65: 319 | Z65: 3.144 | AA65: 0.044 | AB65: 314 | AC65: 3.405 | AD65: 0.065 | AE65: 290 | AF65: 9.723 | AG65: 0.36 | AH65: 0 | AI65: 0 | AJ65: 0 | AK65: 256 | AL65: 0.457 | AM65: 0.041 | AN65: 310 | AO65: 76.72 | AP65: 0.12 | AQ65: 318 | AR65: 11.651 | AS65: 0.185 | AT65: 0 | AU65: 0 | AV65: 0 | AW65: 309 | AX65: 6.082 | AY65: 0.025 | AZ65: 317 | BA65: 0.347 | BB65: 0.019 | BC65: 310 | BD65: 1.416 | BE65: 0.019 | BF65: 281 | BG65: 5.319 | BH65: 0.068 | BI65: 313 | BJ65: 20.734 | BK65: 0.114 | BL65: 312 | BM65: 3.815 | BN65: 0.029 | BO65: 309 | BP65: 0.474 | BQ65: 0.014 | BR65: 306 | BS65: 76.288 | BT65: 0.072 | BU65: 307 | BV65: 0.416 | BW65: 0.007 | BX65: 311 | BY65: 0.731 | BZ65: 0.029 | CA65: 300 | CB65: 0.059 | CC65: 0.006 | CD65: 318 | CE65: 8.348 | CF65: 0.063 | CG65: 315 | CH65: 16.47 | CI65: 0.046 | CJ65: 0 | CK65: 0 | CL65: 0 | CM65: 0 | CN65: 0 | CO65: 0 | CP65: 0 | CQ65: 0 | CR65: 0 | CS65: 0 | CT65: 0 | CU65: 0 | CV65: 0 | CW65: 0 | CX65: 0 | CY65: 309 | CZ65: 1.805 | DA65: 0.056 | DB65: 282 | DC65: 7.275 | DD65: 0.087 | DE65: 313 | DF65: 0.462 | DG65: 0.006
A66: 2008.042 | B66: 1 | C66: 2008 | D66: 169 | E66: 41.42 | F66: 0.201 | G66: 179 | H66: 176.671 | I66: 0.649 | J66: 189 | K66: 17.946 | L66: 0.086 | M66: 197 | N66: 17.11 | O66: 0.071 | P66: 68 | Q66: 510.761 | R66: 5.763 | S66: 110 | T66: 6.852 | U66: 0.142 | V66: 198 | W66: 4.222 | X66: 0.047 | Y66: 187 | Z66: 3.15 | AA66: 0.05 | AB66: 182 | AC66: 3.337 | AD66: 0.061 | AE66: 184 | AF66: 9.084 | AG66: 0.226 | AH66: 0 | AI66: 0 | AJ66: 0 | AK66: 165 | AL66: 0.355 | AM66: 0.027 | AN66: 191 | AO66: 76.715 | AP66: 0.155 | AQ66: 199 | AR66: 11.483 | AS66: 0.179 | AT66: 0 | AU66: 0 | AV66: 0 | AW66: 192 | AX66: 6.101 | AY66: 0.029 | AZ66: 196 | BA66: 0.345 | BB66: 0.024 | BC66: 193 | BD66: 1.419 | BE66: 0.02 | BF66: 172 | BG66: 5.36 | BH66: 0.07 | BI66: 184 | BJ66: 20.835 | BK66: 0.141 | BL66: 198 | BM66: 3.825 | BN66: 0.032 | BO66: 182 | BP66: 0.476 | BQ66: 0.015 | BR66: 173 | BS66: 76.357 | BT66: 0.118 | BU66: 190 | BV66: 0.419 | BW66: 0.007 | BX66: 190 | BY66: 0.744 | BZ66: 0.034 | CA66: 184 | CB66: 0.059 | CC66: 0.006 | CD66: 181 | CE66: 8.378 | CF66: 0.071 | CG66: 198 | CH66: 16.459 | CI66: 0.051 | CJ66: 0 | CK66: 0 | CL66: 0 | CM66: 0 | CN66: 0 | CO66: 0 | CP66: 0 | CQ66: 0 | CR66: 0 | CS66: 0 | CT66: 0 | CU66: 0 | CV66: 0 | CW66: 0 | CX66: 0 | CY66: 187 | CZ66: 1.824 | DA66: 0.067 | DB66: 179 | DC66: 7.344 | DD66: 0.09 | DE66: 193 | DF66: 0.459 | DG66: 0.006
A67: 2008.125 | B67: 2 | C67: 2008 | D67: 199 | E67: 41.84 | F67: 0.246 | G67: 217 | H67: 177.67 | I67: 0.765 | J67: 217 | K67: 17.98 | L67: 0.084 | M67: 207 | N67: 17.222 | O67: 0.074 | P67: 101 | Q67: 502.111 | R67: 5.928 | S67: 151 | T67: 6.679 | U67: 0.143 | V67: 221 | W67: 4.206 | X67: 0.044 | Y67: 220 | Z67: 3.148 | AA67: 0.045 | AB67: 222 | AC67: 3.317 | AD67: 0.06 | AE67: 203 | AF67: 8.873 | AG67: 0.16 | AH67: 0 | AI67: 0 | AJ67: 0 | AK67: 144 | AL67: 0.309 | AM67: 0.016 | AN67: 216 | AO67: 76.615 | AP67: 0.129 | AQ67: 223 | AR67: 11.236 | AS67: 0.168 | AT67: 0 | AU67: 0 | AV67: 0 | AW67: 220 | AX67: 6.124 | AY67: 0.031 | AZ67: 225 | BA67: 0.358 | BB67: 0.019 | BC67: 215 | BD67: 1.422 | BE67: 0.02 | BF67: 211 | BG67: 5.46 | BH67: 0.073 | BI67: 31 | BJ67: 20.943 | BK67: 0.137 | BL67: 223 | BM67: 3.837 | BN67: 0.029 | BO67: 223 | BP67: 0.479 | BQ67: 0.013 | BR67: 217 | BS67: 76.38 | BT67: 0.097 | BU67: 32 | BV67: 0.425 | BW67: 0.008 | BX67: 218 | BY67: 0.752 | BZ67: 0.03 | CA67: 220 | CB67: 0.059 | CC67: 0.006 | CD67: 222 | CE67: 8.363 | CF67: 0.07 | CG67: 220 | CH67: 16.421 | CI67: 0.043 | CJ67: 0 | CK67: 0 | CL67: 0 | CM67: 0 | CN67: 0 | CO67: 0 | CP67: 0 | CQ67: 0 | CR67: 0 | CS67: 0 | CT67: 0 | CU67: 0 | CV67: 0 | CW67: 0 | CX67: 0 | CY67: 220 | CZ67: 1.884 | DA67: 0.064 | DB67: 213 | DC67: 7.445 | DD67: 0.085 | DE67: 223 | DF67: 0.457 | DG67: 0.005
A68: 2008.208 | B68: 3 | C68: 2008 | D68: 233 | E68: 42.138 | F68: 0.252 | G68: 239 | H68: 178.021 | I68: 0.756 | J68: 247 | K68: 17.989 | L68: 0.089 | M68: 249 | N68: 17.302 | O68: 0.078 | P68: 100 | Q68: 505.08 | R68: 10.254 | S68: 151 | T68: 6.758 | U68: 0.172 | V68: 266 | W68: 4.191 | X68: 0.052 | Y68: 269 | Z68: 3.149 | AA68: 0.045 | AB68: 251 | AC68: 3.35 | AD68: 0.068 | AE68: 206 | AF68: 9.116 | AG68: 0.238 | AH68: 0 | AI68: 0 | AJ68: 0 | AK68: 182 | AL68: 0.359 | AM68: 0.029 | AN68: 269 | AO68: 76.473 | AP68: 0.14 | AQ68: 267 | AR68: 11.054 | AS68: 0.16 | AT68: 0 | AU68: 0 | AV68: 0 | AW68: 256 | AX68: 6.135 | AY68: 0.033 | AZ68: 264 | BA68: 0.363 | BB68: 0.022 | BC68: 262 | BD68: 1.424 | BE68: 0.022 | BF68: 247 | BG68: 5.518 | BH68: 0.075 | BI68: 272 | BJ68: 21.094 | BK68: 0.151 | BL68: 268 | BM68: 3.833 | BN68: 0.034 | BO68: 269 | BP68: 0.48 | BQ68: 0.013 | BR68: 260 | BS68: 76.392 | BT68: 0.12 | BU68: 174 | BV68: 0.434 | BW68: 0.009 | BX68: 260 | BY68: 0.767 | BZ68: 0.033 | CA68: 261 | CB68: 0.061 | CC68: 0.008 | CD68: 268 | CE68: 8.342 | CF68: 0.082 | CG68: 268 | CH68: 16.411 | CI68: 0.049 | CJ68: 0 | CK68: 0 | CL68: 0 | CM68: 0 | CN68: 0 | CO68: 0 | CP68: 0 | CQ68: 0 | CR68: 0 | CS68: 0 | CT68: 0 | CU68: 0 | CV68: 0 | CW68: 0 | CX68: 0 | CY68: 253 | CZ68: 1.921 | DA68: 0.066 | DB68: 242 | DC68: 7.529 | DD68: 0.098 | DE68: 272 | DF68: 0.455 | DG68: 0.005
A69: 2008.292 | B69: 4 | C69: 2008 | D69: 125 | E69: 42.7 | F69: 0.234 | G69: 169 | H69: 179.292 | I69: 0.786 | J69: 191 | K69: 18.092 | L69: 0.093 | M69: 245 | N69: 17.455 | O69: 0.083 | P69: 74 | Q69: 516.195 | R69: 9.35 | S69: 146 | T69: 6.936 | U69: 0.139 | V69: 232 | W69: 4.193 | X69: 0.053 | Y69: 254 | Z69: 3.141 | AA69: 0.048 | AB69: 139 | AC69: 3.477 | AD69: 0.073 | AE69: 137 | AF69: 9.846 | AG69: 0.291 | AH69: 0 | AI69: 0 | AJ69: 0 | AK69: 150 | AL69: 0.466 | AM69: 0.031 | AN69: 216 | AO69: 76.444 | AP69: 0.132 | AQ69: 253 | AR69: 10.868 | AS69: 0.154 | AT69: 0 | AU69: 0 | AV69: 0 | AW69: 240 | AX69: 6.174 | AY69: 0.032 | AZ69: 243 | BA69: 0.367 | BB69: 0.024 | BC69: 228 | BD69: 1.436 | BE69: 0.022 | BF69: 206 | BG69: 5.617 | BH69: 0.082 | BI69: 247 | BJ69: 21.246 | BK69: 0.161 | BL69: 251 | BM69: 3.829 | BN69: 0.035 | BO69: 248 | BP69: 0.482 | BQ69: 0.013 | BR69: 199 | BS69: 76.507 | BT69: 0.097 | BU69: 0 | BV69: 0 | BW69: 0 | BX69: 241 | BY69: 0.788 | BZ69: 0.032 | CA69: 242 | CB69: 0.063 | CC69: 0.007 | CD69: 234 | CE69: 8.351 | CF69: 0.096 | CG69: 223 | CH69: 16.423 | CI69: 0.051 | CJ69: 0 | CK69: 0 | CL69: 0 | CM69: 0 | CN69: 0 | CO69: 0 | CP69: 0 | CQ69: 0 | CR69: 0 | CS69: 0 | CT69: 0 | CU69: 0 | CV69: 0 | CW69: 0 | CX69: 0 | CY69: 231 | CZ69: 2.012 | DA69: 0.073 | DB69: 204 | DC69: 7.652 | DD69: 0.089 | DE69: 244 | DF69: 0.453 | DG69: 0.006
A70: 2008.375 | B70: 5 | C70: 2008 | D70: 181 | E70: 43.19 | F70: 0.293 | G70: 196 | H70: 180.146 | I70: 0.801 | J70: 159 | K70: 18.185 | L70: 0.106 | M70: 204 | N70: 17.548 | O70: 0.085 | P70: 112 | Q70: 529.503 | R70: 11.546 | S70: 175 | T70: 6.964 | U70: 0.15 | V70: 209 | W70: 4.187 | X70: 0.052 | Y70: 217 | Z70: 3.139 | AA70: 0.049 | AB70: 198 | AC70: 3.605 | AD70: 0.078 | AE70: 164 | AF70: 10.588 | AG70: 0.378 | AH70: 0 | AI70: 0 | AJ70: 0 | AK70: 146 | AL70: 0.569 | AM70: 0.052 | AN70: 180 | AO70: 76.337 | AP70: 0.154 | AQ70: 215 | AR70: 10.78 | AS70: 0.137 | AT70: 0 | AU70: 0 | AV70: 0 | AW70: 209 | AX70: 6.202 | AY70: 0.038 | AZ70: 209 | BA70: 0.378 | BB70: 0.025 | BC70: 216 | BD70: 1.442 | BE70: 0.024 | BF70: 196 | BG70: 5.713 | BH70: 0.093 | BI70: 214 | BJ70: 21.277 | BK70: 0.166 | BL70: 219 | BM70: 3.843 | BN70: 0.037 | BO70: 215 | BP70: 0.484 | BQ70: 0.017 | BR70: 194 | BS70: 76.584 | BT70: 0.104 | BU70: 0 | BV70: 0 | BW70: 0 | BX70: 211 | BY70: 0.808 | BZ70: 0.035 | CA70: 205 | CB70: 0.063 | CC70: 0.008 | CD70: 215 | CE70: 8.347 | CF70: 0.074 | CG70: 206 | CH70: 16.417 | CI70: 0.057 | CJ70: 0 | CK70: 0 | CL70: 0 | CM70: 0 | CN70: 0 | CO70: 0 | CP70: 0 | CQ70: 0 | CR70: 0 | CS70: 0 | CT70: 0 | CU70: 0 | CV70: 0 | CW70: 0 | CX70: 0 | CY70: 207 | CZ70: 2.062 | DA70: 0.084 | DB70: 196 | DC70: 7.741 | DD70: 0.105 | DE70: 218 | DF70: 0.453 | DG70: 0.007
A71: 2008.458 | B71: 6 | C71: 2008 | D71: 54 | E71: 43.467 | F71: 0.23 | G71: 64 | H71: 180.669 | I71: 0.73 | J71: 77 | K71: 18.261 | L71: 0.098 | M71: 78 | N71: 17.65 | O71: 0.084 | P71: 35 | Q71: 536.556 | R71: 8.242 | S71: 46 | T71: 6.958 | U71: 0.14 | V71: 75 | W71: 4.196 | X71: 0.055 | Y71: 83 | Z71: 3.146 | AA71: 0.049 | AB71: 75 | AC71: 3.705 | AD71: 0.073 | AE71: 16 | AF71: 11.027 | AG71: 0.163 | AH71: 0 | AI71: 0 | AJ71: 0 | AK71: 43 | AL71: 0.653 | AM71: 0.025 | AN71: 75 | AO71: 76.365 | AP71: 0.183 | AQ71: 85 | AR71: 10.713 | AS71: 0.149 | AT71: 0 | AU71: 0 | AV71: 0 | AW71: 85 | AX71: 6.229 | AY71: 0.036 | AZ71: 84 | BA71: 0.39 | BB71: 0.025 | BC71: 84 | BD71: 1.44 | BE71: 0.026 | BF71: 65 | BG71: 5.79 | BH71: 0.086 | BI71: 79 | BJ71: 21.389 | BK71: 0.151 | BL71: 83 | BM71: 3.852 | BN71: 0.037 | BO71: 83 | BP71: 0.488 | BQ71: 0.015 | BR71: 80 | BS71: 76.614 | BT71: 0.117 | BU71: 41 | BV71: 0.45 | BW71: 0.009 | BX71: 84 | BY71: 0.833 | BZ71: 0.035 | CA71: 70 | CB71: 0.065 | CC71: 0.007 | CD71: 83 | CE71: 8.349 | CF71: 0.079 | CG71: 76 | CH71: 16.416 | CI71: 0.057 | CJ71: 0 | CK71: 0 | CL71: 0 | CM71: 0 | CN71: 0 | CO71: 0 | CP71: 0 | CQ71: 0 | CR71: 0 | CS71: 0 | CT71: 0 | CU71: 0 | CV71: 0 | CW71: 0 | CX71: 0 | CY71: 81 | CZ71: 2.105 | DA71: 0.071 | DB71: 59 | DC71: 7.786 | DD71: 0.1 | DE71: 81 | DF71: 0.454 | DG71: 0.007
A72: 2008.542 | B72: 7 | C72: 2008 | D72: 17 | E72: 43.788 | F72: 0.136 | G72: 19 | H72: 180.954 | I72: 0.654 | J72: 8 | K72: 18.369 | L72: 0.068 | M72: 8 | N72: 17.716 | O72: 0.047 | P72: 19 | Q72: 539.599 | R72: 4.16 | S72: 20 | T72: 6.749 | U72: 0.152 | V72: 27 | W72: 4.213 | X72: 0.054 | Y72: 26 | Z72: 3.141 | AA72: 0.052 | AB72: 20 | AC72: 3.82 | AD72: 0.038 | AE72: 0 | AF72: 0 | AG72: 0 | AH72: 0 | AI72: 0 | AJ72: 0 | AK72: 18 | AL72: 0.775 | AM72: 0.02 | AN72: 21 | AO72: 76.436 | AP72: 0.143 | AQ72: 23 | AR72: 10.613 | AS72: 0.139 | AT72: 0 | AU72: 0 | AV72: 0 | AW72: 27 | AX72: 6.251 | AY72: 0.031 | AZ72: 21 | BA72: 0.404 | BB72: 0.021 | BC72: 27 | BD72: 1.424 | BE72: 0.028 | BF72: 26 | BG72: 5.886 | BH72: 0.065 | BI72: 25 | BJ72: 21.444 | BK72: 0.192 | BL72: 23 | BM72: 3.869 | BN72: 0.026 | BO72: 24 | BP72: 0.493 | BQ72: 0.014 | BR72: 22 | BS72: 76.678 | BT72: 0.102 | BU72: 28 | BV72: 0.459 | BW72: 0.01 | BX72: 26 | BY72: 0.854 | BZ72: 0.026 | CA72: 19 | CB72: 0.073 | CC72: 0.007 | CD72: 25 | CE72: 8.354 | CF72: 0.056 | CG72: 27 | CH72: 16.413 | CI72: 0.044 | CJ72: 0 | CK72: 0 | CL72: 0 | CM72: 0 | CN72: 0 | CO72: 0 | CP72: 0 | CQ72: 0 | CR72: 0 | CS72: 0 | CT72: 0 | CU72: 0 | CV72: 0 | CW72: 0 | CX72: 0 | CY72: 22 | CZ72: 2.164 | DA72: 0.057 | DB72: 28 | DC72: 7.876 | DD72: 0.089 | DE72: 15 | DF72: 0.449 | DG72: 0.009
A73: 2008.625 | B73: 8 | C73: 2008 | D73: 238 | E73: 44.433 | F73: 0.196 | G73: 260 | H73: 182.436 | I73: 0.573 | J73: 280 | K73: 18.495 | L73: 0.063 | M73: 271 | N73: 17.908 | O73: 0.062 | P73: 170 | Q73: 541.808 | R73: 6.148 | S73: 212 | T73: 6.775 | U73: 0.107 | V73: 281 | W73: 4.217 | X73: 0.043 | Y73: 280 | Z73: 3.171 | AA73: 0.037 | AB73: 269 | AC73: 3.939 | AD73: 0.055 | AE73: 222 | AF73: 12.289 | AG73: 0.197 | AH73: 0 | AI73: 0 | AJ73: 0 | AK73: 245 | AL73: 0.827 | AM73: 0.015 | AN73: 287 | AO73: 76.367 | AP73: 0.09 | AQ73: 291 | AR73: 10.56 | AS73: 0.121 | AT73: 0 | AU73: 0 | AV73: 0 | AW73: 281 | AX73: 6.271 | AY73: 0.024 | AZ73: 279 | BA73: 0.415 | BB73: 0.018 | BC73: 274 | BD73: 1.435 | BE73: 0.016 | BF73: 270 | BG73: 5.978 | BH73: 0.062 | BI73: 290 | BJ73: 21.516 | BK73: 0.111 | BL73: 279 | BM73: 3.888 | BN73: 0.028 | BO73: 278 | BP73: 0.498 | BQ73: 0.013 | BR73: 284 | BS73: 76.733 | BT73: 0.07 | BU73: 275 | BV73: 0.466 | BW73: 0.007 | BX73: 289 | BY73: 0.867 | BZ73: 0.032 | CA73: 262 | CB73: 0.07 | CC73: 0.007 | CD73: 270 | CE73: 8.339 | CF73: 0.052 | CG73: 270 | CH73: 16.428 | CI73: 0.036 | CJ73: 0 | CK73: 0 | CL73: 0 | CM73: 0 | CN73: 0 | CO73: 0 | CP73: 0 | CQ73: 0 | CR73: 0 | CS73: 0 | CT73: 0 | CU73: 0 | CV73: 0 | CW73: 0 | CX73: 0 | CY73: 271 | CZ73: 2.218 | DA73: 0.051 | DB73: 260 | DC73: 7.972 | DD73: 0.075 | DE73: 276 | DF73: 0.452 | DG73: 0.005
A74: 2008.708 | B74: 9 | C74: 2008 | D74: 237 | E74: 44.745 | F74: 0.21 | G74: 270 | H74: 183.115 | I74: 0.641 | J74: 282 | K74: 18.547 | L74: 0.07 | M74: 300 | N74: 17.988 | O74: 0.069 | P74: 147 | Q74: 538.047 | R74: 5.35 | S74: 186 | T74: 6.699 | U74: 0.097 | V74: 304 | W74: 4.215 | X74: 0.045 | Y74: 319 | Z74: 3.172 | AA74: 0.037 | AB74: 299 | AC74: 3.987 | AD74: 0.051 | AE74: 225 | AF74: 12.28 | AG74: 0.152 | AH74: 0 | AI74: 0 | AJ74: 0 | AK74: 218 | AL74: 0.797 | AM74: 0.023 | AN74: 323 | AO74: 76.324 | AP74: 0.101 | AQ74: 319 | AR74: 10.458 | AS74: 0.133 | AT74: 0 | AU74: 0 | AV74: 0 | AW74: 312 | AX74: 6.294 | AY74: 0.026 | AZ74: 313 | BA74: 0.423 | BB74: 0.02 | BC74: 318 | BD74: 1.438 | BE74: 0.016 | BF74: 236 | BG74: 6.084 | BH74: 0.082 | BI74: 324 | BJ74: 21.552 | BK74: 0.128 | BL74: 321 | BM74: 3.903 | BN74: 0.027 | BO74: 302 | BP74: 0.496 | BQ74: 0.013 | BR74: 290 | BS74: 76.788 | BT74: 0.074 | BU74: 300 | BV74: 0.473 | BW74: 0.007 | BX74: 319 | BY74: 0.877 | BZ74: 0.03 | CA74: 205 | CB74: 0.068 | CC74: 0.006 | CD74: 322 | CE74: 8.343 | CF74: 0.059 | CG74: 321 | CH74: 16.425 | CI74: 0.038 | CJ74: 0 | CK74: 0 | CL74: 0 | CM74: 0 | CN74: 0 | CO74: 0 | CP74: 0 | CQ74: 0 | CR74: 0 | CS74: 0 | CT74: 0 | CU74: 0 | CV74: 0 | CW74: 0 | CX74: 0 | CY74: 280 | CZ74: 2.258 | DA74: 0.054 | DB74: 261 | DC74: 8.044 | DD74: 0.074 | DE74: 323 | DF74: 0.453 | DG74: 0.005
A75: 2008.792 | B75: 10 | C75: 2008 | D75: 211 | E75: 45.12 | F75: 0.184 | G75: 227 | H75: 183.668 | I75: 0.626 | J75: 259 | K75: 18.573 | L75: 0.078 | M75: 258 | N75: 18.078 | O75: 0.066 | P75: 160 | Q75: 531.633 | R75: 6.01 | S75: 160 | T75: 6.565 | U75: 0.103 | V75: 299 | W75: 4.218 | X75: 0.044 | Y75: 307 | Z75: 3.173 | AA75: 0.044 | AB75: 292 | AC75: 3.985 | AD75: 0.058 | AE75: 242 | AF75: 11.806 | AG75: 0.231 | AH75: 0 | AI75: 0 | AJ75: 0 | AK75: 227 | AL75: 0.7 | AM75: 0.037 | AN75: 307 | AO75: 76.228 | AP75: 0.116 | AQ75: 310 | AR75: 10.243 | AS75: 0.142 | AT75: 0 | AU75: 0 | AV75: 0 | AW75: 292 | AX75: 6.319 | AY75: 0.028 | AZ75: 289 | BA75: 0.428 | BB75: 0.023 | BC75: 304 | BD75: 1.438 | BE75: 0.018 | BF75: 256 | BG75: 6.189 | BH75: 0.068 | BI75: 299 | BJ75: 21.628 | BK75: 0.129 | BL75: 305 | BM75: 3.918 | BN75: 0.027 | BO75: 307 | BP75: 0.493 | BQ75: 0.014 | BR75: 266 | BS75: 76.834 | BT75: 0.078 | BU75: 296 | BV75: 0.48 | BW75: 0.008 | BX75: 302 | BY75: 0.897 | BZ75: 0.033 | CA75: 235 | CB75: 0.071 | CC75: 0.007 | CD75: 305 | CE75: 8.334 | CF75: 0.084 | CG75: 302 | CH75: 16.418 | CI75: 0.047 | CJ75: 0 | CK75: 0 | CL75: 0 | CM75: 0 | CN75: 0 | CO75: 0 | CP75: 0 | CQ75: 0 | CR75: 0 | CS75: 0 | CT75: 0 | CU75: 0 | CV75: 0 | CW75: 0 | CX75: 0 | CY75: 271 | CZ75: 2.303 | DA75: 0.06 | DB75: 249 | DC75: 8.123 | DD75: 0.083 | DE75: 302 | DF75: 0.454 | DG75: 0.006
A76: 2008.875 | B76: 11 | C76: 2008 | D76: 205 | E76: 45.359 | F76: 0.2 | G76: 248 | H76: 184.057 | I76: 0.629 | J76: 254 | K76: 18.56 | L76: 0.082 | M76: 248 | N76: 18.117 | O76: 0.069 | P76: 96 | Q76: 522.259 | R76: 5.749 | S76: 115 | T76: 6.542 | U76: 0.121 | V76: 263 | W76: 4.209 | X76: 0.043 | Y76: 265 | Z76: 3.17 | AA76: 0.046 | AB76: 259 | AC76: 3.892 | AD76: 0.065 | AE76: 234 | AF76: 10.944 | AG76: 0.346 | AH76: 0 | AI76: 0 | AJ76: 0 | AK76: 200 | AL76: 0.565 | AM76: 0.05 | AN76: 263 | AO76: 76.155 | AP76: 0.116 | AQ76: 268 | AR76: 10.082 | AS76: 0.149 | AT76: 0 | AU76: 0 | AV76: 0 | AW76: 265 | AX76: 6.328 | AY76: 0.027 | AZ76: 239 | BA76: 0.434 | BB76: 0.024 | BC76: 259 | BD76: 1.441 | BE76: 0.02 | BF76: 237 | BG76: 6.253 | BH76: 0.075 | BI76: 260 | BJ76: 21.667 | BK76: 0.143 | BL76: 266 | BM76: 3.916 | BN76: 0.031 | BO76: 258 | BP76: 0.493 | BQ76: 0.014 | BR76: 259 | BS76: 76.837 | BT76: 0.083 | BU76: 258 | BV76: 0.484 | BW76: 0.008 | BX76: 255 | BY76: 0.905 | BZ76: 0.033 | CA76: 201 | CB76: 0.071 | CC76: 0.007 | CD76: 264 | CE76: 8.345 | CF76: 0.082 | CG76: 261 | CH76: 16.403 | CI76: 0.045 | CJ76: 0 | CK76: 0 | CL76: 0 | CM76: 0 | CN76: 0 | CO76: 0 | CP76: 0 | CQ76: 0 | CR76: 0 | CS76: 0 | CT76: 0 | CU76: 0 | CV76: 0 | CW76: 0 | CX76: 0 | CY76: 236 | CZ76: 2.321 | DA76: 0.069 | DB76: 230 | DC76: 8.183 | DD76: 0.1 | DE76: 263 | DF76: 0.453 | DG76: 0.006
A77: 2008.958 | B77: 12 | C77: 2008 | D77: 307 | E77: 45.552 | F77: 0.128 | G77: 326 | H77: 184.01 | I77: 0.459 | J77: 322 | K77: 18.566 | L77: 0.06 | M77: 331 | N77: 18.169 | O77: 0.047 | P77: 201 | Q77: 507.755 | R77: 6.282 | S77: 249 | T77: 6.455 | U77: 0.109 | V77: 331 | W77: 4.195 | X77: 0.041 | Y77: 333 | Z77: 3.166 | AA77: 0.038 | AB77: 331 | AC77: 3.769 | AD77: 0.071 | AE77: 324 | AF77: 9.963 | AG77: 0.338 | AH77: 0 | AI77: 0 | AJ77: 0 | AK77: 294 | AL77: 0.414 | AM77: 0.04 | AN77: 330 | AO77: 76.163 | AP77: 0.1 | AQ77: 332 | AR77: 9.889 | AS77: 0.135 | AT77: 0 | AU77: 0 | AV77: 0 | AW77: 330 | AX77: 6.339 | AY77: 0.023 | AZ77: 332 | BA77: 0.431 | BB77: 0.017 | BC77: 326 | BD77: 1.449 | BE77: 0.017 | BF77: 314 | BG77: 6.301 | BH77: 0.063 | BI77: 329 | BJ77: 21.725 | BK77: 0.114 | BL77: 330 | BM77: 3.909 | BN77: 0.026 | BO77: 331 | BP77: 0.497 | BQ77: 0.013 | BR77: 326 | BS77: 76.903 | BT77: 0.067 | BU77: 325 | BV77: 0.489 | BW77: 0.007 | BX77: 330 | BY77: 0.917 | BZ77: 0.026 | CA77: 312 | CB77: 0.07 | CC77: 0.005 | CD77: 324 | CE77: 8.341 | CF77: 0.061 | CG77: 329 | CH77: 16.411 | CI77: 0.038 | CJ77: 0 | CK77: 0 | CL77: 0 | CM77: 0 | CN77: 0 | CO77: 0 | CP77: 0 | CQ77: 0 | CR77: 0 | CS77: 0 | CT77: 0 | CU77: 0 | CV77: 0 | CW77: 0 | CX77: 0 | CY77: 320 | CZ77: 2.338 | DA77: 0.054 | DB77: 320 | DC77: 8.276 | DD77: 0.069 | DE77: 329 | DF77: 0.453 | DG77: 0.005
A78: 2009.042 | B78: 1 | C78: 2009 | D78: 266 | E78: 45.637 | F78: 0.17 | G78: 297 | H78: 183.79 | I78: 0.503 | J78: 294 | K78: 18.503 | L78: 0.067 | M78: 300 | N78: 18.184 | O78: 0.057 | P78: 199 | Q78: 495.637 | R78: 5.681 | S78: 219 | T78: 6.397 | U78: 0.129 | V78: 325 | W78: 4.19 | X78: 0.043 | Y78: 315 | Z78: 3.164 | AA78: 0.039 | AB78: 312 | AC78: 3.63 | AD78: 0.056 | AE78: 296 | AF78: 9.103 | AG78: 0.259 | AH78: 0 | AI78: 0 | AJ78: 0 | AK78: 274 | AL78: 0.312 | AM78: 0.02 | AN78: 331 | AO78: 76.069 | AP78: 0.102 | AQ78: 335 | AR78: 9.64 | AS78: 0.177 | AT78: 0 | AU78: 0 | AV78: 0 | AW78: 317 | AX78: 6.356 | AY78: 0.026 | AZ78: 325 | BA78: 0.434 | BB78: 0.018 | BC78: 324 | BD78: 1.454 | BE78: 0.016 | BF78: 288 | BG78: 6.342 | BH78: 0.068 | BI78: 329 | BJ78: 21.778 | BK78: 0.122 | BL78: 326 | BM78: 3.913 | BN78: 0.026 | BO78: 325 | BP78: 0.497 | BQ78: 0.016 | BR78: 304 | BS78: 76.907 | BT78: 0.077 | BU78: 306 | BV78: 0.49 | BW78: 0.007 | BX78: 318 | BY78: 0.923 | BZ78: 0.024 | CA78: 191 | CB78: 0.07 | CC78: 0.005 | CD78: 331 | CE78: 8.329 | CF78: 0.068 | CG78: 330 | CH78: 16.401 | CI78: 0.036 | CJ78: 0 | CK78: 0 | CL78: 0 | CM78: 0 | CN78: 0 | CO78: 0 | CP78: 0 | CQ78: 0 | CR78: 0 | CS78: 0 | CT78: 0 | CU78: 0 | CV78: 0 | CW78: 0 | CX78: 0 | CY78: 298 | CZ78: 2.352 | DA78: 0.049 | DB78: 288 | DC78: 8.323 | DD78: 0.072 | DE78: 329 | DF78: 0.452 | DG78: 0.005
A79: 2009.125 | B79: 2 | C79: 2009 | D79: 173 | E79: 46.007 | F79: 0.205 | G79: 206 | H79: 184.653 | I79: 0.643 | J79: 215 | K79: 18.501 | L79: 0.078 | M79: 212 | N79: 18.368 | O79: 0.098 | P79: 51 | Q79: 493.739 | R79: 5.672 | S79: 100 | T79: 6.607 | U79: 0.144 | V79: 232 | W79: 4.177 | X79: 0.049 | Y79: 231 | Z79: 3.164 | AA79: 0.041 | AB79: 230 | AC79: 3.539 | AD79: 0.066 | AE79: 211 | AF79: 8.775 | AG79: 0.175 | AH79: 0 | AI79: 0 | AJ79: 0 | AK79: 150 | AL79: 0.279 | AM79: 0.018 | AN79: 232 | AO79: 76.011 | AP79: 0.141 | AQ79: 231 | AR79: 9.457 | AS79: 0.144 | AT79: 0 | AU79: 0 | AV79: 0 | AW79: 225 | AX79: 6.385 | AY79: 0.028 | AZ79: 234 | BA79: 0.428 | BB79: 0.02 | BC79: 235 | BD79: 1.457 | BE79: 0.018 | BF79: 218 | BG79: 6.411 | BH79: 0.075 | BI79: 227 | BJ79: 21.954 | BK79: 0.147 | BL79: 228 | BM79: 3.936 | BN79: 0.031 | BO79: 235 | BP79: 0.497 | BQ79: 0.012 | BR79: 190 | BS79: 77.067 | BT79: 0.102 | BU79: 230 | BV79: 0.495 | BW79: 0.008 | BX79: 228 | BY79: 0.929 | BZ79: 0.028 | CA79: 220 | CB79: 0.072 | CC79: 0.006 | CD79: 214 | CE79: 8.38 | CF79: 0.08 | CG79: 225 | CH79: 16.408 | CI79: 0.04 | CJ79: 0 | CK79: 0 | CL79: 0 | CM79: 0 | CN79: 0 | CO79: 0 | CP79: 0 | CQ79: 0 | CR79: 0 | CS79: 0 | CT79: 0 | CU79: 0 | CV79: 0 | CW79: 0 | CX79: 0 | CY79: 224 | CZ79: 2.343 | DA79: 0.061 | DB79: 212 | DC79: 8.448 | DD79: 0.094 | DE79: 224 | DF79: 0.454 | DG79: 0.006
A80: 2009.208 | B80: 3 | C80: 2009 | D80: 228 | E80: 46.457 | F80: 0.232 | G80: 275 | H80: 185.426 | I80: 0.701 | J80: 278 | K80: 18.522 | L80: 0.078 | M80: 292 | N80: 18.508 | O80: 0.084 | P80: 128 | Q80: 495.196 | R80: 6.419 | S80: 156 | T80: 6.655 | U80: 0.124 | V80: 302 | W80: 4.168 | X80: 0.05 | Y80: 312 | Z80: 3.17 | AA80: 0.047 | AB80: 296 | AC80: 3.568 | AD80: 0.061 | AE80: 232 | AF80: 9.099 | AG80: 0.185 | AH80: 0 | AI80: 0 | AJ80: 0 | AK80: 180 | AL80: 0.32 | AM80: 0.025 | AN80: 309 | AO80: 75.817 | AP80: 0.118 | AQ80: 311 | AR80: 9.266 | AS80: 0.135 | AT80: 0 | AU80: 0 | AV80: 0 | AW80: 304 | AX80: 6.408 | AY80: 0.029 | AZ80: 303 | BA80: 0.436 | BB80: 0.021 | BC80: 280 | BD80: 1.465 | BE80: 0.019 | BF80: 262 | BG80: 6.515 | BH80: 0.087 | BI80: 301 | BJ80: 21.998 | BK80: 0.137 | BL80: 304 | BM80: 3.944 | BN80: 0.031 | BO80: 302 | BP80: 0.498 | BQ80: 0.014 | BR80: 286 | BS80: 77.143 | BT80: 0.094 | BU80: 296 | BV80: 0.505 | BW80: 0.009 | BX80: 294 | BY80: 0.953 | BZ80: 0.03 | CA80: 308 | CB80: 0.074 | CC80: 0.006 | CD80: 301 | CE80: 8.36 | CF80: 0.082 | CG80: 304 | CH80: 16.389 | CI80: 0.043 | CJ80: 0 | CK80: 0 | CL80: 0 | CM80: 0 | CN80: 0 | CO80: 0 | CP80: 0 | CQ80: 0 | CR80: 0 | CS80: 0 | CT80: 0 | CU80: 0 | CV80: 0 | CW80: 0 | CX80: 0 | CY80: 268 | CZ80: 2.401 | DA80: 0.074 | DB80: 265 | DC80: 8.575 | DD80: 0.107 | DE80: 308 | DF80: 0.454 | DG80: 0.006
A81: 2009.292 | B81: 4 | C81: 2009 | D81: 188 | E81: 46.999 | F81: 0.226 | G81: 217 | H81: 186.305 | I81: 0.758 | J81: 221 | K81: 18.575 | L81: 0.08 | M81: 227 | N81: 18.635 | O81: 0.071 | P81: 102 | Q81: 502.045 | R81: 7.649 | S81: 138 | T81: 6.747 | U81: 0.138 | V81: 219 | W81: 4.171 | X81: 0.046 | Y81: 230 | Z81: 3.17 | AA81: 0.04 | AB81: 218 | AC81: 3.67 | AD81: 0.058 | AE81: 189 | AF81: 9.57 | AG81: 0.241 | AH81: 0 | AI81: 0 | AJ81: 0 | AK81: 133 | AL81: 0.398 | AM81: 0.03 | AN81: 231 | AO81: 75.715 | AP81: 0.119 | AQ81: 232 | AR81: 9.118 | AS81: 0.12 | AT81: 0 | AU81: 0 | AV81: 0 | AW81: 229 | AX81: 6.437 | AY81: 0.028 | AZ81: 225 | BA81: 0.441 | BB81: 0.02 | BC81: 225 | BD81: 1.473 | BE81: 0.018 | BF81: 214 | BG81: 6.626 | BH81: 0.078 | BI81: 227 | BJ81: 22.066 | BK81: 0.119 | BL81: 231 | BM81: 3.955 | BN81: 0.029 | BO81: 230 | BP81: 0.5 | BQ81: 0.013 | BR81: 227 | BS81: 77.194 | BT81: 0.08 | BU81: 226 | BV81: 0.51 | BW81: 0.008 | BX81: 226 | BY81: 0.975 | BZ81: 0.028 | CA81: 228 | CB81: 0.075 | CC81: 0.006 | CD81: 226 | CE81: 8.353 | CF81: 0.075 | CG81: 228 | CH81: 16.376 | CI81: 0.04 | CJ81: 0 | CK81: 0 | CL81: 0 | CM81: 0 | CN81: 0 | CO81: 0 | CP81: 0 | CQ81: 0 | CR81: 0 | CS81: 0 | CT81: 0 | CU81: 0 | CV81: 0 | CW81: 0 | CX81: 0 | CY81: 222 | CZ81: 2.479 | DA81: 0.067 | DB81: 219 | DC81: 8.692 | DD81: 0.094 | DE81: 230 | DF81: 0.453 | DG81: 0.006
A82: 2009.375 | B82: 5 | C82: 2009 | D82: 30 | E82: 47.868 | F82: 0.17 | G82: 25 | H82: 187.956 | I82: 0.517 | J82: 36 | K82: 18.719 | L82: 0.082 | M82: 32 | N82: 18.783 | O82: 0.05 | P82: 0 | Q82: 0 | R82: 0 | S82: 33 | T82: 6.997 | U82: 0.162 | V82: 36 | W82: 4.178 | X82: 0.042 | Y82: 36 | Z82: 3.179 | AA82: 0.045 | AB82: 24 | AC82: 3.837 | AD82: 0.052 | AE82: 27 | AF82: 10.798 | AG82: 0.188 | AH82: 0 | AI82: 0 | AJ82: 0 | AK82: 13 | AL82: 0.553 | AM82: 0.025 | AN82: 37 | AO82: 75.682 | AP82: 0.107 | AQ82: 36 | AR82: 8.938 | AS82: 0.077 | AT82: 0 | AU82: 0 | AV82: 0 | AW82: 36 | AX82: 6.481 | AY82: 0.026 | AZ82: 36 | BA82: 0.446 | BB82: 0.021 | BC82: 37 | BD82: 1.481 | BE82: 0.019 | BF82: 21 | BG82: 6.811 | BH82: 0.083 | BI82: 36 | BJ82: 22.114 | BK82: 0.121 | BL82: 35 | BM82: 3.974 | BN82: 0.028 | BO82: 36 | BP82: 0.5 | BQ82: 0.011 | BR82: 35 | BS82: 77.312 | BT82: 0.066 | BU82: 36 | BV82: 0.52 | BW82: 0.006 | BX82: 34 | BY82: 1 | BZ82: 0.024 | CA82: 36 | CB82: 0.076 | CC82: 0.006 | CD82: 37 | CE82: 8.371 | CF82: 0.05 | CG82: 36 | CH82: 16.38 | CI82: 0.036 | CJ82: 0 | CK82: 0 | CL82: 0 | CM82: 0 | CN82: 0 | CO82: 0 | CP82: 0 | CQ82: 0 | CR82: 0 | CS82: 0 | CT82: 0 | CU82: 0 | CV82: 0 | CW82: 0 | CX82: 0 | CY82: 37 | CZ82: 2.582 | DA82: 0.078 | DB82: 16 | DC82: 8.865 | DD82: 0.058 | DE82: 32 | DF82: 0.453 | DG82: 0.006
A83: 2009.458 | B83: 6 | C83: 2009 | D83: 178 | E83: 48.049 | F83: 0.282 | G83: 212 | H83: 188.38 | I83: 0.75 | J83: 232 | K83: 18.76 | L83: 0.084 | M83: 281 | N83: 18.847 | O83: 0.066 | P83: 82 | Q83: 526.667 | R83: 10.539 | S83: 136 | T83: 6.949 | U83: 0.154 | V83: 259 | W83: 4.18 | X83: 0.039 | Y83: 287 | Z83: 3.178 | AA83: 0.041 | AB83: 265 | AC83: 3.933 | AD83: 0.066 | AE83: 163 | AF83: 10.903 | AG83: 0.352 | AH83: 0 | AI83: 0 | AJ83: 0 | AK83: 64 | AL83: 0.552 | AM83: 0.035 | AN83: 281 | AO83: 75.675 | AP83: 0.108 | AQ83: 160 | AR83: 8.894 | AS83: 0.111 | AT83: 0 | AU83: 0 | AV83: 0 | AW83: 274 | AX83: 6.493 | AY83: 0.026 | AZ83: 261 | BA83: 0.457 | BB83: 0.018 | BC83: 281 | BD83: 1.482 | BE83: 0.018 | BF83: 180 | BG83: 6.848 | BH83: 0.09 | BI83: 281 | BJ83: 22.155 | BK83: 0.12 | BL83: 284 | BM83: 3.98 | BN83: 0.035 | BO83: 283 | BP83: 0.5 | BQ83: 0.013 | BR83: 263 | BS83: 77.33 | BT83: 0.071 | BU83: 264 | BV83: 0.525 | BW83: 0.008 | BX83: 283 | BY83: 1.006 | BZ83: 0.027 | CA83: 266 | CB83: 0.074 | CC83: 0.007 | CD83: 286 | CE83: 8.344 | CF83: 0.073 | CG83: 286 | CH83: 16.377 | CI83: 0.038 | CJ83: 0 | CK83: 0 | CL83: 0 | CM83: 0 | CN83: 0 | CO83: 0 | CP83: 0 | CQ83: 0 | CR83: 0 | CS83: 0 | CT83: 0 | CU83: 0 | CV83: 0 | CW83: 0 | CX83: 0 | CY83: 221 | CZ83: 2.613 | DA83: 0.069 | DB83: 178 | DC83: 8.942 | DD83: 0.101 | DE83: 161 | DF83: 0.451 | DG83: 0.005
A84: 2009.542 | B84: 7 | C84: 2009 | D84: 168 | E84: 48.304 | F84: 0.289 | G84: 173 | H84: 188.712 | I84: 0.701 | J84: 166 | K84: 18.802 | L84: 0.084 | M84: 172 | N84: 18.902 | O84: 0.064 | P84: 140 | Q84: 530.347 | R84: 8.03 | S84: 168 | T84: 6.849 | U84: 0.172 | V84: 174 | W84: 4.179 | X84: 0.04 | Y84: 174 | Z84: 3.186 | AA84: 0.045 | AB84: 174 | AC84: 3.997 | AD84: 0.072 | AE84: 158 | AF84: 11.201 | AG84: 0.34 | AH84: 0 | AI84: 0 | AJ84: 0 | AK84: 137 | AL84: 0.659 | AM84: 0.03 | AN84: 169 | AO84: 75.633 | AP84: 0.109 | AQ84: 171 | AR84: 8.831 | AS84: 0.101 | AT84: 0 | AU84: 0 | AV84: 0 | AW84: 170 | AX84: 6.511 | AY84: 0.029 | AZ84: 171 | BA84: 0.459 | BB84: 0.023 | BC84: 175 | BD84: 1.479 | BE84: 0.018 | BF84: 158 | BG84: 6.903 | BH84: 0.083 | BI84: 169 | BJ84: 22.211 | BK84: 0.126 | BL84: 174 | BM84: 3.985 | BN84: 0.03 | BO84: 176 | BP84: 0.502 | BQ84: 0.016 | BR84: 166 | BS84: 77.379 | BT84: 0.079 | BU84: 173 | BV84: 0.528 | BW84: 0.008 | BX84: 173 | BY84: 1.013 | BZ84: 0.031 | CA84: 164 | CB84: 0.077 | CC84: 0.007 | CD84: 171 | CE84: 8.345 | CF84: 0.063 | CG84: 170 | CH84: 16.377 | CI84: 0.042 | CJ84: 0 | CK84: 0 | CL84: 0 | CM84: 0 | CN84: 0 | CO84: 0 | CP84: 0 | CQ84: 0 | CR84: 0 | CS84: 0 | CT84: 0 | CU84: 0 | CV84: 0 | CW84: 0 | CX84: 0 | CY84: 168 | CZ84: 2.624 | DA84: 0.075 | DB84: 168 | DC84: 9.007 | DD84: 0.082 | DE84: 174 | DF84: 0.451 | DG84: 0.006
A85: 2009.625 | B85: 8 | C85: 2009 | D85: 256 | E85: 48.805 | F85: 0.231 | G85: 289 | H85: 189.591 | I85: 0.6 | J85: 298 | K85: 18.893 | L85: 0.092 | M85: 292 | N85: 19.006 | O85: 0.067 | P85: 178 | Q85: 529.407 | R85: 5.262 | S85: 246 | T85: 6.778 | U85: 0.17 | V85: 318 | W85: 4.191 | X85: 0.045 | Y85: 321 | Z85: 3.181 | AA85: 0.045 | AB85: 294 | AC85: 4.075 | AD85: 0.064 | AE85: 218 | AF85: 11.632 | AG85: 0.192 | AH85: 0 | AI85: 0 | AJ85: 0 | AK85: 197 | AL85: 0.707 | AM85: 0.017 | AN85: 321 | AO85: 75.6 | AP85: 0.121 | AQ85: 323 | AR85: 8.739 | AS85: 0.108 | AT85: 0 | AU85: 0 | AV85: 0 | AW85: 316 | AX85: 6.537 | AY85: 0.031 | AZ85: 320 | BA85: 0.467 | BB85: 0.023 | BC85: 324 | BD85: 1.487 | BE85: 0.02 | BF85: 268 | BG85: 6.996 | BH85: 0.087 | BI85: 325 | BJ85: 22.259 | BK85: 0.119 | BL85: 320 | BM85: 3.987 | BN85: 0.034 | BO85: 310 | BP85: 0.503 | BQ85: 0.021 | BR85: 308 | BS85: 77.424 | BT85: 0.073 | BU85: 317 | BV85: 0.537 | BW85: 0.009 | BX85: 316 | BY85: 1.027 | BZ85: 0.03 | CA85: 324 | CB85: 0.079 | CC85: 0.008 | CD85: 322 | CE85: 8.345 | CF85: 0.073 | CG85: 322 | CH85: 16.39 | CI85: 0.049 | CJ85: 0 | CK85: 0 | CL85: 0 | CM85: 0 | CN85: 0 | CO85: 0 | CP85: 0 | CQ85: 0 | CR85: 0 | CS85: 0 | CT85: 0 | CU85: 0 | CV85: 0 | CW85: 0 | CX85: 0 | CY85: 295 | CZ85: 2.688 | DA85: 0.068 | DB85: 272 | DC85: 9.088 | DD85: 0.081 | DE85: 327 | DF85: 0.449 | DG85: 0.008
A86: 2009.708 | B86: 9 | C86: 2009 | D86: 218 | E86: 49.295 | F86: 0.232 | G86: 254 | H86: 190.261 | I86: 0.619 | J86: 264 | K86: 18.984 | L86: 0.097 | M86: 220 | N86: 19.096 | O86: 0.061 | P86: 145 | Q86: 525.906 | R86: 5.038 | S86: 186 | T86: 6.569 | U86: 0.138 | V86: 234 | W86: 4.186 | X86: 0.045 | Y86: 299 | Z86: 3.187 | AA86: 0.045 | AB86: 271 | AC86: 4.115 | AD86: 0.062 | AE86: 226 | AF86: 11.796 | AG86: 0.178 | AH86: 0 | AI86: 0 | AJ86: 0 | AK86: 190 | AL86: 0.698 | AM86: 0.023 | AN86: 304 | AO86: 75.556 | AP86: 0.139 | AQ86: 303 | AR86: 8.652 | AS86: 0.115 | AT86: 0 | AU86: 0 | AV86: 0 | AW86: 296 | AX86: 6.557 | AY86: 0.033 | AZ86: 289 | BA86: 0.472 | BB86: 0.028 | BC86: 295 | BD86: 1.495 | BE86: 0.02 | BF86: 256 | BG86: 7.092 | BH86: 0.088 | BI86: 300 | BJ86: 22.296 | BK86: 0.113 | BL86: 305 | BM86: 3.985 | BN86: 0.034 | BO86: 297 | BP86: 0.507 | BQ86: 0.023 | BR86: 280 | BS86: 77.453 | BT86: 0.078 | BU86: 288 | BV86: 0.544 | BW86: 0.009 | BX86: 242 | BY86: 1.037 | BZ86: 0.032 | CA86: 233 | CB86: 0.081 | CC86: 0.008 | CD86: 228 | CE86: 8.349 | CF86: 0.089 | CG86: 236 | CH86: 16.403 | CI86: 0.057 | CJ86: 0 | CK86: 0 | CL86: 0 | CM86: 0 | CN86: 0 | CO86: 0 | CP86: 0 | CQ86: 0 | CR86: 0 | CS86: 0 | CT86: 0 | CU86: 0 | CV86: 0 | CW86: 0 | CX86: 0 | CY86: 260 | CZ86: 2.725 | DA86: 0.079 | DB86: 237 | DC86: 9.18 | DD86: 0.088 | DE86: 306 | DF86: 0.448 | DG86: 0.008
A87: 2009.792 | B87: 10 | C87: 2009 | D87: 236 | E87: 49.639 | F87: 0.236 | G87: 245 | H87: 190.57 | I87: 0.816 | J87: 239 | K87: 19.057 | L87: 0.092 | M87: 249 | N87: 19.156 | O87: 0.082 | P87: 110 | Q87: 523.792 | R87: 5.758 | S87: 196 | T87: 6.52 | U87: 0.139 | V87: 260 | W87: 4.178 | X87: 0.044 | Y87: 259 | Z87: 3.184 | AA87: 0.052 | AB87: 259 | AC87: 4.084 | AD87: 0.061 | AE87: 241 | AF87: 11.674 | AG87: 0.232 | AH87: 0 | AI87: 0 | AJ87: 0 | AK87: 212 | AL87: 0.625 | AM87: 0.039 | AN87: 255 | AO87: 75.568 | AP87: 0.163 | AQ87: 261 | AR87: 8.615 | AS87: 0.131 | AT87: 0 | AU87: 0 | AV87: 0 | AW87: 252 | AX87: 6.577 | AY87: 0.035 | AZ87: 254 | BA87: 0.476 | BB87: 0.03 | BC87: 263 | BD87: 1.494 | BE87: 0.023 | BF87: 248 | BG87: 7.165 | BH87: 0.1 | BI87: 256 | BJ87: 22.343 | BK87: 0.128 | BL87: 265 | BM87: 3.99 | BN87: 0.037 | BO87: 259 | BP87: 0.51 | BQ87: 0.025 | BR87: 258 | BS87: 77.462 | BT87: 0.084 | BU87: 258 | BV87: 0.548 | BW87: 0.01 | BX87: 253 | BY87: 1.049 | BZ87: 0.037 | CA87: 252 | CB87: 0.081 | CC87: 0.01 | CD87: 263 | CE87: 8.361 | CF87: 0.083 | CG87: 254 | CH87: 16.401 | CI87: 0.066 | CJ87: 0 | CK87: 0 | CL87: 0 | CM87: 0 | CN87: 0 | CO87: 0 | CP87: 0 | CQ87: 0 | CR87: 0 | CS87: 0 | CT87: 0 | CU87: 0 | CV87: 0 | CW87: 0 | CX87: 0 | CY87: 258 | CZ87: 2.755 | DA87: 0.075 | DB87: 241 | DC87: 9.255 | DD87: 0.093 | DE87: 259 | DF87: 0.448 | DG87: 0.009
A88: 2009.875 | B88: 11 | C88: 2009 | D88: 233 | E88: 50.138 | F88: 0.201 | G88: 280 | H88: 191.987 | I88: 0.644 | J88: 297 | K88: 19.038 | L88: 0.088 | M88: 293 | N88: 19.26 | O88: 0.064 | P88: 75 | Q88: 522.047 | R88: 4.973 | S88: 126 | T88: 6.557 | U88: 0.135 | V88: 120 | W88: 4.18 | X88: 0.047 | Y88: 307 | Z88: 3.168 | AA88: 0.043 | AB88: 307 | AC88: 4.005 | AD88: 0.081 | AE88: 265 | AF88: 11.233 | AG88: 0.381 | AH88: 0 | AI88: 0 | AJ88: 0 | AK88: 221 | AL88: 0.488 | AM88: 0.038 | AN88: 311 | AO88: 75.728 | AP88: 0.142 | AQ88: 315 | AR88: 8.419 | AS88: 0.141 | AT88: 0 | AU88: 0 | AV88: 0 | AW88: 300 | AX88: 6.626 | AY88: 0.033 | AZ88: 312 | BA88: 0.479 | BB88: 0.028 | BC88: 305 | BD88: 1.51 | BE88: 0.021 | BF88: 267 | BG88: 7.272 | BH88: 0.089 | BI88: 313 | BJ88: 22.433 | BK88: 0.12 | BL88: 314 | BM88: 3.983 | BN88: 0.039 | BO88: 309 | BP88: 0.517 | BQ88: 0.026 | BR88: 310 | BS88: 77.575 | BT88: 0.082 | BU88: 298 | BV88: 0.558 | BW88: 0.013 | BX88: 314 | BY88: 1.058 | BZ88: 0.034 | CA88: 301 | CB88: 0.08 | CC88: 0.009 | CD88: 313 | CE88: 8.393 | CF88: 0.07 | CG88: 307 | CH88: 16.413 | CI88: 0.061 | CJ88: 0 | CK88: 0 | CL88: 0 | CM88: 0 | CN88: 0 | CO88: 0 | CP88: 0 | CQ88: 0 | CR88: 0 | CS88: 0 | CT88: 0 | CU88: 0 | CV88: 0 | CW88: 0 | CX88: 0 | CY88: 282 | CZ88: 2.836 | DA88: 0.072 | DB88: 242 | DC88: 9.331 | DD88: 0.081 | DE88: 298 | DF88: 0.451 | DG88: 0.009
A89: 2009.958 | B89: 12 | C89: 2009 | D89: 189 | E89: 50.186 | F89: 0.214 | G89: 274 | H89: 191.37 | I89: 0.748 | J89: 281 | K89: 18.932 | L89: 0.082 | M89: 282 | N89: 19.242 | O89: 0.067 | P89: 196 | Q89: 506.223 | R89: 6.103 | S89: 233 | T89: 6.514 | U89: 0.132 | V89: 0 | W89: 0 | X89: 0 | Y89: 299 | Z89: 3.175 | AA89: 0.048 | AB89: 270 | AC89: 3.825 | AD89: 0.096 | AE89: 277 | AF89: 9.971 | AG89: 0.367 | AH89: 0 | AI89: 0 | AJ89: 0 | AK89: 267 | AL89: 0.37 | AM89: 0.032 | AN89: 296 | AO89: 75.665 | AP89: 0.136 | AQ89: 295 | AR89: 8.248 | AS89: 0.148 | AT89: 0 | AU89: 0 | AV89: 0 | AW89: 292 | AX89: 6.636 | AY89: 0.032 | AZ89: 291 | BA89: 0.472 | BB89: 0.024 | BC89: 295 | BD89: 1.51 | BE89: 0.021 | BF89: 278 | BG89: 7.3 | BH89: 0.083 | BI89: 294 | BJ89: 22.436 | BK89: 0.135 | BL89: 300 | BM89: 3.988 | BN89: 0.033 | BO89: 293 | BP89: 0.518 | BQ89: 0.021 | BR89: 281 | BS89: 77.543 | BT89: 0.068 | BU89: 287 | BV89: 0.562 | BW89: 0.011 | BX89: 291 | BY89: 1.047 | BZ89: 0.034 | CA89: 296 | CB89: 0.078 | CC89: 0.006 | CD89: 297 | CE89: 8.387 | CF89: 0.072 | CG89: 292 | CH89: 16.415 | CI89: 0.056 | CJ89: 0 | CK89: 0 | CL89: 0 | CM89: 0 | CN89: 0 | CO89: 0 | CP89: 0 | CQ89: 0 | CR89: 0 | CS89: 0 | CT89: 0 | CU89: 0 | CV89: 0 | CW89: 0 | CX89: 0 | CY89: 270 | CZ89: 2.815 | DA89: 0.084 | DB89: 267 | DC89: 9.363 | DD89: 0.074 | DE89: 298 | DF89: 0.45 | DG89: 0.006
A90: 2010.042 | B90: 1 | C90: 2010 | D90: 198 | E90: 50.365 | F90: 0.291 | G90: 215 | H90: 191.041 | I90: 0.747 | J90: 220 | K90: 18.877 | L90: 0.09 | M90: 222 | N90: 19.166 | O90: 0.089 | P90: 149 | Q90: 497.88 | R90: 6.387 | S90: 160 | T90: 6.48 | U90: 0.117 | V90: 0 | W90: 0 | X90: 0 | Y90: 230 | Z90: 3.188 | AA90: 0.048 | AB90: 228 | AC90: 3.733 | AD90: 0.063 | AE90: 227 | AF90: 9.312 | AG90: 0.204 | AH90: 0 | AI90: 0 | AJ90: 0 | AK90: 198 | AL90: 0.297 | AM90: 0.017 | AN90: 189 | AO90: 75.59 | AP90: 0.146 | AQ90: 232 | AR90: 8.202 | AS90: 0.109 | AT90: 0 | AU90: 0 | AV90: 0 | AW90: 217 | AX90: 6.652 | AY90: 0.032 | AZ90: 231 | BA90: 0.472 | BB90: 0.024 | BC90: 225 | BD90: 1.511 | BE90: 0.022 | BF90: 211 | BG90: 7.355 | BH90: 0.092 | BI90: 234 | BJ90: 22.375 | BK90: 0.158 | BL90: 227 | BM90: 3.985 | BN90: 0.035 | BO90: 231 | BP90: 0.517 | BQ90: 0.023 | BR90: 111 | BS90: 77.542 | BT90: 0.094 | BU90: 230 | BV90: 0.56 | BW90: 0.01 | BX90: 233 | BY90: 1.052 | BZ90: 0.037 | CA90: 227 | CB90: 0.078 | CC90: 0.007 | CD90: 227 | CE90: 8.384 | CF90: 0.074 | CG90: 217 | CH90: 16.427 | CI90: 0.059 | CJ90: 0 | CK90: 0 | CL90: 0 | CM90: 0 | CN90: 0 | CO90: 0 | CP90: 0 | CQ90: 0 | CR90: 0 | CS90: 0 | CT90: 0 | CU90: 0 | CV90: 0 | CW90: 0 | CX90: 0 | CY90: 228 | CZ90: 2.796 | DA90: 0.07 | DB90: 212 | DC90: 9.42 | DD90: 0.086 | DE90: 232 | DF90: 0.449 | DG90: 0.006
A91: 2010.125 | B91: 2 | C91: 2010 | D91: 13 | E91: 51.201 | F91: 0.18 | G91: 16 | H91: 191.856 | I91: 0.879 | J91: 13 | K91: 18.839 | L91: 0.084 | M91: 15 | N91: 19.237 | O91: 0.071 | P91: 0 | Q91: 0 | R91: 0 | S91: 0 | T91: 0 | U91: 0 | V91: 0 | W91: 0 | X91: 0 | Y91: 16 | Z91: 3.221 | AA91: 0.039 | AB91: 16 | AC91: 3.659 | AD91: 0.058 | AE91: 16 | AF91: 9.05 | AG91: 0.2 | AH91: 0 | AI91: 0 | AJ91: 0 | AK91: 12 | AL91: 0.294 | AM91: 0.011 | AN91: 7 | AO91: 75.588 | AP91: 0.053 | AQ91: 16 | AR91: 7.966 | AS91: 0.075 | AT91: 0 | AU91: 0 | AV91: 0 | AW91: 15 | AX91: 6.718 | AY91: 0.025 | AZ91: 16 | BA91: 0.471 | BB91: 0.022 | BC91: 16 | BD91: 1.526 | BE91: 0.013 | BF91: 15 | BG91: 7.568 | BH91: 0.054 | BI91: 16 | BJ91: 22.439 | BK91: 0.124 | BL91: 16 | BM91: 4.025 | BN91: 0.034 | BO91: 16 | BP91: 0.517 | BQ91: 0.023 | BR91: 14 | BS91: 77.712 | BT91: 0.144 | BU91: 16 | BV91: 0.571 | BW91: 0.011 | BX91: 16 | BY91: 1.057 | BZ91: 0.034 | CA91: 15 | CB91: 0.079 | CC91: 0.007 | CD91: 16 | CE91: 8.432 | CF91: 0.085 | CG91: 13 | CH91: 16.471 | CI91: 0.04 | CJ91: 0 | CK91: 0 | CL91: 0 | CM91: 0 | CN91: 0 | CO91: 0 | CP91: 0 | CQ91: 0 | CR91: 0 | CS91: 0 | CT91: 0 | CU91: 0 | CV91: 0 | CW91: 0 | CX91: 0 | CY91: 16 | CZ91: 2.869 | DA91: 0.08 | DB91: 15 | DC91: 9.58 | DD91: 0.078 | DE91: 16 | DF91: 0.446 | DG91: 0.007
A92: 2010.208 | B92: 3 | C92: 2010 | D92: 0 | E92: 0 | F92: 0 | G92: 0 | H92: 0 | I92: 0 | J92: 0 | K92: 0 | L92: 0 | M92: 0 | N92: 0 | O92: 0 | P92: 0 | Q92: 0 | R92: 0 | S92: 0 | T92: 0 | U92: 0 | V92: 0 | W92: 0 | X92: 0 | Y92: 0 | Z92: 0 | AA92: 0 | AB92: 0 | AC92: 0 | AD92: 0 | AE92: 0 | AF92: 0 | AG92: 0 | AH92: 0 | AI92: 0 | AJ92: 0 | AK92: 0 | AL92: 0 | AM92: 0 | AN92: 0 | AO92: 0 | AP92: 0 | AQ92: 0 | AR92: 0 | AS92: 0 | AT92: 0 | AU92: 0 | AV92: 0 | AW92: 0 | AX92: 0 | AY92: 0 | AZ92: 0 | BA92: 0 | BB92: 0 | BC92: 0 | BD92: 0 | BE92: 0 | BF92: 0 | BG92: 0 | BH92: 0 | BI92: 0 | BJ92: 0 | BK92: 0 | BL92: 0 | BM92: 0 | BN92: 0 | BO92: 0 | BP92: 0 | BQ92: 0 | BR92: 0 | BS92: 0 | BT92: 0 | BU92: 0 | BV92: 0 | BW92: 0 | BX92: 0 | BY92: 0 | BZ92: 0 | CA92: 0 | CB92: 0 | CC92: 0 | CD92: 0 | CE92: 0 | CF92: 0 | CG92: 0 | CH92: 0 | CI92: 0 | CJ92: 0 | CK92: 0 | CL92: 0 | CM92: 0 | CN92: 0 | CO92: 0 | CP92: 0 | CQ92: 0 | CR92: 0 | CS92: 0 | CT92: 0 | CU92: 0 | CV92: 0 | CW92: 0 | CX92: 0 | CY92: 0 | CZ92: 0 | DA92: 0 | DB92: 0 | DC92: 0 | DD92: 0 | DE92: 0 | DF92: 0 | DG92: 0
A93: 2010.292 | B93: 4 | C93: 2010 | D93: 0 | E93: 0 | F93: 0 | G93: 0 | H93: 0 | I93: 0 | J93: 0 | K93: 0 | L93: 0 | M93: 0 | N93: 0 | O93: 0 | P93: 0 | Q93: 0 | R93: 0 | S93: 0 | T93: 0 | U93: 0 | V93: 0 | W93: 0 | X93: 0 | Y93: 0 | Z93: 0 | AA93: 0 | AB93: 0 | AC93: 0 | AD93: 0 | AE93: 0 | AF93: 0 | AG93: 0 | AH93: 0 | AI93: 0 | AJ93: 0 | AK93: 0 | AL93: 0 | AM93: 0 | AN93: 0 | AO93: 0 | AP93: 0 | AQ93: 0 | AR93: 0 | AS93: 0 | AT93: 0 | AU93: 0 | AV93: 0 | AW93: 0 | AX93: 0 | AY93: 0 | AZ93: 0 | BA93: 0 | BB93: 0 | BC93: 0 | BD93: 0 | BE93: 0 | BF93: 0 | BG93: 0 | BH93: 0 | BI93: 0 | BJ93: 0 | BK93: 0 | BL93: 0 | BM93: 0 | BN93: 0 | BO93: 0 | BP93: 0 | BQ93: 0 | BR93: 0 | BS93: 0 | BT93: 0 | BU93: 0 | BV93: 0 | BW93: 0 | BX93: 0 | BY93: 0 | BZ93: 0 | CA93: 0 | CB93: 0 | CC93: 0 | CD93: 0 | CE93: 0 | CF93: 0 | CG93: 0 | CH93: 0 | CI93: 0 | CJ93: 0 | CK93: 0 | CL93: 0 | CM93: 0 | CN93: 0 | CO93: 0 | CP93: 0 | CQ93: 0 | CR93: 0 | CS93: 0 | CT93: 0 | CU93: 0 | CV93: 0 | CW93: 0 | CX93: 0 | CY93: 0 | CZ93: 0 | DA93: 0 | DB93: 0 | DC93: 0 | DD93: 0 | DE93: 0 | DF93: 0 | DG93: 0
A94: 2010.375 | B94: 5 | C94: 2010 | D94: 72 | E94: 52.838 | F94: 0.224 | G94: 67 | H94: 194.694 | I94: 0.609 | J94: 48 | K94: 19.145 | L94: 0.131 | M94: 61 | N94: 19.695 | O94: 0.095 | P94: 21 | Q94: 554.861 | R94: 9.914 | S94: 67 | T94: 7.554 | U94: 0.165 | V94: 60 | W94: 4.121 | X94: 0.015 | Y94: 105 | Z94: 3.192 | AA94: 0.056 | AB94: 105 | AC94: 3.959 | AD94: 0.076 | AE94: 48 | AF94: 11.599 | AG94: 0.24 | AH94: 0 | AI94: 0 | AJ94: 0 | AK94: 25 | AL94: 0.575 | AM94: 0.02 | AN94: 49 | AO94: 75.277 | AP94: 0.118 | AQ94: 48 | AR94: 7.603 | AS94: 0.103 | AT94: 0 | AU94: 0 | AV94: 0 | AW94: 154 | AX94: 6.777 | AY94: 0.033 | AZ94: 50 | BA94: 0.502 | BB94: 0.019 | BC94: 95 | BD94: 1.546 | BE94: 0.02 | BF94: 100 | BG94: 7.902 | BH94: 0.074 | BI94: 155 | BJ94: 22.552 | BK94: 0.148 | BL94: 157 | BM94: 4.023 | BN94: 0.033 | BO94: 103 | BP94: 0.519 | BQ94: 0.014 | BR94: 131 | BS94: 77.804 | BT94: 0.097 | BU94: 71 | BV94: 0.592 | BW94: 0.013 | BX94: 48 | BY94: 1.116 | BZ94: 0.028 | CA94: 0 | CB94: 0 | CC94: 0 | CD94: 73 | CE94: 8.389 | CF94: 0.046 | CG94: 59 | CH94: 16.447 | CI94: 0.04 | CJ94: 0 | CK94: 0 | CL94: 0 | CM94: 0 | CN94: 0 | CO94: 0 | CP94: 0 | CQ94: 0 | CR94: 0 | CS94: 0 | CT94: 0 | CU94: 0 | CV94: 0 | CW94: 0 | CX94: 0 | CY94: 157 | CZ94: 3.065 | DA94: 0.117 | DB94: 100 | DC94: 9.949 | DD94: 0.116 | DE94: 50 | DF94: 0.444 | DG94: 0.006
A95: 2010.458 | B95: 6 | C95: 2010 | D95: 250 | E95: 52.871 | F95: 0.265 | G95: 262 | H95: 195.095 | I95: 0.816 | J95: 281 | K95: 19.216 | L95: 0.119 | M95: 284 | N95: 19.719 | O95: 0.088 | P95: 182 | Q95: 526.908 | R95: 11.974 | S95: 263 | T95: 7.111 | U95: 0.219 | V95: 278 | W95: 4.107 | X95: 0.016 | Y95: 288 | Z95: 3.193 | AA95: 0.049 | AB95: 277 | AC95: 4.012 | AD95: 0.067 | AE95: 257 | AF95: 11.615 | AG95: 0.427 | AH95: 0 | AI95: 0 | AJ95: 0 | AK95: 154 | AL95: 0.582 | AM95: 0.026 | AN95: 284 | AO95: 75.257 | AP95: 0.125 | AQ95: 287 | AR95: 7.558 | AS95: 0.119 | AT95: 0 | AU95: 0 | AV95: 0 | AW95: 286 | AX95: 6.797 | AY95: 0.029 | AZ95: 280 | BA95: 0.498 | BB95: 0.021 | BC95: 278 | BD95: 1.538 | BE95: 0.022 | BF95: 249 | BG95: 7.913 | BH95: 0.063 | BI95: 288 | BJ95: 22.63 | BK95: 0.125 | BL95: 292 | BM95: 4.029 | BN95: 0.031 | BO95: 290 | BP95: 0.524 | BQ95: 0.015 | BR95: 253 | BS95: 77.879 | BT95: 0.08 | BU95: 276 | BV95: 0.597 | BW95: 0.014 | BX95: 263 | BY95: 1.131 | BZ95: 0.031 | CA95: 275 | CB95: 0.082 | CC95: 0.007 | CD95: 288 | CE95: 8.375 | CF95: 0.053 | CG95: 288 | CH95: 16.446 | CI95: 0.036 | CJ95: 0 | CK95: 0 | CL95: 0 | CM95: 0 | CN95: 0 | CO95: 0 | CP95: 0 | CQ95: 0 | CR95: 0 | CS95: 0 | CT95: 0 | CU95: 0 | CV95: 0 | CW95: 0 | CX95: 0 | CY95: 274 | CZ95: 3.149 | DA95: 0.109 | DB95: 252 | DC95: 9.987 | DD95: 0.094 | DE95: 285 | DF95: 0.444 | DG95: 0.006
A96: 2010.542 | B96: 7 | C96: 2010 | D96: 74 | E96: 53.39 | F96: 0.224 | G96: 82 | H96: 196.126 | I96: 0.683 | J96: 79 | K96: 19.324 | L96: 0.11 | M96: 81 | N96: 19.726 | O96: 0.083 | P96: 64 | Q96: 527.052 | R96: 6.836 | S96: 79 | T96: 7.122 | U96: 0.147 | V96: 88 | W96: 4.101 | X96: 0.013 | Y96: 89 | Z96: 3.199 | AA96: 0.048 | AB96: 81 | AC96: 4.131 | AD96: 0.064 | AE96: 69 | AF96: 12.385 | AG96: 0.373 | AH96: 0 | AI96: 0 | AJ96: 0 | AK96: 36 | AL96: 0.693 | AM96: 0.018 | AN96: 87 | AO96: 75.213 | AP96: 0.126 | AQ96: 88 | AR96: 7.45 | AS96: 0.114 | AT96: 0 | AU96: 0 | AV96: 0 | AW96: 80 | AX96: 6.823 | AY96: 0.026 | AZ96: 86 | BA96: 0.5 | BB96: 0.021 | BC96: 80 | BD96: 1.538 | BE96: 0.024 | BF96: 78 | BG96: 8.019 | BH96: 0.05 | BI96: 82 | BJ96: 22.704 | BK96: 0.123 | BL96: 86 | BM96: 4.028 | BN96: 0.032 | BO96: 90 | BP96: 0.528 | BQ96: 0.015 | BR96: 70 | BS96: 77.894 | BT96: 0.074 | BU96: 84 | BV96: 0.608 | BW96: 0.012 | BX96: 90 | BY96: 1.154 | BZ96: 0.029 | CA96: 87 | CB96: 0.082 | CC96: 0.006 | CD96: 87 | CE96: 8.357 | CF96: 0.051 | CG96: 91 | CH96: 16.422 | CI96: 0.031 | CJ96: 88 | CK96: 0.181 | CL96: 0.017 | CM96: 0 | CN96: 0 | CO96: 0 | CP96: 0 | CQ96: 0 | CR96: 0 | CS96: 0 | CT96: 0 | CU96: 0 | CV96: 0 | CW96: 0 | CX96: 0 | CY96: 86 | CZ96: 3.26 | DA96: 0.091 | DB96: 85 | DC96: 10.122 | DD96: 0.078 | DE96: 88 | DF96: 0.446 | DG96: 0.007
A97: 2010.625 | B97: 8 | C97: 2010 | D97: 85 | E97: 54.053 | F97: 0.225 | G97: 100 | H97: 197.439 | I97: 0.586 | J97: 111 | K97: 19.447 | L97: 0.107 | M97: 122 | N97: 19.799 | O97: 0.079 | P97: 63 | Q97: 524.267 | R97: 4.468 | S97: 81 | T97: 6.793 | U97: 0.166 | V97: 123 | W97: 4.1 | X97: 0.013 | Y97: 123 | Z97: 3.203 | AA97: 0.051 | AB97: 102 | AC97: 4.285 | AD97: 0.061 | AE97: 93 | AF97: 12.899 | AG97: 0.252 | AH97: 0 | AI97: 0 | AJ97: 0 | AK97: 102 | AL97: 0.754 | AM97: 0.015 | AN97: 123 | AO97: 75.141 | AP97: 0.126 | AQ97: 123 | AR97: 7.342 | AS97: 0.117 | AT97: 0 | AU97: 0 | AV97: 0 | AW97: 114 | AX97: 6.853 | AY97: 0.031 | AZ97: 121 | BA97: 0.508 | BB97: 0.022 | BC97: 122 | BD97: 1.546 | BE97: 0.023 | BF97: 96 | BG97: 8.175 | BH97: 0.059 | BI97: 121 | BJ97: 22.771 | BK97: 0.119 | BL97: 123 | BM97: 4.045 | BN97: 0.032 | BO97: 123 | BP97: 0.529 | BQ97: 0.013 | BR97: 115 | BS97: 77.95 | BT97: 0.073 | BU97: 120 | BV97: 0.62 | BW97: 0.01 | BX97: 122 | BY97: 1.17 | BZ97: 0.027 | CA97: 117 | CB97: 0.082 | CC97: 0.006 | CD97: 124 | CE97: 8.359 | CF97: 0.048 | CG97: 118 | CH97: 16.415 | CI97: 0.034 | CJ97: 117 | CK97: 0.181 | CL97: 0.019 | CM97: 0 | CN97: 0 | CO97: 0 | CP97: 0 | CQ97: 0 | CR97: 0 | CS97: 0 | CT97: 0 | CU97: 0 | CV97: 0 | CW97: 0 | CX97: 0 | CY97: 112 | CZ97: 3.37 | DA97: 0.095 | DB97: 108 | DC97: 10.265 | DD97: 0.096 | DE97: 123 | DF97: 0.445 | DG97: 0.006
A98: 2010.708 | B98: 9 | C98: 2010 | D98: 258 | E98: 54.463 | F98: 0.22 | G98: 280 | H98: 197.916 | I98: 0.659 | J98: 286 | K98: 19.482 | L98: 0.096 | M98: 290 | N98: 19.849 | O98: 0.096 | P98: 167 | Q98: 519.475 | R98: 3.624 | S98: 200 | T98: 6.591 | U98: 0.128 | V98: 294 | W98: 4.097 | X98: 0.014 | Y98: 299 | Z98: 3.193 | AA98: 0.051 | AB98: 292 | AC98: 4.322 | AD98: 0.058 | AE98: 280 | AF98: 12.983 | AG98: 0.225 | AH98: 0 | AI98: 0 | AJ98: 0 | AK98: 268 | AL98: 0.718 | AM98: 0.031 | AN98: 287 | AO98: 75.286 | AP98: 0.156 | AQ98: 300 | AR98: 7.268 | AS98: 0.116 | AT98: 0 | AU98: 0 | AV98: 0 | AW98: 292 | AX98: 6.87 | AY98: 0.032 | AZ98: 300 | BA98: 0.514 | BB98: 0.023 | BC98: 297 | BD98: 1.547 | BE98: 0.023 | BF98: 271 | BG98: 8.269 | BH98: 0.057 | BI98: 296 | BJ98: 22.835 | BK98: 0.119 | BL98: 299 | BM98: 4.047 | BN98: 0.032 | BO98: 298 | BP98: 0.527 | BQ98: 0.015 | BR98: 284 | BS98: 78.003 | BT98: 0.083 | BU98: 295 | BV98: 0.621 | BW98: 0.013 | BX98: 300 | BY98: 1.167 | BZ98: 0.032 | CA98: 290 | CB98: 0.082 | CC98: 0.006 | CD98: 301 | CE98: 8.377 | CF98: 0.05 | CG98: 297 | CH98: 16.398 | CI98: 0.036 | CJ98: 278 | CK98: 0.184 | CL98: 0.022 | CM98: 0 | CN98: 0 | CO98: 0 | CP98: 0 | CQ98: 0 | CR98: 0 | CS98: 0 | CT98: 0 | CU98: 0 | CV98: 0 | CW98: 0 | CX98: 0 | CY98: 294 | CZ98: 3.366 | DA98: 0.091 | DB98: 285 | DC98: 10.342 | DD98: 0.088 | DE98: 294 | DF98: 0.446 | DG98: 0.006
A99: 2010.792 | B99: 10 | C99: 2010 | D99: 256 | E99: 54.846 | F99: 0.25 | G99: 269 | H99: 198.577 | I99: 0.61 | J99: 288 | K99: 19.494 | L99: 0.102 | M99: 301 | N99: 19.912 | O99: 0.084 | P99: 149 | Q99: 517.358 | R99: 3.602 | S99: 191 | T99: 6.558 | U99: 0.121 | V99: 294 | W99: 4.09 | X99: 0.014 | Y99: 301 | Z99: 3.191 | AA99: 0.057 | AB99: 298 | AC99: 4.318 | AD99: 0.063 | AE99: 255 | AF99: 12.762 | AG99: 0.209 | AH99: 0 | AI99: 0 | AJ99: 0 | AK99: 236 | AL99: 0.645 | AM99: 0.032 | AN99: 297 | AO99: 75.242 | AP99: 0.153 | AQ99: 304 | AR99: 7.19 | AS99: 0.114 | AT99: 0 | AU99: 0 | AV99: 0 | AW99: 297 | AX99: 6.888 | AY99: 0.031 | AZ99: 289 | BA99: 0.52 | BB99: 0.022 | BC99: 294 | BD99: 1.547 | BE99: 0.023 | BF99: 248 | BG99: 8.366 | BH99: 0.067 | BI99: 300 | BJ99: 22.879 | BK99: 0.112 | BL99: 296 | BM99: 4.054 | BN99: 0.033 | BO99: 303 | BP99: 0.526 | BQ99: 0.015 | BR99: 269 | BS99: 78.019 | BT99: 0.106 | BU99: 293 | BV99: 0.624 | BW99: 0.015 | BX99: 289 | BY99: 1.175 | BZ99: 0.033 | CA99: 298 | CB99: 0.083 | CC99: 0.007 | CD99: 302 | CE99: 8.38 | CF99: 0.052 | CG99: 301 | CH99: 16.378 | CI99: 0.033 | CJ99: 272 | CK99: 0.19 | CL99: 0.019 | CM99: 0 | CN99: 0 | CO99: 0 | CP99: 0 | CQ99: 0 | CR99: 0 | CS99: 0 | CT99: 0 | CU99: 0 | CV99: 0 | CW99: 0 | CX99: 0 | CY99: 288 | CZ99: 3.412 | DA99: 0.096 | DB99: 267 | DC99: 10.411 | DD99: 0.107 | DE99: 301 | DF99: 0.446 | DG99: 0.006
A100: 2010.875 | B100: 11 | C100: 2010 | D100: 249 | E100: 55.171 | F100: 0.187 | G100: 292 | H100: 199.074 | I100: 0.668 | J100: 292 | K100: 19.52 | L100: 0.098 | M100: 312 | N100: 19.962 | O100: 0.095 | P100: 104 | Q100: 515.964 | R100: 3.671 | S100: 140 | T100: 6.651 | U100: 0.125 | V100: 309 | W100: 4.082 | X100: 0.016 | Y100: 305 | Z100: 3.197 | AA100: 0.055 | AB100: 315 | AC100: 4.241 | AD100: 0.073 | AE100: 282 | AF100: 12.182 | AG100: 0.324 | AH100: 0 | AI100: 0 | AJ100: 0 | AK100: 257 | AL100: 0.522 | AM100: 0.038 | AN100: 316 | AO100: 75.141 | AP100: 0.138 | AQ100: 319 | AR100: 7.043 | AS100: 0.119 | AT100: 0 | AU100: 0 | AV100: 0 | AW100: 316 | AX100: 6.908 | AY100: 0.033 | AZ100: 309 | BA100: 0.519 | BB100: 0.024 | BC100: 313 | BD100: 1.556 | BE100: 0.023 | BF100: 263 | BG100: 8.478 | BH100: 0.067 | BI100: 315 | BJ100: 22.952 | BK100: 0.124 | BL100: 312 | BM100: 4.052 | BN100: 0.033 | BO100: 310 | BP100: 0.526 | BQ100: 0.016 | BR100: 303 | BS100: 78.047 | BT100: 0.099 | BU100: 306 | BV100: 0.628 | BW100: 0.015 | BX100: 309 | BY100: 1.182 | BZ100: 0.031 | CA100: 313 | CB100: 0.083 | CC100: 0.006 | CD100: 314 | CE100: 8.368 | CF100: 0.057 | CG100: 313 | CH100: 16.364 | CI100: 0.032 | CJ100: 258 | CK100: 0.188 | CL100: 0.019 | CM100: 0 | CN100: 0 | CO100: 0 | CP100: 0 | CQ100: 0 | CR100: 0 | CS100: 0 | CT100: 0 | CU100: 0 | CV100: 0 | CW100: 0 | CX100: 0 | CY100: 293 | CZ100: 3.471 | DA100: 0.087 | DB100: 282 | DC100: 10.518 | DD100: 0.095 | DE100: 312 | DF100: 0.445 | DG100: 0.007
A101: 2010.958 | B101: 12 | C101: 2010 | D101: 238 | E101: 55.125 | F101: 0.203 | G101: 272 | H101: 199.017 | I101: 0.696 | J101: 283 | K101: 19.497 | L101: 0.098 | M101: 284 | N101: 20.092 | O101: 0.069 | P101: 133 | Q101: 505.276 | R101: 4.4 | S101: 187 | T101: 6.499 | U101: 0.144 | V101: 286 | W101: 4.07 | X101: 0.019 | Y101: 288 | Z101: 3.221 | AA101: 0.05 | AB101: 296 | AC101: 4.089 | AD101: 0.079 | AE101: 274 | AF101: 11.226 | AG101: 0.336 | AH101: 0 | AI101: 0 | AJ101: 0 | AK101: 217 | AL101: 0.388 | AM101: 0.033 | AN101: 289 | AO101: 75.033 | AP101: 0.189 | AQ101: 300 | AR101: 6.936 | AS101: 0.12 | AT101: 0 | AU101: 0 | AV101: 0 | AW101: 297 | AX101: 6.929 | AY101: 0.03 | AZ101: 285 | BA101: 0.526 | BB101: 0.02 | BC101: 289 | BD101: 1.562 | BE101: 0.022 | BF101: 248 | BG101: 8.57 | BH101: 0.056 | BI101: 286 | BJ101: 23.092 | BK101: 0.124 | BL101: 298 | BM101: 4.055 | BN101: 0.033 | BO101: 293 | BP101: 0.537 | BQ101: 0.014 | BR101: 284 | BS101: 78.152 | BT101: 0.083 | BU101: 296 | BV101: 0.62 | BW101: 0.013 | BX101: 281 | BY101: 1.199 | BZ101: 0.029 | CA101: 296 | CB101: 0.08 | CC101: 0.006 | CD101: 295 | CE101: 8.344 | CF101: 0.058 | CG101: 288 | CH101: 16.355 | CI101: 0.039 | CJ101: 290 | CK101: 0.193 | CL101: 0.017 | CM101: 0 | CN101: 0 | CO101: 0 | CP101: 0 | CQ101: 0 | CR101: 0 | CS101: 0 | CT101: 0 | CU101: 0 | CV101: 0 | CW101: 0 | CX101: 0 | CY101: 277 | CZ101: 3.475 | DA101: 0.093 | DB101: 266 | DC101: 10.539 | DD101: 0.1 | DE101: 272 | DF101: 0.448 | DG101: 0.009
A102: 2011.042 | B102: 1 | C102: 2011 | D102: 224 | E102: 55.339 | F102: 0.211 | G102: 270 | H102: 198.983 | I102: 0.696 | J102: 282 | K102: 19.471 | L102: 0.087 | M102: 267 | N102: 20.128 | O102: 0.071 | P102: 102 | Q102: 496.055 | R102: 4.466 | S102: 144 | T102: 6.588 | U102: 0.125 | V102: 288 | W102: 4.057 | X102: 0.016 | Y102: 296 | Z102: 3.225 | AA102: 0.05 | AB102: 291 | AC102: 3.944 | AD102: 0.068 | AE102: 260 | AF102: 10.255 | AG102: 0.246 | AH102: 0 | AI102: 0 | AJ102: 0 | AK102: 191 | AL102: 0.306 | AM102: 0.022 | AN102: 285 | AO102: 74.951 | AP102: 0.151 | AQ102: 295 | AR102: 6.772 | AS102: 0.125 | AT102: 0 | AU102: 0 | AV102: 0 | AW102: 289 | AX102: 6.945 | AY102: 0.03 | AZ102: 295 | BA102: 0.527 | BB102: 0.019 | BC102: 287 | BD102: 1.569 | BE102: 0.023 | BF102: 236 | BG102: 8.653 | BH102: 0.066 | BI102: 294 | BJ102: 23.141 | BK102: 0.128 | BL102: 294 | BM102: 4.057 | BN102: 0.028 | BO102: 291 | BP102: 0.539 | BQ102: 0.015 | BR102: 247 | BS102: 78.18 | BT102: 0.091 | BU102: 290 | BV102: 0.627 | BW102: 0.013 | BX102: 283 | BY102: 1.205 | BZ102: 0.029 | CA102: 289 | CB102: 0.081 | CC102: 0.007 | CD102: 292 | CE102: 8.349 | CF102: 0.058 | CG102: 287 | CH102: 16.341 | CI102: 0.038 | CJ102: 293 | CK102: 0.193 | CL102: 0.014 | CM102: 0 | CN102: 0 | CO102: 0 | CP102: 0 | CQ102: 0 | CR102: 0 | CS102: 0 | CT102: 0 | CU102: 0 | CV102: 0 | CW102: 0 | CX102: 0 | CY102: 279 | CZ102: 3.519 | DA102: 0.101 | DB102: 263 | DC102: 10.628 | DD102: 0.102 | DE102: 291 | DF102: 0.448 | DG102: 0.008
A103: 2011.125 | B103: 2 | C103: 2011 | D103: 243 | E103: 55.688 | F103: 0.307 | G103: 268 | H103: 199.394 | I103: 0.734 | J103: 277 | K103: 19.482 | L103: 0.094 | M103: 273 | N103: 20.202 | O103: 0.073 | P103: 116 | Q103: 489.671 | R103: 3.254 | S103: 180 | T103: 6.621 | U103: 0.143 | V103: 279 | W103: 4.048 | X103: 0.018 | Y103: 283 | Z103: 3.206 | AA103: 0.049 | AB103: 283 | AC103: 3.907 | AD103: 0.057 | AE103: 249 | AF103: 10.005 | AG103: 0.169 | AH103: 0 | AI103: 0 | AJ103: 0 | AK103: 171 | AL103: 0.28 | AM103: 0.018 | AN103: 283 | AO103: 74.904 | AP103: 0.155 | AQ103: 280 | AR103: 6.64 | AS103: 0.121 | AT103: 0 | AU103: 0 | AV103: 0 | AW103: 285 | AX103: 6.97 | AY103: 0.033 | AZ103: 279 | BA103: 0.526 | BB103: 0.02 | BC103: 278 | BD103: 1.583 | BE103: 0.024 | BF103: 262 | BG103: 8.755 | BH103: 0.084 | BI103: 279 | BJ103: 23.247 | BK103: 0.122 | BL103: 282 | BM103: 4.077 | BN103: 0.034 | BO103: 280 | BP103: 0.542 | BQ103: 0.015 | BR103: 276 | BS103: 78.233 | BT103: 0.07 | BU103: 283 | BV103: 0.637 | BW103: 0.014 | BX103: 280 | BY103: 1.204 | BZ103: 0.028 | CA103: 282 | CB103: 0.079 | CC103: 0.005 | CD103: 285 | CE103: 8.361 | CF103: 0.056 | CG103: 284 | CH103: 16.325 | CI103: 0.038 | CJ103: 282 | CK103: 0.19 | CL103: 0.014 | CM103: 0 | CN103: 0 | CO103: 0 | CP103: 0 | CQ103: 0 | CR103: 0 | CS103: 0 | CT103: 0 | CU103: 0 | CV103: 0 | CW103: 0 | CX103: 0 | CY103: 276 | CZ103: 3.587 | DA103: 0.103 | DB103: 260 | DC103: 10.662 | DD103: 0.116 | DE103: 281 | DF103: 0.443 | DG103: 0.008
A104: 2011.208 | B104: 3 | C104: 2011 | D104: 181 | E104: 56.031 | F104: 0.34 | G104: 213 | H104: 199.891 | I104: 0.822 | J104: 215 | K104: 19.538 | L104: 0.107 | M104: 217 | N104: 20.25 | O104: 0.077 | P104: 71 | Q104: 486.483 | R104: 4.272 | S104: 121 | T104: 6.543 | U104: 0.174 | V104: 226 | W104: 4.038 | X104: 0.019 | Y104: 232 | Z104: 3.209 | AA104: 0.054 | AB104: 228 | AC104: 3.943 | AD104: 0.067 | AE104: 145 | AF104: 10.132 | AG104: 0.213 | AH104: 0 | AI104: 0 | AJ104: 0 | AK104: 120 | AL104: 0.293 | AM104: 0.022 | AN104: 232 | AO104: 74.793 | AP104: 0.16 | AQ104: 228 | AR104: 6.545 | AS104: 0.117 | AT104: 0 | AU104: 0 | AV104: 0 | AW104: 227 | AX104: 6.99 | AY104: 0.036 | AZ104: 221 | BA104: 0.53 | BB104: 0.022 | BC104: 222 | BD104: 1.59 | BE104: 0.024 | BF104: 189 | BG104: 8.844 | BH104: 0.096 | BI104: 228 | BJ104: 23.298 | BK104: 0.129 | BL104: 233 | BM104: 4.076 | BN104: 0.033 | BO104: 226 | BP104: 0.543 | BQ104: 0.015 | BR104: 217 | BS104: 78.263 | BT104: 0.074 | BU104: 227 | BV104: 0.643 | BW104: 0.014 | BX104: 229 | BY104: 1.224 | BZ104: 0.03 | CA104: 222 | CB104: 0.079 | CC104: 0.007 | CD104: 229 | CE104: 8.353 | CF104: 0.058 | CG104: 231 | CH104: 16.326 | CI104: 0.038 | CJ104: 226 | CK104: 0.19 | CL104: 0.017 | CM104: 0 | CN104: 0 | CO104: 0 | CP104: 0 | CQ104: 0 | CR104: 0 | CS104: 0 | CT104: 0 | CU104: 0 | CV104: 0 | CW104: 0 | CX104: 0 | CY104: 218 | CZ104: 3.685 | DA104: 0.102 | DB104: 221 | DC104: 10.757 | DD104: 0.121 | DE104: 231 | DF104: 0.441 | DG104: 0.008
A105: 2011.292 | B105: 4 | C105: 2011 | D105: 108 | E105: 56.891 | F105: 0.26 | G105: 129 | H105: 201.372 | I105: 0.747 | J105: 130 | K105: 19.712 | L105: 0.099 | M105: 141 | N105: 20.406 | O105: 0.074 | P105: 63 | Q105: 506.166 | R105: 7.633 | S105: 92 | T105: 6.706 | U105: 0.15 | V105: 134 | W105: 4.027 | X105: 0.018 | Y105: 141 | Z105: 3.205 | AA105: 0.048 | AB105: 126 | AC105: 4.098 | AD105: 0.072 | AE105: 108 | AF105: 11.233 | AG105: 0.211 | AH105: 0 | AI105: 0 | AJ105: 0 | AK105: 80 | AL105: 0.42 | AM105: 0.017 | AN105: 141 | AO105: 74.654 | AP105: 0.152 | AQ105: 140 | AR105: 6.405 | AS105: 0.1 | AT105: 0 | AU105: 0 | AV105: 0 | AW105: 137 | AX105: 7.029 | AY105: 0.034 | AZ105: 136 | BA105: 0.541 | BB105: 0.021 | BC105: 139 | BD105: 1.598 | BE105: 0.025 | BF105: 111 | BG105: 9.075 | BH105: 0.067 | BI105: 142 | BJ105: 23.432 | BK105: 0.106 | BL105: 137 | BM105: 4.091 | BN105: 0.035 | BO105: 141 | BP105: 0.544 | BQ105: 0.015 | BR105: 137 | BS105: 78.339 | BT105: 0.071 | BU105: 142 | BV105: 0.658 | BW105: 0.013 | BX105: 137 | BY105: 1.25 | BZ105: 0.031 | CA105: 132 | CB105: 0.082 | CC105: 0.006 | CD105: 135 | CE105: 8.357 | CF105: 0.062 | CG105: 141 | CH105: 16.313 | CI105: 0.041 | CJ105: 140 | CK105: 0.194 | CL105: 0.017 | CM105: 0 | CN105: 0 | CO105: 0 | CP105: 0 | CQ105: 0 | CR105: 0 | CS105: 0 | CT105: 0 | CU105: 0 | CV105: 0 | CW105: 0 | CX105: 0 | CY105: 133 | CZ105: 3.851 | DA105: 0.1 | DB105: 113 | DC105: 10.904 | DD105: 0.111 | DE105: 140 | DF105: 0.44 | DG105: 0.009
A106: 2011.375 | B106: 5 | C106: 2011 | D106: 248 | E106: 57.188 | F106: 0.342 | G106: 276 | H106: 202.184 | I106: 0.823 | J106: 274 | K106: 19.824 | L106: 0.118 | M106: 290 | N106: 20.505 | O106: 0.077 | P106: 168 | Q106: 512.385 | R106: 8.811 | S106: 241 | T106: 6.626 | U106: 0.151 | V106: 297 | W106: 4.03 | X106: 0.02 | Y106: 317 | Z106: 3.218 | AA106: 0.06 | AB106: 290 | AC106: 4.172 | AD106: 0.085 | AE106: 252 | AF106: 11.806 | AG106: 0.419 | AH106: 0 | AI106: 0 | AJ106: 0 | AK106: 250 | AL106: 0.467 | AM106: 0.042 | AN106: 308 | AO106: 74.71 | AP106: 0.171 | AQ106: 315 | AR106: 6.349 | AS106: 0.106 | AT106: 0 | AU106: 0 | AV106: 0 | AW106: 295 | AX106: 7.054 | AY106: 0.038 | AZ106: 296 | BA106: 0.541 | BB106: 0.02 | BC106: 282 | BD106: 1.607 | BE106: 0.025 | BF106: 256 | BG106: 9.179 | BH106: 0.097 | BI106: 309 | BJ106: 23.486 | BK106: 0.114 | BL106: 317 | BM106: 4.099 | BN106: 0.035 | BO106: 319 | BP106: 0.544 | BQ106: 0.017 | BR106: 263 | BS106: 78.404 | BT106: 0.088 | BU106: 311 | BV106: 0.658 | BW106: 0.014 | BX106: 301 | BY106: 1.267 | BZ106: 0.036 | CA106: 315 | CB106: 0.082 | CC106: 0.006 | CD106: 317 | CE106: 8.349 | CF106: 0.065 | CG106: 318 | CH106: 16.33 | CI106: 0.042 | CJ106: 304 | CK106: 0.2 | CL106: 0.018 | CM106: 0 | CN106: 0 | CO106: 0 | CP106: 0 | CQ106: 0 | CR106: 0 | CS106: 0 | CT106: 0 | CU106: 0 | CV106: 0 | CW106: 0 | CX106: 0 | CY106: 277 | CZ106: 3.946 | DA106: 0.102 | DB106: 255 | DC106: 11.013 | DD106: 0.109 | DE106: 315 | DF106: 0.442 | DG106: 0.009
A107: 2011.458 | B107: 6 | C107: 2011 | D107: 229 | E107: 57.757 | F107: 0.327 | G107: 257 | H107: 203.062 | I107: 0.902 | J107: 258 | K107: 19.966 | L107: 0.119 | M107: 277 | N107: 20.532 | O107: 0.076 | P107: 118 | Q107: 517.226 | R107: 6.924 | S107: 163 | T107: 6.504 | U107: 0.137 | V107: 274 | W107: 4.03 | X107: 0.02 | Y107: 296 | Z107: 3.231 | AA107: 0.054 | AB107: 259 | AC107: 4.281 | AD107: 0.086 | AE107: 216 | AF107: 12.417 | AG107: 0.414 | AH107: 0 | AI107: 0 | AJ107: 0 | AK107: 200 | AL107: 0.553 | AM107: 0.029 | AN107: 287 | AO107: 74.68 | AP107: 0.186 | AQ107: 287 | AR107: 6.312 | AS107: 0.104 | AT107: 0 | AU107: 0 | AV107: 0 | AW107: 277 | AX107: 7.078 | AY107: 0.036 | AZ107: 272 | BA107: 0.548 | BB107: 0.021 | BC107: 286 | BD107: 1.607 | BE107: 0.026 | BF107: 239 | BG107: 9.318 | BH107: 0.079 | BI107: 282 | BJ107: 23.528 | BK107: 0.116 | BL107: 286 | BM107: 4.111 | BN107: 0.037 | BO107: 298 | BP107: 0.546 | BQ107: 0.017 | BR107: 255 | BS107: 78.412 | BT107: 0.079 | BU107: 280 | BV107: 0.666 | BW107: 0.016 | BX107: 272 | BY107: 1.291 | BZ107: 0.033 | CA107: 289 | CB107: 0.082 | CC107: 0.006 | CD107: 290 | CE107: 8.374 | CF107: 0.074 | CG107: 291 | CH107: 16.326 | CI107: 0.045 | CJ107: 291 | CK107: 0.202 | CL107: 0.019 | CM107: 0 | CN107: 0 | CO107: 0 | CP107: 0 | CQ107: 0 | CR107: 0 | CS107: 0 | CT107: 0 | CU107: 0 | CV107: 0 | CW107: 0 | CX107: 0 | CY107: 259 | CZ107: 4.05 | DA107: 0.1 | DB107: 256 | DC107: 11.147 | DD107: 0.117 | DE107: 292 | DF107: 0.441 | DG107: 0.01
A108: 2011.542 | B108: 7 | C108: 2011 | D108: 243 | E108: 58.387 | F108: 0.398 | G108: 266 | H108: 204.173 | I108: 0.921 | J108: 286 | K108: 20.122 | L108: 0.114 | M108: 280 | N108: 20.6 | O108: 0.106 | P108: 109 | Q108: 522.116 | R108: 5.499 | S108: 139 | T108: 6.453 | U108: 0.124 | V108: 285 | W108: 4.03 | X108: 0.02 | Y108: 310 | Z108: 3.235 | AA108: 0.061 | AB108: 284 | AC108: 4.416 | AD108: 0.098 | AE108: 232 | AF108: 13.25 | AG108: 0.555 | AH108: 0 | AI108: 0 | AJ108: 0 | AK108: 144 | AL108: 0.61 | AM108: 0.028 | AN108: 304 | AO108: 74.645 | AP108: 0.174 | AQ108: 311 | AR108: 6.247 | AS108: 0.113 | AT108: 0 | AU108: 0 | AV108: 0 | AW108: 290 | AX108: 7.104 | AY108: 0.038 | AZ108: 298 | BA108: 0.556 | BB108: 0.022 | BC108: 282 | BD108: 1.616 | BE108: 0.027 | BF108: 244 | BG108: 9.468 | BH108: 0.103 | BI108: 295 | BJ108: 23.592 | BK108: 0.135 | BL108: 299 | BM108: 4.123 | BN108: 0.037 | BO108: 314 | BP108: 0.548 | BQ108: 0.018 | BR108: 267 | BS108: 78.472 | BT108: 0.089 | BU108: 305 | BV108: 0.674 | BW108: 0.016 | BX108: 298 | BY108: 1.31 | BZ108: 0.035 | CA108: 307 | CB108: 0.084 | CC108: 0.007 | CD108: 302 | CE108: 8.38 | CF108: 0.082 | CG108: 308 | CH108: 16.328 | CI108: 0.046 | CJ108: 314 | CK108: 0.204 | CL108: 0.02 | CM108: 0 | CN108: 0 | CO108: 0 | CP108: 0 | CQ108: 0 | CR108: 0 | CS108: 0 | CT108: 0 | CU108: 0 | CV108: 0 | CW108: 0 | CX108: 0 | CY108: 277 | CZ108: 4.191 | DA108: 0.108 | DB108: 260 | DC108: 11.304 | DD108: 0.123 | DE108: 313 | DF108: 0.442 | DG108: 0.01
A109: 2011.625 | B109: 8 | C109: 2011 | D109: 223 | E109: 58.909 | F109: 0.34 | G109: 271 | H109: 205.158 | I109: 0.968 | J109: 288 | K109: 20.249 | L109: 0.121 | M109: 271 | N109: 20.742 | O109: 0.087 | P109: 67 | Q109: 520.759 | R109: 3.649 | S109: 132 | T109: 6.416 | U109: 0.162 | V109: 305 | W109: 4.035 | X109: 0.023 | Y109: 322 | Z109: 3.23 | AA109: 0.065 | AB109: 277 | AC109: 4.521 | AD109: 0.1 | AE109: 262 | AF109: 14.007 | AG109: 0.433 | AH109: 0 | AI109: 0 | AJ109: 0 | AK109: 177 | AL109: 0.68 | AM109: 0.021 | AN109: 311 | AO109: 74.619 | AP109: 0.201 | AQ109: 320 | AR109: 6.188 | AS109: 0.114 | AT109: 0 | AU109: 0 | AV109: 0 | AW109: 308 | AX109: 7.137 | AY109: 0.041 | AZ109: 292 | BA109: 0.562 | BB109: 0.024 | BC109: 286 | BD109: 1.626 | BE109: 0.032 | BF109: 237 | BG109: 9.611 | BH109: 0.089 | BI109: 310 | BJ109: 23.701 | BK109: 0.141 | BL109: 315 | BM109: 4.126 | BN109: 0.04 | BO109: 319 | BP109: 0.55 | BQ109: 0.018 | BR109: 300 | BS109: 78.538 | BT109: 0.097 | BU109: 309 | BV109: 0.681 | BW109: 0.016 | BX109: 318 | BY109: 1.327 | BZ109: 0.036 | CA109: 318 | CB109: 0.087 | CC109: 0.008 | CD109: 309 | CE109: 8.349 | CF109: 0.091 | CG109: 315 | CH109: 16.336 | CI109: 0.047 | CJ109: 314 | CK109: 0.209 | CL109: 0.019 | CM109: 0 | CN109: 0 | CO109: 0 | CP109: 0 | CQ109: 0 | CR109: 0 | CS109: 0 | CT109: 0 | CU109: 0 | CV109: 0 | CW109: 0 | CX109: 0 | CY109: 274 | CZ109: 4.297 | DA109: 0.113 | DB109: 246 | DC109: 11.413 | DD109: 0.143 | DE109: 315 | DF109: 0.442 | DG109: 0.01
A110: 2011.708 | B110: 9 | C110: 2011 | D110: 232 | E110: 59.117 | F110: 0.329 | G110: 270 | H110: 205.92 | I110: 1.061 | J110: 260 | K110: 20.345 | L110: 0.117 | M110: 280 | N110: 20.752 | O110: 0.089 | P110: 123 | Q110: 519.455 | R110: 3.989 | S110: 201 | T110: 6.37 | U110: 0.136 | V110: 285 | W110: 4.03 | X110: 0.027 | Y110: 300 | Z110: 3.265 | AA110: 0.064 | AB110: 286 | AC110: 4.557 | AD110: 0.106 | AE110: 0 | AF110: 0 | AG110: 0 | AH110: 0 | AI110: 0 | AJ110: 0 | AK110: 223 | AL110: 0.657 | AM110: 0.025 | AN110: 300 | AO110: 74.48 | AP110: 0.207 | AQ110: 295 | AR110: 6.21 | AS110: 0.117 | AT110: 0 | AU110: 0 | AV110: 0 | AW110: 292 | AX110: 7.153 | AY110: 0.042 | AZ110: 281 | BA110: 0.573 | BB110: 0.025 | BC110: 283 | BD110: 1.622 | BE110: 0.032 | BF110: 233 | BG110: 9.727 | BH110: 0.084 | BI110: 292 | BJ110: 23.735 | BK110: 0.129 | BL110: 291 | BM110: 4.142 | BN110: 0.043 | BO110: 294 | BP110: 0.549 | BQ110: 0.019 | BR110: 290 | BS110: 78.629 | BT110: 0.117 | BU110: 284 | BV110: 0.689 | BW110: 0.018 | BX110: 286 | BY110: 1.35 | BZ110: 0.041 | CA110: 297 | CB110: 0.087 | CC110: 0.007 | CD110: 303 | CE110: 8.383 | CF110: 0.083 | CG110: 299 | CH110: 16.341 | CI110: 0.062 | CJ110: 294 | CK110: 0.209 | CL110: 0.02 | CM110: 0 | CN110: 0 | CO110: 0 | CP110: 0 | CQ110: 0 | CR110: 0 | CS110: 0 | CT110: 0 | CU110: 0 | CV110: 0 | CW110: 0 | CX110: 0 | CY110: 267 | CZ110: 4.366 | DA110: 0.116 | DB110: 256 | DC110: 11.485 | DD110: 0.127 | DE110: 299 | DF110: 0.439 | DG110: 0.01
A111: 2011.792 | B111: 10 | C111: 2011 | D111: 264 | E111: 59.558 | F111: 0.32 | G111: 316 | H111: 206.192 | I111: 0.973 | J111: 311 | K111: 20.417 | L111: 0.109 | M111: 317 | N111: 20.81 | O111: 0.077 | P111: 95 | Q111: 515.238 | R111: 3.104 | S111: 145 | T111: 6.512 | U111: 0.131 | V111: 323 | W111: 4.022 | X111: 0.027 | Y111: 327 | Z111: 3.229 | AA111: 0.071 | AB111: 323 | AC111: 4.551 | AD111: 0.09 | AE111: 0 | AF111: 0 | AG111: 0 | AH111: 0 | AI111: 0 | AJ111: 0 | AK111: 263 | AL111: 0.568 | AM111: 0.038 | AN111: 327 | AO111: 74.486 | AP111: 0.187 | AQ111: 332 | AR111: 6.056 | AS111: 0.133 | AT111: 0 | AU111: 0 | AV111: 0 | AW111: 326 | AX111: 7.175 | AY111: 0.043 | AZ111: 318 | BA111: 0.581 | BB111: 0.026 | BC111: 314 | BD111: 1.634 | BE111: 0.032 | BF111: 288 | BG111: 9.828 | BH111: 0.089 | BI111: 324 | BJ111: 23.796 | BK111: 0.146 | BL111: 315 | BM111: 4.146 | BN111: 0.041 | BO111: 317 | BP111: 0.547 | BQ111: 0.018 | BR111: 315 | BS111: 78.762 | BT111: 0.121 | BU111: 327 | BV111: 0.696 | BW111: 0.018 | BX111: 311 | BY111: 1.349 | BZ111: 0.044 | CA111: 323 | CB111: 0.089 | CC111: 0.007 | CD111: 327 | CE111: 8.372 | CF111: 0.091 | CG111: 320 | CH111: 16.33 | CI111: 0.062 | CJ111: 318 | CK111: 0.209 | CL111: 0.02 | CM111: 0 | CN111: 0 | CO111: 0 | CP111: 0 | CQ111: 0 | CR111: 0 | CS111: 0 | CT111: 0 | CU111: 0 | CV111: 0 | CW111: 0 | CX111: 0 | CY111: 316 | CZ111: 4.437 | DA111: 0.121 | DB111: 302 | DC111: 11.591 | DD111: 0.13 | DE111: 317 | DF111: 0.439 | DG111: 0.011
A112: 2011.875 | B112: 11 | C112: 2011 | D112: 175 | E112: 60.013 | F112: 0.28 | G112: 206 | H112: 206.633 | I112: 0.899 | J112: 212 | K112: 20.439 | L112: 0.104 | M112: 213 | N112: 20.856 | O112: 0.07 | P112: 84 | Q112: 518.95 | R112: 4.694 | S112: 110 | T112: 6.559 | U112: 0.13 | V112: 222 | W112: 4.014 | X112: 0.028 | Y112: 223 | Z112: 3.239 | AA112: 0.058 | AB112: 222 | AC112: 4.472 | AD112: 0.102 | AE112: 0 | AF112: 0 | AG112: 0 | AH112: 0 | AI112: 0 | AJ112: 0 | AK112: 172 | AL112: 0.45 | AM112: 0.037 | AN112: 221 | AO112: 74.429 | AP112: 0.188 | AQ112: 230 | AR112: 5.912 | AS112: 0.121 | AT112: 0 | AU112: 0 | AV112: 0 | AW112: 214 | AX112: 7.208 | AY112: 0.036 | AZ112: 208 | BA112: 0.594 | BB112: 0.023 | BC112: 211 | BD112: 1.648 | BE112: 0.032 | BF112: 183 | BG112: 9.965 | BH112: 0.081 | BI112: 216 | BJ112: 23.864 | BK112: 0.13 | BL112: 218 | BM112: 4.15 | BN112: 0.035 | BO112: 226 | BP112: 0.546 | BQ112: 0.015 | BR112: 186 | BS112: 78.796 | BT112: 0.102 | BU112: 220 | BV112: 0.708 | BW112: 0.016 | BX112: 220 | BY112: 1.361 | BZ112: 0.041 | CA112: 222 | CB112: 0.091 | CC112: 0.006 | CD112: 225 | CE112: 8.378 | CF112: 0.078 | CG112: 224 | CH112: 16.321 | CI112: 0.057 | CJ112: 221 | CK112: 0.208 | CL112: 0.018 | CM112: 0 | CN112: 0 | CO112: 0 | CP112: 0 | CQ112: 0 | CR112: 0 | CS112: 0 | CT112: 0 | CU112: 0 | CV112: 0 | CW112: 0 | CX112: 0 | CY112: 205 | CZ112: 4.516 | DA112: 0.115 | DB112: 189 | DC112: 11.68 | DD112: 0.13 | DE112: 227 | DF112: 0.439 | DG112: 0.008
A113: 2011.958 | B113: 12 | C113: 2011 | D113: 109 | E113: 60.045 | F113: 0.21 | G113: 131 | H113: 206.275 | I113: 0.698 | J113: 111 | K113: 20.393 | L113: 0.074 | M113: 113 | N113: 20.843 | O113: 0.058 | P113: 57 | Q113: 512.536 | R113: 4.581 | S113: 74 | T113: 6.453 | U113: 0.119 | V113: 129 | W113: 4.005 | X113: 0.023 | Y113: 130 | Z113: 3.244 | AA113: 0.044 | AB113: 131 | AC113: 4.31 | AD113: 0.091 | AE113: 0 | AF113: 0 | AG113: 0 | AH113: 0 | AI113: 0 | AJ113: 0 | AK113: 105 | AL113: 0.362 | AM113: 0.019 | AN113: 127 | AO113: 74.417 | AP113: 0.152 | AQ113: 130 | AR113: 5.833 | AS113: 0.103 | AT113: 0 | AU113: 0 | AV113: 0 | AW113: 130 | AX113: 7.213 | AY113: 0.034 | AZ113: 128 | BA113: 0.597 | BB113: 0.02 | BC113: 131 | BD113: 1.642 | BE113: 0.021 | BF113: 112 | BG113: 10.009 | BH113: 0.062 | BI113: 131 | BJ113: 23.885 | BK113: 0.126 | BL113: 131 | BM113: 4.156 | BN113: 0.032 | BO113: 132 | BP113: 0.548 | BQ113: 0.013 | BR113: 124 | BS113: 78.791 | BT113: 0.097 | BU113: 129 | BV113: 0.712 | BW113: 0.014 | BX113: 115 | BY113: 1.363 | BZ113: 0.035 | CA113: 131 | CB113: 0.093 | CC113: 0.005 | CD113: 131 | CE113: 8.385 | CF113: 0.059 | CG113: 128 | CH113: 16.33 | CI113: 0.044 | CJ113: 131 | CK113: 0.212 | CL113: 0.015 | CM113: 0 | CN113: 0 | CO113: 0 | CP113: 0 | CQ113: 0 | CR113: 0 | CS113: 0 | CT113: 0 | CU113: 0 | CV113: 0 | CW113: 0 | CX113: 0 | CY113: 115 | CZ113: 4.521 | DA113: 0.115 | DB113: 127 | DC113: 11.698 | DD113: 0.121 | DE113: 130 | DF113: 0.437 | DG113: 0.008
A114: 2012.042 | B114: 1 | C114: 2012 | D114: 0 | E114: 0 | F114: 0 | G114: 180 | H114: 206.418 | I114: 0.882 | J114: 0 | K114: 0 | L114: 0 | M114: 0 | N114: 0 | O114: 0 | P114: 85 | Q114: 505.864 | R114: 10.41 | S114: 94 | T114: 6.579 | U114: 0.14 | V114: 209 | W114: 3.993 | X114: 0.024 | Y114: 214 | Z114: 3.248 | AA114: 0.048 | AB114: 212 | AC114: 4.128 | AD114: 0.07 | AE114: 0 | AF114: 0 | AG114: 0 | AH114: 0 | AI114: 0 | AJ114: 0 | AK114: 0 | AL114: 0 | AM114: 0 | AN114: 202 | AO114: 74.354 | AP114: 0.17 | AQ114: 211 | AR114: 5.678 | AS114: 0.112 | AT114: 0 | AU114: 0 | AV114: 0 | AW114: 213 | AX114: 7.252 | AY114: 0.033 | AZ114: 209 | BA114: 0.594 | BB114: 0.021 | BC114: 206 | BD114: 1.642 | BE114: 0.03 | BF114: 0 | BG114: 0 | BH114: 0 | BI114: 211 | BJ114: 23.955 | BK114: 0.131 | BL114: 213 | BM114: 4.143 | BN114: 0.031 | BO114: 217 | BP114: 0.552 | BQ114: 0.013 | BR114: 171 | BS114: 79.056 | BT114: 0.084 | BU114: 214 | BV114: 0.723 | BW114: 0.014 | BX114: 0 | BY114: 0 | BZ114: 0 | CA114: 208 | CB114: 0.096 | CC114: 0.005 | CD114: 210 | CE114: 8.386 | CF114: 0.068 | CG114: 205 | CH114: 16.349 | CI114: 0.053 | CJ114: 217 | CK114: 0.207 | CL114: 0.015 | CM114: 0 | CN114: 0 | CO114: 0 | CP114: 0 | CQ114: 0 | CR114: 0 | CS114: 0 | CT114: 0 | CU114: 0 | CV114: 0 | CW114: 0 | CX114: 0 | CY114: 0 | CZ114: 0 | DA114: 0 | DB114: 199 | DC114: 11.839 | DD114: 0.129 | DE114: 217 | DF114: 0.44 | DG114: 0.008
A115: 2012.125 | B115: 2 | C115: 2012 | D115: 0 | E115: 0 | F115: 0 | G115: 258 | H115: 206.885 | I115: 1.07 | J115: 0 | K115: 0 | L115: 0 | M115: 0 | N115: 0 | O115: 0 | P115: 74 | Q115: 509.428 | R115: 13.276 | S115: 119 | T115: 6.747 | U115: 0.2 | V115: 274 | W115: 3.984 | X115: 0.028 | Y115: 276 | Z115: 3.245 | AA115: 0.055 | AB115: 266 | AC115: 4.079 | AD115: 0.103 | AE115: 0 | AF115: 0 | AG115: 0 | AH115: 0 | AI115: 0 | AJ115: 0 | AK115: 0 | AL115: 0 | AM115: 0 | AN115: 235 | AO115: 74.37 | AP115: 0.227 | AQ115: 278 | AR115: 5.604 | AS115: 0.134 | AT115: 0 | AU115: 0 | AV115: 0 | AW115: 278 | AX115: 7.277 | AY115: 0.037 | AZ115: 268 | BA115: 0.593 | BB115: 0.024 | BC115: 275 | BD115: 1.645 | BE115: 0.033 | BF115: 0 | BG115: 0 | BH115: 0 | BI115: 272 | BJ115: 24.008 | BK115: 0.157 | BL115: 279 | BM115: 4.15 | BN115: 0.04 | BO115: 278 | BP115: 0.554 | BQ115: 0.015 | BR115: 261 | BS115: 79.033 | BT115: 0.089 | BU115: 276 | BV115: 0.726 | BW115: 0.015 | BX115: 0 | BY115: 0 | BZ115: 0 | CA115: 277 | CB115: 0.098 | CC115: 0.006 | CD115: 280 | CE115: 8.377 | CF115: 0.083 | CG115: 276 | CH115: 16.329 | CI115: 0.061 | CJ115: 273 | CK115: 0.208 | CL115: 0.017 | CM115: 0 | CN115: 0 | CO115: 0 | CP115: 0 | CQ115: 0 | CR115: 0 | CS115: 0 | CT115: 0 | CU115: 0 | CV115: 0 | CW115: 0 | CX115: 0 | CY115: 0 | CZ115: 0 | DA115: 0 | DB115: 250 | DC115: 11.917 | DD115: 0.136 | DE115: 276 | DF115: 0.439 | DG115: 0.009
A116: 2012.208 | B116: 3 | C116: 2012 | D116: 0 | E116: 0 | F116: 0 | G116: 152 | H116: 207.297 | I116: 1.097 | J116: 0 | K116: 0 | L116: 0 | M116: 0 | N116: 0 | O116: 0 | P116: 81 | Q116: 505.156 | R116: 12.541 | S116: 105 | T116: 6.611 | U116: 0.174 | V116: 165 | W116: 3.968 | X116: 0.025 | Y116: 175 | Z116: 3.244 | AA116: 0.053 | AB116: 170 | AC116: 4.107 | AD116: 0.113 | AE116: 0 | AF116: 0 | AG116: 0 | AH116: 0 | AI116: 0 | AJ116: 0 | AK116: 0 | AL116: 0 | AM116: 0 | AN116: 170 | AO116: 74.249 | AP116: 0.236 | AQ116: 175 | AR116: 5.516 | AS116: 0.104 | AT116: 0 | AU116: 0 | AV116: 0 | AW116: 174 | AX116: 7.29 | AY116: 0.039 | AZ116: 165 | BA116: 0.599 | BB116: 0.025 | BC116: 166 | BD116: 1.646 | BE116: 0.032 | BF116: 0 | BG116: 0 | BH116: 0 | BI116: 174 | BJ116: 24.078 | BK116: 0.157 | BL116: 175 | BM116: 4.156 | BN116: 0.041 | BO116: 172 | BP116: 0.554 | BQ116: 0.017 | BR116: 158 | BS116: 79.062 | BT116: 0.116 | BU116: 169 | BV116: 0.733 | BW116: 0.017 | BX116: 0 | BY116: 0 | BZ116: 0 | CA116: 170 | CB116: 0.099 | CC116: 0.006 | CD116: 173 | CE116: 8.38 | CF116: 0.082 | CG116: 171 | CH116: 16.332 | CI116: 0.059 | CJ116: 176 | CK116: 0.21 | CL116: 0.017 | CM116: 0 | CN116: 0 | CO116: 0 | CP116: 0 | CQ116: 0 | CR116: 0 | CS116: 0 | CT116: 0 | CU116: 0 | CV116: 0 | CW116: 0 | CX116: 0 | CY116: 0 | CZ116: 0 | DA116: 0 | DB116: 144 | DC116: 12.008 | DD116: 0.144 | DE116: 174 | DF116: 0.439 | DG116: 0.009
A117: 2012.292 | B117: 4 | C117: 2012 | D117: 14 | E117: 61.672 | F117: 0.386 | G117: 186 | H117: 207.79 | I117: 1.006 | J117: 16 | K117: 20.617 | L117: 0.127 | M117: 20 | N117: 20.911 | O117: 0.07 | P117: 78 | Q117: 501.261 | R117: 10.496 | S117: 120 | T117: 6.529 | U117: 0.194 | V117: 228 | W117: 3.956 | X117: 0.025 | Y117: 236 | Z117: 3.251 | AA117: 0.051 | AB117: 233 | AC117: 4.225 | AD117: 0.103 | AE117: 0 | AF117: 0 | AG117: 0 | AH117: 0 | AI117: 0 | AJ117: 0 | AK117: 12 | AL117: 0.366 | AM117: 0.013 | AN117: 228 | AO117: 74.159 | AP117: 0.204 | AQ117: 234 | AR117: 5.42 | AS117: 0.11 | AT117: 0 | AU117: 0 | AV117: 0 | AW117: 230 | AX117: 7.317 | AY117: 0.039 | AZ117: 219 | BA117: 0.61 | BB117: 0.023 | BC117: 208 | BD117: 1.655 | BE117: 0.03 | BF117: 14 | BG117: 10.58 | BH117: 0.076 | BI117: 232 | BJ117: 24.139 | BK117: 0.151 | BL117: 235 | BM117: 4.171 | BN117: 0.039 | BO117: 235 | BP117: 0.557 | BQ117: 0.015 | BR117: 211 | BS117: 79.219 | BT117: 0.086 | BU117: 236 | BV117: 0.741 | BW117: 0.016 | BX117: 19 | BY117: 1.428 | BZ117: 0.049 | CA117: 228 | CB117: 0.099 | CC117: 0.006 | CD117: 237 | CE117: 8.382 | CF117: 0.082 | CG117: 230 | CH117: 16.32 | CI117: 0.062 | CJ117: 228 | CK117: 0.219 | CL117: 0.018 | CM117: 0 | CN117: 0 | CO117: 0 | CP117: 0 | CQ117: 0 | CR117: 0 | CS117: 0 | CT117: 0 | CU117: 0 | CV117: 0 | CW117: 0 | CX117: 0 | CY117: 15 | CZ117: 4.786 | DA117: 0.104 | DB117: 190 | DC117: 12.191 | DD117: 0.14 | DE117: 237 | DF117: 0.436 | DG117: 0.01
A118: 2012.375 | B118: 5 | C118: 2012 | D118: 298 | E118: 62.286 | F118: 0.359 | G118: 322 | H118: 208.472 | I118: 0.884 | J118: 315 | K118: 20.819 | L118: 0.131 | M118: 333 | N118: 20.993 | O118: 0.067 | P118: 155 | Q118: 512.902 | R118: 6.967 | S118: 270 | T118: 6.562 | U118: 0.136 | V118: 329 | W118: 3.953 | X118: 0.02 | Y118: 330 | Z118: 3.248 | AA118: 0.048 | AB118: 330 | AC118: 4.36 | AD118: 0.089 | AE118: 0 | AF118: 0 | AG118: 0 | AH118: 0 | AI118: 0 | AJ118: 0 | AK118: 212 | AL118: 0.439 | AM118: 0.032 | AN118: 332 | AO118: 73.99 | AP118: 0.154 | AQ118: 334 | AR118: 5.294 | AS118: 0.1 | AT118: 0 | AU118: 0 | AV118: 0 | AW118: 328 | AX118: 7.355 | AY118: 0.033 | AZ118: 328 | BA118: 0.618 | BB118: 0.021 | BC118: 297 | BD118: 1.673 | BE118: 0.028 | BF118: 284 | BG118: 10.719 | BH118: 0.096 | BI118: 329 | BJ118: 24.244 | BK118: 0.118 | BL118: 331 | BM118: 4.18 | BN118: 0.032 | BO118: 334 | BP118: 0.559 | BQ118: 0.017 | BR118: 316 | BS118: 79.267 | BT118: 0.089 | BU118: 336 | BV118: 0.748 | BW118: 0.015 | BX118: 326 | BY118: 1.436 | BZ118: 0.039 | CA118: 331 | CB118: 0.1 | CC118: 0.006 | CD118: 338 | CE118: 8.386 | CF118: 0.072 | CG118: 336 | CH118: 16.317 | CI118: 0.052 | CJ118: 320 | CK118: 0.222 | CL118: 0.018 | CM118: 0 | CN118: 0 | CO118: 0 | CP118: 0 | CQ118: 0 | CR118: 0 | CS118: 0 | CT118: 0 | CU118: 0 | CV118: 0 | CW118: 0 | CX118: 0 | CY118: 315 | CZ118: 4.856 | DA118: 0.107 | DB118: 306 | DC118: 12.347 | DD118: 0.12 | DE118: 332 | DF118: 0.435 | DG118: 0.009
A119: 2012.458 | B119: 6 | C119: 2012 | D119: 224 | E119: 62.646 | F119: 0.261 | G119: 261 | H119: 209.245 | I119: 0.897 | J119: 244 | K119: 20.937 | L119: 0.124 | M119: 256 | N119: 21.06 | O119: 0.065 | P119: 120 | Q119: 519.361 | R119: 7.308 | S119: 239 | T119: 6.477 | U119: 0.163 | V119: 277 | W119: 3.953 | X119: 0.022 | Y119: 287 | Z119: 3.247 | AA119: 0.048 | AB119: 284 | AC119: 4.449 | AD119: 0.09 | AE119: 0 | AF119: 0 | AG119: 0 | AH119: 0 | AI119: 0 | AJ119: 0 | AK119: 183 | AL119: 0.512 | AM119: 0.024 | AN119: 278 | AO119: 73.961 | AP119: 0.16 | AQ119: 288 | AR119: 5.242 | AS119: 0.092 | AT119: 0 | AU119: 0 | AV119: 0 | AW119: 282 | AX119: 7.373 | AY119: 0.034 | AZ119: 281 | BA119: 0.624 | BB119: 0.022 | BC119: 273 | BD119: 1.678 | BE119: 0.025 | BF119: 264 | BG119: 10.851 | BH119: 0.07 | BI119: 286 | BJ119: 24.293 | BK119: 0.126 | BL119: 285 | BM119: 4.182 | BN119: 0.036 | BO119: 280 | BP119: 0.554 | BQ119: 0.017 | BR119: 253 | BS119: 79.302 | BT119: 0.086 | BU119: 285 | BV119: 0.752 | BW119: 0.014 | BX119: 282 | BY119: 1.453 | BZ119: 0.036 | CA119: 259 | CB119: 0.101 | CC119: 0.006 | CD119: 282 | CE119: 8.391 | CF119: 0.072 | CG119: 278 | CH119: 16.31 | CI119: 0.052 | CJ119: 266 | CK119: 0.218 | CL119: 0.018 | CM119: 0 | CN119: 0 | CO119: 0 | CP119: 0 | CQ119: 0 | CR119: 0 | CS119: 0 | CT119: 0 | CU119: 0 | CV119: 0 | CW119: 0 | CX119: 0 | CY119: 269 | CZ119: 4.982 | DA119: 0.104 | DB119: 272 | DC119: 12.437 | DD119: 0.126 | DE119: 281 | DF119: 0.435 | DG119: 0.009
A120: 2012.542 | B120: 7 | C120: 2012 | D120: 78 | E120: 63.17 | F120: 0.305 | G120: 108 | H120: 210.114 | I120: 0.845 | J120: 107 | K120: 21.123 | L120: 0.109 | M120: 145 | N120: 21.129 | O120: 0.057 | P120: 27 | Q120: 526.122 | R120: 3.006 | S120: 88 | T120: 6.458 | U120: 0.105 | V120: 155 | W120: 3.958 | X120: 0.02 | Y120: 158 | Z120: 3.244 | AA120: 0.04 | AB120: 149 | AC120: 4.58 | AD120: 0.076 | AE120: 0 | AF120: 0 | AG120: 0 | AH120: 0 | AI120: 0 | AJ120: 0 | AK120: 56 | AL120: 0.572 | AM120: 0.02 | AN120: 163 | AO120: 73.942 | AP120: 0.123 | AQ120: 173 | AR120: 5.203 | AS120: 0.077 | AT120: 0 | AU120: 0 | AV120: 0 | AW120: 165 | AX120: 7.402 | AY120: 0.034 | AZ120: 132 | BA120: 0.629 | BB120: 0.018 | BC120: 127 | BD120: 1.683 | BE120: 0.022 | BF120: 98 | BG120: 11.009 | BH120: 0.08 | BI120: 158 | BJ120: 24.384 | BK120: 0.111 | BL120: 152 | BM120: 4.185 | BN120: 0.03 | BO120: 158 | BP120: 0.556 | BQ120: 0.015 | BR120: 141 | BS120: 79.359 | BT120: 0.085 | BU120: 148 | BV120: 0.761 | BW120: 0.013 | BX120: 154 | BY120: 1.466 | BZ120: 0.033 | CA120: 143 | CB120: 0.101 | CC120: 0.005 | CD120: 165 | CE120: 8.396 | CF120: 0.057 | CG120: 162 | CH120: 16.33 | CI120: 0.039 | CJ120: 156 | CK120: 0.212 | CL120: 0.014 | CM120: 0 | CN120: 0 | CO120: 0 | CP120: 0 | CQ120: 0 | CR120: 0 | CS120: 0 | CT120: 0 | CU120: 0 | CV120: 0 | CW120: 0 | CX120: 0 | CY120: 125 | CZ120: 5.136 | DA120: 0.092 | DB120: 113 | DC120: 12.585 | DD120: 0.123 | DE120: 162 | DF120: 0.434 | DG120: 0.007
A121: 2012.625 | B121: 8 | C121: 2012 | D121: 264 | E121: 63.582 | F121: 0.253 | G121: 293 | H121: 210.805 | I121: 0.59 | J121: 293 | K121: 21.186 | L121: 0.083 | M121: 320 | N121: 21.167 | O121: 0.054 | P121: 150 | Q121: 525.022 | R121: 4.391 | S121: 176 | T121: 6.348 | U121: 0.095 | V121: 319 | W121: 3.955 | X121: 0.012 | Y121: 332 | Z121: 3.261 | AA121: 0.024 | AB121: 308 | AC121: 4.677 | AD121: 0.062 | AE121: 0 | AF121: 0 | AG121: 0 | AH121: 0 | AI121: 0 | AJ121: 0 | AK121: 233 | AL121: 0.601 | AM121: 0.014 | AN121: 330 | AO121: 73.937 | AP121: 0.089 | AQ121: 329 | AR121: 5.147 | AS121: 0.065 | AT121: 0 | AU121: 0 | AV121: 0 | AW121: 322 | AX121: 7.43 | AY121: 0.021 | AZ121: 306 | BA121: 0.635 | BB121: 0.012 | BC121: 287 | BD121: 1.693 | BE121: 0.014 | BF121: 243 | BG121: 11.139 | BH121: 0.067 | BI121: 335 | BJ121: 24.46 | BK121: 0.093 | BL121: 334 | BM121: 4.198 | BN121: 0.016 | BO121: 333 | BP121: 0.556 | BQ121: 0.009 | BR121: 322 | BS121: 79.386 | BT121: 0.078 | BU121: 325 | BV121: 0.772 | BW121: 0.008 | BX121: 314 | BY121: 1.48 | BZ121: 0.023 | CA121: 334 | CB121: 0.101 | CC121: 0.003 | CD121: 334 | CE121: 8.411 | CF121: 0.033 | CG121: 331 | CH121: 16.342 | CI121: 0.025 | CJ121: 332 | CK121: 0.219 | CL121: 0.007 | CM121: 0 | CN121: 0 | CO121: 0 | CP121: 0 | CQ121: 0 | CR121: 0 | CS121: 0 | CT121: 0 | CU121: 0 | CV121: 0 | CW121: 0 | CX121: 0 | CY121: 293 | CZ121: 5.222 | DA121: 0.076 | DB121: 282 | DC121: 12.65 | DD121: 0.092 | DE121: 331 | DF121: 0.435 | DG121: 0.004
A122: 2012.708 | B122: 9 | C122: 2012 | D122: 188 | E122: 64.124 | F122: 0.232 | G122: 217 | H122: 211.609 | I122: 0.582 | J122: 214 | K122: 21.334 | L122: 0.087 | M122: 253 | N122: 21.242 | O122: 0.049 | P122: 135 | Q122: 528.486 | R122: 2.586 | S122: 151 | T122: 6.31 | U122: 0.092 | V122: 243 | W122: 3.954 | X122: 0.014 | Y122: 257 | Z122: 3.281 | AA122: 0.027 | AB122: 239 | AC122: 4.756 | AD122: 0.053 | AE122: 0 | AF122: 0 | AG122: 0 | AH122: 0 | AI122: 0 | AJ122: 0 | AK122: 174 | AL122: 0.576 | AM122: 0.021 | AN122: 254 | AO122: 73.96 | AP122: 0.102 | AQ122: 250 | AR122: 5.094 | AS122: 0.065 | AT122: 0 | AU122: 0 | AV122: 0 | AW122: 242 | AX122: 7.467 | AY122: 0.022 | AZ122: 245 | BA122: 0.639 | BB122: 0.011 | BC122: 234 | BD122: 1.696 | BE122: 0.015 | BF122: 193 | BG122: 11.279 | BH122: 0.061 | BI122: 257 | BJ122: 24.532 | BK122: 0.091 | BL122: 256 | BM122: 4.198 | BN122: 0.019 | BO122: 257 | BP122: 0.558 | BQ122: 0.009 | BR122: 237 | BS122: 79.495 | BT122: 0.097 | BU122: 249 | BV122: 0.777 | BW122: 0.008 | BX122: 251 | BY122: 1.515 | BZ122: 0.025 | CA122: 254 | CB122: 0.103 | CC122: 0.003 | CD122: 258 | CE122: 8.406 | CF122: 0.031 | CG122: 258 | CH122: 16.337 | CI122: 0.026 | CJ122: 254 | CK122: 0.227 | CL122: 0.008 | CM122: 0 | CN122: 0 | CO122: 0 | CP122: 0 | CQ122: 0 | CR122: 0 | CS122: 0 | CT122: 0 | CU122: 0 | CV122: 0 | CW122: 0 | CX122: 0 | CY122: 221 | CZ122: 5.31 | DA122: 0.074 | DB122: 209 | DC122: 12.806 | DD122: 0.1 | DE122: 254 | DF122: 0.433 | DG122: 0.004
A123: 2012.792 | B123: 10 | C123: 2012 | D123: 248 | E123: 64.616 | F123: 0.201 | G123: 267 | H123: 212.149 | I123: 0.553 | J123: 284 | K123: 21.431 | L123: 0.064 | M123: 302 | N123: 21.278 | O123: 0.046 | P123: 141 | Q123: 530.043 | R123: 5.037 | S123: 180 | T123: 6.286 | U123: 0.094 | V123: 300 | W123: 3.949 | X123: 0.014 | Y123: 311 | Z123: 3.285 | AA123: 0.028 | AB123: 304 | AC123: 4.739 | AD123: 0.057 | AE123: 0 | AF123: 0 | AG123: 0 | AH123: 0 | AI123: 0 | AJ123: 0 | AK123: 237 | AL123: 0.512 | AM123: 0.028 | AN123: 312 | AO123: 73.912 | AP123: 0.1 | AQ123: 311 | AR123: 5.019 | AS123: 0.073 | AT123: 0 | AU123: 0 | AV123: 0 | AW123: 313 | AX123: 7.496 | AY123: 0.019 | AZ123: 298 | BA123: 0.641 | BB123: 0.013 | BC123: 292 | BD123: 1.702 | BE123: 0.015 | BF123: 258 | BG123: 11.431 | BH123: 0.061 | BI123: 318 | BJ123: 24.605 | BK123: 0.093 | BL123: 311 | BM123: 4.206 | BN123: 0.019 | BO123: 316 | BP123: 0.56 | BQ123: 0.009 | BR123: 295 | BS123: 79.55 | BT123: 0.075 | BU123: 300 | BV123: 0.784 | BW123: 0.008 | BX123: 297 | BY123: 1.528 | BZ123: 0.024 | CA123: 313 | CB123: 0.105 | CC123: 0.003 | CD123: 309 | CE123: 8.402 | CF123: 0.036 | CG123: 314 | CH123: 16.329 | CI123: 0.03 | CJ123: 313 | CK123: 0.23 | CL123: 0.008 | CM123: 0 | CN123: 0 | CO123: 0 | CP123: 0 | CQ123: 0 | CR123: 0 | CS123: 0 | CT123: 0 | CU123: 0 | CV123: 0 | CW123: 0 | CX123: 0 | CY123: 285 | CZ123: 5.401 | DA123: 0.078 | DB123: 278 | DC123: 12.933 | DD123: 0.089 | DE123: 317 | DF123: 0.433 | DG123: 0.005
A124: 2012.875 | B124: 11 | C124: 2012 | D124: 243 | E124: 64.864 | F124: 0.162 | G124: 273 | H124: 212.234 | I124: 0.504 | J124: 279 | K124: 21.455 | L124: 0.063 | M124: 295 | N124: 21.284 | O124: 0.05 | P124: 105 | Q124: 530.227 | R124: 4.205 | S124: 135 | T124: 6.314 | U124: 0.089 | V124: 296 | W124: 3.936 | X124: 0.017 | Y124: 292 | Z124: 3.284 | AA124: 0.035 | AB124: 299 | AC124: 4.63 | AD124: 0.081 | AE124: 0 | AF124: 0 | AG124: 0 | AH124: 0 | AI124: 0 | AJ124: 0 | AK124: 244 | AL124: 0.437 | AM124: 0.033 | AN124: 295 | AO124: 73.841 | AP124: 0.109 | AQ124: 300 | AR124: 4.921 | AS124: 0.082 | AT124: 0 | AU124: 0 | AV124: 0 | AW124: 292 | AX124: 7.517 | AY124: 0.02 | AZ124: 292 | BA124: 0.643 | BB124: 0.016 | BC124: 287 | BD124: 1.707 | BE124: 0.017 | BF124: 239 | BG124: 11.533 | BH124: 0.051 | BI124: 293 | BJ124: 24.649 | BK124: 0.105 | BL124: 296 | BM124: 4.211 | BN124: 0.021 | BO124: 290 | BP124: 0.559 | BQ124: 0.011 | BR124: 290 | BS124: 79.601 | BT124: 0.075 | BU124: 266 | BV124: 0.791 | BW124: 0.008 | BX124: 299 | BY124: 1.537 | BZ124: 0.025 | CA124: 297 | CB124: 0.107 | CC124: 0.004 | CD124: 296 | CE124: 8.399 | CF124: 0.043 | CG124: 296 | CH124: 16.309 | CI124: 0.035 | CJ124: 298 | CK124: 0.229 | CL124: 0.009 | CM124: 0 | CN124: 0 | CO124: 0 | CP124: 0 | CQ124: 0 | CR124: 0 | CS124: 0 | CT124: 0 | CU124: 0 | CV124: 0 | CW124: 0 | CX124: 0 | CY124: 269 | CZ124: 5.456 | DA124: 0.08 | DB124: 258 | DC124: 13.035 | DD124: 0.113 | DE124: 296 | DF124: 0.431 | DG124: 0.005
A125: 2012.958 | B125: 12 | C125: 2012 | D125: 200 | E125: 64.949 | F125: 0.152 | G125: 212 | H125: 211.814 | I125: 0.459 | J125: 211 | K125: 21.393 | L125: 0.062 | M125: 224 | N125: 21.244 | O125: 0.039 | P125: 168 | Q125: 511.421 | R125: 5.479 | S125: 185 | T125: 6.278 | U125: 0.097 | V125: 222 | W125: 3.919 | X125: 0.017 | Y125: 215 | Z125: 3.275 | AA125: 0.036 | AB125: 224 | AC125: 4.448 | AD125: 0.094 | AE125: 0 | AF125: 0 | AG125: 0 | AH125: 0 | AI125: 0 | AJ125: 0 | AK125: 212 | AL125: 0.318 | AM125: 0.036 | AN125: 224 | AO125: 73.72 | AP125: 0.117 | AQ125: 224 | AR125: 4.797 | AS125: 0.089 | AT125: 0 | AU125: 0 | AV125: 0 | AW125: 218 | AX125: 7.529 | AY125: 0.022 | AZ125: 225 | BA125: 0.641 | BB125: 0.014 | BC125: 219 | BD125: 1.711 | BE125: 0.017 | BF125: 207 | BG125: 11.605 | BH125: 0.056 | BI125: 226 | BJ125: 24.713 | BK125: 0.106 | BL125: 225 | BM125: 4.217 | BN125: 0.023 | BO125: 225 | BP125: 0.564 | BQ125: 0.01 | BR125: 215 | BS125: 79.593 | BT125: 0.071 | BU125: 204 | BV125: 0.796 | BW125: 0.009 | BX125: 224 | BY125: 1.53 | BZ125: 0.024 | CA125: 224 | CB125: 0.108 | CC125: 0.004 | CD125: 220 | CE125: 8.41 | CF125: 0.041 | CG125: 226 | CH125: 16.291 | CI125: 0.032 | CJ125: 217 | CK125: 0.227 | CL125: 0.009 | CM125: 0 | CN125: 0 | CO125: 0 | CP125: 0 | CQ125: 0 | CR125: 0 | CS125: 0 | CT125: 0 | CU125: 0 | CV125: 0 | CW125: 0 | CX125: 0 | CY125: 215 | CZ125: 5.446 | DA125: 0.07 | DB125: 216 | DC125: 13.065 | DD125: 0.133 | DE125: 224 | DF125: 0.429 | DG125: 0.005
A126: 2013.042 | B126: 1 | C126: 2013 | D126: 271 | E126: 65.021 | F126: 0.154 | G126: 299 | H126: 211.535 | I126: 0.458 | J126: 296 | K126: 21.362 | L126: 0.058 | M126: 307 | N126: 21.217 | O126: 0.041 | P126: 176 | Q126: 499.637 | R126: 5.13 | S126: 215 | T126: 6.307 | U126: 0.1 | V126: 308 | W126: 3.904 | X126: 0.014 | Y126: 314 | Z126: 3.285 | AA126: 0.035 | AB126: 311 | AC126: 4.273 | AD126: 0.073 | AE126: 0 | AF126: 0 | AG126: 0 | AH126: 0 | AI126: 0 | AJ126: 0 | AK126: 264 | AL126: 0.249 | AM126: 0.016 | AN126: 309 | AO126: 73.625 | AP126: 0.101 | AQ126: 302 | AR126: 4.691 | AS126: 0.08 | AT126: 0 | AU126: 0 | AV126: 0 | AW126: 306 | AX126: 7.543 | AY126: 0.02 | AZ126: 297 | BA126: 0.64 | BB126: 0.014 | BC126: 299 | BD126: 1.718 | BE126: 0.017 | BF126: 276 | BG126: 11.682 | BH126: 0.054 | BI126: 303 | BJ126: 24.72 | BK126: 0.13 | BL126: 311 | BM126: 4.22 | BN126: 0.02 | BO126: 308 | BP126: 0.565 | BQ126: 0.01 | BR126: 302 | BS126: 79.624 | BT126: 0.071 | BU126: 298 | BV126: 0.801 | BW126: 0.008 | BX126: 307 | BY126: 1.53 | BZ126: 0.024 | CA126: 311 | CB126: 0.107 | CC126: 0.004 | CD126: 307 | CE126: 8.408 | CF126: 0.039 | CG126: 314 | CH126: 16.286 | CI126: 0.03 | CJ126: 309 | CK126: 0.227 | CL126: 0.008 | CM126: 0 | CN126: 0 | CO126: 0 | CP126: 0 | CQ126: 0 | CR126: 0 | CS126: 0 | CT126: 0 | CU126: 0 | CV126: 0 | CW126: 0 | CX126: 0 | CY126: 292 | CZ126: 5.459 | DA126: 0.067 | DB126: 299 | DC126: 13.116 | DD126: 0.148 | DE126: 312 | DF126: 0.428 | DG126: 0.005
A127: 2013.125 | B127: 2 | C127: 2013 | D127: 223 | E127: 65.371 | F127: 0.197 | G127: 267 | H127: 211.727 | I127: 0.485 | J127: 252 | K127: 21.421 | L127: 0.06 | M127: 270 | N127: 21.226 | O127: 0.044 | P127: 76 | Q127: 498.376 | R127: 5.798 | S127: 99 | T127: 6.397 | U127: 0.123 | V127: 270 | W127: 3.889 | X127: 0.016 | Y127: 270 | Z127: 3.294 | AA127: 0.033 | AB127: 274 | AC127: 4.169 | AD127: 0.05 | AE127: 0 | AF127: 0 | AG127: 0 | AH127: 0 | AI127: 0 | AJ127: 0 | AK127: 201 | AL127: 0.247 | AM127: 0.018 | AN127: 256 | AO127: 73.584 | AP127: 0.11 | AQ127: 273 | AR127: 4.568 | AS127: 0.073 | AT127: 0 | AU127: 0 | AV127: 0 | AW127: 262 | AX127: 7.577 | AY127: 0.024 | AZ127: 258 | BA127: 0.641 | BB127: 0.014 | BC127: 270 | BD127: 1.738 | BE127: 0.017 | BF127: 222 | BG127: 11.837 | BH127: 0.069 | BI127: 179 | BJ127: 24.802 | BK127: 0.134 | BL127: 274 | BM127: 4.217 | BN127: 0.021 | BO127: 268 | BP127: 0.566 | BQ127: 0.01 | BR127: 254 | BS127: 79.721 | BT127: 0.079 | BU127: 260 | BV127: 0.812 | BW127: 0.01 | BX127: 270 | BY127: 1.549 | BZ127: 0.024 | CA127: 273 | CB127: 0.107 | CC127: 0.004 | CD127: 273 | CE127: 8.417 | CF127: 0.041 | CG127: 274 | CH127: 16.291 | CI127: 0.03 | CJ127: 273 | CK127: 0.229 | CL127: 0.009 | CM127: 0 | CN127: 0 | CO127: 0 | CP127: 0 | CQ127: 0 | CR127: 0 | CS127: 0 | CT127: 0 | CU127: 0 | CV127: 0 | CW127: 0 | CX127: 0 | CY127: 261 | CZ127: 5.541 | DA127: 0.076 | DB127: 260 | DC127: 13.229 | DD127: 0.142 | DE127: 270 | DF127: 0.428 | DG127: 0.005
A128: 2013.208 | B128: 3 | C128: 2013 | D128: 145 | E128: 65.934 | F128: 0.216 | G128: 159 | H128: 212.423 | I128: 0.542 | J128: 150 | K128: 21.519 | L128: 0.066 | M128: 177 | N128: 21.282 | O128: 0.048 | P128: 127 | Q128: 498.242 | R128: 7.243 | S128: 149 | T128: 6.324 | U128: 0.142 | V128: 185 | W128: 3.88 | X128: 0.014 | Y128: 189 | Z128: 3.301 | AA128: 0.035 | AB128: 170 | AC128: 4.195 | AD128: 0.05 | AE128: 0 | AF128: 0 | AG128: 0 | AH128: 0 | AI128: 0 | AJ128: 0 | AK128: 123 | AL128: 0.296 | AM128: 0.022 | AN128: 176 | AO128: 73.51 | AP128: 0.101 | AQ128: 183 | AR128: 4.479 | AS128: 0.068 | AT128: 0 | AU128: 0 | AV128: 0 | AW128: 174 | AX128: 7.614 | AY128: 0.021 | AZ128: 177 | BA128: 0.648 | BB128: 0.015 | BC128: 176 | BD128: 1.753 | BE128: 0.018 | BF128: 152 | BG128: 12.054 | BH128: 0.073 | BI128: 41 | BJ128: 24.937 | BK128: 0.145 | BL128: 186 | BM128: 4.224 | BN128: 0.019 | BO128: 186 | BP128: 0.567 | BQ128: 0.012 | BR128: 171 | BS128: 79.777 | BT128: 0.069 | BU128: 174 | BV128: 0.824 | BW128: 0.01 | BX128: 181 | BY128: 1.566 | BZ128: 0.027 | CA128: 185 | CB128: 0.109 | CC128: 0.004 | CD128: 188 | CE128: 8.416 | CF128: 0.04 | CG128: 189 | CH128: 16.28 | CI128: 0.03 | CJ128: 187 | CK128: 0.23 | CL128: 0.008 | CM128: 0 | CN128: 0 | CO128: 0 | CP128: 0 | CQ128: 0 | CR128: 0 | CS128: 0 | CT128: 0 | CU128: 0 | CV128: 0 | CW128: 0 | CX128: 0 | CY128: 166 | CZ128: 5.658 | DA128: 0.077 | DB128: 168 | DC128: 13.39 | DD128: 0.139 | DE128: 187 | DF128: 0.427 | DG128: 0.004
A129: 2013.292 | B129: 4 | C129: 2013 | D129: 255 | E129: 66.304 | F129: 0.244 | G129: 304 | H129: 212.876 | I129: 0.598 | J129: 290 | K129: 21.555 | L129: 0.076 | M129: 316 | N129: 21.306 | O129: 0.055 | P129: 118 | Q129: 493.548 | R129: 6.715 | S129: 208 | T129: 6.349 | U129: 0.132 | V129: 312 | W129: 3.875 | X129: 0.015 | Y129: 316 | Z129: 3.304 | AA129: 0.034 | AB129: 303 | AC129: 4.264 | AD129: 0.064 | AE129: 0 | AF129: 0 | AG129: 0 | AH129: 0 | AI129: 0 | AJ129: 0 | AK129: 241 | AL129: 0.336 | AM129: 0.027 | AN129: 317 | AO129: 73.447 | AP129: 0.1 | AQ129: 315 | AR129: 4.42 | AS129: 0.067 | AT129: 0 | AU129: 0 | AV129: 0 | AW129: 311 | AX129: 7.626 | AY129: 0.026 | AZ129: 309 | BA129: 0.654 | BB129: 0.016 | BC129: 292 | BD129: 1.758 | BE129: 0.02 | BF129: 289 | BG129: 12.197 | BH129: 0.089 | BI129: 312 | BJ129: 24.978 | BK129: 0.152 | BL129: 311 | BM129: 4.238 | BN129: 0.024 | BO129: 316 | BP129: 0.569 | BQ129: 0.012 | BR129: 308 | BS129: 79.807 | BT129: 0.078 | BU129: 316 | BV129: 0.829 | BW129: 0.01 | BX129: 310 | BY129: 1.577 | BZ129: 0.028 | CA129: 314 | CB129: 0.11 | CC129: 0.004 | CD129: 311 | CE129: 8.415 | CF129: 0.048 | CG129: 317 | CH129: 16.288 | CI129: 0.035 | CJ129: 310 | CK129: 0.232 | CL129: 0.01 | CM129: 0 | CN129: 0 | CO129: 0 | CP129: 0 | CQ129: 0 | CR129: 0 | CS129: 0 | CT129: 0 | CU129: 0 | CV129: 0 | CW129: 0 | CX129: 0 | CY129: 280 | CZ129: 5.728 | DA129: 0.094 | DB129: 303 | DC129: 13.483 | DD129: 0.166 | DE129: 312 | DF129: 0.426 | DG129: 0.005
A130: 2013.375 | B130: 5 | C130: 2013 | D130: 115 | E130: 66.825 | F130: 0.363 | G130: 160 | H130: 213.75 | I130: 0.737 | J130: 151 | K130: 21.679 | L130: 0.1 | M130: 209 | N130: 21.376 | O130: 0.058 | P130: 58 | Q130: 502.763 | R130: 9.894 | S130: 94 | T130: 6.414 | U130: 0.127 | V130: 200 | W130: 3.879 | X130: 0.014 | Y130: 224 | Z130: 3.307 | AA130: 0.036 | AB130: 161 | AC130: 4.379 | AD130: 0.084 | AE130: 0 | AF130: 0 | AG130: 0 | AH130: 0 | AI130: 0 | AJ130: 0 | AK130: 95 | AL130: 0.401 | AM130: 0.033 | AN130: 220 | AO130: 73.456 | AP130: 0.09 | AQ130: 225 | AR130: 4.348 | AS130: 0.068 | AT130: 0 | AU130: 0 | AV130: 0 | AW130: 183 | AX130: 7.661 | AY130: 0.027 | AZ130: 181 | BA130: 0.668 | BB130: 0.015 | BC130: 147 | BD130: 1.777 | BE130: 0.018 | BF130: 120 | BG130: 12.382 | BH130: 0.122 | BI130: 224 | BJ130: 25.121 | BK130: 0.149 | BL130: 218 | BM130: 4.262 | BN130: 0.02 | BO130: 210 | BP130: 0.569 | BQ130: 0.013 | BR130: 196 | BS130: 79.935 | BT130: 0.082 | BU130: 209 | BV130: 0.839 | BW130: 0.011 | BX130: 184 | BY130: 1.601 | BZ130: 0.029 | CA130: 222 | CB130: 0.112 | CC130: 0.004 | CD130: 217 | CE130: 8.397 | CF130: 0.041 | CG130: 219 | CH130: 16.293 | CI130: 0.03 | CJ130: 223 | CK130: 0.232 | CL130: 0.009 | CM130: 0 | CN130: 0 | CO130: 0 | CP130: 0 | CQ130: 0 | CR130: 0 | CS130: 0 | CT130: 0 | CU130: 0 | CV130: 0 | CW130: 0 | CX130: 0 | CY130: 142 | CZ130: 5.893 | DA130: 0.101 | DB130: 147 | DC130: 13.668 | DD130: 0.159 | DE130: 223 | DF130: 0.428 | DG130: 0.005
A131: 2013.458 | B131: 6 | C131: 2013 | D131: 210 | E131: 67.501 | F131: 0.251 | G131: 237 | H131: 214.511 | I131: 0.546 | J131: 242 | K131: 21.807 | L131: 0.097 | M131: 247 | N131: 21.418 | O131: 0.044 | P131: 88 | Q131: 511.193 | R131: 8.138 | S131: 196 | T131: 6.482 | U131: 0.157 | V131: 243 | W131: 3.875 | X131: 0.013 | Y131: 245 | Z131: 3.316 | AA131: 0.033 | AB131: 227 | AC131: 4.497 | AD131: 0.068 | AE131: 0 | AF131: 0 | AG131: 0 | AH131: 0 | AI131: 0 | AJ131: 0 | AK131: 139 | AL131: 0.479 | AM131: 0.029 | AN131: 253 | AO131: 73.403 | AP131: 0.099 | AQ131: 253 | AR131: 4.316 | AS131: 0.059 | AT131: 0 | AU131: 0 | AV131: 0 | AW131: 246 | AX131: 7.683 | AY131: 0.02 | AZ131: 245 | BA131: 0.672 | BB131: 0.013 | BC131: 221 | BD131: 1.78 | BE131: 0.017 | BF131: 209 | BG131: 12.579 | BH131: 0.075 | BI131: 250 | BJ131: 25.184 | BK131: 0.119 | BL131: 250 | BM131: 4.264 | BN131: 0.017 | BO131: 247 | BP131: 0.573 | BQ131: 0.013 | BR131: 243 | BS131: 79.954 | BT131: 0.077 | BU131: 236 | BV131: 0.844 | BW131: 0.01 | BX131: 245 | BY131: 1.619 | BZ131: 0.024 | CA131: 245 | CB131: 0.113 | CC131: 0.004 | CD131: 251 | CE131: 8.402 | CF131: 0.035 | CG131: 249 | CH131: 16.286 | CI131: 0.027 | CJ131: 239 | CK131: 0.233 | CL131: 0.008 | CM131: 0 | CN131: 0 | CO131: 0 | CP131: 0 | CQ131: 0 | CR131: 0 | CS131: 0 | CT131: 0 | CU131: 0 | CV131: 0 | CW131: 0 | CX131: 0 | CY131: 231 | CZ131: 6.019 | DA131: 0.083 | DB131: 218 | DC131: 13.717 | DD131: 0.174 | DE131: 252 | DF131: 0.427 | DG131: 0.004
A132: 2013.542 | B132: 7 | C132: 2013 | D132: 143 | E132: 67.816 | F132: 0.207 | G132: 220 | H132: 214.944 | I132: 0.555 | J132: 251 | K132: 21.922 | L132: 0.082 | M132: 293 | N132: 21.444 | O132: 0.046 | P132: 95 | Q132: 522.996 | R132: 5.867 | S132: 182 | T132: 6.771 | U132: 0.13 | V132: 291 | W132: 3.867 | X132: 0.014 | Y132: 321 | Z132: 3.314 | AA132: 0.03 | AB132: 225 | AC132: 4.601 | AD132: 0.055 | AE132: 0 | AF132: 0 | AG132: 0 | AH132: 0 | AI132: 0 | AJ132: 0 | AK132: 191 | AL132: 0.539 | AM132: 0.016 | AN132: 316 | AO132: 73.37 | AP132: 0.11 | AQ132: 322 | AR132: 4.287 | AS132: 0.056 | AT132: 0 | AU132: 0 | AV132: 0 | AW132: 268 | AX132: 7.709 | AY132: 0.019 | AZ132: 290 | BA132: 0.682 | BB132: 0.014 | BC132: 211 | BD132: 1.792 | BE132: 0.017 | BF132: 171 | BG132: 12.694 | BH132: 0.066 | BI132: 276 | BJ132: 25.329 | BK132: 0.115 | BL132: 288 | BM132: 4.268 | BN132: 0.017 | BO132: 323 | BP132: 0.576 | BQ132: 0.013 | BR132: 301 | BS132: 80.017 | BT132: 0.084 | BU132: 281 | BV132: 0.855 | BW132: 0.01 | BX132: 278 | BY132: 1.637 | BZ132: 0.024 | CA132: 313 | CB132: 0.113 | CC132: 0.003 | CD132: 258 | CE132: 8.407 | CF132: 0.033 | CG132: 315 | CH132: 16.274 | CI132: 0.029 | CJ132: 324 | CK132: 0.234 | CL132: 0.009 | CM132: 0 | CN132: 0 | CO132: 0 | CP132: 0 | CQ132: 0 | CR132: 0 | CS132: 0 | CT132: 0 | CU132: 0 | CV132: 0 | CW132: 0 | CX132: 0 | CY132: 199 | CZ132: 6.109 | DA132: 0.075 | DB132: 279 | DC132: 13.881 | DD132: 0.181 | DE132: 315 | DF132: 0.428 | DG132: 0.004
A133: 2013.625 | B133: 8 | C133: 2013 | D133: 204 | E133: 68.269 | F133: 0.214 | G133: 251 | H133: 215.276 | I133: 0.64 | J133: 246 | K133: 21.971 | L133: 0.081 | M133: 279 | N133: 21.474 | O133: 0.053 | P133: 134 | Q133: 523.133 | R133: 4.196 | S133: 256 | T133: 6.8 | U133: 0.171 | V133: 295 | W133: 3.86 | X133: 0.014 | Y133: 302 | Z133: 3.317 | AA133: 0.033 | AB133: 274 | AC133: 4.667 | AD133: 0.066 | AE133: 0 | AF133: 0 | AG133: 0 | AH133: 0 | AI133: 0 | AJ133: 0 | AK133: 214 | AL133: 0.555 | AM133: 0.012 | AN133: 297 | AO133: 73.295 | AP133: 0.099 | AQ133: 309 | AR133: 4.255 | AS133: 0.068 | AT133: 0 | AU133: 0 | AV133: 0 | AW133: 267 | AX133: 7.728 | AY133: 0.02 | AZ133: 286 | BA133: 0.687 | BB133: 0.014 | BC133: 258 | BD133: 1.805 | BE133: 0.016 | BF133: 215 | BG133: 12.819 | BH133: 0.07 | BI133: 297 | BJ133: 25.403 | BK133: 0.128 | BL133: 304 | BM133: 4.272 | BN133: 0.017 | BO133: 305 | BP133: 0.579 | BQ133: 0.011 | BR133: 289 | BS133: 80.064 | BT133: 0.071 | BU133: 285 | BV133: 0.862 | BW133: 0.011 | BX133: 278 | BY133: 1.654 | BZ133: 0.024 | CA133: 305 | CB133: 0.116 | CC133: 0.003 | CD133: 307 | CE133: 8.405 | CF133: 0.041 | CG133: 300 | CH133: 16.279 | CI133: 0.028 | CJ133: 302 | CK133: 0.233 | CL133: 0.009 | CM133: 0 | CN133: 0 | CO133: 0 | CP133: 0 | CQ133: 0 | CR133: 0 | CS133: 0 | CT133: 0 | CU133: 0 | CV133: 0 | CW133: 0 | CX133: 0 | CY133: 255 | CZ133: 6.195 | DA133: 0.091 | DB133: 274 | DC133: 13.901 | DD133: 0.17 | DE133: 304 | DF133: 0.428 | DG133: 0.004
A134: 2013.708 | B134: 9 | C134: 2013 | D134: 221 | E134: 68.877 | F134: 0.245 | G134: 262 | H134: 216.286 | I134: 0.649 | J134: 250 | K134: 22.083 | L134: 0.084 | M134: 279 | N134: 21.515 | O134: 0.052 | P134: 82 | Q134: 525.042 | R134: 2.56 | S134: 239 | T134: 6.668 | U134: 0.2 | V134: 288 | W134: 3.86 | X134: 0.014 | Y134: 285 | Z134: 3.321 | AA134: 0.031 | AB134: 270 | AC134: 4.737 | AD134: 0.048 | AE134: 0 | AF134: 0 | AG134: 0 | AH134: 0 | AI134: 0 | AJ134: 0 | AK134: 210 | AL134: 0.558 | AM134: 0.015 | AN134: 283 | AO134: 73.218 | AP134: 0.101 | AQ134: 291 | AR134: 4.221 | AS134: 0.065 | AT134: 0 | AU134: 0 | AV134: 0 | AW134: 277 | AX134: 7.756 | AY134: 0.025 | AZ134: 284 | BA134: 0.688 | BB134: 0.014 | BC134: 276 | BD134: 1.813 | BE134: 0.017 | BF134: 237 | BG134: 13.008 | BH134: 0.087 | BI134: 285 | BJ134: 25.475 | BK134: 0.118 | BL134: 284 | BM134: 4.275 | BN134: 0.019 | BO134: 284 | BP134: 0.579 | BQ134: 0.011 | BR134: 271 | BS134: 80.142 | BT134: 0.102 | BU134: 282 | BV134: 0.868 | BW134: 0.012 | BX134: 281 | BY134: 1.666 | BZ134: 0.021 | CA134: 290 | CB134: 0.116 | CC134: 0.004 | CD134: 283 | CE134: 8.414 | CF134: 0.045 | CG134: 286 | CH134: 16.279 | CI134: 0.032 | CJ134: 291 | CK134: 0.235 | CL134: 0.009 | CM134: 0 | CN134: 0 | CO134: 0 | CP134: 0 | CQ134: 0 | CR134: 0 | CS134: 0 | CT134: 0 | CU134: 0 | CV134: 0 | CW134: 0 | CX134: 0 | CY134: 266 | CZ134: 6.332 | DA134: 0.086 | DB134: 270 | DC134: 14.026 | DD134: 0.162 | DE134: 283 | DF134: 0.427 | DG134: 0.004
A135: 2013.792 | B135: 10 | C135: 2013 | D135: 291 | E135: 69.322 | F135: 0.203 | G135: 313 | H135: 217.052 | I135: 0.463 | J135: 305 | K135: 22.239 | L135: 0.061 | M135: 327 | N135: 21.552 | O135: 0.04 | P135: 176 | Q135: 518.656 | R135: 3.465 | S135: 248 | T135: 6.644 | U135: 0.193 | V135: 325 | W135: 3.857 | X135: 0.014 | Y135: 327 | Z135: 3.313 | AA135: 0.034 | AB135: 326 | AC135: 4.718 | AD135: 0.057 | AE135: 0 | AF135: 0 | AG135: 0 | AH135: 0 | AI135: 0 | AJ135: 0 | AK135: 269 | AL135: 0.48 | AM135: 0.033 | AN135: 320 | AO135: 73.238 | AP135: 0.1 | AQ135: 334 | AR135: 4.213 | AS135: 0.069 | AT135: 0 | AU135: 0 | AV135: 0 | AW135: 326 | AX135: 7.799 | AY135: 0.019 | AZ135: 321 | BA135: 0.689 | BB135: 0.015 | BC135: 313 | BD135: 1.831 | BE135: 0.017 | BF135: 298 | BG135: 13.237 | BH135: 0.071 | BI135: 329 | BJ135: 25.553 | BK135: 0.135 | BL135: 324 | BM135: 4.283 | BN135: 0.02 | BO135: 329 | BP135: 0.584 | BQ135: 0.011 | BR135: 311 | BS135: 80.328 | BT135: 0.066 | BU135: 324 | BV135: 0.884 | BW135: 0.01 | BX135: 318 | BY135: 1.674 | BZ135: 0.023 | CA135: 325 | CB135: 0.121 | CC135: 0.004 | CD135: 322 | CE135: 8.43 | CF135: 0.04 | CG135: 321 | CH135: 16.315 | CI135: 0.03 | CJ135: 331 | CK135: 0.233 | CL135: 0.009 | CM135: 0 | CN135: 0 | CO135: 0 | CP135: 0 | CQ135: 0 | CR135: 0 | CS135: 0 | CT135: 0 | CU135: 0 | CV135: 0 | CW135: 0 | CX135: 0 | CY135: 306 | CZ135: 6.436 | DA135: 0.085 | DB135: 327 | DC135: 14.127 | DD135: 0.146 | DE135: 332 | DF135: 0.424 | DG135: 0.005
A136: 2013.875 | B136: 11 | C136: 2013 | D136: 216 | E136: 69.63 | F136: 0.184 | G136: 231 | H136: 217.174 | I136: 0.448 | J136: 239 | K136: 22.256 | L136: 0.052 | M136: 242 | N136: 21.554 | O136: 0.04 | P136: 36 | Q136: 514.424 | R136: 1.927 | S136: 151 | T136: 6.494 | U136: 0.155 | V136: 244 | W136: 3.845 | X136: 0.014 | Y136: 258 | Z136: 3.309 | AA136: 0.039 | AB136: 241 | AC136: 4.606 | AD136: 0.062 | AE136: 0 | AF136: 0 | AG136: 0 | AH136: 0 | AI136: 0 | AJ136: 0 | AK136: 193 | AL136: 0.393 | AM136: 0.023 | AN136: 241 | AO136: 73.142 | AP136: 0.112 | AQ136: 244 | AR136: 4.134 | AS136: 0.061 | AT136: 0 | AU136: 0 | AV136: 0 | AW136: 234 | AX136: 7.82 | AY136: 0.019 | AZ136: 240 | BA136: 0.69 | BB136: 0.014 | BC136: 231 | BD136: 1.838 | BE136: 0.018 | BF136: 242 | BG136: 13.366 | BH136: 0.061 | BI136: 259 | BJ136: 25.645 | BK136: 0.126 | BL136: 256 | BM136: 4.291 | BN136: 0.019 | BO136: 256 | BP136: 0.582 | BQ136: 0.011 | BR136: 253 | BS136: 80.376 | BT136: 0.073 | BU136: 251 | BV136: 0.889 | BW136: 0.01 | BX136: 256 | BY136: 1.684 | BZ136: 0.023 | CA136: 258 | CB136: 0.12 | CC136: 0.004 | CD136: 235 | CE136: 8.424 | CF136: 0.04 | CG136: 242 | CH136: 16.305 | CI136: 0.032 | CJ136: 252 | CK136: 0.234 | CL136: 0.01 | CM136: 0 | CN136: 0 | CO136: 0 | CP136: 0 | CQ136: 0 | CR136: 0 | CS136: 0 | CT136: 0 | CU136: 0 | CV136: 0 | CW136: 0 | CX136: 0 | CY136: 253 | CZ136: 6.511 | DA136: 0.077 | DB136: 254 | DC136: 14.226 | DD136: 0.138 | DE136: 247 | DF136: 0.423 | DG136: 0.005
A137: 2013.958 | B137: 12 | C137: 2013 | D137: 264 | E137: 69.724 | F137: 0.172 | G137: 289 | H137: 216.517 | I137: 0.481 | J137: 294 | K137: 22.164 | L137: 0.061 | M137: 293 | N137: 21.513 | O137: 0.045 | P137: 176 | Q137: 505.171 | R137: 3.329 | S137: 205 | T137: 6.241 | U137: 0.096 | V137: 296 | W137: 3.824 | X137: 0.016 | Y137: 291 | Z137: 3.305 | AA137: 0.035 | AB137: 297 | AC137: 4.382 | AD137: 0.089 | AE137: 0 | AF137: 0 | AG137: 0 | AH137: 0 | AI137: 0 | AJ137: 0 | AK137: 248 | AL137: 0.31 | AM137: 0.02 | AN137: 298 | AO137: 73.048 | AP137: 0.103 | AQ137: 297 | AR137: 4.019 | AS137: 0.076 | AT137: 0 | AU137: 0 | AV137: 0 | AW137: 293 | AX137: 7.84 | AY137: 0.021 | AZ137: 293 | BA137: 0.689 | BB137: 0.013 | BC137: 266 | BD137: 1.846 | BE137: 0.017 | BF137: 262 | BG137: 13.47 | BH137: 0.067 | BI137: 295 | BJ137: 25.688 | BK137: 0.123 | BL137: 297 | BM137: 4.297 | BN137: 0.019 | BO137: 298 | BP137: 0.584 | BQ137: 0.01 | BR137: 285 | BS137: 80.433 | BT137: 0.064 | BU137: 295 | BV137: 0.9 | BW137: 0.01 | BX137: 290 | BY137: 1.692 | BZ137: 0.022 | CA137: 298 | CB137: 0.12 | CC137: 0.003 | CD137: 296 | CE137: 8.408 | CF137: 0.039 | CG137: 291 | CH137: 16.294 | CI137: 0.03 | CJ137: 297 | CK137: 0.233 | CL137: 0.009 | CM137: 0 | CN137: 0 | CO137: 0 | CP137: 0 | CQ137: 0 | CR137: 0 | CS137: 0 | CT137: 0 | CU137: 0 | CV137: 0 | CW137: 0 | CX137: 0 | CY137: 284 | CZ137: 6.547 | DA137: 0.071 | DB137: 280 | DC137: 14.321 | DD137: 0.147 | DE137: 296 | DF137: 0.422 | DG137: 0.004
A138: 2014.042 | B138: 1 | C138: 2014 | D138: 115 | E138: 69.848 | F138: 0.239 | G138: 128 | H138: 216.108 | I138: 0.514 | J138: 139 | K138: 22.132 | L138: 0.067 | M138: 153 | N138: 21.48 | O138: 0.042 | P138: 14 | Q138: 493.341 | R138: 3.326 | S138: 46 | T138: 6.213 | U138: 0.102 | V138: 151 | W138: 3.804 | X138: 0.017 | Y138: 144 | Z138: 3.294 | AA138: 0.039 | AB138: 161 | AC138: 4.218 | AD138: 0.06 | AE138: 0 | AF138: 0 | AG138: 0 | AH138: 0 | AI138: 0 | AJ138: 0 | AK138: 100 | AL138: 0.256 | AM138: 0.016 | AN138: 154 | AO138: 72.946 | AP138: 0.112 | AQ138: 158 | AR138: 3.929 | AS138: 0.064 | AT138: 0 | AU138: 0 | AV138: 0 | AW138: 143 | AX138: 7.858 | AY138: 0.024 | AZ138: 159 | BA138: 0.692 | BB138: 0.016 | BC138: 163 | BD138: 1.849 | BE138: 0.019 | BF138: 119 | BG138: 13.577 | BH138: 0.082 | BI138: 160 | BJ138: 25.758 | BK138: 0.13 | BL138: 160 | BM138: 4.302 | BN138: 0.02 | BO138: 166 | BP138: 0.584 | BQ138: 0.01 | BR138: 147 | BS138: 80.46 | BT138: 0.085 | BU138: 151 | BV138: 0.908 | BW138: 0.011 | BX138: 133 | BY138: 1.705 | BZ138: 0.029 | CA138: 140 | CB138: 0.121 | CC138: 0.004 | CD138: 154 | CE138: 8.405 | CF138: 0.05 | CG138: 158 | CH138: 16.278 | CI138: 0.032 | CJ138: 157 | CK138: 0.234 | CL138: 0.01 | CM138: 0 | CN138: 0 | CO138: 0 | CP138: 0 | CQ138: 0 | CR138: 0 | CS138: 0 | CT138: 0 | CU138: 0 | CV138: 0 | CW138: 0 | CX138: 0 | CY138: 138 | CZ138: 6.596 | DA138: 0.095 | DB138: 137 | DC138: 14.441 | DD138: 0.137 | DE138: 170 | DF138: 0.42 | DG138: 0.005
A139: 2014.125 | B139: 2 | C139: 2014 | D139: 206 | E139: 70.083 | F139: 0.249 | G139: 227 | H139: 216.173 | I139: 0.489 | J139: 205 | K139: 22.113 | L139: 0.075 | M139: 241 | N139: 21.48 | O139: 0.043 | P139: 93 | Q139: 489.81 | R139: 4.202 | S139: 115 | T139: 6.201 | U139: 0.138 | V139: 247 | W139: 3.791 | X139: 0.013 | Y139: 245 | Z139: 3.299 | AA139: 0.031 | AB139: 245 | AC139: 4.125 | AD139: 0.046 | AE139: 0 | AF139: 0 | AG139: 0 | AH139: 0 | AI139: 0 | AJ139: 0 | AK139: 178 | AL139: 0.242 | AM139: 0.019 | AN139: 245 | AO139: 72.84 | AP139: 0.103 | AQ139: 247 | AR139: 3.857 | AS139: 0.063 | AT139: 0 | AU139: 0 | AV139: 0 | AW139: 234 | AX139: 7.884 | AY139: 0.023 | AZ139: 240 | BA139: 0.695 | BB139: 0.015 | BC139: 227 | BD139: 1.852 | BE139: 0.02 | BF139: 197 | BG139: 13.703 | BH139: 0.088 | BI139: 246 | BJ139: 25.857 | BK139: 0.105 | BL139: 246 | BM139: 4.308 | BN139: 0.021 | BO139: 248 | BP139: 0.585 | BQ139: 0.008 | BR139: 240 | BS139: 80.497 | BT139: 0.078 | BU139: 238 | BV139: 0.908 | BW139: 0.014 | BX139: 211 | BY139: 1.696 | BZ139: 0.026 | CA139: 235 | CB139: 0.123 | CC139: 0.004 | CD139: 236 | CE139: 8.404 | CF139: 0.044 | CG139: 244 | CH139: 16.274 | CI139: 0.028 | CJ139: 246 | CK139: 0.235 | CL139: 0.011 | CM139: 0 | CN139: 0 | CO139: 0 | CP139: 0 | CQ139: 0 | CR139: 0 | CS139: 0 | CT139: 0 | CU139: 0 | CV139: 0 | CW139: 0 | CX139: 0 | CY139: 224 | CZ139: 6.665 | DA139: 0.087 | DB139: 224 | DC139: 14.557 | DD139: 0.104 | DE139: 248 | DF139: 0.418 | DG139: 0.004
A140: 2014.208 | B140: 3 | C140: 2014 | D140: 225 | E140: 70.482 | F140: 0.301 | G140: 277 | H140: 216.744 | I140: 0.663 | J140: 270 | K140: 22.178 | L140: 0.098 | M140: 317 | N140: 21.511 | O140: 0.053 | P140: 89 | Q140: 491.995 | R140: 4.071 | S140: 152 | T140: 6.272 | U140: 0.19 | V140: 321 | W140: 3.782 | X140: 0.014 | Y140: 334 | Z140: 3.291 | AA140: 0.032 | AB140: 307 | AC140: 4.179 | AD140: 0.067 | AE140: 0 | AF140: 0 | AG140: 0 | AH140: 0 | AI140: 0 | AJ140: 0 | AK140: 136 | AL140: 0.264 | AM140: 0.019 | AN140: 330 | AO140: 72.738 | AP140: 0.099 | AQ140: 334 | AR140: 3.778 | AS140: 0.071 | AT140: 0 | AU140: 0 | AV140: 0 | AW140: 308 | AX140: 7.915 | AY140: 0.027 | AZ140: 311 | BA140: 0.701 | BB140: 0.014 | BC140: 308 | BD140: 1.878 | BE140: 0.026 | BF140: 224 | BG140: 13.867 | BH140: 0.109 | BI140: 320 | BJ140: 25.995 | BK140: 0.116 | BL140: 330 | BM140: 4.315 | BN140: 0.019 | BO140: 325 | BP140: 0.588 | BQ140: 0.008 | BR140: 313 | BS140: 80.584 | BT140: 0.09 | BU140: 325 | BV140: 0.921 | BW140: 0.017 | BX140: 320 | BY140: 1.713 | BZ140: 0.027 | CA140: 331 | CB140: 0.122 | CC140: 0.004 | CD140: 325 | CE140: 8.401 | CF140: 0.041 | CG140: 328 | CH140: 16.266 | CI140: 0.025 | CJ140: 333 | CK140: 0.238 | CL140: 0.01 | CM140: 0 | CN140: 0 | CO140: 0 | CP140: 0 | CQ140: 0 | CR140: 0 | CS140: 0 | CT140: 0 | CU140: 0 | CV140: 0 | CW140: 0 | CX140: 0 | CY140: 299 | CZ140: 6.854 | DA140: 0.136 | DB140: 287 | DC140: 14.701 | DD140: 0.133 | DE140: 333 | DF140: 0.417 | DG140: 0.004
A141: 2014.292 | B141: 4 | C141: 2014 | D141: 144 | E141: 71.052 | F141: 0.267 | G141: 157 | H141: 217.411 | I141: 0.638 | J141: 155 | K141: 22.283 | L141: 0.088 | M141: 175 | N141: 21.539 | O141: 0.048 | P141: 26 | Q141: 495.657 | R141: 7.786 | S141: 109 | T141: 6.492 | U141: 0.241 | V141: 174 | W141: 3.771 | X141: 0.013 | Y141: 190 | Z141: 3.288 | AA141: 0.032 | AB141: 169 | AC141: 4.282 | AD141: 0.055 | AE141: 0 | AF141: 0 | AG141: 0 | AH141: 0 | AI141: 0 | AJ141: 0 | AK141: 119 | AL141: 0.363 | AM141: 0.027 | AN141: 180 | AO141: 72.633 | AP141: 0.102 | AQ141: 194 | AR141: 3.734 | AS141: 0.051 | AT141: 0 | AU141: 0 | AV141: 0 | AW141: 176 | AX141: 7.941 | AY141: 0.025 | AZ141: 168 | BA141: 0.706 | BB141: 0.014 | BC141: 171 | BD141: 1.89 | BE141: 0.023 | BF141: 149 | BG141: 14.09 | BH141: 0.093 | BI141: 188 | BJ141: 26.092 | BK141: 0.104 | BL141: 190 | BM141: 4.323 | BN141: 0.02 | BO141: 193 | BP141: 0.59 | BQ141: 0.008 | BR141: 173 | BS141: 80.667 | BT141: 0.079 | BU141: 190 | BV141: 0.935 | BW141: 0.014 | BX141: 176 | BY141: 1.731 | BZ141: 0.025 | CA141: 188 | CB141: 0.123 | CC141: 0.004 | CD141: 188 | CE141: 8.396 | CF141: 0.038 | CG141: 175 | CH141: 16.258 | CI141: 0.024 | CJ141: 192 | CK141: 0.24 | CL141: 0.01 | CM141: 0 | CN141: 0 | CO141: 0 | CP141: 0 | CQ141: 0 | CR141: 0 | CS141: 0 | CT141: 0 | CU141: 0 | CV141: 0 | CW141: 0 | CX141: 0 | CY141: 167 | CZ141: 7.026 | DA141: 0.105 | DB141: 154 | DC141: 14.84 | DD141: 0.114 | DE141: 194 | DF141: 0.415 | DG141: 0.004
A142: 2014.375 | B142: 5 | C142: 2014 | D142: 168 | E142: 71.77 | F142: 0.378 | G142: 239 | H142: 218.72 | I142: 0.712 | J142: 261 | K142: 22.444 | L142: 0.111 | M142: 254 | N142: 21.608 | O142: 0.059 | P142: 92 | Q142: 518.71 | R142: 13.007 | S142: 169 | T142: 6.531 | U142: 0.213 | V142: 256 | W142: 3.771 | X142: 0.013 | Y142: 254 | Z142: 3.304 | AA142: 0.033 | AB142: 253 | AC142: 4.421 | AD142: 0.075 | AE142: 0 | AF142: 0 | AG142: 0 | AH142: 0 | AI142: 0 | AJ142: 0 | AK142: 145 | AL142: 0.43 | AM142: 0.03 | AN142: 281 | AO142: 72.601 | AP142: 0.112 | AQ142: 285 | AR142: 3.661 | AS142: 0.058 | AT142: 0 | AU142: 0 | AV142: 0 | AW142: 253 | AX142: 7.983 | AY142: 0.029 | AZ142: 269 | BA142: 0.718 | BB142: 0.013 | BC142: 218 | BD142: 1.897 | BE142: 0.022 | BF142: 176 | BG142: 14.332 | BH142: 0.133 | BI142: 274 | BJ142: 26.204 | BK142: 0.108 | BL142: 270 | BM142: 4.334 | BN142: 0.021 | BO142: 242 | BP142: 0.59 | BQ142: 0.011 | BR142: 229 | BS142: 80.726 | BT142: 0.103 | BU142: 268 | BV142: 0.945 | BW142: 0.017 | BX142: 261 | BY142: 1.758 | BZ142: 0.024 | CA142: 273 | CB142: 0.124 | CC142: 0.005 | CD142: 260 | CE142: 8.404 | CF142: 0.041 | CG142: 260 | CH142: 16.26 | CI142: 0.031 | CJ142: 262 | CK142: 0.242 | CL142: 0.011 | CM142: 0 | CN142: 0 | CO142: 0 | CP142: 0 | CQ142: 0 | CR142: 0 | CS142: 0 | CT142: 0 | CU142: 0 | CV142: 0 | CW142: 0 | CX142: 0 | CY142: 240 | CZ142: 7.213 | DA142: 0.14 | DB142: 188 | DC142: 14.986 | DD142: 0.136 | DE142: 279 | DF142: 0.416 | DG142: 0.005
A143: 2014.458 | B143: 6 | C143: 2014 | D143: 105 | E143: 72.356 | F143: 0.3 | G143: 121 | H143: 219.533 | I143: 0.668 | J143: 118 | K143: 22.583 | L143: 0.077 | M143: 140 | N143: 21.636 | O143: 0.054 | P143: 83 | Q143: 533.964 | R143: 11.076 | S143: 94 | T143: 6.321 | U143: 0.231 | V143: 137 | W143: 3.775 | X143: 0.012 | Y143: 144 | Z143: 3.315 | AA143: 0.031 | AB143: 129 | AC143: 4.525 | AD143: 0.072 | AE143: 0 | AF143: 0 | AG143: 0 | AH143: 0 | AI143: 0 | AJ143: 0 | AK143: 89 | AL143: 0.549 | AM143: 0.045 | AN143: 137 | AO143: 72.659 | AP143: 0.094 | AQ143: 141 | AR143: 3.63 | AS143: 0.051 | AT143: 0 | AU143: 0 | AV143: 0 | AW143: 142 | AX143: 8.012 | AY143: 0.023 | AZ143: 126 | BA143: 0.728 | BB143: 0.011 | BC143: 105 | BD143: 1.9 | BE143: 0.016 | BF143: 106 | BG143: 14.538 | BH143: 0.099 | BI143: 143 | BJ143: 26.274 | BK143: 0.105 | BL143: 139 | BM143: 4.343 | BN143: 0.021 | BO143: 137 | BP143: 0.593 | BQ143: 0.01 | BR143: 113 | BS143: 80.734 | BT143: 0.093 | BU143: 137 | BV143: 0.953 | BW143: 0.016 | BX143: 128 | BY143: 1.777 | BZ143: 0.022 | CA143: 138 | CB143: 0.127 | CC143: 0.004 | CD143: 144 | CE143: 8.413 | CF143: 0.038 | CG143: 138 | CH143: 16.273 | CI143: 0.029 | CJ143: 136 | CK143: 0.246 | CL143: 0.01 | CM143: 0 | CN143: 0 | CO143: 0 | CP143: 0 | CQ143: 0 | CR143: 0 | CS143: 0 | CT143: 0 | CU143: 0 | CV143: 0 | CW143: 0 | CX143: 0 | CY143: 122 | CZ143: 7.373 | DA143: 0.131 | DB143: 115 | DC143: 15.109 | DD143: 0.1 | DE143: 135 | DF143: 0.417 | DG143: 0.004
A144: 2014.542 | B144: 7 | C144: 2014 | D144: 181 | E144: 72.967 | F144: 0.267 | G144: 259 | H144: 220.184 | I144: 0.609 | J144: 264 | K144: 22.672 | L144: 0.075 | M144: 324 | N144: 21.678 | O144: 0.05 | P144: 125 | Q144: 537.041 | R144: 7.18 | S144: 149 | T144: 6.157 | U144: 0.135 | V144: 317 | W144: 3.775 | X144: 0.012 | Y144: 328 | Z144: 3.315 | AA144: 0.031 | AB144: 270 | AC144: 4.628 | AD144: 0.057 | AE144: 0 | AF144: 0 | AG144: 0 | AH144: 0 | AI144: 0 | AJ144: 0 | AK144: 161 | AL144: 0.6 | AM144: 0.016 | AN144: 332 | AO144: 72.646 | AP144: 0.101 | AQ144: 336 | AR144: 3.574 | AS144: 0.054 | AT144: 0 | AU144: 0 | AV144: 0 | AW144: 318 | AX144: 8.045 | AY144: 0.022 | AZ144: 305 | BA144: 0.736 | BB144: 0.01 | BC144: 280 | BD144: 1.908 | BE144: 0.018 | BF144: 190 | BG144: 14.729 | BH144: 0.087 | BI144: 332 | BJ144: 26.383 | BK144: 0.094 | BL144: 330 | BM144: 4.352 | BN144: 0.019 | BO144: 318 | BP144: 0.595 | BQ144: 0.009 | BR144: 321 | BS144: 80.823 | BT144: 0.091 | BU144: 313 | BV144: 0.963 | BW144: 0.015 | BX144: 305 | BY144: 1.792 | BZ144: 0.02 | CA144: 317 | CB144: 0.125 | CC144: 0.004 | CD144: 326 | CE144: 8.417 | CF144: 0.033 | CG144: 331 | CH144: 16.276 | CI144: 0.029 | CJ144: 318 | CK144: 0.246 | CL144: 0.01 | CM144: 0 | CN144: 0 | CO144: 0 | CP144: 0 | CQ144: 0 | CR144: 0 | CS144: 0 | CT144: 0 | CU144: 0 | CV144: 0 | CW144: 0 | CX144: 0 | CY144: 281 | CZ144: 7.518 | DA144: 0.111 | DB144: 254 | DC144: 15.272 | DD144: 0.09 | DE144: 332 | DF144: 0.418 | DG144: 0.004
A145: 2014.625 | B145: 8 | C145: 2014 | D145: 224 | E145: 73.438 | F145: 0.319 | G145: 253 | H145: 220.551 | I145: 0.686 | J145: 271 | K145: 22.7 | L145: 0.08 | M145: 304 | N145: 21.71 | O145: 0.06 | P145: 101 | Q145: 533.505 | R145: 3.887 | S145: 146 | T145: 6.156 | U145: 0.123 | V145: 299 | W145: 3.771 | X145: 0.012 | Y145: 310 | Z145: 3.322 | AA145: 0.03 | AB145: 265 | AC145: 4.674 | AD145: 0.056 | AE145: 0 | AF145: 0 | AG145: 0 | AH145: 0 | AI145: 0 | AJ145: 0 | AK145: 200 | AL145: 0.579 | AM145: 0.02 | AN145: 306 | AO145: 72.571 | AP145: 0.105 | AQ145: 315 | AR145: 3.556 | AS145: 0.051 | AT145: 0 | AU145: 0 | AV145: 0 | AW145: 295 | AX145: 8.073 | AY145: 0.029 | AZ145: 291 | BA145: 0.738 | BB145: 0.011 | BC145: 291 | BD145: 1.916 | BE145: 0.017 | BF145: 210 | BG145: 14.892 | BH145: 0.091 | BI145: 310 | BJ145: 26.468 | BK145: 0.097 | BL145: 307 | BM145: 4.358 | BN145: 0.018 | BO145: 297 | BP145: 0.595 | BQ145: 0.009 | BR145: 284 | BS145: 80.849 | BT145: 0.101 | BU145: 306 | BV145: 0.973 | BW145: 0.015 | BX145: 278 | BY145: 1.804 | BZ145: 0.023 | CA145: 317 | CB145: 0.125 | CC145: 0.004 | CD145: 311 | CE145: 8.419 | CF145: 0.033 | CG145: 313 | CH145: 16.275 | CI145: 0.034 | CJ145: 305 | CK145: 0.245 | CL145: 0.01 | CM145: 0 | CN145: 0 | CO145: 0 | CP145: 0 | CQ145: 0 | CR145: 0 | CS145: 0 | CT145: 0 | CU145: 0 | CV145: 0 | CW145: 0 | CX145: 0 | CY145: 271 | CZ145: 7.607 | DA145: 0.107 | DB145: 249 | DC145: 15.361 | DD145: 0.099 | DE145: 313 | DF145: 0.417 | DG145: 0.004
A146: 2014.708 | B146: 9 | C146: 2014 | D146: 239 | E146: 74.105 | F146: 0.242 | G146: 255 | H146: 221.346 | I146: 0.523 | J146: 241 | K146: 22.759 | L146: 0.053 | M146: 263 | N146: 21.768 | O146: 0.044 | P146: 125 | Q146: 530.173 | R146: 2.54 | S146: 197 | T146: 6.253 | U146: 0.145 | V146: 266 | W146: 3.766 | X146: 0.012 | Y146: 284 | Z146: 3.35 | AA146: 0.026 | AB146: 263 | AC146: 4.696 | AD146: 0.042 | AE146: 0 | AF146: 0 | AG146: 0 | AH146: 0 | AI146: 0 | AJ146: 0 | AK146: 225 | AL146: 0.53 | AM146: 0.019 | AN146: 279 | AO146: 72.568 | AP146: 0.094 | AQ146: 277 | AR146: 3.558 | AS146: 0.053 | AT146: 0 | AU146: 0 | AV146: 0 | AW146: 276 | AX146: 8.105 | AY146: 0.023 | AZ146: 270 | BA146: 0.747 | BB146: 0.01 | BC146: 271 | BD146: 1.922 | BE146: 0.016 | BF146: 239 | BG146: 15.084 | BH146: 0.085 | BI146: 275 | BJ146: 26.49 | BK146: 0.088 | BL146: 284 | BM146: 4.362 | BN146: 0.017 | BO146: 282 | BP146: 0.593 | BQ146: 0.009 | BR146: 272 | BS146: 80.918 | BT146: 0.09 | BU146: 277 | BV146: 0.982 | BW146: 0.015 | BX146: 267 | BY146: 1.822 | BZ146: 0.019 | CA146: 271 | CB146: 0.125 | CC146: 0.004 | CD146: 284 | CE146: 8.432 | CF146: 0.032 | CG146: 277 | CH146: 16.3 | CI146: 0.032 | CJ146: 279 | CK146: 0.242 | CL146: 0.011 | CM146: 0 | CN146: 0 | CO146: 0 | CP146: 0 | CQ146: 0 | CR146: 0 | CS146: 0 | CT146: 0 | CU146: 0 | CV146: 0 | CW146: 0 | CX146: 0 | CY146: 252 | CZ146: 7.73 | DA146: 0.089 | DB146: 239 | DC146: 15.522 | DD146: 0.073 | DE146: 273 | DF146: 0.42 | DG146: 0.004
A147: 2014.792 | B147: 10 | C147: 2014 | D147: 190 | E147: 74.567 | F147: 0.196 | G147: 255 | H147: 221.769 | I147: 0.429 | J147: 254 | K147: 22.756 | L147: 0.052 | M147: 282 | N147: 21.759 | O147: 0.041 | P147: 108 | Q147: 524.728 | R147: 2.5 | S147: 156 | T147: 6.36 | U147: 0.124 | V147: 280 | W147: 3.758 | X147: 0.012 | Y147: 294 | Z147: 3.352 | AA147: 0.027 | AB147: 278 | AC147: 4.66 | AD147: 0.048 | AE147: 0 | AF147: 0 | AG147: 0 | AH147: 0 | AI147: 0 | AJ147: 0 | AK147: 192 | AL147: 0.46 | AM147: 0.032 | AN147: 290 | AO147: 72.513 | AP147: 0.088 | AQ147: 295 | AR147: 3.492 | AS147: 0.057 | AT147: 0 | AU147: 0 | AV147: 0 | AW147: 268 | AX147: 8.131 | AY147: 0.021 | AZ147: 275 | BA147: 0.751 | BB147: 0.009 | BC147: 278 | BD147: 1.931 | BE147: 0.017 | BF147: 206 | BG147: 15.271 | BH147: 0.079 | BI147: 280 | BJ147: 26.591 | BK147: 0.084 | BL147: 292 | BM147: 4.37 | BN147: 0.016 | BO147: 289 | BP147: 0.594 | BQ147: 0.009 | BR147: 285 | BS147: 80.96 | BT147: 0.079 | BU147: 289 | BV147: 0.993 | BW147: 0.015 | BX147: 271 | BY147: 1.835 | BZ147: 0.018 | CA147: 289 | CB147: 0.127 | CC147: 0.004 | CD147: 291 | CE147: 8.434 | CF147: 0.031 | CG147: 284 | CH147: 16.301 | CI147: 0.03 | CJ147: 291 | CK147: 0.244 | CL147: 0.011 | CM147: 0 | CN147: 0 | CO147: 0 | CP147: 0 | CQ147: 0 | CR147: 0 | CS147: 0 | CT147: 0 | CU147: 0 | CV147: 0 | CW147: 0 | CX147: 0 | CY147: 256 | CZ147: 7.844 | DA147: 0.086 | DB147: 237 | DC147: 15.649 | DD147: 0.079 | DE147: 292 | DF147: 0.42 | DG147: 0.004
A148: 2014.875 | B148: 11 | C148: 2014 | D148: 250 | E148: 74.775 | F148: 0.14 | G148: 268 | H148: 221.622 | I148: 0.422 | J148: 263 | K148: 22.73 | L148: 0.055 | M148: 284 | N148: 21.736 | O148: 0.041 | P148: 166 | Q148: 513.057 | R148: 3.776 | S148: 175 | T148: 6.151 | U148: 0.179 | V148: 279 | W148: 3.751 | X148: 0.011 | Y148: 284 | Z148: 3.352 | AA148: 0.027 | AB148: 282 | AC148: 4.544 | AD148: 0.059 | AE148: 0 | AF148: 0 | AG148: 0 | AH148: 0 | AI148: 0 | AJ148: 0 | AK148: 226 | AL148: 0.377 | AM148: 0.026 | AN148: 285 | AO148: 72.435 | AP148: 0.094 | AQ148: 284 | AR148: 3.457 | AS148: 0.05 | AT148: 0 | AU148: 0 | AV148: 0 | AW148: 282 | AX148: 8.15 | AY148: 0.021 | AZ148: 270 | BA148: 0.754 | BB148: 0.009 | BC148: 280 | BD148: 1.93 | BE148: 0.013 | BF148: 258 | BG148: 15.42 | BH148: 0.066 | BI148: 285 | BJ148: 26.621 | BK148: 0.075 | BL148: 286 | BM148: 4.378 | BN148: 0.016 | BO148: 285 | BP148: 0.595 | BQ148: 0.009 | BR148: 279 | BS148: 80.974 | BT148: 0.081 | BU148: 277 | BV148: 1.001 | BW148: 0.015 | BX148: 278 | BY148: 1.842 | BZ148: 0.019 | CA148: 285 | CB148: 0.128 | CC148: 0.004 | CD148: 282 | CE148: 8.438 | CF148: 0.03 | CG148: 285 | CH148: 16.296 | CI148: 0.031 | CJ148: 281 | CK148: 0.245 | CL148: 0.01 | CM148: 0 | CN148: 0 | CO148: 0 | CP148: 0 | CQ148: 0 | CR148: 0 | CS148: 0 | CT148: 0 | CU148: 0 | CV148: 0 | CW148: 0 | CX148: 0 | CY148: 267 | CZ148: 7.898 | DA148: 0.074 | DB148: 254 | DC148: 15.737 | DD148: 0.068 | DE148: 282 | DF148: 0.417 | DG148: 0.004
A149: 2014.958 | B149: 12 | C149: 2014 | D149: 252 | E149: 74.879 | F149: 0.149 | G149: 290 | H149: 221.845 | I149: 0.399 | J149: 267 | K149: 22.75 | L149: 0.052 | M149: 289 | N149: 21.723 | O149: 0.041 | P149: 105 | Q149: 512.04 | R149: 3.453 | S149: 190 | T149: 6.021 | U149: 0.135 | V149: 292 | W149: 3.731 | X149: 0.013 | Y149: 298 | Z149: 3.343 | AA149: 0.027 | AB149: 303 | AC149: 4.378 | AD149: 0.065 | AE149: 0 | AF149: 0 | AG149: 0 | AH149: 0 | AI149: 0 | AJ149: 0 | AK149: 233 | AL149: 0.32 | AM149: 0.02 | AN149: 293 | AO149: 72.373 | AP149: 0.095 | AQ149: 302 | AR149: 3.398 | AS149: 0.059 | AT149: 0 | AU149: 0 | AV149: 0 | AW149: 291 | AX149: 8.177 | AY149: 0.018 | AZ149: 290 | BA149: 0.751 | BB149: 0.009 | BC149: 299 | BD149: 1.935 | BE149: 0.014 | BF149: 268 | BG149: 15.514 | BH149: 0.061 | BI149: 295 | BJ149: 26.697 | BK149: 0.081 | BL149: 297 | BM149: 4.385 | BN149: 0.017 | BO149: 295 | BP149: 0.595 | BQ149: 0.009 | BR149: 283 | BS149: 81.007 | BT149: 0.075 | BU149: 301 | BV149: 1.006 | BW149: 0.015 | BX149: 298 | BY149: 1.846 | BZ149: 0.018 | CA149: 291 | CB149: 0.128 | CC149: 0.004 | CD149: 297 | CE149: 8.429 | CF149: 0.032 | CG149: 294 | CH149: 16.281 | CI149: 0.03 | CJ149: 300 | CK149: 0.244 | CL149: 0.01 | CM149: 0 | CN149: 0 | CO149: 0 | CP149: 0 | CQ149: 0 | CR149: 0 | CS149: 0 | CT149: 0 | CU149: 0 | CV149: 0 | CW149: 0 | CX149: 0 | CY149: 286 | CZ149: 7.977 | DA149: 0.069 | DB149: 270 | DC149: 15.847 | DD149: 0.062 | DE149: 299 | DF149: 0.416 | DG149: 0.004
A150: 2015.042 | B150: 1 | C150: 2015 | D150: 227 | E150: 74.948 | F150: 0.166 | G150: 265 | H150: 221.416 | I150: 0.429 | J150: 252 | K150: 22.69 | L150: 0.061 | M150: 277 | N150: 21.678 | O150: 0.038 | P150: 74 | Q150: 506.658 | R150: 5.033 | S150: 119 | T150: 6.082 | U150: 0.166 | V150: 279 | W150: 3.715 | X150: 0.015 | Y150: 284 | Z150: 3.34 | AA150: 0.029 | AB150: 288 | AC150: 4.212 | AD150: 0.065 | AE150: 0 | AF150: 0 | AG150: 0 | AH150: 0 | AI150: 0 | AJ150: 0 | AK150: 233 | AL150: 0.259 | AM150: 0.023 | AN150: 285 | AO150: 72.301 | AP150: 0.087 | AQ150: 287 | AR150: 3.34 | AS150: 0.057 | AT150: 0 | AU150: 0 | AV150: 0 | AW150: 267 | AX150: 8.192 | AY150: 0.021 | AZ150: 273 | BA150: 0.749 | BB150: 0.008 | BC150: 266 | BD150: 1.938 | BE150: 0.016 | BF150: 237 | BG150: 15.607 | BH150: 0.079 | BI150: 275 | BJ150: 26.771 | BK150: 0.096 | BL150: 284 | BM150: 4.388 | BN150: 0.017 | BO150: 282 | BP150: 0.596 | BQ150: 0.009 | BR150: 263 | BS150: 81.044 | BT150: 0.081 | BU150: 273 | BV150: 1.008 | BW150: 0.014 | BX150: 282 | BY150: 1.845 | BZ150: 0.018 | CA150: 288 | CB150: 0.128 | CC150: 0.004 | CD150: 282 | CE150: 8.429 | CF150: 0.031 | CG150: 282 | CH150: 16.275 | CI150: 0.032 | CJ150: 287 | CK150: 0.244 | CL150: 0.011 | CM150: 0 | CN150: 0 | CO150: 0 | CP150: 0 | CQ150: 0 | CR150: 0 | CS150: 0 | CT150: 0 | CU150: 0 | CV150: 0 | CW150: 0 | CX150: 0 | CY150: 259 | CZ150: 7.971 | DA150: 0.071 | DB150: 247 | DC150: 15.917 | DD150: 0.073 | DE150: 281 | DF150: 0.415 | DG150: 0.004
A151: 2015.125 | B151: 2 | C151: 2015 | D151: 124 | E151: 75.224 | F151: 0.208 | G151: 164 | H151: 220.927 | I151: 0.497 | J151: 157 | K151: 22.685 | L151: 0.069 | M151: 172 | N151: 21.659 | O151: 0.042 | P151: 30 | Q151: 498.229 | R151: 4.52 | S151: 97 | T151: 6.244 | U151: 0.157 | V151: 173 | W151: 3.694 | X151: 0.015 | Y151: 180 | Z151: 3.336 | AA151: 0.036 | AB151: 179 | AC151: 4.098 | AD151: 0.043 | AE151: 0 | AF151: 0 | AG151: 0 | AH151: 0 | AI151: 0 | AJ151: 0 | AK151: 99 | AL151: 0.234 | AM151: 0.014 | AN151: 182 | AO151: 72.19 | AP151: 0.103 | AQ151: 188 | AR151: 3.261 | AS151: 0.056 | AT151: 0 | AU151: 0 | AV151: 0 | AW151: 176 | AX151: 8.224 | AY151: 0.027 | AZ151: 157 | BA151: 0.759 | BB151: 0.012 | BC151: 182 | BD151: 1.956 | BE151: 0.018 | BF151: 136 | BG151: 15.795 | BH151: 0.087 | BI151: 161 | BJ151: 26.916 | BK151: 0.087 | BL151: 182 | BM151: 4.398 | BN151: 0.018 | BO151: 179 | BP151: 0.599 | BQ151: 0.01 | BR151: 173 | BS151: 81.107 | BT151: 0.078 | BU151: 185 | BV151: 1.014 | BW151: 0.014 | BX151: 173 | BY151: 1.861 | BZ151: 0.022 | CA151: 169 | CB151: 0.13 | CC151: 0.004 | CD151: 183 | CE151: 8.423 | CF151: 0.035 | CG151: 177 | CH151: 16.253 | CI151: 0.035 | CJ151: 181 | CK151: 0.244 | CL151: 0.01 | CM151: 147 | CN151: 1.148 | CO151: 0.023 | CP151: 0 | CQ151: 0 | CR151: 0 | CS151: 0 | CT151: 0 | CU151: 0 | CV151: 0 | CW151: 0 | CX151: 0 | CY151: 145 | CZ151: 8.009 | DA151: 0.086 | DB151: 142 | DC151: 16.013 | DD151: 0.096 | DE151: 186 | DF151: 0.413 | DG151: 0.005
A152: 2015.208 | B152: 3 | C152: 2015 | D152: 217 | E152: 75.64 | F152: 0.264 | G152: 240 | H152: 220.904 | I152: 0.496 | J152: 252 | K152: 22.686 | L152: 0.074 | M152: 277 | N152: 21.667 | O152: 0.041 | P152: 135 | Q152: 490.532 | R152: 4.159 | S152: 0 | T152: 0 | U152: 0 | V152: 275 | W152: 3.688 | X152: 0.014 | Y152: 280 | Z152: 3.344 | AA152: 0.035 | AB152: 250 | AC152: 4.092 | AD152: 0.048 | AE152: 0 | AF152: 0 | AG152: 0 | AH152: 0 | AI152: 0 | AJ152: 0 | AK152: 191 | AL152: 0.261 | AM152: 0.016 | AN152: 285 | AO152: 72.136 | AP152: 0.096 | AQ152: 285 | AR152: 3.186 | AS152: 0.056 | AT152: 0 | AU152: 0 | AV152: 0 | AW152: 264 | AX152: 8.25 | AY152: 0.028 | AZ152: 267 | BA152: 0.762 | BB152: 0.012 | BC152: 274 | BD152: 1.966 | BE152: 0.02 | BF152: 223 | BG152: 15.994 | BH152: 0.111 | BI152: 264 | BJ152: 27.024 | BK152: 0.095 | BL152: 283 | BM152: 4.404 | BN152: 0.019 | BO152: 275 | BP152: 0.601 | BQ152: 0.011 | BR152: 271 | BS152: 81.157 | BT152: 0.079 | BU152: 283 | BV152: 1.019 | BW152: 0.014 | BX152: 268 | BY152: 1.871 | BZ152: 0.024 | CA152: 283 | CB152: 0.131 | CC152: 0.004 | CD152: 284 | CE152: 8.425 | CF152: 0.038 | CG152: 279 | CH152: 16.257 | CI152: 0.038 | CJ152: 277 | CK152: 0.244 | CL152: 0.011 | CM152: 276 | CN152: 1.163 | CO152: 0.022 | CP152: 0 | CQ152: 0 | CR152: 0 | CS152: 0 | CT152: 0 | CU152: 0 | CV152: 0 | CW152: 0 | CX152: 0 | CY152: 237 | CZ152: 8.112 | DA152: 0.096 | DB152: 250 | DC152: 16.123 | DD152: 0.106 | DE152: 276 | DF152: 0.412 | DG152: 0.004
A153: 2015.292 | B153: 4 | C153: 2015 | D153: 160 | E153: 76.192 | F153: 0.295 | G153: 172 | H153: 221.32 | I153: 0.615 | J153: 175 | K153: 22.727 | L153: 0.083 | M153: 177 | N153: 21.682 | O153: 0.046 | P153: 44 | Q153: 489.543 | R153: 5.699 | S153: 0 | T153: 0 | U153: 0 | V153: 177 | W153: 3.681 | X153: 0.015 | Y153: 185 | Z153: 3.34 | AA153: 0.04 | AB153: 169 | AC153: 4.149 | AD153: 0.053 | AE153: 0 | AF153: 0 | AG153: 0 | AH153: 0 | AI153: 0 | AJ153: 0 | AK153: 115 | AL153: 0.293 | AM153: 0.017 | AN153: 185 | AO153: 72.103 | AP153: 0.113 | AQ153: 187 | AR153: 3.15 | AS153: 0.05 | AT153: 0 | AU153: 0 | AV153: 0 | AW153: 178 | AX153: 8.283 | AY153: 0.027 | AZ153: 183 | BA153: 0.77 | BB153: 0.01 | BC153: 177 | BD153: 1.969 | BE153: 0.019 | BF153: 164 | BG153: 16.189 | BH153: 0.093 | BI153: 179 | BJ153: 27.132 | BK153: 0.09 | BL153: 183 | BM153: 4.412 | BN153: 0.021 | BO153: 173 | BP153: 0.601 | BQ153: 0.012 | BR153: 183 | BS153: 81.231 | BT153: 0.088 | BU153: 184 | BV153: 1.028 | BW153: 0.012 | BX153: 181 | BY153: 1.888 | BZ153: 0.024 | CA153: 184 | CB153: 0.13 | CC153: 0.005 | CD153: 182 | CE153: 8.424 | CF153: 0.039 | CG153: 183 | CH153: 16.246 | CI153: 0.035 | CJ153: 181 | CK153: 0.244 | CL153: 0.012 | CM153: 182 | CN153: 1.173 | CO153: 0.021 | CP153: 0 | CQ153: 0 | CR153: 0 | CS153: 0 | CT153: 0 | CU153: 0 | CV153: 0 | CW153: 0 | CX153: 0 | CY153: 168 | CZ153: 8.249 | DA153: 0.098 | DB153: 176 | DC153: 16.26 | DD153: 0.103 | DE153: 186 | DF153: 0.412 | DG153: 0.005
A154: 2015.375 | B154: 5 | C154: 2015 | D154: 146 | E154: 77.321 | F154: 0.236 | G154: 168 | H154: 221.96 | I154: 0.559 | J154: 165 | K154: 22.834 | L154: 0.079 | M154: 179 | N154: 21.701 | O154: 0.049 | P154: 88 | Q154: 507.011 | R154: 5.892 | S154: 0 | T154: 0 | U154: 0 | V154: 186 | W154: 3.678 | X154: 0.015 | Y154: 194 | Z154: 3.35 | AA154: 0.036 | AB154: 167 | AC154: 4.302 | AD154: 0.049 | AE154: 0 | AF154: 0 | AG154: 0 | AH154: 0 | AI154: 0 | AJ154: 0 | AK154: 135 | AL154: 0.406 | AM154: 0.022 | AN154: 199 | AO154: 72.139 | AP154: 0.132 | AQ154: 193 | AR154: 3.121 | AS154: 0.046 | AT154: 0 | AU154: 0 | AV154: 0 | AW154: 183 | AX154: 8.338 | AY154: 0.024 | AZ154: 176 | BA154: 0.788 | BB154: 0.014 | BC154: 156 | BD154: 1.986 | BE154: 0.018 | BF154: 156 | BG154: 16.506 | BH154: 0.093 | BI154: 196 | BJ154: 27.328 | BK154: 0.084 | BL154: 195 | BM154: 4.42 | BN154: 0.018 | BO154: 197 | BP154: 0.603 | BQ154: 0.01 | BR154: 192 | BS154: 81.363 | BT154: 0.085 | BU154: 192 | BV154: 1.046 | BW154: 0.012 | BX154: 182 | BY154: 1.916 | BZ154: 0.022 | CA154: 200 | CB154: 0.132 | CC154: 0.005 | CD154: 190 | CE154: 8.432 | CF154: 0.041 | CG154: 196 | CH154: 16.243 | CI154: 0.036 | CJ154: 199 | CK154: 0.245 | CL154: 0.01 | CM154: 198 | CN154: 1.189 | CO154: 0.018 | CP154: 0 | CQ154: 0 | CR154: 0 | CS154: 0 | CT154: 0 | CU154: 0 | CV154: 0 | CW154: 0 | CX154: 0 | CY154: 150 | CZ154: 8.476 | DA154: 0.102 | DB154: 161 | DC154: 16.469 | DD154: 0.096 | DE154: 196 | DF154: 0.413 | DG154: 0.005
A155: 2015.458 | B155: 6 | C155: 2015 | D155: 136 | E155: 77.726 | F155: 0.327 | G155: 154 | H155: 222.647 | I155: 0.937 | J155: 187 | K155: 22.871 | L155: 0.085 | M155: 234 | N155: 21.739 | O155: 0.063 | P155: 17 | Q155: 527.601 | R155: 6.203 | S155: 0 | T155: 0 | U155: 0 | V155: 235 | W155: 3.676 | X155: 0.016 | Y155: 252 | Z155: 3.35 | AA155: 0.038 | AB155: 176 | AC155: 4.404 | AD155: 0.085 | AE155: 0 | AF155: 0 | AG155: 0 | AH155: 0 | AI155: 0 | AJ155: 0 | AK155: 139 | AL155: 0.456 | AM155: 0.029 | AN155: 231 | AO155: 72.144 | AP155: 0.146 | AQ155: 242 | AR155: 3.107 | AS155: 0.048 | AT155: 0 | AU155: 0 | AV155: 0 | AW155: 240 | AX155: 8.35 | AY155: 0.022 | AZ155: 228 | BA155: 0.791 | BB155: 0.014 | BC155: 196 | BD155: 1.989 | BE155: 0.018 | BF155: 165 | BG155: 16.637 | BH155: 0.115 | BI155: 247 | BJ155: 27.377 | BK155: 0.082 | BL155: 248 | BM155: 4.425 | BN155: 0.019 | BO155: 243 | BP155: 0.605 | BQ155: 0.012 | BR155: 233 | BS155: 81.397 | BT155: 0.098 | BU155: 240 | BV155: 1.051 | BW155: 0.012 | BX155: 229 | BY155: 1.933 | BZ155: 0.026 | CA155: 256 | CB155: 0.132 | CC155: 0.005 | CD155: 217 | CE155: 8.449 | CF155: 0.043 | CG155: 248 | CH155: 16.244 | CI155: 0.037 | CJ155: 253 | CK155: 0.245 | CL155: 0.011 | CM155: 252 | CN155: 1.197 | CO155: 0.021 | CP155: 0 | CQ155: 0 | CR155: 0 | CS155: 0 | CT155: 0 | CU155: 0 | CV155: 0 | CW155: 0 | CX155: 0 | CY155: 195 | CZ155: 8.62 | DA155: 0.129 | DB155: 189 | DC155: 16.575 | DD155: 0.101 | DE155: 251 | DF155: 0.413 | DG155: 0.005
A156: 2015.542 | B156: 7 | C156: 2015 | D156: 209 | E156: 78.169 | F156: 0.306 | G156: 242 | H156: 223.918 | I156: 0.612 | J156: 205 | K156: 23.015 | L156: 0.071 | M156: 244 | N156: 21.873 | O156: 0.044 | P156: 115 | Q156: 527.979 | R156: 5.287 | S156: 0 | T156: 0 | U156: 0 | V156: 293 | W156: 3.674 | X156: 0.016 | Y156: 292 | Z156: 3.349 | AA156: 0.034 | AB156: 243 | AC156: 4.566 | AD156: 0.059 | AE156: 0 | AF156: 0 | AG156: 0 | AH156: 0 | AI156: 0 | AJ156: 0 | AK156: 199 | AL156: 0.513 | AM156: 0.02 | AN156: 255 | AO156: 72.103 | AP156: 0.128 | AQ156: 300 | AR156: 3.091 | AS156: 0.047 | AT156: 0 | AU156: 0 | AV156: 0 | AW156: 287 | AX156: 8.369 | AY156: 0.024 | AZ156: 266 | BA156: 0.805 | BB156: 0.013 | BC156: 178 | BD156: 1.997 | BE156: 0.02 | BF156: 234 | BG156: 16.868 | BH156: 0.095 | BI156: 272 | BJ156: 27.482 | BK156: 0.091 | BL156: 282 | BM156: 4.431 | BN156: 0.019 | BO156: 292 | BP156: 0.612 | BQ156: 0.011 | BR156: 206 | BS156: 81.51 | BT156: 0.093 | BU156: 293 | BV156: 1.053 | BW156: 0.012 | BX156: 265 | BY156: 1.966 | BZ156: 0.023 | CA156: 288 | CB156: 0.135 | CC156: 0.004 | CD156: 291 | CE156: 8.466 | CF156: 0.037 | CG156: 294 | CH156: 16.269 | CI156: 0.032 | CJ156: 294 | CK156: 0.248 | CL156: 0.01 | CM156: 252 | CN156: 1.208 | CO156: 0.02 | CP156: 0 | CQ156: 0 | CR156: 0 | CS156: 0 | CT156: 0 | CU156: 0 | CV156: 0 | CW156: 0 | CX156: 0 | CY156: 227 | CZ156: 8.931 | DA156: 0.104 | DB156: 240 | DC156: 16.733 | DD156: 0.102 | DE156: 300 | DF156: 0.41 | DG156: 0.004
A157: 2015.625 | B157: 8 | C157: 2015 | D157: 202 | E157: 78.727 | F157: 0.296 | G157: 224 | H157: 224.677 | I157: 0.668 | J157: 43 | K157: 23.048 | L157: 0.076 | M157: 250 | N157: 21.901 | O157: 0.052 | P157: 90 | Q157: 528.252 | R157: 3.848 | S157: 0 | T157: 0 | U157: 0 | V157: 76 | W157: 3.666 | X157: 0.018 | Y157: 254 | Z157: 3.35 | AA157: 0.036 | AB157: 229 | AC157: 4.667 | AD157: 0.054 | AE157: 0 | AF157: 0 | AG157: 0 | AH157: 0 | AI157: 0 | AJ157: 0 | AK157: 197 | AL157: 0.536 | AM157: 0.012 | AN157: 27 | AO157: 72.068 | AP157: 0.121 | AQ157: 255 | AR157: 3.077 | AS157: 0.048 | AT157: 0 | AU157: 0 | AV157: 0 | AW157: 245 | AX157: 8.4 | AY157: 0.023 | AZ157: 222 | BA157: 0.816 | BB157: 0.015 | BC157: 239 | BD157: 2.003 | BE157: 0.017 | BF157: 207 | BG157: 17.084 | BH157: 0.112 | BI157: 240 | BJ157: 27.578 | BK157: 0.097 | BL157: 255 | BM157: 4.44 | BN157: 0.019 | BO157: 260 | BP157: 0.613 | BQ157: 0.012 | BR157: 241 | BS157: 81.594 | BT157: 0.083 | BU157: 261 | BV157: 1.063 | BW157: 0.012 | BX157: 249 | BY157: 1.985 | BZ157: 0.026 | CA157: 254 | CB157: 0.136 | CC157: 0.005 | CD157: 247 | CE157: 8.475 | CF157: 0.041 | CG157: 27 | CH157: 16.268 | CI157: 0.034 | CJ157: 259 | CK157: 0.25 | CL157: 0.01 | CM157: 256 | CN157: 1.221 | CO157: 0.021 | CP157: 0 | CQ157: 0 | CR157: 0 | CS157: 0 | CT157: 0 | CU157: 0 | CV157: 0 | CW157: 0 | CX157: 0 | CY157: 215 | CZ157: 9.113 | DA157: 0.116 | DB157: 218 | DC157: 16.862 | DD157: 0.101 | DE157: 251 | DF157: 0.41 | DG157: 0.005
A158: 2015.708 | B158: 9 | C158: 2015 | D158: 114 | E158: 79.648 | F158: 0.237 | G158: 139 | H158: 225.514 | I158: 0.527 | J158: 112 | K158: 23.202 | L158: 0.068 | M158: 161 | N158: 21.947 | O158: 0.045 | P158: 35 | Q158: 523.911 | R158: 4.895 | S158: 0 | T158: 0 | U158: 0 | V158: 171 | W158: 3.659 | X158: 0.015 | Y158: 191 | Z158: 3.357 | AA158: 0.033 | AB158: 147 | AC158: 4.686 | AD158: 0.047 | AE158: 0 | AF158: 0 | AG158: 0 | AH158: 0 | AI158: 0 | AJ158: 0 | AK158: 127 | AL158: 0.474 | AM158: 0.022 | AN158: 139 | AO158: 71.991 | AP158: 0.079 | AQ158: 186 | AR158: 3.008 | AS158: 0.051 | AT158: 0 | AU158: 0 | AV158: 0 | AW158: 167 | AX158: 8.443 | AY158: 0.019 | AZ158: 159 | BA158: 0.826 | BB158: 0.013 | BC158: 154 | BD158: 2.009 | BE158: 0.017 | BF158: 132 | BG158: 17.422 | BH158: 0.08 | BI158: 177 | BJ158: 27.682 | BK158: 0.078 | BL158: 185 | BM158: 4.448 | BN158: 0.017 | BO158: 191 | BP158: 0.615 | BQ158: 0.009 | BR158: 141 | BS158: 81.668 | BT158: 0.08 | BU158: 167 | BV158: 1.079 | BW158: 0.01 | BX158: 160 | BY158: 2.015 | BZ158: 0.024 | CA158: 181 | CB158: 0.139 | CC158: 0.004 | CD158: 165 | CE158: 8.479 | CF158: 0.036 | CG158: 187 | CH158: 16.267 | CI158: 0.033 | CJ158: 181 | CK158: 0.249 | CL158: 0.008 | CM158: 183 | CN158: 1.237 | CO158: 0.021 | CP158: 0 | CQ158: 0 | CR158: 0 | CS158: 0 | CT158: 0 | CU158: 0 | CV158: 0 | CW158: 0 | CX158: 0 | CY158: 137 | CZ158: 9.28 | DA158: 0.105 | DB158: 140 | DC158: 17.08 | DD158: 0.09 | DE158: 196 | DF158: 0.408 | DG158: 0.004
A159: 2015.792 | B159: 10 | C159: 2015 | D159: 198 | E159: 79.876 | F159: 0.214 | G159: 245 | H159: 225.716 | I159: 0.477 | J159: 242 | K159: 23.168 | L159: 0.062 | M159: 277 | N159: 21.947 | O159: 0.041 | P159: 71 | Q159: 527.677 | R159: 4.403 | S159: 0 | T159: 0 | U159: 0 | V159: 279 | W159: 3.651 | X159: 0.013 | Y159: 290 | Z159: 3.353 | AA159: 0.034 | AB159: 268 | AC159: 4.669 | AD159: 0.043 | AE159: 0 | AF159: 0 | AG159: 0 | AH159: 0 | AI159: 0 | AJ159: 0 | AK159: 190 | AL159: 0.429 | AM159: 0.023 | AN159: 279 | AO159: 71.938 | AP159: 0.097 | AQ159: 294 | AR159: 2.996 | AS159: 0.048 | AT159: 0 | AU159: 0 | AV159: 0 | AW159: 277 | AX159: 8.453 | AY159: 0.021 | AZ159: 264 | BA159: 0.829 | BB159: 0.012 | BC159: 260 | BD159: 2.009 | BE159: 0.017 | BF159: 223 | BG159: 17.502 | BH159: 0.081 | BI159: 281 | BJ159: 27.704 | BK159: 0.075 | BL159: 291 | BM159: 4.451 | BN159: 0.017 | BO159: 289 | BP159: 0.615 | BQ159: 0.009 | BR159: 285 | BS159: 81.687 | BT159: 0.072 | BU159: 279 | BV159: 1.081 | BW159: 0.01 | BX159: 264 | BY159: 2.027 | BZ159: 0.021 | CA159: 292 | CB159: 0.138 | CC159: 0.004 | CD159: 289 | CE159: 8.481 | CF159: 0.036 | CG159: 287 | CH159: 16.262 | CI159: 0.033 | CJ159: 293 | CK159: 0.248 | CL159: 0.009 | CM159: 289 | CN159: 1.247 | CO159: 0.018 | CP159: 0 | CQ159: 0 | CR159: 0 | CS159: 0 | CT159: 0 | CU159: 0 | CV159: 0 | CW159: 0 | CX159: 0 | CY159: 243 | CZ159: 9.333 | DA159: 0.1 | DB159: 237 | DC159: 17.152 | DD159: 0.086 | DE159: 291 | DF159: 0.408 | DG159: 0.004
A160: 2015.875 | B160: 11 | C160: 2015 | D160: 244 | E160: 80.195 | F160: 0.211 | G160: 272 | H160: 225.7 | I160: 0.476 | J160: 270 | K160: 23.089 | L160: 0.057 | M160: 279 | N160: 21.923 | O160: 0.037 | P160: 128 | Q160: 521.162 | R160: 4.531 | S160: 0 | T160: 0 | U160: 0 | V160: 279 | W160: 3.638 | X160: 0.015 | Y160: 274 | Z160: 3.358 | AA160: 0.036 | AB160: 276 | AC160: 4.553 | AD160: 0.067 | AE160: 0 | AF160: 0 | AG160: 0 | AH160: 0 | AI160: 0 | AJ160: 0 | AK160: 223 | AL160: 0.339 | AM160: 0.029 | AN160: 278 | AO160: 71.867 | AP160: 0.1 | AQ160: 280 | AR160: 2.953 | AS160: 0.06 | AT160: 0 | AU160: 0 | AV160: 0 | AW160: 276 | AX160: 8.476 | AY160: 0.024 | AZ160: 273 | BA160: 0.825 | BB160: 0.013 | BC160: 281 | BD160: 2.017 | BE160: 0.015 | BF160: 250 | BG160: 17.638 | BH160: 0.08 | BI160: 275 | BJ160: 27.758 | BK160: 0.082 | BL160: 278 | BM160: 4.455 | BN160: 0.019 | BO160: 272 | BP160: 0.616 | BQ160: 0.01 | BR160: 273 | BS160: 81.732 | BT160: 0.07 | BU160: 270 | BV160: 1.083 | BW160: 0.011 | BX160: 278 | BY160: 2.028 | BZ160: 0.021 | CA160: 281 | CB160: 0.138 | CC160: 0.004 | CD160: 279 | CE160: 8.481 | CF160: 0.036 | CG160: 280 | CH160: 16.26 | CI160: 0.037 | CJ160: 282 | CK160: 0.248 | CL160: 0.01 | CM160: 280 | CN160: 1.256 | CO160: 0.018 | CP160: 0 | CQ160: 0 | CR160: 0 | CS160: 0 | CT160: 0 | CU160: 0 | CV160: 0 | CW160: 0 | CX160: 0 | CY160: 262 | CZ160: 9.435 | DA160: 0.112 | DB160: 262 | DC160: 17.224 | DD160: 0.085 | DE160: 280 | DF160: 0.408 | DG160: 0.004
A161: 2015.958 | B161: 12 | C161: 2015 | D161: 234 | E161: 80.349 | F161: 0.213 | G161: 263 | H161: 225.305 | I161: 0.464 | J161: 259 | K161: 23.014 | L161: 0.053 | M161: 265 | N161: 21.888 | O161: 0.042 | P161: 87 | Q161: 515.233 | R161: 3.677 | S161: 0 | T161: 0 | U161: 0 | V161: 263 | W161: 3.622 | X161: 0.014 | Y161: 268 | Z161: 3.35 | AA161: 0.034 | AB161: 260 | AC161: 4.385 | AD161: 0.071 | AE161: 0 | AF161: 0 | AG161: 0 | AH161: 0 | AI161: 0 | AJ161: 0 | AK161: 185 | AL161: 0.281 | AM161: 0.012 | AN161: 270 | AO161: 71.823 | AP161: 0.093 | AQ161: 271 | AR161: 2.873 | AS161: 0.053 | AT161: 0 | AU161: 0 | AV161: 0 | AW161: 267 | AX161: 8.502 | AY161: 0.022 | AZ161: 261 | BA161: 0.829 | BB161: 0.012 | BC161: 266 | BD161: 2.021 | BE161: 0.016 | BF161: 227 | BG161: 17.728 | BH161: 0.075 | BI161: 265 | BJ161: 27.815 | BK161: 0.076 | BL161: 265 | BM161: 4.468 | BN161: 0.018 | BO161: 269 | BP161: 0.618 | BQ161: 0.01 | BR161: 260 | BS161: 81.751 | BT161: 0.074 | BU161: 262 | BV161: 1.087 | BW161: 0.011 | BX161: 267 | BY161: 2.026 | BZ161: 0.021 | CA161: 267 | CB161: 0.139 | CC161: 0.004 | CD161: 269 | CE161: 8.467 | CF161: 0.036 | CG161: 269 | CH161: 16.254 | CI161: 0.032 | CJ161: 271 | CK161: 0.251 | CL161: 0.012 | CM161: 269 | CN161: 1.26 | CO161: 0.018 | CP161: 0 | CQ161: 0 | CR161: 0 | CS161: 0 | CT161: 0 | CU161: 0 | CV161: 0 | CW161: 0 | CX161: 0 | CY161: 239 | CZ161: 9.513 | DA161: 0.092 | DB161: 241 | DC161: 17.304 | DD161: 0.092 | DE161: 271 | DF161: 0.406 | DG161: 0.004
A162: 2016.042 | B162: 1 | C162: 2016 | D162: 269 | E162: 80.568 | F162: 0.219 | G162: 285 | H162: 224.947 | I162: 0.512 | J162: 275 | K162: 22.952 | L162: 0.056 | M162: 283 | N162: 21.852 | O162: 0.041 | P162: 97 | Q162: 513.863 | R162: 3.392 | S162: 0 | T162: 0 | U162: 0 | V162: 291 | W162: 3.603 | X162: 0.013 | Y162: 293 | Z162: 3.348 | AA162: 0.032 | AB162: 294 | AC162: 4.225 | AD162: 0.054 | AE162: 0 | AF162: 0 | AG162: 0 | AH162: 0 | AI162: 0 | AJ162: 0 | AK162: 230 | AL162: 0.233 | AM162: 0.013 | AN162: 285 | AO162: 71.759 | AP162: 0.091 | AQ162: 293 | AR162: 2.797 | AS162: 0.056 | AT162: 0 | AU162: 0 | AV162: 0 | AW162: 288 | AX162: 8.521 | AY162: 0.023 | AZ162: 292 | BA162: 0.831 | BB162: 0.011 | BC162: 293 | BD162: 2.03 | BE162: 0.016 | BF162: 266 | BG162: 17.897 | BH162: 0.092 | BI162: 283 | BJ162: 27.896 | BK162: 0.082 | BL162: 297 | BM162: 4.47 | BN162: 0.016 | BO162: 292 | BP162: 0.621 | BQ162: 0.01 | BR162: 282 | BS162: 81.816 | BT162: 0.077 | BU162: 296 | BV162: 1.094 | BW162: 0.011 | BX162: 296 | BY162: 2.027 | BZ162: 0.02 | CA162: 293 | CB162: 0.139 | CC162: 0.004 | CD162: 290 | CE162: 8.469 | CF162: 0.036 | CG162: 288 | CH162: 16.254 | CI162: 0.032 | CJ162: 284 | CK162: 0.249 | CL162: 0.01 | CM162: 292 | CN162: 1.27 | CO162: 0.022 | CP162: 0 | CQ162: 0 | CR162: 0 | CS162: 0 | CT162: 0 | CU162: 0 | CV162: 0 | CW162: 0 | CX162: 0 | CY162: 282 | CZ162: 9.584 | DA162: 0.088 | DB162: 280 | DC162: 17.424 | DD162: 0.091 | DE162: 296 | DF162: 0.405 | DG162: 0.004
A163: 2016.125 | B163: 2 | C163: 2016 | D163: 251 | E163: 80.847 | F163: 0.225 | G163: 271 | H163: 224.698 | I163: 0.49 | J163: 260 | K163: 22.897 | L163: 0.054 | M163: 277 | N163: 21.821 | O163: 0.041 | P163: 132 | Q163: 511.785 | R163: 6.05 | S163: 0 | T163: 0 | U163: 0 | V163: 286 | W163: 3.591 | X163: 0.013 | Y163: 283 | Z163: 3.343 | AA163: 0.033 | AB163: 287 | AC163: 4.143 | AD163: 0.042 | AE163: 0 | AF163: 0 | AG163: 0 | AH163: 0 | AI163: 0 | AJ163: 0 | AK163: 240 | AL163: 0.227 | AM163: 0.017 | AN163: 276 | AO163: 71.646 | AP163: 0.094 | AQ163: 286 | AR163: 2.734 | AS163: 0.05 | AT163: 0 | AU163: 0 | AV163: 0 | AW163: 261 | AX163: 8.546 | AY163: 0.022 | AZ163: 279 | BA163: 0.835 | BB163: 0.011 | BC163: 269 | BD163: 2.04 | BE163: 0.015 | BF163: 255 | BG163: 18.06 | BH163: 0.105 | BI163: 283 | BJ163: 27.952 | BK163: 0.084 | BL163: 285 | BM163: 4.477 | BN163: 0.018 | BO163: 285 | BP163: 0.621 | BQ163: 0.01 | BR163: 268 | BS163: 81.848 | BT163: 0.071 | BU163: 285 | BV163: 1.101 | BW163: 0.011 | BX163: 280 | BY163: 2.033 | BZ163: 0.02 | CA163: 286 | CB163: 0.14 | CC163: 0.005 | CD163: 287 | CE163: 8.471 | CF163: 0.034 | CG163: 279 | CH163: 16.247 | CI163: 0.03 | CJ163: 286 | CK163: 0.251 | CL163: 0.01 | CM163: 284 | CN163: 1.283 | CO163: 0.018 | CP163: 0 | CQ163: 0 | CR163: 0 | CS163: 0 | CT163: 0 | CU163: 0 | CV163: 0 | CW163: 0 | CX163: 0 | CY163: 267 | CZ163: 9.667 | DA163: 0.091 | DB163: 269 | DC163: 17.541 | DD163: 0.106 | DE163: 283 | DF163: 0.404 | DG163: 0.004
A164: 2016.208 | B164: 3 | C164: 2016 | D164: 199 | E164: 81.377 | F164: 0.261 | G164: 232 | H164: 224.944 | I164: 0.529 | J164: 229 | K164: 22.929 | L164: 0.052 | M164: 248 | N164: 21.819 | O164: 0.043 | P164: 78 | Q164: 512.282 | R164: 5.2 | S164: 0 | T164: 0 | U164: 0 | V164: 252 | W164: 3.58 | X164: 0.015 | Y164: 249 | Z164: 3.333 | AA164: 0.035 | AB164: 238 | AC164: 4.17 | AD164: 0.043 | AE164: 0 | AF164: 0 | AG164: 0 | AH164: 0 | AI164: 0 | AJ164: 0 | AK164: 169 | AL164: 0.272 | AM164: 0.021 | AN164: 251 | AO164: 71.525 | AP164: 0.094 | AQ164: 253 | AR164: 2.71 | AS164: 0.043 | AT164: 0 | AU164: 0 | AV164: 0 | AW164: 249 | AX164: 8.577 | AY164: 0.024 | AZ164: 249 | BA164: 0.841 | BB164: 0.011 | BC164: 245 | BD164: 2.047 | BE164: 0.018 | BF164: 207 | BG164: 18.279 | BH164: 0.115 | BI164: 251 | BJ164: 28.041 | BK164: 0.091 | BL164: 251 | BM164: 4.479 | BN164: 0.017 | BO164: 251 | BP164: 0.623 | BQ164: 0.01 | BR164: 244 | BS164: 81.912 | BT164: 0.084 | BU164: 246 | BV164: 1.111 | BW164: 0.012 | BX164: 251 | BY164: 2.05 | BZ164: 0.023 | CA164: 251 | CB164: 0.141 | CC164: 0.004 | CD164: 251 | CE164: 8.473 | CF164: 0.037 | CG164: 248 | CH164: 16.237 | CI164: 0.033 | CJ164: 247 | CK164: 0.253 | CL164: 0.01 | CM164: 248 | CN164: 1.291 | CO164: 0.021 | CP164: 0 | CQ164: 0 | CR164: 0 | CS164: 0 | CT164: 0 | CU164: 0 | CV164: 0 | CW164: 0 | CX164: 0 | CY164: 237 | CZ164: 9.841 | DA164: 0.11 | DB164: 229 | DC164: 17.718 | DD164: 0.093 | DE164: 254 | DF164: 0.404 | DG164: 0.004
A165: 2016.292 | B165: 4 | C165: 2016 | D165: 189 | E165: 81.836 | F165: 0.355 | G165: 209 | H165: 224.879 | I165: 0.667 | J165: 210 | K165: 22.914 | L165: 0.064 | M165: 269 | N165: 21.83 | O165: 0.05 | P165: 130 | Q165: 509.085 | R165: 8.633 | S165: 0 | T165: 0 | U165: 0 | V165: 263 | W165: 3.57 | X165: 0.016 | Y165: 293 | Z165: 3.331 | AA165: 0.039 | AB165: 230 | AC165: 4.231 | AD165: 0.063 | AE165: 0 | AF165: 0 | AG165: 0 | AH165: 0 | AI165: 0 | AJ165: 0 | AK165: 142 | AL165: 0.306 | AM165: 0.024 | AN165: 292 | AO165: 71.42 | AP165: 0.1 | AQ165: 289 | AR165: 2.654 | AS165: 0.05 | AT165: 0 | AU165: 0 | AV165: 0 | AW165: 260 | AX165: 8.607 | AY165: 0.029 | AZ165: 225 | BA165: 0.852 | BB165: 0.014 | BC165: 244 | BD165: 2.06 | BE165: 0.021 | BF165: 191 | BG165: 18.486 | BH165: 0.122 | BI165: 282 | BJ165: 28.123 | BK165: 0.101 | BL165: 284 | BM165: 4.487 | BN165: 0.02 | BO165: 282 | BP165: 0.624 | BQ165: 0.01 | BR165: 287 | BS165: 81.995 | BT165: 0.091 | BU165: 263 | BV165: 1.123 | BW165: 0.014 | BX165: 243 | BY165: 2.071 | BZ165: 0.028 | CA165: 278 | CB165: 0.145 | CC165: 0.005 | CD165: 290 | CE165: 8.471 | CF165: 0.039 | CG165: 286 | CH165: 16.233 | CI165: 0.035 | CJ165: 291 | CK165: 0.254 | CL165: 0.01 | CM165: 290 | CN165: 1.308 | CO165: 0.02 | CP165: 0 | CQ165: 0 | CR165: 0 | CS165: 0 | CT165: 0 | CU165: 0 | CV165: 0 | CW165: 0 | CX165: 0 | CY165: 216 | CZ165: 10 | DA165: 0.139 | DB165: 224 | DC165: 17.873 | DD165: 0.134 | DE165: 285 | DF165: 0.402 | DG165: 0.005
A166: 2016.375 | B166: 5 | C166: 2016 | D166: 226 | E166: 82.41 | F166: 0.339 | G166: 255 | H166: 225.323 | I166: 0.652 | J166: 232 | K166: 22.907 | L166: 0.068 | M166: 281 | N166: 21.824 | O166: 0.053 | P166: 136 | Q166: 512.717 | R166: 6.555 | S166: 0 | T166: 0 | U166: 0 | V166: 284 | W166: 3.557 | X166: 0.016 | Y166: 286 | Z166: 3.329 | AA166: 0.042 | AB166: 240 | AC166: 4.324 | AD166: 0.065 | AE166: 0 | AF166: 0 | AG166: 0 | AH166: 0 | AI166: 0 | AJ166: 0 | AK166: 135 | AL166: 0.355 | AM166: 0.021 | AN166: 285 | AO166: 71.298 | AP166: 0.105 | AQ166: 288 | AR166: 2.615 | AS166: 0.043 | AT166: 0 | AU166: 0 | AV166: 0 | AW166: 282 | AX166: 8.632 | AY166: 0.024 | AZ166: 270 | BA166: 0.862 | BB166: 0.015 | BC166: 253 | BD166: 2.067 | BE166: 0.018 | BF166: 222 | BG166: 18.729 | BH166: 0.113 | BI166: 288 | BJ166: 28.203 | BK166: 0.091 | BL166: 290 | BM166: 4.49 | BN166: 0.02 | BO166: 288 | BP166: 0.622 | BQ166: 0.01 | BR166: 284 | BS166: 82.075 | BT166: 0.097 | BU166: 275 | BV166: 1.139 | BW166: 0.014 | BX166: 280 | BY166: 2.084 | BZ166: 0.03 | CA166: 284 | CB166: 0.143 | CC166: 0.005 | CD166: 289 | CE166: 8.469 | CF166: 0.039 | CG166: 286 | CH166: 16.203 | CI166: 0.04 | CJ166: 288 | CK166: 0.253 | CL166: 0.009 | CM166: 286 | CN166: 1.331 | CO166: 0.019 | CP166: 0 | CQ166: 0 | CR166: 0 | CS166: 0 | CT166: 0 | CU166: 0 | CV166: 0 | CW166: 0 | CX166: 0 | CY166: 258 | CZ166: 10.159 | DA166: 0.127 | DB166: 244 | DC166: 17.988 | DD166: 0.112 | DE166: 290 | DF166: 0.402 | DG166: 0.005
A167: 2016.458 | B167: 6 | C167: 2016 | D167: 8 | E167: 83.502 | F167: 0.343 | G167: 5 | H167: 226.718 | I167: 0.421 | J167: 5 | K167: 23.115 | L167: 0.042 | M167: 11 | N167: 21.915 | O167: 0.045 | P167: 0 | Q167: 0 | R167: 0 | S167: 0 | T167: 0 | U167: 0 | V167: 12 | W167: 3.553 | X167: 0.015 | Y167: 11 | Z167: 3.323 | AA167: 0.061 | AB167: 6 | AC167: 4.544 | AD167: 0.108 | AE167: 0 | AF167: 0 | AG167: 0 | AH167: 0 | AI167: 0 | AJ167: 0 | AK167: 0 | AL167: 0 | AM167: 0 | AN167: 11 | AO167: 71.335 | AP167: 0.1 | AQ167: 12 | AR167: 2.594 | AS167: 0.049 | AT167: 0 | AU167: 0 | AV167: 0 | AW167: 11 | AX167: 8.666 | AY167: 0.037 | AZ167: 11 | BA167: 0.875 | BB167: 0.014 | BC167: 11 | BD167: 2.069 | BE167: 0.013 | BF167: 6 | BG167: 19.113 | BH167: 0.083 | BI167: 11 | BJ167: 28.306 | BK167: 0.102 | BL167: 12 | BM167: 4.509 | BN167: 0.018 | BO167: 12 | BP167: 0.622 | BQ167: 0.009 | BR167: 12 | BS167: 82.133 | BT167: 0.091 | BU167: 11 | BV167: 1.159 | BW167: 0.014 | BX167: 12 | BY167: 2.132 | BZ167: 0.032 | CA167: 12 | CB167: 0.146 | CC167: 0.005 | CD167: 12 | CE167: 8.476 | CF167: 0.033 | CG167: 11 | CH167: 16.211 | CI167: 0.044 | CJ167: 12 | CK167: 0.252 | CL167: 0.01 | CM167: 12 | CN167: 1.343 | CO167: 0.024 | CP167: 0 | CQ167: 0 | CR167: 0 | CS167: 0 | CT167: 0 | CU167: 0 | CV167: 0 | CW167: 0 | CX167: 0 | CY167: 9 | CZ167: 10.48 | DA167: 0.153 | DB167: 10 | DC167: 18.219 | DD167: 0.084 | DE167: 12 | DF167: 0.402 | DG167: 0.003
A168: 2016.542 | B168: 7 | C168: 2016 | D168: 198 | E168: 83.74 | F168: 0.29 | G168: 227 | H168: 227.19 | I168: 0.695 | J168: 224 | K168: 23.134 | L168: 0.074 | M168: 260 | N168: 21.906 | O168: 0.048 | P168: 109 | Q168: 529.368 | R168: 3.915 | S168: 0 | T168: 0 | U168: 0 | V168: 262 | W168: 3.549 | X168: 0.016 | Y168: 273 | Z168: 3.337 | AA168: 0.04 | AB168: 230 | AC168: 4.568 | AD168: 0.059 | AE168: 0 | AF168: 0 | AG168: 0 | AH168: 0 | AI168: 0 | AJ168: 0 | AK168: 134 | AL168: 0.471 | AM168: 0.011 | AN168: 260 | AO168: 71.272 | AP168: 0.086 | AQ168: 272 | AR168: 2.575 | AS168: 0.041 | AT168: 0 | AU168: 0 | AV168: 0 | AW168: 259 | AX168: 8.697 | AY168: 0.023 | AZ168: 248 | BA168: 0.881 | BB168: 0.015 | BC168: 232 | BD168: 2.083 | BE168: 0.017 | BF168: 176 | BG168: 19.201 | BH168: 0.094 | BI168: 269 | BJ168: 28.389 | BK168: 0.096 | BL168: 271 | BM168: 4.507 | BN168: 0.018 | BO168: 259 | BP168: 0.624 | BQ168: 0.011 | BR168: 266 | BS168: 82.259 | BT168: 0.073 | BU168: 265 | BV168: 1.164 | BW168: 0.012 | BX168: 252 | BY168: 2.142 | BZ168: 0.027 | CA168: 274 | CB168: 0.145 | CC168: 0.004 | CD168: 273 | CE168: 8.477 | CF168: 0.037 | CG168: 273 | CH168: 16.216 | CI168: 0.038 | CJ168: 268 | CK168: 0.254 | CL168: 0.009 | CM168: 267 | CN168: 1.364 | CO168: 0.018 | CP168: 0 | CQ168: 0 | CR168: 0 | CS168: 0 | CT168: 0 | CU168: 0 | CV168: 0 | CW168: 0 | CX168: 0 | CY168: 232 | CZ168: 10.572 | DA168: 0.125 | DB168: 232 | DC168: 18.272 | DD168: 0.115 | DE168: 272 | DF168: 0.402 | DG168: 0.004
A169: 2016.625 | B169: 8 | C169: 2016 | D169: 164 | E169: 84.213 | F169: 0.275 | G169: 202 | H169: 227.939 | I169: 0.612 | J169: 187 | K169: 23.187 | L169: 0.068 | M169: 231 | N169: 21.92 | O169: 0.045 | P169: 104 | Q169: 532.801 | R169: 3.576 | S169: 0 | T169: 0 | U169: 0 | V169: 236 | W169: 3.542 | X169: 0.017 | Y169: 243 | Z169: 3.334 | AA169: 0.038 | AB169: 219 | AC169: 4.655 | AD169: 0.059 | AE169: 0 | AF169: 0 | AG169: 0 | AH169: 0 | AI169: 0 | AJ169: 0 | AK169: 163 | AL169: 0.476 | AM169: 0.007 | AN169: 235 | AO169: 71.204 | AP169: 0.09 | AQ169: 255 | AR169: 2.56 | AS169: 0.04 | AT169: 0 | AU169: 0 | AV169: 0 | AW169: 189 | AX169: 8.719 | AY169: 0.025 | AZ169: 233 | BA169: 0.896 | BB169: 0.016 | BC169: 208 | BD169: 2.088 | BE169: 0.018 | BF169: 178 | BG169: 19.41 | BH169: 0.094 | BI169: 239 | BJ169: 28.453 | BK169: 0.087 | BL169: 175 | BM169: 4.514 | BN169: 0.021 | BO169: 233 | BP169: 0.626 | BQ169: 0.011 | BR169: 188 | BS169: 82.295 | BT169: 0.079 | BU169: 234 | BV169: 1.172 | BW169: 0.012 | BX169: 229 | BY169: 2.151 | BZ169: 0.031 | CA169: 252 | CB169: 0.147 | CC169: 0.004 | CD169: 197 | CE169: 8.479 | CF169: 0.039 | CG169: 228 | CH169: 16.212 | CI169: 0.042 | CJ169: 251 | CK169: 0.255 | CL169: 0.008 | CM169: 259 | CN169: 1.374 | CO169: 0.019 | CP169: 0 | CQ169: 0 | CR169: 0 | CS169: 0 | CT169: 0 | CU169: 0 | CV169: 0 | CW169: 0 | CX169: 0 | CY169: 195 | CZ169: 10.723 | DA169: 0.119 | DB169: 207 | DC169: 18.396 | DD169: 0.113 | DE169: 255 | DF169: 0.402 | DG169: 0.004
A170: 2016.708 | B170: 9 | C170: 2016 | D170: 147 | E170: 84.805 | F170: 0.293 | G170: 195 | H170: 228.732 | I170: 0.629 | J170: 144 | K170: 23.268 | L170: 0.06 | M170: 201 | N170: 21.908 | O170: 0.05 | P170: 76 | Q170: 533.255 | R170: 3.839 | S170: 0 | T170: 0 | U170: 0 | V170: 201 | W170: 3.531 | X170: 0.016 | Y170: 243 | Z170: 3.314 | AA170: 0.038 | AB170: 197 | AC170: 4.761 | AD170: 0.051 | AE170: 0 | AF170: 0 | AG170: 0 | AH170: 0 | AI170: 0 | AJ170: 0 | AK170: 121 | AL170: 0.476 | AM170: 0.009 | AN170: 171 | AO170: 71.078 | AP170: 0.085 | AQ170: 239 | AR170: 2.552 | AS170: 0.04 | AT170: 0 | AU170: 0 | AV170: 0 | AW170: 220 | AX170: 8.765 | AY170: 0.022 | AZ170: 192 | BA170: 0.912 | BB170: 0.014 | BC170: 204 | BD170: 2.097 | BE170: 0.017 | BF170: 149 | BG170: 19.657 | BH170: 0.103 | BI170: 229 | BJ170: 28.524 | BK170: 0.088 | BL170: 232 | BM170: 4.524 | BN170: 0.019 | BO170: 244 | BP170: 0.631 | BQ170: 0.009 | BR170: 228 | BS170: 82.358 | BT170: 0.078 | BU170: 218 | BV170: 1.184 | BW170: 0.011 | BX170: 213 | BY170: 2.189 | BZ170: 0.024 | CA170: 235 | CB170: 0.149 | CC170: 0.004 | CD170: 236 | CE170: 8.501 | CF170: 0.033 | CG170: 174 | CH170: 16.231 | CI170: 0.039 | CJ170: 236 | CK170: 0.262 | CL170: 0.007 | CM170: 240 | CN170: 1.394 | CO170: 0.02 | CP170: 0 | CQ170: 0 | CR170: 0 | CS170: 0 | CT170: 0 | CU170: 0 | CV170: 0 | CW170: 0 | CX170: 0 | CY170: 175 | CZ170: 10.943 | DA170: 0.114 | DB170: 178 | DC170: 18.533 | DD170: 0.111 | DE170: 226 | DF170: 0.404 | DG170: 0.004
A171: 2020, estimated | E171: =E170-E122+E170 -> 105.486 | AX171: =AX170-AX122+AX170 -> 10.063 | BG171: =BG170-BG122+BG170 -> 28.035 | DC171: =DC170-DC122+DC170 -> 24.26

Sheet Forestry timing
A1: How does forestry uptake carbon over time? | W1: Compare IPCC SR15_Chapter4_High_Res.pdf, section 4.3.7.2:
A2: Data taken from Stavins and Richards, The cost of US forest-based carbon sequestration.pdf | W2: 500 | X2: million hectares available
A3: Note: quantities measure carbon, not carbon dioxide. See Stavins & Richards 2005, p. 38, endnote 8. | W3: 1 | X3: low Gt C/year | Y3: =1000*W3/$W$2 -> 2 | Z3: tons/hectare
A4: I chose the last 3 contract lengths to maximize average removal/year. | W4: 3.7 | X4: avg Gt C/year | Y4: =1000*W4/$W$2 -> 7.4 | Z4: tons/hectare. So my analysis of U.S. forestry is close to the middle.
A5: Carbon removal for contracts <150 years are truncated to the contract year length. | Q5: Coefficients that fit their graph | W5: 17.9 | X5: high Gt C/year | Y5: 35.8 | Z5: tons/hectare
A6: Hectare/acre | B6: =CONVERT(1,"us_acre","ha") -> 0.404687261 | E6: Saved as "Forestry_sequestration.csv" | Q6: 0.0001
A7: Metric tons/US ton | B7: =CONVERT(1,"ton","kg")/1000 -> 0.90718474 | D7: Avg C/yr | E7: =E9/COUNTIF(E11:E166,">0") -> 2.224454001 | F7: 4.086317718 | G7: 2.373157813 | H7: 3.827691388 | I7: 1.993986231 | J7: 2.414303733 | K7: =K9/COUNTIF(K11:K166,">0") -> 6.377617568 | L7: =L9/COUNTIF(L11:L166,">0") -> 4.752607533 | M7: 3.238227933 | Q7: 0.0693
E8: Tonnes/hectare. Used to calculate $/hectare | H8: 10-year contract | I8: 10-year contract | J8: 10-year contract | K8: 24-year contract | L8: 103-year contract | M8: 55-year contract | P8: Unused | Q8: 13.71 | R8: $1.6(2019)/$1(1997)
A9: Total C tons/acre | B9: =SUM(B11:B166) -> 153.808 | C9: =SUM(C11:C166) -> 282.545 | D9: =SUM(D11:D166) -> 164.09 | E9: =SUM(E11:E166) -> 344.7903701 | F9: 633.3792463 | G9: 367.8394611 | H9: 38.27691388 | I9: 19.93986231 | J9: 24.14303733 | K9: 153.0628216 | L9: 489.5185759 | M9: =SUM(M11:M166) -> 178.1025363 | P9: $2020/$1997 = | R9: =1.6*1.027 -> 1.6432
A10: Year | B10: Tons/acre/year Loblolly pine | C10: Tons/acre/year Ponderosa pine | D10: Tons/acre/year Black walnut | E10: Tonnes/hectare/year Loblolly pine | F10: Tonnes/hectare/year Ponderosa pine | G10: Tonnes/hectare/year Black walnut | H10: Tonnes/hectare/year Loblolly pine, 10 yr | I10: Tonnes/hectare/year Ponderosa pine, 10 yr | J10: Tonnes/hectare/year Black walnut, 10 yr | K10: Tonnes/hectare/year Loblolly pine, 24 yr | L10: Tonnes/hectare/year Ponderosa pine, 103 yr | M10: Tonnes/hectare/year Black walnut, 55 yr | P10: Mton CO2/year | Q10: 1997 $/ton | R10: 2019 $/ton | S10: 2019 $/tonne | T10: 2019 $/hectare Loblolly Pine | U10: 2019 $/hectare ponderosa pine | V10: 2019 $/hectare black walnut
A11: 0 | B11: 0 | C11: 0 | D11: 0 | E11: =B11*$B$7/$B$6 -> 0 | F11: =C11*$B$7/$B$6 -> 0 | G11: =D11*$B$7/$B$6 -> 0 | H11: =ROUND(B11*$B$7/$B$6,3) -> 0 | I11: =ROUND(C11*$B$7/$B$6,3) -> 0 | J11: =ROUND(D11*$B$7/$B$6,3) -> 0 | K11: =ROUND(E11*$B$7/$B$6,3) -> 0 | L11: =ROUND(F11*$B$7/$B$6,3) -> 0 | M11: =ROUND(G11*$B$7/$B$6,3) -> 0 | P11: 0 | Q11: =ROUND($Q$6*P11^2+$Q$7*P11+$Q$8,1) -> 13.7 | R11: =Q11*$R$9 -> 22.51184 | S11: =R11/$B$7 -> 24.81505586 | T11: =$S11*E$9 -> 8555.992295 | U11: =$S11*F$9 -> 15717.34138 | V11: =$S11*G$9 -> 9127.956775
A12: 1 | B12: 0.335 | C12: 0.22 | D12: 0.264 | E12: =B12*$B$7/$B$6 -> 0.7509672708 | F12: 0.493172536 | G12: 0.5918070432 | H12: =E12 -> 0.7509672708 | I12: =F12 -> 0.493172536 | J12: =G12 -> 0.5918070432 | K12: =E12 -> 0.7509672708 | L12: =F12 -> 0.493172536 | M12: =G12 -> 0.5918070432 | P12: =P11+20 -> 20 | Q12: 15 | R12: =Q12*$R$9 -> 24.648 | S12: =R12/$B$7 -> 27.16976919 | T12: 9367.874775 | U12: 17208.76793 | V12: 9994.113257
A13: 2 | B13: 0.67 | C13: 0.44 | D13: 0.528 | E13: 1.501934542 | F13: 0.9863450721 | G13: 1.183614086 | H13: =E13 -> 1.501934542 | I13: 0.9863450721 | J13: 1.183614086 | K13: =E13 -> 1.501934542 | L13: 0.9863450721 | M13: 1.183614086 | P13: =P12+20 -> 40 | Q13: =ROUND($Q$6*P13^2+$Q$7*P13+$Q$8,1) -> 16.6 | R13: 27.27712 | S13: 30.06787791 | T13: 10367.11475 | U13: 19044.36985 | V13: 11060.152
A14: 3 | B14: 1.005 | C14: 0.66 | D14: 0.792 | E14: 2.252901812 | F14: 1.479517608 | G14: 1.77542113 | H14: 2.252901812 | I14: 1.479517608 | J14: 1.77542113 | K14: 2.252901812 | L14: 1.479517608 | M14: 1.77542113 | P14: 60 | Q14: 18.2 | R14: 29.90624 | S14: 32.96598662 | T14: 11366.35473 | U14: 20879.97176 | V14: 12126.19075
A15: 4 | B15: 1.34 | C15: 0.88 | D15: 1.056 | E15: 3.003869083 | F15: 1.972690144 | G15: 2.367228173 | H15: 3.003869083 | I15: 1.972690144 | J15: 2.367228173 | K15: 3.003869083 | L15: 1.972690144 | M15: 2.367228173 | P15: 80 | Q15: 19.9 | R15: 32.69968 | S15: 36.04522713 | T15: 12428.0472 | U15: 22830.29879 | V15: 13258.85692
A16: 5 | B16: 1.675 | C16: 1.1 | D16: 1.32 | E16: 3.754836354 | F16: 2.46586268 | G16: 2.959035216 | H16: 3.754836354 | I16: 2.46586268 | J16: 2.959035216 | K16: 3.754836354 | L16: 2.46586268 | M16: 2.959035216 | P16: 100 | Q16: 21.6 | R16: 35.49312 | S16: 39.12446764 | T16: 13489.73968 | U16: 24780.62582 | V16: 14391.52309
A17: 6 | B17: 1.92 | C17: 1.106 | D17: 1.334 | E17: 4.304051224 | F17: 2.47931284 | G17: 2.990418923 | H17: 4.304051224 | I17: 2.47931284 | J17: 2.990418923 | K17: 4.304051224 | L17: 2.47931284 | M17: 2.990418923 | P17: 120 | Q17: 23.5 | R17: 38.6152 | S17: 42.56597173 | T17: 14676.33715 | U17: 26960.4031 | V17: 15657.4441
A18: 7 | B18: 2.165 | C18: 1.113 | D18: 1.348 | E18: 4.853266093 | F18: 2.495004694 | G18: 3.02180263 | H18: 4.853266093 | I18: 2.495004694 | J18: 3.02180263 | K18: 4.853266093 | L18: 2.495004694 | M18: 3.02180263 | P18: 140 | Q18: 25.4 | R18: 41.73728 | S18: 46.00747583 | T18: 15862.93462 | U18: 29140.18037 | V18: 16923.36512
A19: 8 | B19: 2.41 | C19: 1.119 | D19: 1.362 | E19: 5.402480963 | F19: 2.508454854 | G19: 3.053186337 | H19: 5.402480963 | I19: 2.508454854 | J19: 3.053186337 | K19: 5.402480963 | L19: 2.508454854 | M19: 3.053186337 | P19: 160 | Q19: 27.4 | R19: 45.02368 | S19: 49.63011172 | T19: 17111.98459 | U19: 31434.68276 | V19: 18255.91355
A20: 9 | B20: 2.655 | C20: 1.125 | D20: 1.376 | E20: 5.951695833 | F20: 2.521905014 | G20: 3.084570044 | H20: 5.951695833 | I20: 2.521905014 | J20: 3.084570044 | K20: 5.951695833 | L20: 2.521905014 | M20: 3.084570044 | P20: 180 | Q20: 29.4 | R20: 48.31008 | S20: 53.25274762 | T20: 18361.03456 | U20: 33729.18515 | V20: 19588.46198
A21: 10 | B21: 2.9 | C21: 1.132 | D21: 1.39 | E21: 6.500910702 | F21: 2.537596867 | G21: 3.11595375 | H21: 6.500910702 | I21: 2.537596867 | J21: 3.11595375 | K21: 6.500910702 | L21: 2.537596867 | M21: 3.11595375 | P21: 200 | Q21: 31.6 | R21: 51.92512 | S21: 57.2376471 | T21: 19734.98953 | U21: 36253.13778 | V21: 21054.26526
A22: 11 | B22: 3.145 | C22: 1.138 | D22: 1.405 | E22: 7.050125572 | F22: 2.551047027 | G22: 3.149579151 | H22: 0 | I22: 0 | J22: 0 | K22: 7.050125572 | L22: 2.551047027 | M22: 3.149579151 | P22: 220 | Q22: 34 | R22: 55.8688 | S22: 61.58481017 | T22: 21233.84949 | U22: 39006.54065 | V22: 22653.32338
A23: 12 | B23: 3.39 | C23: 1.145 | D23: 1.419 | E23: 7.599340442 | F23: 2.566738881 | G23: 3.180962857 | H23: 0 | I23: 0 | J23: 0 | K23: 7.599340442 | L23: 2.566738881 | M23: 3.180962857 | P23: 240 | Q23: =ROUND($Q$6*P23^2+$Q$7*P23+$Q$8,1) -> 36.1 | R23: 59.31952 | S23: 65.38857785 | T23: 22545.35196 | U23: 41415.76816 | V23: 24052.49924
A24: 13 | B24: 3.635 | C24: 1.151 | D24: 1.433 | E24: 8.148555311 | F24: 2.580189041 | G24: 3.212346564 | H24: 0 | I24: 0 | J24: 0 | K24: 8.148555311 | L24: 2.580189041 | M24: 3.212346564 | P24: 260 | Q24: 38.5 | R24: 63.2632 | S24: 69.73574093 | T24: 24044.21192 | U24: 44169.17103 | V24: 25651.55736
A25: 14 | B25: 3.88 | C25: 1.157 | D25: 1.447 | E25: 8.697770181 | F25: 2.593639201 | G25: 3.243730271 | H25: 0 | I25: 0 | J25: 0 | K25: 8.697770181 | L25: 2.593639201 | M25: 3.243730271 | P25: 280 | Q25: 41 | R25: 67.3712 | S25: 74.26403579 | T25: 25605.52439 | U25: 47037.29902 | V25: 27317.2429
A26: 15 | B26: 4.125 | C26: 1.164 | D26: 1.461 | E26: 9.246985051 | F26: 2.609331054 | G26: 3.275113978 | H26: 0 | I26: 0 | J26: 0 | K26: 9.246985051 | L26: 2.609331054 | M26: 3.275113978 | P26: 300 | Q26: 43.5 | R26: 71.4792 | S26: 78.79233066 | T26: 27166.83685 | U26: 49905.42701 | V26: 28982.92845
A27: 16 | B27: 4.37 | C27: 1.17 | D27: 1.475 | E27: 9.79619992 | F27: 2.622781214 | G27: 3.306497685 | H27: 0 | I27: 0 | J27: 0 | K27: 9.79619992 | L27: 2.622781214 | M27: 3.306497685 | P27: 320 | Q27: 46.1 | R27: 75.75152 | S27: 83.50175732 | T27: 28790.60181 | U27: 52888.28012 | V27: 30715.24141
A28: 17 | B28: 4.195 | C28: 1.228 | D28: 1.488 | E28: 9.403903585 | F28: 2.752799428 | G28: 3.335639698 | H28: 0 | I28: 0 | J28: 0 | K28: 9.403903585 | L28: 2.752799428 | M28: 3.335639698 | P28: 340 | Q28: 48.8 | R28: 80.18816 | S28: 88.39231577 | T28: 30476.81927 | U28: 55985.85834 | V28: 32514.1818
A29: 18 | B29: 4.02 | C29: 1.286 | D29: 1.5 | E29: 9.011607249 | F29: 2.882817642 | G29: 3.362540018 | H29: 0 | I29: 0 | J29: 0 | K29: 9.011607249 | L29: 2.882817642 | M29: 3.362540018 | P29: 360 | Q29: 51.6 | R29: 84.78912 | S29: 93.46400602 | T29: 32225.48923 | U29: 59198.16169 | V29: 34379.7496
A30: 19 | B30: 3.845 | C30: 1.344 | D30: 1.513 | E30: 8.619310914 | F30: 3.012835856 | G30: 3.391682032 | H30: 0 | I30: 0 | J30: 0 | K30: 8.619310914 | L30: 3.012835856 | M30: 3.391682032 | P30: 380 | Q30: 54.5 | R30: 89.5544 | S30: 98.71682806 | T30: 34036.61168 | U30: 62525.19016 | V30: 36311.94483
A31: 20 | B31: 3.67 | C31: 1.402 | D31: 1.525 | E31: 8.227014578 | F31: 3.142854071 | G31: 3.418582352 | H31: 0 | I31: 0 | J31: 0 | K31: 8.227014578 | L31: 3.142854071 | M31: 3.418582352 | P31: 400 | Q31: 57.4 | R31: 94.31968 | S31: 103.9696501 | T31: 35847.73414 | U31: 65852.21863 | V31: 38244.14006
A32: 21 | B32: 3.495 | C32: 1.46 | D32: 1.538 | E32: 7.834718243 | F32: 3.272872285 | G32: 3.447724366 | H32: 0 | I32: 0 | J32: 0 | K32: =E32 -> 7.834718243 | L32: =F32 -> 3.272872285 | M32: =G32 -> 3.447724366 | P32: 420 | Q32: 60.5 | R32: 99.4136 | S32: 109.5847357 | T32: 37783.76159 | U32: 69408.69733 | V32: 40309.59014
A33: 22 | B33: 3.32 | C33: 1.518 | D33: 1.55 | E33: 7.442421907 | F33: 3.402890499 | G33: 3.474624686 | H33: 0 | I33: 0 | J33: 0 | K33: 7.442421907 | L33: 3.402890499 | M33: 3.474624686 | P33: 440 | Q33: 63.6 | R33: 104.50752 | S33: 115.1998214 | T33: 39719.78905 | U33: 72965.17604 | V33: 42375.04021
A34: 23 | B34: 3.145 | C34: 1.576 | D34: 1.563 | E34: 7.050125572 | F34: 3.532908713 | G34: 3.503766699 | H34: 0 | I34: 0 | J34: 0 | K34: 7.050125572 | L34: 3.532908713 | M34: 3.503766699 | P34: 460 | Q34: 66.7 | R34: 109.60144 | S34: 120.814907 | T34: 41655.8165 | U34: 76521.65474 | V34: 44440.49028
A35: 24 | B35: 2.97 | C35: 1.634 | D35: 1.575 | E35: 6.657829236 | F35: 3.662926927 | G35: 3.530667019 | H35: 0 | I35: 0 | J35: 0 | K35: 6.657829236 | L35: 3.662926927 | M35: 3.530667019 | P35: 480 | Q35: 71.5 | R35: 117.4888 | S35: 129.5092331 | T35: 44653.53643 | U35: 82028.46048 | V35: 47638.60653
A36: 25 | B36: 2.795 | C36: 1.692 | D36: 1.588 | E36: 6.265532901 | F36: 3.792945141 | G36: 3.559809033 | H36: 0 | I36: 0 | J36: 0 | K36: 0 | L36: 3.792945141 | M36: 3.559809033
A37: 26 | B37: 2.62 | C37: 1.75 | D37: 1.6 | E37: 5.873236565 | F37: 3.922963355 | G37: 3.586709353 | H37: 0 | I37: 0 | J37: 0 | K37: 0 | L37: 3.922963355 | M37: 3.586709353
A38: 27 | B38: 2.551 | C38: 1.772 | D38: 1.594 | E38: 5.718559725 | F38: 3.972280608 | G38: 3.573259193 | H38: 0 | I38: 0 | J38: 0 | K38: 0 | L38: 3.972280608 | M38: 3.573259193
A39: 28 | B39: 2.482 | C39: 1.794 | D39: 1.589 | E39: 5.563882884 | F39: 4.021597862 | G39: 3.562050726 | H39: 0 | I39: 0 | J39: 0 | K39: 0 | L39: 4.021597862 | M39: 3.562050726
A40: 29 | B40: 2.413 | C40: 1.817 | D40: 1.583 | E40: 5.409206043 | F40: 4.073156809 | G40: 3.548600566 | H40: 0 | I40: 0 | J40: 0 | K40: 0 | L40: 4.073156809 | M40: 3.548600566
A41: 30 | B41: 2.344 | C41: 1.839 | D41: 1.578 | E41: 5.254529202 | F41: 4.122474063 | G41: 3.537392099 | H41: 0 | I41: 0 | J41: 0 | K41: 0 | L41: 4.122474063 | M41: 3.537392099
A42: 31 | B42: 2.276 | C42: 1.861 | D42: 1.572 | E42: 5.102094055 | F42: 4.171791316 | G42: 3.523941939 | H42: 0 | I42: 0 | J42: 0 | K42: 0 | L42: 4.171791316 | M42: 3.523941939
A43: 32 | B43: 2.207 | C43: 1.883 | D43: 1.567 | E43: 4.947417214 | F43: 4.22110857 | G43: 3.512733473 | H43: 0 | I43: 0 | J43: 0 | K43: 0 | L43: 4.22110857 | M43: 3.512733473
A44: 33 | B44: 2.138 | C44: 1.906 | D44: 1.561 | E44: 4.792740373 | F44: 4.272667517 | G44: 3.499283312 | H44: 0 | I44: 0 | J44: 0 | K44: 0 | L44: 4.272667517 | M44: 3.499283312
A45: 34 | B45: 2.069 | C45: 1.928 | D45: 1.556 | E45: 4.638063532 | F45: 4.32198477 | G45: 3.488074846 | H45: 0 | I45: 0 | J45: 0 | K45: 0 | L45: 4.32198477 | M45: 3.488074846
A46: 35 | B46: 2 | C46: 1.95 | D46: 1.55 | E46: 4.483386691 | F46: 4.371302024 | G46: 3.474624686 | H46: 0 | I46: 0 | J46: 0 | K46: 0 | L46: 4.371302024 | M46: 3.474624686
A47: 36 | B47: 1.966 | C47: 1.988 | D47: 1.55 | E47: 4.407169117 | F47: 4.456486371 | G47: 3.474624686 | H47: 0 | I47: 0 | J47: 0 | K47: 0 | L47: 4.456486371 | M47: 3.474624686
A48: 37 | B48: 1.932 | C48: 2.026 | D48: 1.55 | E48: 4.330951544 | F48: 4.541670718 | G48: 3.474624686 | H48: 0 | I48: 0 | J48: 0 | K48: 0 | L48: 4.541670718 | M48: 3.474624686
A49: 38 | B49: 1.898 | C49: 2.064 | D49: 1.55 | E49: 4.25473397 | F49: 4.626855065 | G49: 3.474624686 | H49: 0 | I49: 0 | J49: 0 | K49: 0 | L49: 4.626855065 | M49: 3.474624686
A50: 39 | B50: 1.864 | C50: 2.102 | D50: 1.55 | E50: 4.178516396 | F50: 4.712039412 | G50: 3.474624686 | H50: 0 | I50: 0 | J50: 0 | K50: 0 | L50: 4.712039412 | M50: 3.474624686
A51: 40 | B51: 1.83 | C51: 2.14 | D51: 1.55 | E51: 4.102298822 | F51: 4.79722376 | G51: 3.474624686 | H51: 0 | I51: 0 | J51: 0 | K51: 0 | L51: 4.79722376 | M51: 3.474624686
A52: 41 | B52: 1.796 | C52: 2.178 | D52: 1.55 | E52: 4.026081249 | F52: 4.882408107 | G52: 3.474624686 | H52: 0 | I52: 0 | J52: 0 | K52: 0 | L52: 4.882408107 | M52: 3.474624686
A53: 42 | B53: 1.762 | C53: 2.216 | D53: 1.55 | E53: 3.949863675 | F53: 4.967592454 | G53: 3.474624686 | H53: 0 | I53: 0 | J53: 0 | K53: 0 | L53: 4.967592454 | M53: 3.474624686
A54: 43 | B54: 1.728 | C54: 2.254 | D54: 1.55 | E54: 3.873646101 | F54: 5.052776801 | G54: 3.474624686 | H54: 0 | I54: 0 | J54: 0 | K54: 0 | L54: 5.052776801 | M54: 3.474624686
A55: 44 | B55: 1.694 | C55: 2.292 | D55: 1.55 | E55: 3.797428527 | F55: 5.137961148 | G55: 3.474624686 | H55: 0 | I55: 0 | J55: 0 | K55: 0 | L55: 5.137961148 | M55: 3.474624686
A56: 45 | B56: 1.66 | C56: 2.33 | D56: 1.55 | E56: 3.721210954 | F56: 5.223145495 | G56: 3.474624686 | H56: 0 | I56: 0 | J56: 0 | K56: 0 | L56: 5.223145495 | M56: 3.474624686
A57: 46 | B57: 1.639 | C57: 2.347 | D57: 1.54 | E57: 3.674135393 | F57: 5.261254282 | G57: 3.452207752 | H57: 0 | I57: 0 | J57: 0 | K57: 0 | L57: 5.261254282 | M57: 3.452207752
A58: 47 | B58: 1.618 | C58: 2.364 | D58: 1.53 | E58: 3.627059833 | F58: 5.299363069 | G58: 3.429790819 | H58: 0 | I58: 0 | J58: 0 | K58: 0 | L58: 5.299363069 | M58: 3.429790819
A59: 48 | B59: 1.597 | C59: 2.381 | D59: 1.52 | E59: 3.579984273 | F59: 5.337471856 | G59: 3.407373885 | H59: 0 | I59: 0 | J59: 0 | K59: 0 | L59: 5.337471856 | M59: 3.407373885
A60: 49 | B60: 1.576 | C60: 2.398 | D60: 1.51 | E60: 3.532908713 | F60: 5.375580643 | G60: 3.384956952 | H60: 0 | I60: 0 | J60: 0 | K60: 0 | L60: 5.375580643 | M60: 3.384956952
A61: 50 | B61: 1.555 | C61: 2.415 | D61: 1.5 | E61: 3.485833152 | F61: 5.41368943 | G61: 3.362540018 | H61: 0 | I61: 0 | J61: 0 | K61: 0 | L61: 5.41368943 | M61: 3.362540018
A62: 51 | B62: 1.534 | C62: 2.432 | D62: 1.49 | E62: 3.438757592 | F62: 5.451798216 | G62: 3.340123085 | H62: 0 | I62: 0 | J62: 0 | K62: 0 | L62: 5.451798216 | M62: 3.340123085
A63: 52 | B63: 1.513 | C63: 2.449 | D63: 1.48 | E63: 3.391682032 | F63: 5.489907003 | G63: 3.317706151 | H63: 0 | I63: 0 | J63: 0 | K63: 0 | L63: 5.489907003 | M63: 3.317706151
A64: 53 | B64: 1.492 | C64: 2.466 | D64: 1.47 | E64: 3.344606472 | F64: 5.52801579 | G64: 3.295289218 | H64: 0 | I64: 0 | J64: 0 | K64: 0 | L64: 5.52801579 | M64: 3.295289218
A65: 54 | B65: 1.471 | C65: 2.483 | D65: 1.46 | E65: 3.297530911 | F65: 5.566124577 | G65: 3.272872285 | H65: 0 | I65: 0 | J65: 0 | K65: 0 | L65: 5.566124577 | M65: 3.272872285
A66: 55 | B66: 1.45 | C66: 2.5 | D66: 1.45 | E66: 3.250455351 | F66: 5.604233364 | G66: 3.250455351 | H66: 0 | I66: 0 | J66: 0 | K66: 0 | L66: 5.604233364 | M66: 3.250455351
A67: 56 | B67: 1.375 | C67: 2.536 | D67: 1.443 | E67: 3.08232835 | F67: 5.684934324 | G67: 3.234763498 | H67: 0 | I67: 0 | J67: 0 | K67: 0 | L67: 5.684934324 | M67: 0
A68: 57 | B68: 1.299 | C68: 2.573 | D68: 1.436 | E68: 2.911959656 | F68: 5.767876978 | G68: 3.219071644 | H68: 0 | I68: 0 | J68: 0 | K68: 0 | L68: 5.767876978 | M68: 0
A69: 58 | B69: 1.224 | C69: 2.609 | D69: 1.43 | E69: 2.743832655 | F69: 5.848577939 | G69: 3.205621484 | H69: 0 | I69: 0 | J69: 0 | K69: 0 | L69: 5.848577939 | M69: 0
A70: 59 | B70: 1.148 | C70: 2.645 | D70: 1.423 | E70: 2.573463961 | F70: 5.929278899 | G70: 3.189929631 | H70: 0 | I70: 0 | J70: 0 | K70: 0 | L70: 5.929278899 | M70: 0
A71: 60 | B71: 1.073 | C71: 2.682 | D71: 1.416 | E71: 2.40533696 | F71: 6.012221553 | G71: 3.174237777 | H71: 0 | I71: 0 | J71: 0 | K71: 0 | L71: 6.012221553 | M71: 0
A72: 61 | B72: 0.997 | C72: 2.718 | D72: 1.409 | E72: 2.234968266 | F72: 6.092922513 | G72: 3.158545924 | H72: 0 | I72: 0 | J72: 0 | K72: 0 | L72: 6.092922513 | M72: 0
A73: 62 | B73: 0.922 | C73: 2.755 | D73: 1.402 | E73: 2.066841265 | F73: 6.175865167 | G73: 3.142854071 | H73: 0 | I73: 0 | J73: 0 | K73: 0 | L73: 6.175865167 | M73: 0
A74: 63 | B74: 0.846 | C74: 2.791 | D74: 1.395 | E74: 1.89647257 | F74: 6.256566128 | G74: 3.127162217 | H74: 0 | I74: 0 | J74: 0 | K74: 0 | L74: 6.256566128 | M74: 0
A75: 64 | B75: 0.771 | C75: 2.827 | D75: 1.389 | E75: 1.728345569 | F75: =C75*$B$7/$B$6 -> 6.337267088 | G75: =D75*$B$7/$B$6 -> 3.113712057 | H75: 0 | I75: 0 | J75: 0 | K75: 0 | L75: 6.337267088 | M75: 0
A76: 65 | B76: 0.695 | C76: 2.864 | D76: 1.382 | E76: =B76*$B$7/$B$6 -> 1.557976875 | F76: 6.420209742 | G76: 3.098020204 | H76: 0 | I76: 0 | J76: 0 | K76: 0 | L76: 6.420209742 | M76: 0
A77: 66 | B77: 0.62 | C77: 2.9 | D77: 1.375 | E77: 1.389849874 | F77: 6.500910702 | G77: 3.08232835 | H77: 0 | I77: 0 | J77: 0 | K77: 0 | L77: 6.500910702 | M77: 0
A78: 67 | B78: 0.584 | C78: 2.878 | D78: 1.353 | E78: 1.309148914 | F78: 6.451593449 | G78: 3.033011097 | H78: 0 | I78: 0 | J78: 0 | K78: 0 | L78: 6.451593449 | M78: 0
A79: 68 | B79: 0.549 | C79: 2.856 | D79: 1.332 | E79: 1.230689647 | F79: 6.402276195 | G79: 2.985935536 | H79: 0 | I79: 0 | J79: 0 | K79: 0 | L79: 6.402276195 | M79: 0
A80: 69 | B80: 0.513 | C80: 2.833 | D80: 1.31 | E80: 1.149988686 | F80: 6.350717248 | G80: 2.936618283 | H80: 0 | I80: 0 | J80: 0 | K80: 0 | L80: 6.350717248 | M80: 0
A81: 70 | B81: 0.478 | C81: 2.811 | D81: 1.288 | E81: 1.071529419 | F81: 6.301399994 | G81: 2.887301029 | H81: 0 | I81: 0 | J81: 0 | K81: 0 | L81: 6.301399994 | M81: 0
A82: 71 | B82: 0.442 | C82: 2.789 | D82: 1.267 | E82: 0.9908284588 | F82: 6.252082741 | G82: 2.840225469 | H82: 0 | I82: 0 | J82: 0 | K82: 0 | L82: 6.252082741 | M82: 0
A83: 72 | B83: 0.407 | C83: 2.767 | D83: 1.245 | E83: 0.9123691917 | F83: 6.202765487 | G83: 2.790908215 | H83: 0 | I83: 0 | J83: 0 | K83: 0 | L83: 6.202765487 | M83: 0
A84: 73 | B84: 0.371 | C84: 2.744 | D84: 1.223 | E84: 0.8316682312 | F84: 6.15120654 | G84: 2.741590962 | H84: 0 | I84: 0 | J84: 0 | K84: 0 | L84: 6.15120654 | M84: 0
A85: 74 | B85: 0.336 | C85: 2.722 | D85: 1.202 | E85: 0.7532089641 | F85: 6.101889287 | G85: 2.694515401 | H85: 0 | I85: 0 | J85: 0 | K85: 0 | L85: 6.101889287 | M85: 0
A86: 75 | B86: 0.3 | C86: 2.7 | D86: 1.18 | E86: 0.6725080037 | F86: 6.052572033 | G86: 2.645198148 | H86: 0 | I86: 0 | J86: 0 | K86: 0 | L86: 6.052572033 | M86: 0
A87: 76 | B87: 0.294 | C87: 2.693 | D87: 1.162 | E87: 0.6590578436 | F87: 6.03688018 | G87: 2.604847668 | H87: 0 | I87: 0 | J87: 0 | K87: 0 | L87: 6.03688018 | M87: 0
A88: 77 | B88: 0.288 | C88: 2.686 | D88: 1.144 | E88: 0.6456076835 | F88: 6.021188326 | G88: 2.564497187 | H88: 0 | I88: 0 | J88: 0 | K88: 0 | L88: 6.021188326 | M88: 0
A89: 78 | B89: 0.282 | C89: 2.679 | D89: 1.126 | E89: 0.6321575235 | F89: 6.005496473 | G89: 2.524146707 | H89: 0 | I89: 0 | J89: 0 | K89: 0 | L89: 6.005496473 | M89: 0
A90: 79 | B90: 0.276 | C90: 2.672 | D90: 1.108 | E90: 0.6187073634 | F90: 5.989804619 | G90: 2.483796227 | H90: 0 | I90: 0 | J90: 0 | K90: 0 | L90: 5.989804619 | M90: 0
A91: 80 | B91: 0.27 | C91: 2.665 | D91: 1.09 | E91: 0.6052572033 | F91: 5.974112766 | G91: 2.443445747 | H91: 0 | I91: 0 | J91: 0 | K91: 0 | L91: 5.974112766 | M91: 0
A92: 81 | B92: 0.264 | C92: 2.658 | D92: 1.072 | E92: 0.5918070432 | F92: 5.958420913 | G92: 2.403095266 | H92: 0 | I92: 0 | J92: 0 | K92: 0 | L92: 5.958420913 | M92: 0
A93: 82 | B93: 0.258 | C93: 2.651 | D93: 1.054 | E93: 0.5783568832 | F93: 5.942729059 | G93: 2.362744786 | H93: 0 | I93: 0 | J93: 0 | K93: 0 | L93: 5.942729059 | M93: 0
A94: 83 | B94: 0.252 | C94: 2.644 | D94: 1.036 | E94: 0.5649067231 | F94: 5.927037206 | G94: 2.322394306 | H94: 0 | I94: 0 | J94: 0 | K94: 0 | L94: 5.927037206 | M94: 0
A95: 84 | B95: 0.246 | C95: 2.637 | D95: 1.018 | E95: 0.551456563 | F95: 5.911345352 | G95: 2.282043826 | H95: 0 | I95: 0 | J95: 0 | K95: 0 | L95: 5.911345352 | M95: 0
A96: 85 | B96: 0.24 | C96: 2.63 | D96: 1 | E96: 0.5380064029 | F96: 5.895653499 | G96: 2.241693346 | H96: 0 | I96: 0 | J96: 0 | K96: 0 | L96: =F96 -> 5.895653499 | M96: 0
A97: 86 | B97: 0.235 | C97: 2.612 | D97: 0.988 | E97: 0.5267979362 | F97: 5.855303019 | G97: 2.214793025 | H97: 0 | I97: 0 | J97: 0 | K97: 0 | L97: 5.855303019 | M97: 0
A98: 87 | B98: 0.23 | C98: 2.594 | D98: 0.975 | E98: 0.5155894695 | F98: 5.814952538 | G98: 2.185651012 | H98: 0 | I98: 0 | J98: 0 | K98: 0 | L98: 5.814952538 | M98: 0
A99: 88 | B99: 0.226 | C99: 2.576 | D99: 0.963 | E99: 0.5066226961 | F99: 5.774602058 | G99: 2.158750692 | H99: 0 | I99: 0 | J99: 0 | K99: 0 | L99: 5.774602058 | M99: 0
A100: 89 | B100: 0.221 | C100: 2.558 | D100: 0.95 | E100: 0.4954142294 | F100: 5.734251578 | G100: 2.129608678 | H100: 0 | I100: 0 | J100: 0 | K100: 0 | L100: 5.734251578 | M100: 0
A101: 90 | B101: 0.216 | C101: 2.54 | D101: 0.938 | E101: 0.4842057626 | F101: 5.693901098 | G101: 2.102708358 | H101: 0 | I101: 0 | J101: 0 | K101: 0 | L101: 5.693901098 | M101: 0
A102: 91 | B102: 0.211 | C102: 2.522 | D102: 0.925 | E102: 0.4729972959 | F102: 5.653550618 | G102: 2.073566345 | H102: 0 | I102: 0 | J102: 0 | K102: 0 | L102: 5.653550618 | M102: 0
A103: 92 | B103: 0.206 | C103: 2.504 | D103: 0.913 | E103: 0.4617888292 | F103: 5.613200137 | G103: 2.046666025 | H103: 0 | I103: 0 | J103: 0 | K103: 0 | L103: 5.613200137 | M103: 0
A104: 93 | B104: 0.202 | C104: 2.486 | D104: 0.9 | E104: 0.4528220558 | F104: 5.572849657 | G104: 2.017524011 | H104: 0 | I104: 0 | J104: 0 | K104: 0 | L104: 5.572849657 | M104: 0
A105: 94 | B105: 0.197 | C105: 2.468 | D105: 0.888 | E105: 0.4416135891 | F105: 5.532499177 | G105: 1.990623691 | H105: 0 | I105: 0 | J105: 0 | K105: 0 | L105: 5.532499177 | M105: 0
A106: 95 | B106: 0.192 | C106: 2.45 | D106: 0.875 | E106: 0.4304051224 | F106: 5.492148697 | G106: 1.961481677 | H106: 0 | I106: 0 | J106: 0 | K106: 0 | L106: 5.492148697 | M106: 0
A107: 96 | B107: 0.188 | C107: 2.41 | D107: 0.866 | E107: 0.421438349 | F107: 5.402480963 | G107: 1.941306437 | H107: 0 | I107: 0 | J107: 0 | K107: 0 | L107: 5.402480963 | M107: 0
A108: 97 | B108: 0.184 | C108: 2.37 | D108: 0.856 | E108: 0.4124715756 | F108: 5.312813229 | G108: 1.918889504 | H108: 0 | I108: 0 | J108: 0 | K108: 0 | L108: 5.312813229 | M108: 0
A109: 98 | B109: 0.18 | C109: 2.33 | D109: 0.847 | E109: 0.4035048022 | F109: 5.223145495 | G109: 1.898714264 | H109: 0 | I109: 0 | J109: 0 | K109: 0 | L109: 5.223145495 | M109: 0
A110: 99 | B110: 0.177 | C110: 2.29 | D110: 0.837 | E110: 0.3967797222 | F110: 5.133477761 | G110: 1.87629733 | H110: 0 | I110: 0 | J110: 0 | K110: 0 | L110: 5.133477761 | M110: 0
A111: 100 | B111: 0.173 | C111: 2.25 | D111: 0.828 | E111: 0.3878129488 | F111: 5.043810028 | G111: 1.85612209 | H111: 0 | I111: 0 | J111: 0 | K111: 0 | L111: 5.043810028 | M111: 0
A112: 101 | B112: 0.169 | C112: 2.21 | D112: 0.818 | E112: 0.3788461754 | F112: 4.954142294 | G112: 1.833705157 | H112: 0 | I112: 0 | J112: 0 | K112: 0 | L112: 4.954142294 | M112: 0
A113: 102 | B113: 0.165 | C113: 2.17 | D113: 0.809 | E113: 0.369879402 | F113: 4.86447456 | G113: 1.813529917 | H113: 0 | I113: 0 | J113: 0 | K113: 0 | L113: 4.86447456 | M113: 0
A114: 103 | B114: 0.161 | C114: 2.13 | D114: 0.799 | E114: 0.3609126286 | F114: 4.774806826 | G114: 1.791112983 | H114: 0 | I114: 0 | J114: 0 | K114: 0 | L114: 4.774806826 | M114: 0
A115: 104 | B115: 0.157 | C115: 2.09 | D115: 0.79 | E115: 0.3519458553 | F115: 4.685139092 | G115: 1.770937743 | H115: 0 | I115: 0 | J115: 0 | K115: 0 | L115: 0 | M115: 0
A116: 105 | B116: 0.154 | C116: 2.05 | D116: 0.78 | E116: 0.3452207752 | F116: 4.595471358 | G116: 1.74852081 | H116: 0 | I116: 0 | J116: 0 | K116: 0 | L116: 0 | M116: 0
A117: 106 | B117: 0.151 | C117: 2.007 | D117: 0.77 | E117: 0.3384956952 | F117: 4.499078545 | G117: 1.726103876 | H117: 0 | I117: 0 | J117: 0 | K117: 0 | L117: 0 | M117: 0
A118: 107 | B118: 0.147 | C118: 1.964 | D118: 0.76 | E118: 0.3295289218 | F118: 4.402685731 | G118: 1.703686943 | H118: 0 | I118: 0 | J118: 0 | K118: 0 | L118: 0 | M118: 0
A119: 108 | B119: 0.144 | C119: 1.921 | D119: 0.75 | E119: 0.3228038418 | F119: 4.306292917 | G119: 1.681270009 | H119: 0 | I119: 0 | J119: 0 | K119: 0 | L119: 0 | M119: 0
A120: 109 | B120: 0.141 | C120: 1.878 | D120: 0.74 | E120: 0.3160787617 | F120: 4.209900103 | G120: 1.658853076 | H120: 0 | I120: 0 | J120: 0 | K120: 0 | L120: 0 | M120: 0
A121: 110 | B121: 0.138 | C121: 1.835 | D121: 0.73 | E121: 0.3093536817 | F121: 4.113507289 | G121: 1.636436142 | H121: 0 | I121: 0 | J121: 0 | K121: 0 | L121: 0 | M121: 0
A122: 111 | B122: 0.135 | C122: 1.792 | D122: 0.72 | E122: 0.3026286017 | F122: 4.017114475 | G122: 1.614019209 | H122: 0 | I122: 0 | J122: 0 | K122: 0 | L122: 0 | M122: 0
A123: 112 | B123: 0.132 | C123: 1.749 | D123: 0.71 | E123: 0.2959035216 | F123: 3.920721661 | G123: 1.591602275 | H123: 0 | I123: 0 | J123: 0 | K123: 0 | L123: 0 | M123: 0
A124: 113 | B124: 0.129 | C124: 1.706 | D124: 0.7 | E124: 0.2891784416 | F124: 3.824328848 | G124: 1.569185342 | H124: 0 | I124: 0 | J124: 0 | K124: 0 | L124: 0 | M124: 0
A125: 114 | B125: 0.126 | C125: 1.663 | D125: 0.69 | E125: 0.2824533615 | F125: 3.727936034 | G125: 1.546768408 | H125: 0 | I125: 0 | J125: 0 | K125: 0 | L125: 0 | M125: 0
A126: 115 | B126: 0.123 | C126: 1.62 | D126: 0.68 | E126: 0.2757282815 | F126: 3.63154322 | G126: 1.524351475 | H126: 0 | I126: 0 | J126: 0 | K126: 0 | L126: 0 | M126: 0
A127: 116 | B127: 0.12 | C127: 1.582 | D127: 0.673 | E127: 0.2690032015 | F127: 3.546358873 | G127: 1.508659622 | H127: 0 | I127: 0 | J127: 0 | K127: 0 | L127: 0 | M127: 0
A128: 117 | B128: 0.118 | C128: 1.544 | D128: 0.666 | E128: 0.2645198148 | F128: 3.461174526 | G128: 1.492967768 | H128: 0 | I128: 0 | J128: 0 | K128: 0 | L128: 0 | M128: 0
A129: 118 | B129: 0.116 | C129: 1.506 | D129: 0.659 | E129: 0.2600364281 | F129: 3.375990178 | G129: 1.477275915 | H129: 0 | I129: 0 | J129: 0 | K129: 0 | L129: 0 | M129: 0
A130: 119 | B130: 0.113 | C130: 1.468 | D130: 0.652 | E130: 0.2533113481 | F130: 3.290805831 | G130: 1.461584061 | H130: 0 | I130: 0 | J130: 0 | K130: 0 | L130: 0 | M130: 0
A131: 120 | B131: 0.111 | C131: 1.43 | D131: 0.645 | E131: 0.2488279614 | F131: 3.205621484 | G131: 1.445892208 | H131: 0 | I131: 0 | J131: 0 | K131: 0 | L131: 0 | M131: 0
A132: 121 | B132: 0.108 | C132: 1.392 | D132: 0.638 | E132: 0.2421028813 | F132: 3.120437137 | G132: 1.430200354 | H132: 0 | I132: 0 | J132: 0 | K132: 0 | L132: 0 | M132: 0
A133: 122 | B133: 0.106 | C133: 1.354 | D133: 0.631 | E133: 0.2376194946 | F133: 3.03525279 | G133: 1.414508501 | H133: 0 | I133: 0 | J133: 0 | K133: 0 | L133: 0 | M133: 0
A134: 123 | B134: 0.103 | C134: 1.316 | D134: 0.624 | E134: 0.2308944146 | F134: 2.950068443 | G134: 1.398816648 | H134: 0 | I134: 0 | J134: 0 | K134: 0 | L134: 0 | M134: 0
A135: 124 | B135: 0.101 | C135: 1.278 | D135: 0.617 | E135: 0.2264110279 | F135: 2.864884096 | G135: 1.383124794 | H135: 0 | I135: 0 | J135: 0 | K135: 0 | L135: 0 | M135: 0
A136: 125 | B136: 0.098 | C136: 1.24 | D136: 0.61 | E136: 0.2196859479 | F136: 2.779699749 | G136: 1.367432941 | H136: 0 | I136: 0 | J136: 0 | K136: 0 | L136: 0 | M136: 0
A137: 126 | B137: 0.096 | C137: 1.218 | D137: 0.604 | E137: 0.2152025612 | F137: 2.730382495 | G137: 1.353982781 | H137: 0 | I137: 0 | J137: 0 | K137: 0 | L137: 0 | M137: 0
A138: 127 | B138: 0.094 | C138: 1.196 | D138: 0.598 | E138: 0.2107191745 | F138: 2.681065241 | G138: 1.340532621 | H138: 0 | I138: 0 | J138: 0 | K138: 0 | L138: 0 | M138: 0
A139: 128 | B139: 0.092 | C139: 1.174 | D139: 0.592 | E139: 0.2062357878 | F139: =C139*$B$7/$B$6 -> 2.631747988 | G139: =D139*$B$7/$B$6 -> 1.327082461 | H139: 0 | I139: 0 | J139: 0 | K139: 0 | L139: 0 | M139: 0
A140: 129 | B140: 0.09 | C140: 1.152 | D140: 0.586 | E140: =B140*$B$7/$B$6 -> 0.2017524011 | F140: 2.582430734 | G140: 1.313632301 | H140: 0 | I140: 0 | J140: 0 | K140: 0 | L140: 0 | M140: 0
A141: 130 | B141: 0.088 | C141: 1.13 | D141: 0.58 | E141: 0.1972690144 | F141: 2.533113481 | G141: 1.30018214 | H141: 0 | I141: 0 | J141: 0 | K141: 0 | L141: 0 | M141: 0
A142: 131 | B142: 0.087 | C142: 1.108 | D142: 0.574 | E142: 0.1950273211 | F142: 2.483796227 | G142: 1.28673198 | H142: 0 | I142: 0 | J142: 0 | K142: 0 | L142: 0 | M142: 0
A143: 132 | B143: 0.085 | C143: 1.086 | D143: 0.568 | E143: 0.1905439344 | F143: 2.434478973 | G143: 1.27328182 | H143: 0 | I143: 0 | J143: 0 | K143: 0 | L143: 0 | M143: 0
A144: 133 | B144: 0.083 | C144: 1.064 | D144: 0.562 | E144: 0.1860605477 | F144: 2.38516172 | G144: 1.25983166 | H144: 0 | I144: 0 | J144: 0 | K144: 0 | L144: 0 | M144: 0
A145: 134 | B145: 0.081 | C145: 1.042 | D145: 0.556 | E145: 0.181577161 | F145: 2.335844466 | G145: 1.2463815 | H145: 0 | I145: 0 | J145: 0 | K145: 0 | L145: 0 | M145: 0
A146: 135 | B146: 0.079 | C146: 1.02 | D146: 0.55 | E146: 0.1770937743 | F146: 2.286527213 | G146: 1.23293134 | H146: 0 | I146: 0 | J146: 0 | K146: 0 | L146: 0 | M146: 0
A147: 136 | B147: 0.077 | C147: 1.004 | D147: 0.545 | E147: 0.1726103876 | F147: 2.250660119 | G147: 1.221722873 | H147: 0 | I147: 0 | J147: 0 | K147: 0 | L147: 0 | M147: 0
A148: 137 | B148: 0.075 | C148: 0.988 | D148: 0.54 | E148: 0.1681270009 | F148: 2.214793025 | G148: 1.210514407 | H148: 0 | I148: 0 | J148: 0 | K148: 0 | L148: 0 | M148: 0
A149: 138 | B149: 0.074 | C149: 0.972 | D149: 0.535 | E149: 0.1658853076 | F149: 2.178925932 | G149: 1.19930594 | H149: 0 | I149: 0 | J149: 0 | K149: 0 | L149: 0 | M149: 0
A150: 139 | B150: 0.072 | C150: 0.956 | D150: 0.53 | E150: 0.1614019209 | F150: 2.143058838 | G150: 1.188097473 | H150: 0 | I150: 0 | J150: 0 | K150: 0 | L150: 0 | M150: 0
A151: 140 | B151: 0.071 | C151: 0.94 | D151: 0.525 | E151: 0.1591602275 | F151: 2.107191745 | G151: 1.176889006 | H151: 0 | I151: 0 | J151: 0 | K151: 0 | L151: 0 | M151: 0
A152: 141 | B152: 0.069 | C152: 0.924 | D152: 0.52 | E152: 0.1546768408 | F152: 2.071324651 | G152: 1.16568054 | H152: 0 | I152: 0 | J152: 0 | K152: 0 | L152: 0 | M152: 0
A153: 142 | B153: 0.068 | C153: 0.908 | D153: 0.515 | E153: 0.1524351475 | F153: 2.035457558 | G153: 1.154472073 | H153: 0 | I153: 0 | J153: 0 | K153: 0 | L153: 0 | M153: 0
A154: 143 | B154: 0.066 | C154: 0.892 | D154: 0.51 | E154: 0.1479517608 | F154: 1.999590464 | G154: 1.143263606 | H154: 0 | I154: 0 | J154: 0 | K154: 0 | L154: 0 | M154: 0
A155: 144 | B155: 0.064 | C155: 0.876 | D155: 0.505 | E155: 0.1434683741 | F155: 1.963723371 | G155: 1.13205514 | H155: 0 | I155: 0 | J155: 0 | K155: 0 | L155: 0 | M155: 0
A156: 145 | B156: 0.063 | C156: 0.86 | D156: 0.5 | E156: 0.1412266808 | F156: 1.927856277 | G156: 1.120846673 | H156: 0 | I156: 0 | J156: 0 | K156: 0 | L156: 0 | M156: 0
A157: 146 | B157: 0.062 | C157: 0.836 | D157: 0.495 | E157: 0.1389849874 | F157: 1.874055637 | G157: 1.109638206 | H157: 0 | I157: 0 | J157: 0 | K157: 0 | L157: 0 | M157: 0
A158: 147 | B158: 0.06 | C158: 0.812 | D158: 0.49 | E158: 0.1345016007 | F158: 1.820254997 | G158: 1.098429739 | H158: 0 | I158: 0 | J158: 0 | K158: 0 | L158: 0 | M158: 0
A159: 148 | B159: 0.059 | C159: 0.788 | D159: 0.485 | E159: 0.1322599074 | F159: 1.766454356 | G159: 1.087221273 | H159: 0 | I159: 0 | J159: 0 | K159: 0 | L159: 0 | M159: 0
A160: 149 | B160: 0.058 | C160: 0.764 | D160: 0.48 | E160: 0.130018214 | F160: 1.712653716 | G160: 1.076012806 | H160: 0 | I160: 0 | J160: 0 | K160: 0 | L160: 0 | M160: 0
A161: 150 | B161: 0.057 | C161: 0.74 | D161: 0.475 | E161: 0.1277765207 | F161: 1.658853076 | G161: 1.064804339 | H161: 0 | I161: 0 | J161: 0 | K161: 0 | L161: 0 | M161: 0
A162: 151 | B162: 0.055 | C162: 0.716 | D162: 0.47 | E162: 0.123293134 | F162: 1.605052435 | G162: 1.053595872 | H162: 0 | I162: 0 | J162: 0 | K162: 0 | L162: 0 | M162: 0
A163: 152 | B163: 0.054 | C163: 0.692 | D163: 0.465 | E163: 0.1210514407 | F163: 1.551251795 | G163: 1.042387406 | H163: 0 | I163: 0 | J163: 0 | K163: 0 | L163: 0 | M163: 0
A164: 153 | B164: 0.053 | C164: 0.668 | D164: 0.46 | E164: 0.1188097473 | F164: 1.497451155 | G164: 1.031178939 | H164: 0 | I164: 0 | J164: 0 | K164: 0 | L164: 0 | M164: 0
A165: 154 | B165: 0.052 | C165: 0.644 | D165: 0.455 | E165: 0.116568054 | F165: 1.443650515 | G165: 1.019970472 | H165: 0 | I165: 0 | J165: 0 | K165: 0 | L165: 0 | M165: 0
A166: 155 | B166: 0.05 | C166: 0.62 | D166: 0.45 | E166: 0.1120846673 | F166: 1.389849874 | G166: 1.008762006 | H166: 0 | I166: 0 | J166: 0 | K166: 0 | L166: 0 | M166: 0

Sheet Forestry bids
A1: Worldwide cost of sequestration by forestry
A2: From IPCC SR15_Chapter4_High_Res.pdf, section 4.3.7.2, and https://www.nature.com/articles/s41467-020-19578-z
A3: 1000 | B3: million hectares available
A4: 1 | B4: low Gt C/year | D4: =1000*A4/$A$3 -> 1 | E4: tons/hectare
A5: 3.7 | B5: avg Gt C/year | D5: =1000*A5/$A$3 -> 3.7 | E5: tons/hectare
A6: 17.9 | B6: high Gt C/year | D6: 17.9 | E6: tons/hectare
A7: 5 | B7: low tC/year | D7: I use this as the lowest value.
A8: 50 | B8: high tC/year | D8: Instead of $50, I use $US126 from the previous sheet.
A9: Note: quantities measure carbon, not carbon dioxide. See Stavins & Richards 2005, p. 38, endnote 8.
A10: Given that 500,000,000 ha are available, they most likely cannot be planted all at once.
A11: But if they can, assume the maximum bid is 500 million hectares in a year, spread equally across the 9 contracts.
A12: In reality, shorter contracts would be sublinear in cost to longer ones, because owners get their land back sooner.
A14: Tons/hectare | C14: ='Forestry timing'!E9 -> 344.7903701 | D14: ='Forestry timing'!F9 -> 633.3792463 | E14: ='Forestry timing'!G9 -> 367.8394611 | F14: ='Forestry timing'!H9 -> 38.27691388 | G14: ='Forestry timing'!I9 -> 19.93986231 | H14: ='Forestry timing'!J9 -> 24.14303733 | I14: ='Forestry timing'!K9 -> 153.0628216 | J14: ='Forestry timing'!L9 -> 489.5185759 | K14: ='Forestry timing'!M9 -> 178.1025363
F15: 10-year contract | G15: 10-year contract | H15: 10-year contract | I15: 24-year contract | J15: 103-year contract | K15: 55-year contract
A16: Plantable thousand hectares/year | B16: Plantable million hectares/year, bid qty per contract | C16: $/hectare Loblolly Pine, 150 years | D16: $/hectare ponderosa pine, 150 years | E16: $/hectare black walnut, 150 years | F16: $/hectare Loblolly Pine, 10 years | G16: $/hectare ponderosa pine, 10 years | H16: $/hectare black walnut, 10 years | I16: $/hectare Loblolly Pine, 24 years | J16: $/hectare ponderosa pine, 103 years | K16: $/hectare black walnut, 55 years | L16: Save this as Forestry_bid_steps.csv
A17: 1000 | B17: =A17/9/1000 -> 0.1111111111 | C17: =C14*$A$7 -> 1723.95185 | D17: 3166.896232 | E17: 1839.197305 | F17: 191.3845694 | G17: 99.69931155 | H17: 120.7151867 | I17: 765.3141082 | J17: 2447.592879 | K17: 890.5126815 | L17: Linear interpolation counts rows in the spreadsheet.
A18: =A17+1000 -> 2000 | B18: =$B$17 -> 0.1111111111 | C18: =LinInterp(C$216,C$17) -> 1801.9196 | D18: =LinInterp(D$216,D$17) -> 3310.1227 | E18: 1922.3771 | F18: 200.0402 | G18: 104.2083 | H18: 126.1747 | I18: 799.9263 | J18: 2558.2881 | K18: 930.7871
A19: =A18+1000 -> 3000 | B19: =$B$17 -> 0.1111111111 | C19: =LinInterp(C$216,C$17) -> 1879.8872 | D19: 3453.3491 | E19: 2005.5569 | F19: 208.6958 | G19: 108.7173 | H19: 131.6342 | I19: 834.5385 | J19: 2668.9832 | K19: 971.0616
A20: 4000 | B20: 0.1111111111 | C20: 1957.8549 | D20: 3596.5756 | E20: 2088.7366 | F20: 217.3514 | G20: 113.2263 | H20: 137.0936 | I20: 869.1507 | J20: 2779.6784 | K20: 1011.336
A21: 5000 | B21: 0.1111111111 | C21: 2035.8226 | D21: 3739.8021 | E21: 2171.9164 | F21: 226.0069 | G21: 117.7354 | H21: 142.5531 | I21: 903.7629 | J21: 2890.3735 | K21: 1051.6105
A22: 6000 | B22: 0.1111111111 | C22: 2113.7903 | D22: 3883.0285 | E22: 2255.0962 | F22: 234.6625 | G22: 122.2444 | H22: 148.0126 | I22: 938.3751 | J22: 3001.0687 | K22: 1091.8849
A23: 7000 | B23: 0.1111111111 | C23: 2191.7579 | D23: 4026.255 | E23: 2338.276 | F23: 243.3181 | G23: 126.7534 | H23: 153.4721 | I23: 972.9873 | J23: 3111.7638 | K23: 1132.1594
A24: 8000 | B24: 0.1111111111 | C24: 2269.7256 | D24: 4169.4814 | E24: 2421.4557 | F24: 251.9737 | G24: 131.2624 | H24: 158.9316 | I24: 1007.5995 | J24: 3222.459 | K24: 1172.4338
A25: 9000 | B25: 0.1111111111 | C25: 2347.6933 | D25: 4312.7079 | E25: 2504.6355 | F25: 260.6293 | G25: 135.7714 | H25: 164.391 | I25: 1042.2117 | J25: 3333.1541 | K25: 1212.7082
A26: 10000 | B26: 0.1111111111 | C26: 2425.6609 | D26: 4455.9344 | E26: 2587.8153 | F26: 269.2849 | G26: 140.2804 | H26: 169.8505 | I26: 1076.8239 | J26: 3443.8493 | K26: 1252.9827
A27: 11000 | B27: 0.1111111111 | C27: 2503.6286 | D27: 4599.1608 | E27: 2670.9951 | F27: 277.9404 | G27: 144.7894 | H27: 175.31 | I27: 1111.4361 | J27: 3554.5445 | K27: 1293.2571
A28: 12000 | B28: 0.1111111111 | C28: 2581.5963 | D28: 4742.3873 | E28: 2754.1749 | F28: 286.596 | G28: 149.2985 | H28: 180.7695 | I28: 1146.0483 | J28: 3665.2396 | K28: 1333.5316
A29: 13000 | B29: 0.1111111111 | C29: 2659.564 | D29: 4885.6138 | E29: 2837.3546 | F29: 295.2516 | G29: 153.8075 | H29: 186.229 | I29: 1180.6605 | J29: 3775.9348 | K29: 1373.806
A30: 14000 | B30: 0.1111111111 | C30: 2737.5316 | D30: 5028.8402 | E30: 2920.5344 | F30: 303.9072 | G30: 158.3165 | H30: 191.6885 | I30: 1215.2726 | J30: 3886.6299 | K30: 1414.0805
A31: 15000 | B31: 0.1111111111 | C31: 2815.4993 | D31: 5172.0667 | E31: 3003.7142 | F31: 312.5628 | G31: 162.8255 | H31: 197.1479 | I31: 1249.8848 | J31: 3997.3251 | K31: 1454.3549
A32: 16000 | B32: 0.1111111111 | C32: 2893.467 | D32: 5315.2931 | E32: 3086.894 | F32: 321.2184 | G32: 167.3345 | H32: 202.6074 | I32: 1284.497 | J32: 4108.0202 | K32: 1494.6293
A33: 17000 | B33: 0.1111111111 | C33: 2971.4346 | D33: 5458.5196 | E33: 3170.0737 | F33: 329.8739 | G33: 171.8435 | H33: 208.0669 | I33: 1319.1092 | J33: 4218.7154 | K33: 1534.9038
A34: 18000 | B34: 0.1111111111 | C34: 3049.4023 | D34: 5601.7461 | E34: 3253.2535 | F34: 338.5295 | G34: 176.3525 | H34: 213.5264 | I34: 1353.7214 | J34: 4329.4105 | K34: 1575.1782
A35: 19000 | B35: 0.1111111111 | C35: =LinInterp(C$216,C$17) -> 3127.37 | D35: 5744.9725 | E35: 3336.4333 | F35: 347.1851 | G35: 180.8616 | H35: 218.9859 | I35: 1388.3336 | J35: 4440.1057 | K35: 1615.4527
A36: 20000 | B36: 0.1111111111 | C36: 3205.3377 | D36: 5888.199 | E36: 3419.6131 | F36: 355.8407 | G36: 185.3706 | H36: 224.4453 | I36: 1422.9458 | J36: 4550.8009 | K36: 1655.7271
A37: 21000 | B37: 0.1111111111 | C37: 3283.3053 | D37: 6031.4255 | E37: 3502.7929 | F37: 364.4963 | G37: 189.8796 | H37: 229.9048 | I37: 1457.558 | J37: 4661.496 | K37: 1696.0016
A38: 22000 | B38: 0.1111111111 | C38: 3361.273 | D38: 6174.6519 | E38: 3585.9726 | F38: 373.1519 | G38: 194.3886 | H38: 235.3643 | I38: 1492.1702 | J38: 4772.1912 | K38: 1736.276
A39: 23000 | B39: 0.1111111111 | C39: 3439.2407 | D39: 6317.8784 | E39: 3669.1524 | F39: 381.8074 | G39: 198.8976 | H39: 240.8238 | I39: 1526.7824 | J39: 4882.8863 | K39: 1776.5504
A40: 24000 | B40: 0.1111111111 | C40: 3517.2083 | D40: 6461.1048 | E40: 3752.3322 | F40: 390.463 | G40: 203.4066 | H40: 246.2833 | I40: 1561.3946 | J40: 4993.5815 | K40: 1816.8249
A41: 25000 | B41: 0.1111111111 | C41: 3595.176 | D41: 6604.3313 | E41: 3835.512 | F41: 399.1186 | G41: 207.9156 | H41: 251.7427 | I41: 1596.0068 | J41: 5104.2766 | K41: 1857.0993
A42: 26000 | B42: 0.1111111111 | C42: 3673.1437 | D42: 6747.5578 | E42: 3918.6917 | F42: 407.7742 | G42: 212.4247 | H42: 257.2022 | I42: 1630.619 | J42: 5214.9718 | K42: 1897.3738
A43: 27000 | B43: 0.1111111111 | C43: 3751.1114 | D43: 6890.7842 | E43: 4001.8715 | F43: 416.4298 | G43: 216.9337 | H43: 262.6617 | I43: 1665.2312 | J43: 5325.6669 | K43: 1937.6482
A44: 28000 | B44: 0.1111111111 | C44: 3829.079 | D44: 7034.0107 | E44: 4085.0513 | F44: 425.0854 | G44: 221.4427 | H44: 268.1212 | I44: 1699.8434 | J44: 5436.3621 | K44: 1977.9227
A45: 29000 | B45: 0.1111111111 | C45: 3907.0467 | D45: 7177.2372 | E45: 4168.2311 | F45: 433.7409 | G45: 225.9517 | H45: 273.5807 | I45: 1734.4556 | J45: 5547.0572 | K45: 2018.1971
A46: 30000 | B46: 0.1111111111 | C46: 3985.0144 | D46: 7320.4636 | E46: 4251.4109 | F46: 442.3965 | G46: 230.4607 | H46: 279.0401 | I46: 1769.0678 | J46: 5657.7524 | K46: 2058.4715
A47: 31000 | B47: 0.1111111111 | C47: 4062.982 | D47: 7463.6901 | E47: 4334.5906 | F47: 451.0521 | G47: 234.9697 | H47: 284.4996 | I47: 1803.68 | J47: 5768.4476 | K47: 2098.746
A48: 32000 | B48: 0.1111111111 | C48: 4140.9497 | D48: 7606.9165 | E48: 4417.7704 | F48: 459.7077 | G48: 239.4787 | H48: 289.9591 | I48: 1838.2922 | J48: 5879.1427 | K48: 2139.0204
A49: 33000 | B49: 0.1111111111 | C49: 4218.9174 | D49: 7750.143 | E49: 4500.9502 | F49: 468.3633 | G49: 243.9878 | H49: 295.4186 | I49: 1872.9044 | J49: 5989.8379 | K49: 2179.2949
A50: 34000 | B50: 0.1111111111 | C50: 4296.8851 | D50: 7893.3695 | E50: 4584.13 | F50: 477.0189 | G50: 248.4968 | H50: 300.8781 | I50: 1907.5166 | J50: 6100.533 | K50: 2219.5693
A51: 35000 | B51: 0.1111111111 | C51: =LinInterp(C$216,C$17) -> 4374.8527 | D51: 8036.5959 | E51: 4667.3097 | F51: 485.6744 | G51: 253.0058 | H51: 306.3376 | I51: 1942.1288 | J51: 6211.2282 | K51: 2259.8438
A52: 36000 | B52: 0.1111111111 | C52: 4452.8204 | D52: 8179.8224 | E52: 4750.4895 | F52: 494.33 | G52: 257.5148 | H52: 311.797 | I52: 1976.741 | J52: 6321.9233 | K52: 2300.1182
A53: 37000 | B53: 0.1111111111 | C53: 4530.7881 | D53: 8323.0489 | E53: 4833.6693 | F53: 502.9856 | G53: 262.0238 | H53: 317.2565 | I53: 2011.3532 | J53: 6432.6185 | K53: 2340.3926
A54: 38000 | B54: 0.1111111111 | C54: 4608.7557 | D54: 8466.2753 | E54: 4916.8491 | F54: 511.6412 | G54: 266.5328 | H54: 322.716 | I54: 2045.9654 | J54: 6543.3136 | K54: 2380.6671
A55: 39000 | B55: 0.1111111111 | C55: 4686.7234 | D55: 8609.5018 | E55: 5000.0289 | F55: 520.2968 | G55: 271.0418 | H55: 328.1755 | I55: 2080.5775 | J55: 6654.0088 | K55: 2420.9415
A56: 40000 | B56: 0.1111111111 | C56: 4764.6911 | D56: 8752.7282 | E56: 5083.2086 | F56: 528.9524 | G56: 275.5508 | H56: 333.635 | I56: 2115.1897 | J56: 6764.704 | K56: 2461.216
A57: 41000 | B57: 0.1111111111 | C57: 4842.6588 | D57: 8895.9547 | E57: 5166.3884 | F57: 537.6079 | G57: 280.0599 | H57: 339.0944 | I57: 2149.8019 | J57: 6875.3991 | K57: 2501.4904
A58: 42000 | B58: 0.1111111111 | C58: 4920.6264 | D58: 9039.1812 | E58: 5249.5682 | F58: 546.2635 | G58: 284.5689 | H58: 344.5539 | I58: 2184.4141 | J58: 6986.0943 | K58: 2541.7649
A59: 43000 | B59: 0.1111111111 | C59: 4998.5941 | D59: 9182.4076 | E59: 5332.748 | F59: 554.9191 | G59: 289.0779 | H59: 350.0134 | I59: 2219.0263 | J59: 7096.7894 | K59: 2582.0393
A60: 44000 | B60: 0.1111111111 | C60: 5076.5618 | D60: 9325.6341 | E60: 5415.9277 | F60: 563.5747 | G60: 293.5869 | H60: 355.4729 | I60: 2253.6385 | J60: 7207.4846 | K60: 2622.3137
A61: 45000 | B61: 0.1111111111 | C61: 5154.5294 | D61: 9468.8606 | E61: 5499.1075 | F61: 572.2303 | G61: 298.0959 | H61: 360.9324 | I61: 2288.2507 | J61: 7318.1797 | K61: 2662.5882
A62: 46000 | B62: 0.1111111111 | C62: 5232.4971 | D62: 9612.087 | E62: 5582.2873 | F62: 580.8859 | G62: 302.6049 | H62: 366.3918 | I62: 2322.8629 | J62: 7428.8749 | K62: 2702.8626
A63: 47000 | B63: 0.1111111111 | C63: 5310.4648 | D63: 9755.3135 | E63: 5665.4671 | F63: 589.5414 | G63: 307.1139 | H63: 371.8513 | I63: 2357.4751 | J63: 7539.57 | K63: 2743.1371
A64: 48000 | B64: 0.1111111111 | C64: 5388.4325 | D64: 9898.54 | E64: 5748.6469 | F64: 598.197 | G64: 311.623 | H64: 377.3108 | I64: 2392.0873 | J64: 7650.2652 | K64: 2783.4115
A65: 49000 | B65: 0.1111111111 | C65: 5466.4001 | D65: 10041.7664 | E65: 5831.8266 | F65: 606.8526 | G65: 316.132 | H65: 382.7703 | I65: 2426.6995 | J65: 7760.9604 | K65: 2823.686
A66: 50000 | B66: 0.1111111111 | C66: 5544.3678 | D66: 10184.9929 | E66: 5915.0064 | F66: 615.5082 | G66: 320.641 | H66: 388.2298 | I66: 2461.3117 | J66: 7871.6555 | K66: 2863.9604
A67: 51000 | B67: 0.1111111111 | C67: =LinInterp(C$216,C$17) -> 5622.3355 | D67: 10328.2193 | E67: 5998.1862 | F67: 624.1638 | G67: 325.15 | H67: 393.6892 | I67: 2495.9239 | J67: 7982.3507 | K67: 2904.2348
A68: 52000 | B68: 0.1111111111 | C68: 5700.3031 | D68: 10471.4458 | E68: 6081.366 | F68: 632.8194 | G68: 329.659 | H68: 399.1487 | I68: 2530.5361 | J68: 8093.0458 | K68: 2944.5093
A69: 53000 | B69: 0.1111111111 | C69: 5778.2708 | D69: 10614.6723 | E69: 6164.5458 | F69: 641.4749 | G69: 334.168 | H69: 404.6082 | I69: 2565.1483 | J69: 8203.741 | K69: 2984.7837
A70: 54000 | B70: 0.1111111111 | C70: 5856.2385 | D70: 10757.8987 | E70: 6247.7255 | F70: 650.1305 | G70: 338.677 | H70: 410.0677 | I70: 2599.7605 | J70: 8314.4361 | K70: 3025.0582
A71: 55000 | B71: 0.1111111111 | C71: 5934.2062 | D71: 10901.1252 | E71: 6330.9053 | F71: 658.7861 | G71: 343.1861 | H71: 415.5272 | I71: 2634.3727 | J71: 8425.1313 | K71: 3065.3326
A72: 56000 | B72: 0.1111111111 | C72: 6012.1738 | D72: 11044.3517 | E72: 6414.0851 | F72: 667.4417 | G72: 347.6951 | H72: 420.9866 | I72: 2668.9849 | J72: 8535.8264 | K72: 3105.607
A73: 57000 | B73: 0.1111111111 | C73: 6090.1415 | D73: 11187.5781 | E73: 6497.2649 | F73: 676.0973 | G73: 352.2041 | H73: 426.4461 | I73: 2703.5971 | J73: 8646.5216 | K73: 3145.8815
A74: 58000 | B74: 0.1111111111 | C74: 6168.1092 | D74: 11330.8046 | E74: 6580.4446 | F74: 684.7529 | G74: 356.7131 | H74: 431.9056 | I74: 2738.2093 | J74: 8757.2168 | K74: 3186.1559
A75: 59000 | B75: 0.1111111111 | C75: 6246.0768 | D75: 11474.031 | E75: 6663.6244 | F75: 693.4084 | G75: 361.2221 | H75: 437.3651 | I75: 2772.8215 | J75: 8867.9119 | K75: 3226.4304
A76: 60000 | B76: 0.1111111111 | C76: 6324.0445 | D76: 11617.2575 | E76: 6746.8042 | F76: 702.064 | G76: 365.7311 | H76: 442.8246 | I76: 2807.4337 | J76: 8978.6071 | K76: 3266.7048
A77: 61000 | B77: 0.1111111111 | C77: 6402.0122 | D77: 11760.484 | E77: 6829.984 | F77: 710.7196 | G77: 370.2401 | H77: 448.2841 | I77: 2842.0459 | J77: 9089.3022 | K77: 3306.9793
A78: 62000 | B78: 0.1111111111 | C78: 6479.9799 | D78: 11903.7104 | E78: 6913.1638 | F78: 719.3752 | G78: 374.7492 | H78: 453.7435 | I78: 2876.6581 | J78: 9199.9974 | K78: 3347.2537
A79: 63000 | B79: 0.1111111111 | C79: 6557.9475 | D79: 12046.9369 | E79: 6996.3435 | F79: 728.0308 | G79: 379.2582 | H79: 459.203 | I79: 2911.2703 | J79: 9310.6925 | K79: 3387.5281
A80: 64000 | B80: 0.1111111111 | C80: 6635.9152 | D80: 12190.1634 | E80: 7079.5233 | F80: 736.6864 | G80: 383.7672 | H80: 464.6625 | I80: 2945.8824 | J80: 9421.3877 | K80: 3427.8026
A81: 65000 | B81: 0.1111111111 | C81: 6713.8829 | D81: 12333.3898 | E81: 7162.7031 | F81: 745.3419 | G81: 388.2762 | H81: 470.122 | I81: 2980.4946 | J81: 9532.0828 | K81: 3468.077
A82: 66000 | B82: 0.1111111111 | C82: 6791.8505 | D82: 12476.6163 | E82: 7245.8829 | F82: 753.9975 | G82: 392.7852 | H82: 475.5815 | I82: 3015.1068 | J82: 9642.778 | K82: 3508.3515
A83: =A82+1000 -> 67000 | B83: =$B$17 -> 0.1111111111 | C83: =LinInterp(C$216,C$17) -> 6869.8182 | D83: 12619.8427 | E83: 7329.0626 | F83: 762.6531 | G83: 397.2942 | H83: 481.0409 | I83: 3049.719 | J83: 9753.4731 | K83: 3548.6259
A84: 68000 | B84: 0.1111111111 | C84: 6947.7859 | D84: 12763.0692 | E84: 7412.2424 | F84: 771.3087 | G84: 401.8032 | H84: 486.5004 | I84: 3084.3312 | J84: 9864.1683 | K84: 3588.9004
A85: 69000 | B85: 0.1111111111 | C85: 7025.7536 | D85: 12906.2957 | E85: 7495.4222 | F85: 779.9643 | G85: 406.3123 | H85: 491.9599 | I85: 3118.9434 | J85: 9974.8635 | K85: 3629.1748
A86: 70000 | B86: 0.1111111111 | C86: 7103.7212 | D86: 13049.5221 | E86: 7578.602 | F86: 788.6199 | G86: 410.8213 | H86: 497.4194 | I86: 3153.5556 | J86: 10085.5586 | K86: 3669.4492
A87: 71000 | B87: 0.1111111111 | C87: 7181.6889 | D87: 13192.7486 | E87: 7661.7818 | F87: 797.2754 | G87: 415.3303 | H87: 502.8789 | I87: 3188.1678 | J87: 10196.2538 | K87: 3709.7237
A88: 72000 | B88: 0.1111111111 | C88: 7259.6566 | D88: 13335.9751 | E88: 7744.9615 | F88: 805.931 | G88: 419.8393 | H88: 508.3383 | I88: 3222.78 | J88: 10306.9489 | K88: 3749.9981
A89: 73000 | B89: 0.1111111111 | C89: 7337.6242 | D89: 13479.2015 | E89: 7828.1413 | F89: 814.5866 | G89: 424.3483 | H89: 513.7978 | I89: 3257.3922 | J89: 10417.6441 | K89: 3790.2726
A90: 74000 | B90: 0.1111111111 | C90: 7415.5919 | D90: 13622.428 | E90: 7911.3211 | F90: 823.2422 | G90: 428.8573 | H90: 519.2573 | I90: 3292.0044 | J90: 10528.3392 | K90: 3830.547
A91: 75000 | B91: 0.1111111111 | C91: 7493.5596 | D91: 13765.6544 | E91: 7994.5009 | F91: 831.8978 | G91: 433.3663 | H91: 524.7168 | I91: 3326.6166 | J91: 10639.0344 | K91: 3870.8215
A92: 76000 | B92: 0.1111111111 | C92: 7571.5273 | D92: 13908.8809 | E92: 8077.6806 | F92: 840.5534 | G92: 437.8754 | H92: 530.1763 | I92: 3361.2288 | J92: 10749.7295 | K92: 3911.0959
A93: 77000 | B93: 0.1111111111 | C93: 7649.4949 | D93: 14052.1074 | E93: 8160.8604 | F93: 849.2089 | G93: 442.3844 | H93: 535.6357 | I93: 3395.841 | J93: 10860.4247 | K93: 3951.3703
A94: 78000 | B94: 0.1111111111 | C94: 7727.4626 | D94: 14195.3338 | E94: 8244.0402 | F94: 857.8645 | G94: 446.8934 | H94: 541.0952 | I94: 3430.4532 | J94: 10971.1199 | K94: 3991.6448
A95: 79000 | B95: 0.1111111111 | C95: 7805.4303 | D95: 14338.5603 | E95: 8327.22 | F95: 866.5201 | G95: 451.4024 | H95: 546.5547 | I95: 3465.0654 | J95: 11081.815 | K95: 4031.9192
A96: 80000 | B96: 0.1111111111 | C96: 7883.3979 | D96: 14481.7868 | E96: 8410.3998 | F96: 875.1757 | G96: 455.9114 | H96: 552.0142 | I96: 3499.6776 | J96: 11192.5102 | K96: 4072.1937
A97: 81000 | B97: 0.1111111111 | C97: 7961.3656 | D97: 14625.0132 | E97: 8493.5795 | F97: 883.8313 | G97: 460.4204 | H97: 557.4737 | I97: 3534.2898 | J97: 11303.2053 | K97: 4112.4681
A98: 82000 | B98: 0.1111111111 | C98: 8039.3333 | D98: 14768.2397 | E98: 8576.7593 | F98: 892.4869 | G98: 464.9294 | H98: 562.9332 | I98: 3568.902 | J98: 11413.9005 | K98: 4152.7426
A99: 83000 | B99: 0.1111111111 | C99: =LinInterp(C$216,C$17) -> 8117.301 | D99: 14911.4662 | E99: 8659.9391 | F99: 901.1424 | G99: 469.4385 | H99: 568.3926 | I99: 3603.5142 | J99: 11524.5956 | K99: 4193.017
A100: 84000 | B100: 0.1111111111 | C100: 8195.2686 | D100: 15054.6926 | E100: 8743.1189 | F100: 909.798 | G100: 473.9475 | H100: 573.8521 | I100: 3638.1264 | J100: 11635.2908 | K100: 4233.2914
A101: 85000 | B101: 0.1111111111 | C101: 8273.2363 | D101: 15197.9191 | E101: 8826.2986 | F101: 918.4536 | G101: 478.4565 | H101: 579.3116 | I101: 3672.7386 | J101: 11745.9859 | K101: 4273.5659
A102: 86000 | B102: 0.1111111111 | C102: 8351.204 | D102: 15341.1455 | E102: 8909.4784 | F102: 927.1092 | G102: 482.9655 | H102: 584.7711 | I102: 3707.3508 | J102: 11856.6811 | K102: 4313.8403
A103: 87000 | B103: 0.1111111111 | C103: 8429.1716 | D103: 15484.372 | E103: 8992.6582 | F103: 935.7648 | G103: 487.4745 | H103: 590.2306 | I103: 3741.963 | J103: 11967.3763 | K103: 4354.1148
A104: 88000 | B104: 0.1111111111 | C104: 8507.1393 | D104: 15627.5985 | E104: 9075.838 | F104: 944.4204 | G104: 491.9835 | H104: 595.69 | I104: 3776.5752 | J104: 12078.0714 | K104: 4394.3892
A105: 89000 | B105: 0.1111111111 | C105: 8585.107 | D105: 15770.8249 | E105: 9159.0178 | F105: 953.0759 | G105: 496.4925 | H105: 601.1495 | I105: 3811.1873 | J105: 12188.7666 | K105: 4434.6637
A106: 90000 | B106: 0.1111111111 | C106: 8663.0747 | D106: 15914.0514 | E106: 9242.1975 | F106: 961.7315 | G106: 501.0016 | H106: 606.609 | I106: 3845.7995 | J106: 12299.4617 | K106: 4474.9381
A107: 91000 | B107: 0.1111111111 | C107: 8741.0423 | D107: 16057.2779 | E107: 9325.3773 | F107: 970.3871 | G107: 505.5106 | H107: 612.0685 | I107: 3880.4117 | J107: 12410.1569 | K107: 4515.2125
A108: 92000 | B108: 0.1111111111 | C108: 8819.01 | D108: 16200.5043 | E108: 9408.5571 | F108: 979.0427 | G108: 510.0196 | H108: 617.528 | I108: 3915.0239 | J108: 12520.852 | K108: 4555.487
A109: 93000 | B109: 0.1111111111 | C109: 8896.9777 | D109: 16343.7308 | E109: 9491.7369 | F109: 987.6983 | G109: 514.5286 | H109: 622.9874 | I109: 3949.6361 | J109: 12631.5472 | K109: 4595.7614
A110: 94000 | B110: 0.1111111111 | C110: 8974.9453 | D110: 16486.9572 | E110: 9574.9166 | F110: 996.3539 | G110: 519.0376 | H110: 628.4469 | I110: 3984.2483 | J110: 12742.2423 | K110: 4636.0359
A111: 95000 | B111: 0.1111111111 | C111: 9052.913 | D111: 16630.1837 | E111: 9658.0964 | F111: 1005.0094 | G111: 523.5466 | H111: 633.9064 | I111: 4018.8605 | J111: 12852.9375 | K111: 4676.3103
A112: 96000 | B112: 0.1111111111 | C112: 9130.8807 | D112: 16773.4102 | E112: 9741.2762 | F112: 1013.665 | G112: 528.0556 | H112: 639.3659 | I112: 4053.4727 | J112: 12963.6327 | K112: 4716.5848
A113: 97000 | B113: 0.1111111111 | C113: 9208.8484 | D113: 16916.6366 | E113: 9824.456 | F113: 1022.3206 | G113: 532.5647 | H113: 644.8254 | I113: 4088.0849 | J113: 13074.3278 | K113: 4756.8592
A114: 98000 | B114: 0.1111111111 | C114: 9286.816 | D114: 17059.8631 | E114: 9907.6358 | F114: 1030.9762 | G114: 537.0737 | H114: 650.2848 | I114: 4122.6971 | J114: 13185.023 | K114: 4797.1336
A115: 99000 | B115: 0.1111111111 | C115: =LinInterp(C$216,C$17) -> 9364.7837 | D115: 17203.0896 | E115: 9990.8155 | F115: 1039.6318 | G115: 541.5827 | H115: 655.7443 | I115: 4157.3093 | J115: 13295.7181 | K115: 4837.4081
A116: 100000 | B116: 0.1111111111 | C116: 9442.7514 | D116: 17346.316 | E116: 10073.9953 | F116: 1048.2874 | G116: 546.0917 | H116: 661.2038 | I116: 4191.9215 | J116: 13406.4133 | K116: 4877.6825
A117: 101000 | B117: 0.1111111111 | C117: 9520.719 | D117: 17489.5425 | E117: 10157.1751 | F117: 1056.9429 | G117: 550.6007 | H117: 666.6633 | I117: 4226.5337 | J117: 13517.1084 | K117: 4917.957
A118: 102000 | B118: 0.1111111111 | C118: 9598.6867 | D118: 17632.7689 | E118: 10240.3549 | F118: 1065.5985 | G118: 555.1097 | H118: 672.1228 | I118: 4261.1459 | J118: 13627.8036 | K118: 4958.2314
A119: 103000 | B119: 0.1111111111 | C119: 9676.6544 | D119: 17775.9954 | E119: 10323.5346 | F119: 1074.2541 | G119: 559.6187 | H119: 677.5823 | I119: 4295.7581 | J119: 13738.4987 | K119: 4998.5059
A120: 104000 | B120: 0.1111111111 | C120: 9754.622 | D120: 17919.2219 | E120: 10406.7144 | F120: 1082.9097 | G120: 564.1277 | H120: 683.0417 | I120: 4330.3703 | J120: 13849.1939 | K120: 5038.7803
A121: 105000 | B121: 0.1111111111 | C121: 9832.5897 | D121: 18062.4483 | E121: 10489.8942 | F121: 1091.5653 | G121: 568.6368 | H121: 688.5012 | I121: 4364.9825 | J121: 13959.889 | K121: 5079.0547
A122: 106000 | B122: 0.1111111111 | C122: 9910.5574 | D122: 18205.6748 | E122: 10573.074 | F122: 1100.2209 | G122: 573.1458 | H122: 693.9607 | I122: 4399.5947 | J122: 14070.5842 | K122: 5119.3292
A123: 107000 | B123: 0.1111111111 | C123: 9988.5251 | D123: 18348.9013 | E123: 10656.2538 | F123: 1108.8764 | G123: 577.6548 | H123: 699.4202 | I123: 4434.2069 | J123: 14181.2794 | K123: 5159.6036
A124: 108000 | B124: 0.1111111111 | C124: 10066.4927 | D124: 18492.1277 | E124: 10739.4335 | F124: 1117.532 | G124: 582.1638 | H124: 704.8797 | I124: 4468.8191 | J124: 14291.9745 | K124: 5199.8781
A125: 109000 | B125: 0.1111111111 | C125: 10144.4604 | D125: 18635.3542 | E125: 10822.6133 | F125: 1126.1876 | G125: 586.6728 | H125: 710.3391 | I125: 4503.4313 | J125: 14402.6697 | K125: 5240.1525
A126: 110000 | B126: 0.1111111111 | C126: 10222.4281 | D126: 18778.5806 | E126: 10905.7931 | F126: 1134.8432 | G126: 591.1818 | H126: 715.7986 | I126: 4538.0435 | J126: 14513.3648 | K126: 5280.427
A127: 111000 | B127: 0.1111111111 | C127: 10300.3957 | D127: 18921.8071 | E127: 10988.9729 | F127: 1143.4988 | G127: 595.6908 | H127: 721.2581 | I127: 4572.6557 | J127: 14624.06 | K127: 5320.7014
A128: 112000 | B128: 0.1111111111 | C128: 10378.3634 | D128: 19065.0336 | E128: 11072.1526 | F128: 1152.1544 | G128: 600.1999 | H128: 726.7176 | I128: 4607.2679 | J128: 14734.7551 | K128: 5360.9758
A129: 113000 | B129: 0.1111111111 | C129: 10456.3311 | D129: 19208.26 | E129: 11155.3324 | F129: 1160.8099 | G129: 604.7089 | H129: 732.1771 | I129: 4641.88 | J129: 14845.4503 | K129: 5401.2503
A130: 114000 | B130: 0.1111111111 | C130: 10534.2988 | D130: 19351.4865 | E130: 11238.5122 | F130: 1169.4655 | G130: 609.2179 | H130: 737.6365 | I130: 4676.4922 | J130: 14956.1454 | K130: 5441.5247
A131: 115000 | B131: 0.1111111111 | C131: =LinInterp(C$216,C$17) -> 10612.2664 | D131: 19494.713 | E131: 11321.692 | F131: 1178.1211 | G131: 613.7269 | H131: 743.096 | I131: 4711.1044 | J131: 15066.8406 | K131: 5481.7992
A132: 116000 | B132: 0.1111111111 | C132: 10690.2341 | D132: 19637.9394 | E132: 11404.8718 | F132: 1186.7767 | G132: 618.2359 | H132: 748.5555 | I132: 4745.7166 | J132: 15177.5358 | K132: 5522.0736
A133: 117000 | B133: 0.1111111111 | C133: 10768.2018 | D133: 19781.1659 | E133: 11488.0515 | F133: 1195.4323 | G133: 622.7449 | H133: 754.015 | I133: 4780.3288 | J133: 15288.2309 | K133: 5562.3481
A134: 118000 | B134: 0.1111111111 | C134: 10846.1694 | D134: 19924.3923 | E134: 11571.2313 | F134: 1204.0879 | G134: 627.2539 | H134: 759.4745 | I134: 4814.941 | J134: 15398.9261 | K134: 5602.6225
A135: 119000 | B135: 0.1111111111 | C135: 10924.1371 | D135: 20067.6188 | E135: 11654.4111 | F135: 1212.7434 | G135: 631.763 | H135: 764.9339 | I135: 4849.5532 | J135: 15509.6212 | K135: 5642.8969
A136: 120000 | B136: 0.1111111111 | C136: 11002.1048 | D136: 20210.8453 | E136: 11737.5909 | F136: 1221.399 | G136: 636.272 | H136: 770.3934 | I136: 4884.1654 | J136: 15620.3164 | K136: 5683.1714
A137: 121000 | B137: 0.1111111111 | C137: 11080.0725 | D137: 20354.0717 | E137: 11820.7706 | F137: 1230.0546 | G137: 640.781 | H137: 775.8529 | I137: 4918.7776 | J137: 15731.0115 | K137: 5723.4458
A138: 122000 | B138: 0.1111111111 | C138: 11158.0401 | D138: 20497.2982 | E138: 11903.9504 | F138: 1238.7102 | G138: 645.29 | H138: 781.3124 | I138: 4953.3898 | J138: 15841.7067 | K138: 5763.7203
A139: 123000 | B139: 0.1111111111 | C139: 11236.0078 | D139: 20640.5247 | E139: 11987.1302 | F139: 1247.3658 | G139: 649.799 | H139: 786.7719 | I139: 4988.002 | J139: 15952.4018 | K139: 5803.9947
A140: 124000 | B140: 0.1111111111 | C140: 11313.9755 | D140: 20783.7511 | E140: 12070.31 | F140: 1256.0214 | G140: 654.308 | H140: 792.2314 | I140: 5022.6142 | J140: 16063.097 | K140: 5844.2692
A141: 125000 | B141: 0.1111111111 | C141: 11391.9431 | D141: 20926.9776 | E141: 12153.4898 | F141: 1264.6769 | G141: 658.817 | H141: 797.6908 | I141: 5057.2264 | J141: 16173.7922 | K141: 5884.5436
A142: 126000 | B142: 0.1111111111 | C142: 11469.9108 | D142: 21070.2041 | E142: 12236.6695 | F142: 1273.3325 | G142: 663.3261 | H142: 803.1503 | I142: 5091.8386 | J142: 16284.4873 | K142: 5924.818
A143: 127000 | B143: 0.1111111111 | C143: 11547.8785 | D143: 21213.4305 | E143: 12319.8493 | F143: 1281.9881 | G143: 667.8351 | H143: 808.6098 | I143: 5126.4508 | J143: 16395.1825 | K143: 5965.0925
A144: 128000 | B144: 0.1111111111 | C144: 11625.8462 | D144: 21356.657 | E144: 12403.0291 | F144: 1290.6437 | G144: 672.3441 | H144: 814.0693 | I144: 5161.063 | J144: 16505.8776 | K144: 6005.3669
A145: 129000 | B145: 0.1111111111 | C145: 11703.8138 | D145: 21499.8834 | E145: 12486.2089 | F145: 1299.2993 | G145: 676.8531 | H145: 819.5288 | I145: 5195.6752 | J145: 16616.5728 | K145: 6045.6414
A146: 130000 | B146: 0.1111111111 | C146: 11781.7815 | D146: 21643.1099 | E146: 12569.3886 | F146: 1307.9549 | G146: 681.3621 | H146: 824.9882 | I146: 5230.2874 | J146: 16727.2679 | K146: 6085.9158
A147: =A146+1000 -> 131000 | B147: =$B$17 -> 0.1111111111 | C147: =LinInterp(C$216,C$17) -> 11859.7492 | D147: 21786.3364 | E147: 12652.5684 | F147: 1316.6104 | G147: 685.8711 | H147: 830.4477 | I147: 5264.8996 | J147: 16837.9631 | K147: 6126.1903
A148: 132000 | B148: 0.1111111111 | C148: 11937.7168 | D148: 21929.5628 | E148: 12735.7482 | F148: 1325.266 | G148: 690.3801 | H148: 835.9072 | I148: 5299.5118 | J148: 16948.6582 | K148: 6166.4647
A149: 133000 | B149: 0.1111111111 | C149: 12015.6845 | D149: 22072.7893 | E149: 12818.928 | F149: 1333.9216 | G149: 694.8892 | H149: 841.3667 | I149: 5334.124 | J149: 17059.3534 | K149: 6206.7391
A150: 134000 | B150: 0.1111111111 | C150: 12093.6522 | D150: 22216.0158 | E150: 12902.1078 | F150: 1342.5772 | G150: 699.3982 | H150: 846.8262 | I150: 5368.7362 | J150: 17170.0486 | K150: 6247.0136
A151: 135000 | B151: 0.1111111111 | C151: 12171.6199 | D151: 22359.2422 | E151: 12985.2875 | F151: 1351.2328 | G151: 703.9072 | H151: 852.2856 | I151: 5403.3484 | J151: 17280.7437 | K151: 6287.288
A152: 136000 | B152: 0.1111111111 | C152: 12249.5875 | D152: 22502.4687 | E152: 13068.4673 | F152: 1359.8884 | G152: 708.4162 | H152: 857.7451 | I152: 5437.9606 | J152: 17391.4389 | K152: 6327.5625
A153: 137000 | B153: 0.1111111111 | C153: 12327.5552 | D153: 22645.6951 | E153: 13151.6471 | F153: 1368.5439 | G153: 712.9252 | H153: 863.2046 | I153: 5472.5728 | J153: 17502.134 | K153: 6367.8369
A154: 138000 | B154: 0.1111111111 | C154: 12405.5229 | D154: 22788.9216 | E154: 13234.8269 | F154: 1377.1995 | G154: 717.4342 | H154: 868.6641 | I154: 5507.1849 | J154: 17612.8292 | K154: 6408.1114
A155: 139000 | B155: 0.1111111111 | C155: 12483.4905 | D155: 22932.1481 | E155: 13318.0066 | F155: 1385.8551 | G155: 721.9432 | H155: 874.1236 | I155: 5541.7971 | J155: 17723.5243 | K155: 6448.3858
A156: 140000 | B156: 0.1111111111 | C156: 12561.4582 | D156: 23075.3745 | E156: 13401.1864 | F156: 1394.5107 | G156: 726.4523 | H156: 879.583 | I156: 5576.4093 | J156: 17834.2195 | K156: 6488.6602
A157: 141000 | B157: 0.1111111111 | C157: 12639.4259 | D157: 23218.601 | E157: 13484.3662 | F157: 1403.1663 | G157: 730.9613 | H157: 885.0425 | I157: 5611.0215 | J157: 17944.9146 | K157: 6528.9347
A158: 142000 | B158: 0.1111111111 | C158: 12717.3936 | D158: 23361.8275 | E158: 13567.546 | F158: 1411.8219 | G158: 735.4703 | H158: 890.502 | I158: 5645.6337 | J158: 18055.6098 | K158: 6569.2091
A159: 143000 | B159: 0.1111111111 | C159: 12795.3612 | D159: 23505.0539 | E159: 13650.7258 | F159: 1420.4774 | G159: 739.9793 | H159: 895.9615 | I159: 5680.2459 | J159: 18166.3049 | K159: 6609.4836
A160: 144000 | B160: 0.1111111111 | C160: 12873.3289 | D160: 23648.2804 | E160: 13733.9055 | F160: 1429.133 | G160: 744.4883 | H160: 901.421 | I160: 5714.8581 | J160: 18277.0001 | K160: 6649.758
A161: 145000 | B161: 0.1111111111 | C161: 12951.2966 | D161: 23791.5068 | E161: 13817.0853 | F161: 1437.7886 | G161: 748.9973 | H161: 906.8805 | I161: 5749.4703 | J161: 18387.6953 | K161: 6690.0325
A162: 146000 | B162: 0.1111111111 | C162: 13029.2642 | D162: 23934.7333 | E162: 13900.2651 | F162: 1446.4442 | G162: 753.5063 | H162: 912.3399 | I162: 5784.0825 | J162: 18498.3904 | K162: 6730.3069
A163: 147000 | B163: 0.1111111111 | C163: =LinInterp(C$216,C$17) -> 13107.2319 | D163: 24077.9598 | E163: 13983.4449 | F163: 1455.0998 | G163: 758.0154 | H163: 917.7994 | I163: 5818.6947 | J163: 18609.0856 | K163: 6770.5813
A164: 148000 | B164: 0.1111111111 | C164: 13185.1996 | D164: 24221.1862 | E164: 14066.6246 | F164: 1463.7554 | G164: 762.5244 | H164: 923.2589 | I164: 5853.3069 | J164: 18719.7807 | K164: 6810.8558
A165: 149000 | B165: 0.1111111111 | C165: 13263.1673 | D165: 24364.4127 | E165: 14149.8044 | F165: 1472.4109 | G165: 767.0334 | H165: 928.7184 | I165: 5887.9191 | J165: 18830.4759 | K165: 6851.1302
A166: 150000 | B166: 0.1111111111 | C166: 13341.1349 | D166: 24507.6392 | E166: 14232.9842 | F166: 1481.0665 | G166: 771.5424 | H166: 934.1779 | I166: 5922.5313 | J166: 18941.171 | K166: 6891.4047
A167: 151000 | B167: 0.1111111111 | C167: 13419.1026 | D167: 24650.8656 | E167: 14316.164 | F167: 1489.7221 | G167: 776.0514 | H167: 939.6373 | I167: 5957.1435 | J167: 19051.8662 | K167: 6931.6791
A168: 152000 | B168: 0.1111111111 | C168: 13497.0703 | D168: 24794.0921 | E168: 14399.3438 | F168: 1498.3777 | G168: 780.5604 | H168: 945.0968 | I168: 5991.7557 | J168: 19162.5613 | K168: 6971.9535
A169: 153000 | B169: 0.1111111111 | C169: 13575.0379 | D169: 24937.3185 | E169: 14482.5235 | F169: 1507.0333 | G169: 785.0694 | H169: 950.5563 | I169: 6026.3679 | J169: 19273.2565 | K169: 7012.228
A170: 154000 | B170: 0.1111111111 | C170: 13653.0056 | D170: 25080.545 | E170: 14565.7033 | F170: 1515.6889 | G170: 789.5785 | H170: 956.0158 | I170: 6060.9801 | J170: 19383.9517 | K170: 7052.5024
A171: 155000 | B171: 0.1111111111 | C171: 13730.9733 | D171: 25223.7715 | E171: 14648.8831 | F171: 1524.3444 | G171: 794.0875 | H171: 961.4753 | I171: 6095.5923 | J171: 19494.6468 | K171: 7092.7769
A172: 156000 | B172: 0.1111111111 | C172: 13808.941 | D172: 25366.9979 | E172: 14732.0629 | F172: 1533 | G172: 798.5965 | H172: 966.9347 | I172: 6130.2045 | J172: 19605.342 | K172: 7133.0513
A173: 157000 | B173: 0.1111111111 | C173: 13886.9086 | D173: 25510.2244 | E173: 14815.2427 | F173: 1541.6556 | G173: 803.1055 | H173: 972.3942 | I173: 6164.8167 | J173: 19716.0371 | K173: 7173.3258
A174: 158000 | B174: 0.1111111111 | C174: 13964.8763 | D174: 25653.4509 | E174: 14898.4224 | F174: 1550.3112 | G174: 807.6145 | H174: 977.8537 | I174: 6199.4289 | J174: 19826.7323 | K174: 7213.6002
A175: 159000 | B175: 0.1111111111 | C175: 14042.844 | D175: 25796.6773 | E175: 14981.6022 | F175: 1558.9668 | G175: 812.1235 | H175: 983.3132 | I175: 6234.0411 | J175: 19937.4274 | K175: 7253.8746
A176: 160000 | B176: 0.1111111111 | C176: 14120.8116 | D176: 25939.9038 | E176: 15064.782 | F176: 1567.6224 | G176: 816.6325 | H176: 988.7727 | I176: 6268.6533 | J176: 20048.1226 | K176: 7294.1491
A177: 161000 | B177: 0.1111111111 | C177: 14198.7793 | D177: 26083.1303 | E177: 15147.9618 | F177: 1576.2779 | G177: 821.1416 | H177: 994.2321 | I177: 6303.2655 | J177: 20158.8177 | K177: 7334.4235
A178: 162000 | B178: 0.1111111111 | C178: 14276.747 | D178: 26226.3567 | E178: 15231.1415 | F178: 1584.9335 | G178: 825.6506 | H178: 999.6916 | I178: 6337.8777 | J178: 20269.5129 | K178: 7374.698
A179: 163000 | B179: 0.1111111111 | C179: =LinInterp(C$216,C$17) -> 14354.7147 | D179: 26369.5832 | E179: 15314.3213 | F179: 1593.5891 | G179: 830.1596 | H179: 1005.1511 | I179: 6372.4898 | J179: 20380.2081 | K179: 7414.9724
A180: 164000 | B180: 0.1111111111 | C180: 14432.6823 | D180: 26512.8096 | E180: 15397.5011 | F180: 1602.2447 | G180: 834.6686 | H180: 1010.6106 | I180: 6407.102 | J180: 20490.9032 | K180: 7455.2469
A181: 165000 | B181: 0.1111111111 | C181: 14510.65 | D181: 26656.0361 | E181: 15480.6809 | F181: 1610.9003 | G181: 839.1776 | H181: 1016.0701 | I181: 6441.7142 | J181: 20601.5984 | K181: 7495.5213
A182: 166000 | B182: 0.1111111111 | C182: 14588.6177 | D182: 26799.2626 | E182: 15563.8607 | F182: 1619.5559 | G182: 843.6866 | H182: 1021.5295 | I182: 6476.3264 | J182: 20712.2935 | K182: 7535.7957
A183: 167000 | B183: 0.1111111111 | C183: 14666.5853 | D183: 26942.489 | E183: 15647.0404 | F183: 1628.2114 | G183: 848.1956 | H183: 1026.989 | I183: 6510.9386 | J183: 20822.9887 | K183: 7576.0702
A184: 168000 | B184: 0.1111111111 | C184: 14744.553 | D184: 27085.7155 | E184: 15730.2202 | F184: 1636.867 | G184: 852.7046 | H184: 1032.4485 | I184: 6545.5508 | J184: 20933.6838 | K184: 7616.3446
A185: 169000 | B185: 0.1111111111 | C185: 14822.5207 | D185: 27228.942 | E185: 15813.4 | F185: 1645.5226 | G185: 857.2137 | H185: 1037.908 | I185: 6580.163 | J185: 21044.379 | K185: 7656.6191
A186: 170000 | B186: 0.1111111111 | C186: 14900.4884 | D186: 27372.1684 | E186: 15896.5798 | F186: 1654.1782 | G186: 861.7227 | H186: 1043.3675 | I186: 6614.7752 | J186: 21155.0741 | K186: 7696.8935
A187: 171000 | B187: 0.1111111111 | C187: 14978.456 | D187: 27515.3949 | E187: 15979.7595 | F187: 1662.8338 | G187: 866.2317 | H187: 1048.827 | I187: 6649.3874 | J187: 21265.7693 | K187: 7737.168
A188: 172000 | B188: 0.1111111111 | C188: 15056.4237 | D188: 27658.6213 | E188: 16062.9393 | F188: 1671.4894 | G188: 870.7407 | H188: 1054.2864 | I188: 6683.9996 | J188: 21376.4645 | K188: 7777.4424
A189: 173000 | B189: 0.1111111111 | C189: 15134.3914 | D189: 27801.8478 | E189: 16146.1191 | F189: 1680.1449 | G189: 875.2497 | H189: 1059.7459 | I189: 6718.6118 | J189: 21487.1596 | K189: 7817.7168
A190: 174000 | B190: 0.1111111111 | C190: 15212.359 | D190: 27945.0743 | E190: 16229.2989 | F190: 1688.8005 | G190: 879.7587 | H190: 1065.2054 | I190: 6753.224 | J190: 21597.8548 | K190: 7857.9913
A191: 175000 | B191: 0.1111111111 | C191: 15290.3267 | D191: 28088.3007 | E191: 16312.4787 | F191: 1697.4561 | G191: 884.2677 | H191: 1070.6649 | I191: 6787.8362 | J191: 21708.5499 | K191: 7898.2657
A192: 176000 | B192: 0.1111111111 | C192: 15368.2944 | D192: 28231.5272 | E192: 16395.6584 | F192: 1706.1117 | G192: 888.7768 | H192: 1076.1244 | I192: 6822.4484 | J192: 21819.2451 | K192: 7938.5402
A193: 177000 | B193: 0.1111111111 | C193: 15446.2621 | D193: 28374.7537 | E193: 16478.8382 | F193: 1714.7673 | G193: 893.2858 | H193: 1081.5838 | I193: 6857.0606 | J193: 21929.9402 | K193: 7978.8146
A194: 178000 | B194: 0.1111111111 | C194: 15524.2297 | D194: 28517.9801 | E194: 16562.018 | F194: 1723.4229 | G194: 897.7948 | H194: 1087.0433 | I194: 6891.6728 | J194: 22040.6354 | K194: 8019.0891
